Workbook

Sheet Overview (hidden)
B2: Users can add baseline year data to editable fields with | C2: this format | D2: to autocalculate and plot 2021-2050 pathways. I haven't locked any fields, so take care.
B4: The following editable worksheets allow user inputs of assets/processes within ASI Entities to illustrate 1.5 aligned pathways for:
C5: "Primary C2G (100% electrolytic)" | D5: - Primary aluminium electricity/non-electricity/total emissions intensity across a portfolio of smelters, measured at the casthouse, where no external scrap is used
C6: "Casthouse (cut-off)" | D6: - Cradle to gate slopes for use by non-smelter casthouses using cut-off method
C7: "Casthouse (mass allocation)" | D7: - Cradle to gate slopes for casthouses (smelter or other), using mass allocation for scrap inputs
C8: "Supplier slope tool" | D8: ="- Tool for mass-weighting supplier slopes for purchased metal (when available), used in the worksheet "&C7 -> - Tool for mass-weighting supplier slopes for purchased metal (when available), used in the worksheet "Casthouse (mass allocation)"
C9: "Semis" | D9: - Cradle to gate slopes for semi-fabrication processes (including those integrated with casthouses)
C10: "Post-Semis" | D10: - Cradle to gate slopes for post-casthouse processes (including those integrated with casthouses)
B12: The following is an output sheet showing slopes for integrated facilities:
C13: "Integrated Entity Slopes" | D13: - Cradle to gate slopes for Entities with integrated facilities (casthouse > semis > fab)
B15: The following reference worksheets contain sectoral cradle to gate pathways (2018-2050) for primary aluminium (at smelter casthouse), total casthouse (cut-off), semi-fabrication and fabrication
C16: "Sectoral C2G Slopes" | D16: - Annual modelled data
C17: "IAI 1.5" | D17: - Periodic IAI data from https://international-aluminium.org/wp-content/uploads/2021/10/1.5-Scenario-Dataset-3.xlsx
B19: The following editable worksheets allow user inputs of assets/processes within ASI Entities to illustrate gate to gate pathways (ALTHOUGH THESE ARE NOT ALIGNED WITH CRITERION 5.3 WHICH MANDATES ALL DIRECT AND INDIRECT EMISSIONS):
B20: [HIDDEN] | C20: "Recycling Gate to Gate" | D20: - Recycling gate to gate emissions intensity across a portfolio of remelters for the scrap share only
B21: [HIDDEN] | C21: "Semis Gate to Gate" | D21: - Semi fabrication gate to gate emissions intensity across a portfolio of semis processes/assets
B23: The following reference worksheets contain archetypal pathways at given increments with 2021 baselines for:
B24: [HIDDEN] | C24: "Primary Archetype Data Tables" | D24: - Primary aluminium cradle to gate electricity and non-electricity split emissions intensity (bauxite mining, alumina refining, anode production, electrolysis and casting processes) [based on IAI/MPP]
B25: [HIDDEN] | C25: "Primary (no split) Data Table" | D25: - Primary aluminium cradle to gate emissions intensity (bauxite mining, alumina refining, anode production, electrolysis and casting processes and all input materials) [based on IAI/MPP]
B26: [HIDDEN] | C26: "Casthouse (cut off) Data Table" | D26: - Casthouse aluminium cradle to gate emissions intensity of total casthouse (primary & remelt) production [IAI]
B27: [HIDDEN] | C27: "Semis C2G Archetype Data Table" | D27: - Semis processes cradle to gate emissions intensity [IAI]
B28: [HIDDEN] | C28: "Post-Semis C2G Archetypes" | D28: - Fabrication scope 3 category 1 cradle to gate emissions intensity [IAI]
B29: [HIDDEN] | C29: "Recycling G2G Archetypes" | D29: - Recycling process gate to gate emissions intensity [IAI/MPP]
B30: [HIDDEN] | C30: "Semis G2G Archetype Data Table" | D30: - Semis processes gate to gate emissions intensity [IAI]

Sheet User Guide
B2: 1. Choose a base year in the "Baseline year" worksheet
B4: 2a. If Entity includes smelter(s), but no downstream activity (or recycling of non-runaround scrap in smelter casthouse), complete worksheet "Primary (100% electrolytic)"
B5: 2b. All other Entities, complete worksheet "Casthouse & Post-CH Data Entry"
B7: Worksheet fields colour coding: | F7: User data entry, where supply chain activity is relevant
F9: Optional user data entry, to refine results (e.g. electricity/non-electricity split for primary or integrated slopes for downstream)
F11: Auto-calculation, based on user-entered data
F13: 1.5 degree aligned Entity slope(s)
B15: Sheets currently locked for all but user data entry and slopes - password 'Alum1n1um'

Sheet Baseline year
B2: Choose a Baseline YEAR: | C2: 2023
C3: - Entities that are developing GHG Pathways for the first time are encouraged to use the most recent year for which data is available as the base year. - If an Entity has more detailed data for a previous year this is acceptable for validation purposes, as long as most recent year data is also disclosed. - If the chosen base year is more than three (3) years prior to the initial ASI Performance Standard Certification/Re-Certification Audit that is assessing conformance with Criterion 5.3 (e.g. to align with a corporate baseline), the most recent year data should indicate already achieved performance in line with the Entity Pathway in order for the Entity to be in conformance. - The base year should be fixed for the duration of the Pathway. - Intermediate Targets must cover a period no greater than five (5) years from the chosen base year.

Sheet Primary (100% electrolytic)
A1: =ROW(A1) -> 1
A2: 2
A3: 3 | C3: ="SMELTER (CRADLE TO GATE) MEASURED AT CASTHOUSE OUTPUT (COLD METAL) in Baseline YEAR ("&Baseline_YEAR&")" -> SMELTER (CRADLE TO GATE) MEASURED AT CASTHOUSE OUTPUT (COLD METAL) in Baseline YEAR (2023) | D3: Production (t Al) | E3: Cradle to Gate Emissions Intensity (t CO2e/t Al) | F3: …of which Electricity Emissions Intensity, if known (t CO2e/t Al) | G3: Non-Electricity Emissions Intensity (t CO2e/t Al)
A4: 4 | C4: Smelter casthouse A | G4: =IF(ISBLANK(E4),0,IF(ISBLANK(F4),"NO SPLIT",IF(E4-F4<0,"ERROR",E4-F4))) -> 0.0
A5: 5 | C5: Smelter casthouse B | G5: =IF(ISBLANK(E5),0,IF(ISBLANK(F5),"NO SPLIT",IF(E5-F5<0,"ERROR",E5-F5))) -> 0.0
A6: 6 | C6: Smelter casthouse C | G6: 0.0
A7: 7 | C7: Smelter casthouse D | G7: 0.0
A8: 8 | C8: ….INSERT row(s) above to increase portfolio | G8: 0.0
A9: 9 | C9: Entity production weighted average | D9: =SUM(D4:D8) -> 0 | E9: =IFERROR(ROUND(SUMPRODUCT(E4:E8,D4:D8)/D9,1),0) -> 0.0 | F9: =IFERROR(IF(COUNTBLANK(F4:F8)>COUNTBLANK(E4:E8),"NO SPLIT",(ROUND(SUMPRODUCT(F4:F8,D4:D8)/D9,1))),0) -> 0.0 | G9: =IF(SUMPRODUCT(ISTEXT(G4:G8)*1)>0,"NO SPLIT",E9-F9) -> 0.0
A10: 10
A11: 11 | E11: Archetype slope | F11: 2016 | G11: 2017 | H11: 2018 | I11: 2019 | J11: 2020 | K11: 2021 | L11: 2022 | M11: 2023 | N11: 2024 | O11: 2025 | P11: 2026 | Q11: 2027 | R11: 2028 | S11: 2029 | T11: 2030 | U11: 2031 | V11: 2032 | W11: 2033 | X11: 2034 | Y11: 2035 | Z11: 2036 | AA11: 2037 | AB11: 2038 | AC11: 2039 | AD11: 2040 | AE11: 2041 | AF11: 2042 | AG11: 2043 | AH11: 2044 | AI11: 2045 | AJ11: 2046 | AK11: 2047 | AL11: 2048 | AM11: 2049 | AN11: 2050
A12: 12 | C12: Entity Electricity Emissions Intensity | D12: ~ | E12: =IFERROR(IF(F9=0,"Enter values above",(INDEX(Table2[],MATCH(MIN(ABS(INDIRECT("Table2["&Baseline_YEAR&"]")-F9)),ABS(INDIRECT("Table2["&Baseline_YEAR&"]")-F9),0),0))),"NO SPLIT") -> Enter values above
A13: 13 | C13: Entity Non-Electricity Emissions Intensity | D13: ~ | E13: =IFERROR(IF(G9=0,"Enter values above",INDEX(Table3[],MATCH(MIN(ABS(INDIRECT("Table3["&Baseline_YEAR&"]")-G9)),ABS(INDIRECT("Table3["&Baseline_YEAR&"]")-G9),0),0)),"NO SPLIT") -> Enter values above
A14: 14 | C14: Entity Total Cradle to Gate Emissions Intensity | D14: ~ | E14: =IF(E9=0,"Enter values above",(INDEX(Table213[],MATCH(MIN(ABS(INDIRECT("Table213["&Baseline_YEAR&"]")-E9)),ABS(INDIRECT("Table213["&Baseline_YEAR&"]")-E9),0),0))) -> Enter values above
A15: 15

Sheet Casthouse & Post-CH Data Entry
C2: A | D2: B | E2: C | F2: Type of INPUT to which column B and C applies (column A applies to whole process)
C3: Process Scope 1+2 Intensity (t CO2e/t Al) | D3: Scope 3 Cat.1 average intensity of PURCHASED Aluminium (including scrap) (t CO2e/t Al) OR, if smelter casthouse: Average emissions intensity of Aluminium INPUT to the casthouse (including liquid electrolytic tapped from pots, cold metal and scrap) | E3: Mass of aluminium INPUT (t Al), Only required if Entity wishes to use a single integrated (multi-process) procurement slope
B4: ="Casthouse in Baseline YEAR ("&Baseline_YEAR&")" -> Casthouse in Baseline YEAR (2023) | C4: 0.54 | D4: 12.88 | F4: = purchased scrap (not including internal scrap) plus aluminium metal (cold or liquid)
B5: ="Semi-fabrication process in Baseline YEAR ("&Baseline_YEAR&")" -> Semi-fabrication process in Baseline YEAR (2023) | C5: =(3.31+570.92)/1000 -> 0.57 | D5: =(15470.77+520+96.11+0.99)/1000 -> 16.09 | F5: = purchased casthouse products (not including those internally produced in integrated casthouse)
B6: ="Fabrication process in Baseline YEAR ("&Baseline_YEAR&")" -> Fabrication process in Baseline YEAR (2023) | F6: = purchased semi-fabricated & fabricated products (not including those internally produced in integrated semi-fab or fabrication process)
E7: =SUM(E4:E6) -> 0
B9: CASTHOUSE | D9: 2016 | E9: 2017 | F9: 2018 | G9: 2019 | H9: 2020 | I9: 2021 | J9: 2022 | K9: 2023 | L9: 2024 | M9: 2025 | N9: 2026 | O9: 2027 | P9: 2028 | Q9: 2029 | R9: 2030 | S9: 2031 | T9: 2032 | U9: 2033 | V9: 2034 | W9: 2035 | X9: 2036 | Y9: 2037 | Z9: 2038 | AA9: 2039 | AB9: 2040 | AC9: 2041 | AD9: 2042 | AE9: 2043 | AF9: 2044 | AG9: 2045 | AH9: 2046 | AI9: 2047 | AJ9: 2048 | AK9: 2049 | AL9: 2050
B10: GATE TO GATE SLOPE (scope 1+2) = | C10: =IF(ISBLANK(C4),"NO USER DATA ENTERED",INDEX(Table26[],MATCH(MIN(ABS(INDIRECT("Table26["&Baseline_YEAR&"]")-C4)),ABS(INDIRECT("Table26["&Baseline_YEAR&"]")-C4),0),0)) -> recycling_archetype_0.600 | K10: 0.540 | L10: 0.486 | M10: 0.437 | N10: 0.394 | O10: 0.354 | P10: 0.319 | Q10: 0.287 | R10: 0.258 | S10: 0.232 | T10: 0.209 | U10: 0.188 | V10: 0.169 | W10: 0.153 | X10: 0.137 | Y10: 0.124 | Z10: 0.111 | AA10: 0.100 | AB10: 0.090 | AC10: 0.081 | AD10: 0.073 | AE10: 0.066 | AF10: 0.059 | AG10: 0.053 | AH10: 0.048 | AI10: 0.043 | AJ10: 0.039 | AK10: 0.035 | AL10: 0.031
B11: PROCUREMENT SLOPE (Scope 3, Cat.1) MEASURED AT INPUT = | C11: =IF(ISBLANK(D4),"NO USER DATA ENTERED",INDEX(Table21319[],MATCH(MIN(ABS(INDIRECT("Table21319["&Baseline_YEAR&"]")-D4)),ABS(INDIRECT("Table21319["&Baseline_YEAR&"]")-D4),0),0)) -> casthouse_procurement_archetype_15.1 | K11: 12.9 | L11: 11.592 | M11: 10.433 | N11: 9.390 | O11: 8.451 | P11: 7.606 | Q11: 6.845 | R11: 6.160 | S11: 4.928 | T11: 3.943 | U11: 3.154 | V11: 2.523 | W11: 2.019 | X11: 1.615 | Y11: 1.292 | Z11: 1.034 | AA11: 0.827 | AB11: 0.661 | AC11: 0.562 | AD11: 0.478 | AE11: 0.406 | AF11: 0.345 | AG11: 0.293 | AH11: 0.249 | AI11: 0.212 | AJ11: 0.180 | AK11: 0.153 | AL11: 0.130
B13: SEMI-FABRICATION | D13: 2016 | E13: 2017 | F13: 2018 | G13: 2019 | H13: 2020 | I13: 2021 | J13: 2022 | K13: 2023 | L13: 2024 | M13: 2025 | N13: 2026 | O13: 2027 | P13: 2028 | Q13: 2029 | R13: 2030 | S13: 2031 | T13: 2032 | U13: 2033 | V13: 2034 | W13: 2035 | X13: 2036 | Y13: 2037 | Z13: 2038 | AA13: 2039 | AB13: 2040 | AC13: 2041 | AD13: 2042 | AE13: 2043 | AF13: 2044 | AG13: 2045 | AH13: 2046 | AI13: 2047 | AJ13: 2048 | AK13: 2049 | AL13: 2050
B14: GATE TO GATE SLOPE (scope 1+2) = | C14: =IF(ISBLANK(C5),"NO USER DATA ENTERED",INDEX(Table269[],MATCH(MIN(ABS(INDIRECT("Table269["&Baseline_YEAR&"]")-C5)),ABS(INDIRECT("Table269["&Baseline_YEAR&"]")-C5),0),0)) -> semis_archetype_0.500 | K14: 0.570 | L14: 0.513 | M14: 0.462 | N14: 0.416 | O14: 0.374 | P14: 0.337 | Q14: 0.303 | R14: 0.273 | S14: 0.245 | T14: 0.221 | U14: 0.199 | V14: 0.179 | W14: 0.161 | X14: 0.145 | Y14: 0.130 | Z14: 0.117 | AA14: 0.106 | AB14: 0.095 | AC14: 0.086 | AD14: 0.077 | AE14: 0.069 | AF14: 0.062 | AG14: 0.056 | AH14: 0.051 | AI14: 0.045 | AJ14: 0.041 | AK14: 0.037 | AL14: 0.033
B15: PROCUREMENT SLOPE (Scope 3, Cat.1) MEASURED AT INPUT = | C15: =IF(ISBLANK(D5),"NO USER DATA ENTERED",INDEX(Table26916[],MATCH(MIN(ABS(INDIRECT("Table26916["&Baseline_YEAR&"]")-D5)),ABS(INDIRECT("Table26916["&Baseline_YEAR&"]")-D5),0),0)) -> semis_procurement_archetype_18.9 | K15: 16.1 | L15: 14.481 | M15: 13.033 | N15: 11.730 | O15: 10.557 | P15: 9.501 | Q15: 8.551 | R15: 7.696 | S15: 6.157 | T15: 4.925 | U15: 3.940 | V15: 3.152 | W15: 2.522 | X15: 2.017 | Y15: 1.614 | Z15: 1.291 | AA15: 1.033 | AB15: 0.826 | AC15: 0.702 | AD15: 0.597 | AE15: 0.507 | AF15: 0.431 | AG15: 0.367 | AH15: 0.312 | AI15: 0.265 | AJ15: 0.225 | AK15: 0.191 | AL15: 0.163
B17: FABRICATION | D17: 2016 | E17: 2017 | F17: 2018 | G17: 2019 | H17: 2020 | I17: 2021 | J17: 2022 | K17: 2023 | L17: 2024 | M17: 2025 | N17: 2026 | O17: 2027 | P17: 2028 | Q17: 2029 | R17: 2030 | S17: 2031 | T17: 2032 | U17: 2033 | V17: 2034 | W17: 2035 | X17: 2036 | Y17: 2037 | Z17: 2038 | AA17: 2039 | AB17: 2040 | AC17: 2041 | AD17: 2042 | AE17: 2043 | AF17: 2044 | AG17: 2045 | AH17: 2046 | AI17: 2047 | AJ17: 2048 | AK17: 2049 | AL17: 2050
B18: PROCUREMENT SLOPE (Scope 3, Cat.1) MEASURED AT INPUT = | C18: =IF(ISBLANK(D6),"NO USER DATA ENTERED",INDEX(Table2691617[],MATCH(MIN(ABS(INDIRECT("Table2691617["&Baseline_YEAR&"]")-D6)),ABS(INDIRECT("Table2691617["&Baseline_YEAR&"]")-D6),0),0)) -> NO USER DATA ENTERED
B20: INTEGRATED PROCUREMENT | D20: 2016 | E20: 2017 | F20: 2018 | G20: 2019 | H20: 2020 | I20: 2021 | J20: 2022 | K20: 2023 | L20: 2024 | M20: 2025 | N20: 2026 | O20: 2027 | P20: 2028 | Q20: 2029 | R20: 2030 | S20: 2031 | T20: 2032 | U20: 2033 | V20: 2034 | W20: 2035 | X20: 2036 | Y20: 2037 | Z20: 2038 | AA20: 2039 | AB20: 2040 | AC20: 2041 | AD20: 2042 | AE20: 2043 | AF20: 2044 | AG20: 2045 | AH20: 2046 | AI20: 2047 | AJ20: 2048 | AK20: 2049 | AL20: 2050
B21: PROCUREMENT SLOPE (Scope 3, Cat.1) MEASURED AT INPUT = | C21: =IF(E7>0,"INCLUDES: ","NO INTEGRATED SLOPE")&IF(E4>0,"CASTING","")&IF(AND(E4>0,E5+E6>0)," + ","")&IF(E5>0,"SEMI-FABRICATION","")&IF(AND(E5>0,E6>0)," + ","")&IF(E6>0,"FABRICATION","") -> NO INTEGRATED SLOPE | D21: =IFERROR(((D11*$E$4)+(D15*$E$5)+(D18*$E$6))/$E$7,"") ->  | E21: =IFERROR(((E11*$E$4)+(E15*$E$5)+(E18*$E$6))/$E$7,"") ->  | F21: =IFERROR(((F11*$E$4)+(F15*$E$5)+(F18*$E$6))/$E$7,"") ->  | AK21: =IFERROR(((AK11*$E$4)+(AK15*$E$5)+(AK18*$E$6))/$E$7,"") -> 

Sheet Recycling Gate to Gate (hidden)
B1: Scope 1+2 Emissions Intensity (t CO2e/t Al) | C1: Scrap Remelt Production (t Al)
A2: Recycler A | B2: 0.333 | C2: 60000
A3: Recycler B | B3: 0.298 | C3: 120000
A4: Recycler C | B4: 0.301 | C4: 150000
A5: Recycler D
A6: Recycler E
A7: Recycler F
A8: Recycler G
A9: Entity production weighted average | B9: =IFERROR(SUMPRODUCT(B2:B8,$C$2:$C$8)/$C$9,0) -> 0.306 | C9: =SUM(C2:C8) -> 330000
D11: 2021 | E11: 2022 | F11: 2023 | G11: 2024 | H11: 2025 | I11: 2026 | J11: 2027 | K11: 2028 | L11: 2029 | M11: 2030 | N11: 2031 | O11: 2032 | P11: 2033 | Q11: 2034 | R11: 2035 | S11: 2036 | T11: 2037 | U11: 2038 | V11: 2039 | W11: 2040 | X11: 2041 | Y11: 2042 | Z11: 2043 | AA11: 2044 | AB11: 2045 | AC11: 2046 | AD11: 2047 | AE11: 2048 | AF11: 2049 | AG11: 2050
A12: Average Recycling Gate to Gate Emissions Intensity | B12: ~ | C12: =IF(B9=0,"Enter value(s) in B3:C9",(INDEX(Table26[],MATCH(MIN(ABS(INDIRECT("Table26["&Baseline_YEAR&"]")-B9)),ABS(INDIRECT("Table26["&Baseline_YEAR&"]")-B9),0),0))) -> recycling_archetype_0.340 | D12: 0.340 | E12: 0.340 | F12: 0.340 | G12: 0.333 | H12: 0.326 | I12: 0.320 | J12: 0.314 | K12: 0.308 | L12: 0.302 | M12: 0.297 | N12: 0.292 | O12: 0.287 | P12: 0.282 | Q12: 0.277 | R12: 0.273 | S12: 0.262 | T12: 0.251 | U12: 0.241 | V12: 0.231 | W12: 0.221 | X12: 0.208 | Y12: 0.195 | Z12: 0.183 | AA12: 0.171 | AB12: 0.159 | AC12: 0.147 | AD12: 0.135 | AE12: 0.122 | AF12: 0.111 | AG12: 0.099 | AH12: 0.094 | AI12: 0.090 | AJ12: 0.085 | AK12: 0.08026892257 | AL12: 0.07573023825
C14: =Table15[Sectoral Benchmark] -> Recycling Gate-to-Gate Sectoral (IAI/MPP) | D14: =Table15[2016] -> 0.418 | E14: =Table15[2017] -> 0.418 | F14: =Table15[2018] -> 0.418 | G14: =Table15[2019] -> 0.409 | H14: =Table15[2020] -> 0.400 | I14: =Table15[2021] -> 0.392 | J14: =Table15[2022] -> 0.384 | K14: =Table15[2023] -> 0.376 | L14: =Table15[2024] -> 0.369 | M14: =Table15[2025] -> 0.362 | N14: =Table15[2026] -> 0.355 | O14: =Table15[2027] -> 0.349 | P14: =Table15[2028] -> 0.343 | Q14: =Table15[2029] -> 0.337 | R14: =Table15[2030] -> 0.331 | S14: =Table15[2031] -> 0.317 | T14: =Table15[2032] -> 0.303 | U14: =Table15[2033] -> 0.289 | V14: =Table15[2034] -> 0.276 | W14: =Table15[2035] -> 0.264 | X14: =Table15[2036] -> 0.247 | Y14: =Table15[2037] -> 0.230 | Z14: =Table15[2038] -> 0.214 | AA14: =Table15[2039] -> 0.199 | AB14: =Table15[2040] -> 0.184 | AC14: =Table15[2041] -> 0.168 | AD14: =Table15[2042] -> 0.152 | AE14: =Table15[2043] -> 0.136 | AF14: =Table15[2044] -> 0.121 | AG14: =Table15[2045] -> 0.106

Sheet Semis Gate to Gate (hidden)
B1: Scope 1+2 Emissions Intensity (t CO2e/t Al) | C1: Semis Production (t Al)
A2: Semifabricator A | B2: 0.150 | C2: 1000
A3: Semifabricator B
A4: Semifabricator C
A5: Semifabricator D
A6: Semifabricator E
A7: Semifabricator F
A8: Semifabricator G
A9: Entity production weighted average | B9: =IFERROR((SUMPRODUCT(B2:B8,$C$2:$C$8)/$C$9),0) -> 0.150 | C9: =SUM(C2:C8) -> 1000
D11: 2021 | E11: 2022 | F11: 2023 | G11: 2024 | H11: 2025 | I11: 2026 | J11: 2027 | K11: 2028 | L11: 2029 | M11: 2030 | N11: 2031 | O11: 2032 | P11: 2033 | Q11: 2034 | R11: 2035 | S11: 2036 | T11: 2037 | U11: 2038 | V11: 2039 | W11: 2040 | X11: 2041 | Y11: 2042 | Z11: 2043 | AA11: 2044 | AB11: 2045 | AC11: 2046 | AD11: 2047 | AE11: 2048 | AF11: 2049 | AG11: 2050
A12: Average Semis Gate to Gate Emissions Intensity | B12: ~ | C12: =IF(B9=0,"Enter value(s) in B3:C9",(INDEX(Table269[],MATCH(MIN(ABS(INDIRECT("Table269["&Baseline_YEAR&"]")-B9)),ABS(INDIRECT("Table269["&Baseline_YEAR&"]")-B9),0),0))) -> semis_archetype_0.165 | D12: 0.165 | E12: 0.165 | F12: 0.165 | G12: 0.162 | H12: 0.159 | I12: 0.156 | J12: 0.153 | K12: 0.149 | L12: 0.146 | M12: 0.143 | N12: 0.140 | O12: 0.137 | P12: 0.134 | Q12: 0.131 | R12: 0.128 | S12: 0.126 | T12: 0.124 | U12: 0.122 | V12: 0.120 | W12: 0.118 | X12: 0.115 | Y12: 0.113 | Z12: 0.110 | AA12: 0.108 | AB12: 0.105 | AC12: 0.104 | AD12: 0.102 | AE12: 0.100 | AF12: 0.098 | AG12: 0.096 | AH12: 0.088 | AI12: 0.080 | AJ12: 0.072 | AK12: 0.06425520967 | AL12: 0.05629127993

Sheet Integrated Proc'ment Scope 3.1

Sheet Casthouse Scopes 1+2 Slope

Sheet CH Procurement Scope 3 Cat.1

Sheet Semi-fab Scopes 1+2 Slope Chart

Sheet Semi-fab Procurement Scope 3.1

Sheet Fabrication Proc'ment Scope 3.1

Sheet Sectoral Slopes
A1: =ROW(A1) -> 1 | B1: Sectoral Benchmark | C1: 2016 | D1: 2017 | E1: 2018 | F1: 2019 | G1: 2020 | H1: 2021 | I1: 2022 | J1: 2023 | K1: 2024 | L1: 2025 | M1: 2026 | N1: 2027 | O1: 2028 | P1: 2029 | Q1: 2030 | R1: 2031 | S1: 2032 | T1: 2033 | U1: 2034 | V1: 2035 | W1: 2036 | X1: 2037 | Y1: 2038 | Z1: 2039 | AA1: 2040 | AB1: 2041 | AC1: 2042 | AD1: 2043 | AE1: 2044 | AF1: 2045 | AG1: 2046 | AH1: 2047 | AI1: 2048 | AJ1: 2049 | AK1: 2050
A2: =ROW(A2) -> 2 | B2: Aluminium Sector Absolute Mt CO2e (IAI) | C2: 1016 | D2: 1077 | E2: =HLOOKUP('Sectoral Slopes'!E$1,'IAI 1.5'!$B$21:$G$28,8,FALSE) -> 1095 | F2: =HLOOKUP('Sectoral Slopes'!F$1,'IAI 1.5'!$B$21:$G$28,8,FALSE) ->  | G2: =HLOOKUP('Sectoral Slopes'!G$1,'IAI 1.5'!$B$21:$G$28,8,FALSE) ->  | H2: =HLOOKUP('Sectoral Slopes'!H$1,'IAI 1.5'!$B$21:$G$28,8,FALSE) ->  | I2: =HLOOKUP('Sectoral Slopes'!I$1,'IAI 1.5'!$B$21:$G$28,8,FALSE) ->  | J2: =HLOOKUP('Sectoral Slopes'!J$1,'IAI 1.5'!$B$21:$G$28,8,FALSE) ->  | K2: =HLOOKUP('Sectoral Slopes'!K$1,'IAI 1.5'!$B$21:$G$28,8,FALSE) ->  | L2: =HLOOKUP('Sectoral Slopes'!L$1,'IAI 1.5'!$B$21:$G$28,8,FALSE) ->  | M2: =HLOOKUP('Sectoral Slopes'!M$1,'IAI 1.5'!$B$21:$G$28,8,FALSE) ->  | N2: =HLOOKUP('Sectoral Slopes'!N$1,'IAI 1.5'!$B$21:$G$28,8,FALSE) ->  | O2: =HLOOKUP('Sectoral Slopes'!O$1,'IAI 1.5'!$B$21:$G$28,8,FALSE) ->  | P2: =HLOOKUP('Sectoral Slopes'!P$1,'IAI 1.5'!$B$21:$G$28,8,FALSE) ->  | Q2: =HLOOKUP('Sectoral Slopes'!Q$1,'IAI 1.5'!$B$21:$G$28,8,FALSE) -> 813 | R2: =HLOOKUP('Sectoral Slopes'!R$1,'IAI 1.5'!$B$21:$G$28,8,FALSE) ->  | S2: =HLOOKUP('Sectoral Slopes'!S$1,'IAI 1.5'!$B$21:$G$28,8,FALSE) ->  | T2: =HLOOKUP('Sectoral Slopes'!T$1,'IAI 1.5'!$B$21:$G$28,8,FALSE) ->  | U2: =HLOOKUP('Sectoral Slopes'!U$1,'IAI 1.5'!$B$21:$G$28,8,FALSE) ->  | V2: =HLOOKUP('Sectoral Slopes'!V$1,'IAI 1.5'!$B$21:$G$28,8,FALSE) -> 341 | W2: =HLOOKUP('Sectoral Slopes'!W$1,'IAI 1.5'!$B$21:$G$28,8,FALSE) ->  | X2: =HLOOKUP('Sectoral Slopes'!X$1,'IAI 1.5'!$B$21:$G$28,8,FALSE) ->  | Y2: =HLOOKUP('Sectoral Slopes'!Y$1,'IAI 1.5'!$B$21:$G$28,8,FALSE) ->  | Z2: =HLOOKUP('Sectoral Slopes'!Z$1,'IAI 1.5'!$B$21:$G$28,8,FALSE) ->  | AA2: =HLOOKUP('Sectoral Slopes'!AA$1,'IAI 1.5'!$B$21:$G$28,8,FALSE) -> 198 | AB2: =HLOOKUP('Sectoral Slopes'!AB$1,'IAI 1.5'!$B$21:$G$28,8,FALSE) ->  | AC2: =HLOOKUP('Sectoral Slopes'!AC$1,'IAI 1.5'!$B$21:$G$28,8,FALSE) ->  | AD2: =HLOOKUP('Sectoral Slopes'!AD$1,'IAI 1.5'!$B$21:$G$28,8,FALSE) ->  | AE2: =HLOOKUP('Sectoral Slopes'!AE$1,'IAI 1.5'!$B$21:$G$28,8,FALSE) ->  | AF2: =HLOOKUP('Sectoral Slopes'!AF$1,'IAI 1.5'!$B$21:$G$28,8,FALSE) -> 121 | AG2: =HLOOKUP('Sectoral Slopes'!AG$1,'IAI 1.5'!$B$21:$G$28,8,FALSE) ->  | AH2: =HLOOKUP('Sectoral Slopes'!AH$1,'IAI 1.5'!$B$21:$G$28,8,FALSE) ->  | AI2: =HLOOKUP('Sectoral Slopes'!AI$1,'IAI 1.5'!$B$21:$G$28,8,FALSE) ->  | AJ2: =HLOOKUP('Sectoral Slopes'!AJ$1,'IAI 1.5'!$B$21:$G$28,8,FALSE) ->  | AK2: =HLOOKUP('Sectoral Slopes'!AK$1,'IAI 1.5'!$B$21:$G$28,8,FALSE) -> 53
A3: 3
A4: 4 | B4: Primary Aluminium Sector Absolute Mt CO2e (IAI) | C4: =D4 -> 1037 | D4: =E4 -> 1037 | E4: =HLOOKUP('Sectoral Slopes'!E1,'IAI 1.5'!$B$21:$G$28,2,FALSE) -> 1037 | F4: =HLOOKUP('Sectoral Slopes'!F1,'IAI 1.5'!$B$21:$G$28,2,FALSE) ->  | G4: =HLOOKUP('Sectoral Slopes'!G1,'IAI 1.5'!$B$21:$G$28,2,FALSE) ->  | H4: =HLOOKUP('Sectoral Slopes'!H1,'IAI 1.5'!$B$21:$G$28,2,FALSE) ->  | I4: =HLOOKUP('Sectoral Slopes'!I1,'IAI 1.5'!$B$21:$G$28,2,FALSE) ->  | J4: =HLOOKUP('Sectoral Slopes'!J1,'IAI 1.5'!$B$21:$G$28,2,FALSE) ->  | K4: =HLOOKUP('Sectoral Slopes'!K1,'IAI 1.5'!$B$21:$G$28,2,FALSE) ->  | L4: =HLOOKUP('Sectoral Slopes'!L1,'IAI 1.5'!$B$21:$G$28,2,FALSE) ->  | M4: =HLOOKUP('Sectoral Slopes'!M1,'IAI 1.5'!$B$21:$G$28,2,FALSE) ->  | N4: =HLOOKUP('Sectoral Slopes'!N1,'IAI 1.5'!$B$21:$G$28,2,FALSE) ->  | O4: =HLOOKUP('Sectoral Slopes'!O1,'IAI 1.5'!$B$21:$G$28,2,FALSE) ->  | P4: =HLOOKUP('Sectoral Slopes'!P1,'IAI 1.5'!$B$21:$G$28,2,FALSE) ->  | Q4: =HLOOKUP('Sectoral Slopes'!Q1,'IAI 1.5'!$B$21:$G$28,2,FALSE) -> 756 | R4: =HLOOKUP('Sectoral Slopes'!R1,'IAI 1.5'!$B$21:$G$28,2,FALSE) ->  | S4: =HLOOKUP('Sectoral Slopes'!S1,'IAI 1.5'!$B$21:$G$28,2,FALSE) ->  | T4: =HLOOKUP('Sectoral Slopes'!T1,'IAI 1.5'!$B$21:$G$28,2,FALSE) ->  | U4: =HLOOKUP('Sectoral Slopes'!U1,'IAI 1.5'!$B$21:$G$28,2,FALSE) ->  | V4: =HLOOKUP('Sectoral Slopes'!V1,'IAI 1.5'!$B$21:$G$28,2,FALSE) -> 289 | W4: =HLOOKUP('Sectoral Slopes'!W1,'IAI 1.5'!$B$21:$G$28,2,FALSE) ->  | X4: =HLOOKUP('Sectoral Slopes'!X1,'IAI 1.5'!$B$21:$G$28,2,FALSE) ->  | Y4: =HLOOKUP('Sectoral Slopes'!Y1,'IAI 1.5'!$B$21:$G$28,2,FALSE) ->  | Z4: =HLOOKUP('Sectoral Slopes'!Z1,'IAI 1.5'!$B$21:$G$28,2,FALSE) ->  | AA4: =HLOOKUP('Sectoral Slopes'!AA1,'IAI 1.5'!$B$21:$G$28,2,FALSE) -> 155 | AB4: =HLOOKUP('Sectoral Slopes'!AB1,'IAI 1.5'!$B$21:$G$28,2,FALSE) ->  | AC4: =HLOOKUP('Sectoral Slopes'!AC1,'IAI 1.5'!$B$21:$G$28,2,FALSE) ->  | AD4: =HLOOKUP('Sectoral Slopes'!AD1,'IAI 1.5'!$B$21:$G$28,2,FALSE) ->  | AE4: =HLOOKUP('Sectoral Slopes'!AE1,'IAI 1.5'!$B$21:$G$28,2,FALSE) ->  | AF4: =HLOOKUP('Sectoral Slopes'!AF1,'IAI 1.5'!$B$21:$G$28,2,FALSE) -> 87 | AG4: =HLOOKUP('Sectoral Slopes'!AG1,'IAI 1.5'!$B$21:$G$28,2,FALSE) ->  | AH4: =HLOOKUP('Sectoral Slopes'!AH1,'IAI 1.5'!$B$21:$G$28,2,FALSE) ->  | AI4: =HLOOKUP('Sectoral Slopes'!AI1,'IAI 1.5'!$B$21:$G$28,2,FALSE) ->  | AJ4: =HLOOKUP('Sectoral Slopes'!AJ1,'IAI 1.5'!$B$21:$G$28,2,FALSE) ->  | AK4: =HLOOKUP('Sectoral Slopes'!AK1,'IAI 1.5'!$B$21:$G$28,2,FALSE) -> 35
A5: 5 | B5: Recycling Process Aluminium Sector Absolute Mt CO2e (IAI) | C5: =D5 -> 19 | D5: 19 | E5: =HLOOKUP('Sectoral Slopes'!E$1,'IAI 1.5'!$B$21:$G$28,5,FALSE) -> 19 | F5: =HLOOKUP('Sectoral Slopes'!F$1,'IAI 1.5'!$B$21:$G$28,5,FALSE) ->  | G5: =HLOOKUP('Sectoral Slopes'!G$1,'IAI 1.5'!$B$21:$G$28,5,FALSE) ->  | H5: =HLOOKUP('Sectoral Slopes'!H$1,'IAI 1.5'!$B$21:$G$28,5,FALSE) ->  | I5: =HLOOKUP('Sectoral Slopes'!I$1,'IAI 1.5'!$B$21:$G$28,5,FALSE) ->  | J5: =HLOOKUP('Sectoral Slopes'!J$1,'IAI 1.5'!$B$21:$G$28,5,FALSE) ->  | K5: =HLOOKUP('Sectoral Slopes'!K$1,'IAI 1.5'!$B$21:$G$28,5,FALSE) ->  | L5: =HLOOKUP('Sectoral Slopes'!L$1,'IAI 1.5'!$B$21:$G$28,5,FALSE) ->  | M5: =HLOOKUP('Sectoral Slopes'!M$1,'IAI 1.5'!$B$21:$G$28,5,FALSE) ->  | N5: =HLOOKUP('Sectoral Slopes'!N$1,'IAI 1.5'!$B$21:$G$28,5,FALSE) ->  | O5: =HLOOKUP('Sectoral Slopes'!O$1,'IAI 1.5'!$B$21:$G$28,5,FALSE) ->  | P5: =HLOOKUP('Sectoral Slopes'!P$1,'IAI 1.5'!$B$21:$G$28,5,FALSE) ->  | Q5: =HLOOKUP('Sectoral Slopes'!Q$1,'IAI 1.5'!$B$21:$G$28,5,FALSE) -> 22 | R5: =HLOOKUP('Sectoral Slopes'!R$1,'IAI 1.5'!$B$21:$G$28,5,FALSE) ->  | S5: =HLOOKUP('Sectoral Slopes'!S$1,'IAI 1.5'!$B$21:$G$28,5,FALSE) ->  | T5: =HLOOKUP('Sectoral Slopes'!T$1,'IAI 1.5'!$B$21:$G$28,5,FALSE) ->  | U5: =HLOOKUP('Sectoral Slopes'!U$1,'IAI 1.5'!$B$21:$G$28,5,FALSE) ->  | V5: =HLOOKUP('Sectoral Slopes'!V$1,'IAI 1.5'!$B$21:$G$28,5,FALSE) -> 20 | W5: =HLOOKUP('Sectoral Slopes'!W$1,'IAI 1.5'!$B$21:$G$28,5,FALSE) ->  | X5: =HLOOKUP('Sectoral Slopes'!X$1,'IAI 1.5'!$B$21:$G$28,5,FALSE) ->  | Y5: =HLOOKUP('Sectoral Slopes'!Y$1,'IAI 1.5'!$B$21:$G$28,5,FALSE) ->  | Z5: =HLOOKUP('Sectoral Slopes'!Z$1,'IAI 1.5'!$B$21:$G$28,5,FALSE) ->  | AA5: =HLOOKUP('Sectoral Slopes'!AA$1,'IAI 1.5'!$B$21:$G$28,5,FALSE) -> 16 | AB5: =HLOOKUP('Sectoral Slopes'!AB$1,'IAI 1.5'!$B$21:$G$28,5,FALSE) ->  | AC5: =HLOOKUP('Sectoral Slopes'!AC$1,'IAI 1.5'!$B$21:$G$28,5,FALSE) ->  | AD5: =HLOOKUP('Sectoral Slopes'!AD$1,'IAI 1.5'!$B$21:$G$28,5,FALSE) ->  | AE5: =HLOOKUP('Sectoral Slopes'!AE$1,'IAI 1.5'!$B$21:$G$28,5,FALSE) ->  | AF5: =HLOOKUP('Sectoral Slopes'!AF$1,'IAI 1.5'!$B$21:$G$28,5,FALSE) -> 10 | AG5: =HLOOKUP('Sectoral Slopes'!AG$1,'IAI 1.5'!$B$21:$G$28,5,FALSE) ->  | AH5: =HLOOKUP('Sectoral Slopes'!AH$1,'IAI 1.5'!$B$21:$G$28,5,FALSE) ->  | AI5: =HLOOKUP('Sectoral Slopes'!AI$1,'IAI 1.5'!$B$21:$G$28,5,FALSE) ->  | AJ5: =HLOOKUP('Sectoral Slopes'!AJ$1,'IAI 1.5'!$B$21:$G$28,5,FALSE) ->  | AK5: =HLOOKUP('Sectoral Slopes'!AK$1,'IAI 1.5'!$B$21:$G$28,5,FALSE) -> 8
A6: 6 | B6: Remelt (semis & internal) Aluminium Sector Absolute Mt CO2e (IAI) | C6: =D6 -> 11 | D6: 11 | E6: =HLOOKUP('Sectoral Slopes'!E$1,'IAI 1.5'!$B$21:$G$28,6,FALSE) -> 11 | F6: =HLOOKUP('Sectoral Slopes'!F$1,'IAI 1.5'!$B$21:$G$28,6,FALSE) ->  | G6: =HLOOKUP('Sectoral Slopes'!G$1,'IAI 1.5'!$B$21:$G$28,6,FALSE) ->  | H6: =HLOOKUP('Sectoral Slopes'!H$1,'IAI 1.5'!$B$21:$G$28,6,FALSE) ->  | I6: =HLOOKUP('Sectoral Slopes'!I$1,'IAI 1.5'!$B$21:$G$28,6,FALSE) ->  | J6: =HLOOKUP('Sectoral Slopes'!J$1,'IAI 1.5'!$B$21:$G$28,6,FALSE) ->  | K6: =HLOOKUP('Sectoral Slopes'!K$1,'IAI 1.5'!$B$21:$G$28,6,FALSE) ->  | L6: =HLOOKUP('Sectoral Slopes'!L$1,'IAI 1.5'!$B$21:$G$28,6,FALSE) ->  | M6: =HLOOKUP('Sectoral Slopes'!M$1,'IAI 1.5'!$B$21:$G$28,6,FALSE) ->  | N6: =HLOOKUP('Sectoral Slopes'!N$1,'IAI 1.5'!$B$21:$G$28,6,FALSE) ->  | O6: =HLOOKUP('Sectoral Slopes'!O$1,'IAI 1.5'!$B$21:$G$28,6,FALSE) ->  | P6: =HLOOKUP('Sectoral Slopes'!P$1,'IAI 1.5'!$B$21:$G$28,6,FALSE) ->  | Q6: =HLOOKUP('Sectoral Slopes'!Q$1,'IAI 1.5'!$B$21:$G$28,6,FALSE) -> 9 | R6: =HLOOKUP('Sectoral Slopes'!R$1,'IAI 1.5'!$B$21:$G$28,6,FALSE) ->  | S6: =HLOOKUP('Sectoral Slopes'!S$1,'IAI 1.5'!$B$21:$G$28,6,FALSE) ->  | T6: =HLOOKUP('Sectoral Slopes'!T$1,'IAI 1.5'!$B$21:$G$28,6,FALSE) ->  | U6: =HLOOKUP('Sectoral Slopes'!U$1,'IAI 1.5'!$B$21:$G$28,6,FALSE) ->  | V6: =HLOOKUP('Sectoral Slopes'!V$1,'IAI 1.5'!$B$21:$G$28,6,FALSE) -> 7 | W6: =HLOOKUP('Sectoral Slopes'!W$1,'IAI 1.5'!$B$21:$G$28,6,FALSE) ->  | X6: =HLOOKUP('Sectoral Slopes'!X$1,'IAI 1.5'!$B$21:$G$28,6,FALSE) ->  | Y6: =HLOOKUP('Sectoral Slopes'!Y$1,'IAI 1.5'!$B$21:$G$28,6,FALSE) ->  | Z6: =HLOOKUP('Sectoral Slopes'!Z$1,'IAI 1.5'!$B$21:$G$28,6,FALSE) ->  | AA6: =HLOOKUP('Sectoral Slopes'!AA$1,'IAI 1.5'!$B$21:$G$28,6,FALSE) -> 5 | AB6: =HLOOKUP('Sectoral Slopes'!AB$1,'IAI 1.5'!$B$21:$G$28,6,FALSE) ->  | AC6: =HLOOKUP('Sectoral Slopes'!AC$1,'IAI 1.5'!$B$21:$G$28,6,FALSE) ->  | AD6: =HLOOKUP('Sectoral Slopes'!AD$1,'IAI 1.5'!$B$21:$G$28,6,FALSE) ->  | AE6: =HLOOKUP('Sectoral Slopes'!AE$1,'IAI 1.5'!$B$21:$G$28,6,FALSE) ->  | AF6: =HLOOKUP('Sectoral Slopes'!AF$1,'IAI 1.5'!$B$21:$G$28,6,FALSE) -> 3 | AG6: =HLOOKUP('Sectoral Slopes'!AG$1,'IAI 1.5'!$B$21:$G$28,6,FALSE) ->  | AH6: =HLOOKUP('Sectoral Slopes'!AH$1,'IAI 1.5'!$B$21:$G$28,6,FALSE) ->  | AI6: =HLOOKUP('Sectoral Slopes'!AI$1,'IAI 1.5'!$B$21:$G$28,6,FALSE) ->  | AJ6: =HLOOKUP('Sectoral Slopes'!AJ$1,'IAI 1.5'!$B$21:$G$28,6,FALSE) ->  | AK6: =HLOOKUP('Sectoral Slopes'!AK$1,'IAI 1.5'!$B$21:$G$28,6,FALSE) -> 1
A7: 7 | B7: Semis Process Aluminium Sector Absolute Mt CO2e (IAI) | C7: =D7 -> 29 | D7: 29 | E7: =HLOOKUP('Sectoral Slopes'!E$1,'IAI 1.5'!$B$21:$G$28,7,FALSE) -> 29 | F7: =HLOOKUP('Sectoral Slopes'!F$1,'IAI 1.5'!$B$21:$G$28,7,FALSE) ->  | G7: =HLOOKUP('Sectoral Slopes'!G$1,'IAI 1.5'!$B$21:$G$28,7,FALSE) ->  | H7: =HLOOKUP('Sectoral Slopes'!H$1,'IAI 1.5'!$B$21:$G$28,7,FALSE) ->  | I7: =HLOOKUP('Sectoral Slopes'!I$1,'IAI 1.5'!$B$21:$G$28,7,FALSE) ->  | J7: =HLOOKUP('Sectoral Slopes'!J$1,'IAI 1.5'!$B$21:$G$28,7,FALSE) ->  | K7: =HLOOKUP('Sectoral Slopes'!K$1,'IAI 1.5'!$B$21:$G$28,7,FALSE) ->  | L7: =HLOOKUP('Sectoral Slopes'!L$1,'IAI 1.5'!$B$21:$G$28,7,FALSE) ->  | M7: =HLOOKUP('Sectoral Slopes'!M$1,'IAI 1.5'!$B$21:$G$28,7,FALSE) ->  | N7: =HLOOKUP('Sectoral Slopes'!N$1,'IAI 1.5'!$B$21:$G$28,7,FALSE) ->  | O7: =HLOOKUP('Sectoral Slopes'!O$1,'IAI 1.5'!$B$21:$G$28,7,FALSE) ->  | P7: =HLOOKUP('Sectoral Slopes'!P$1,'IAI 1.5'!$B$21:$G$28,7,FALSE) ->  | Q7: =HLOOKUP('Sectoral Slopes'!Q$1,'IAI 1.5'!$B$21:$G$28,7,FALSE) -> 26 | R7: =HLOOKUP('Sectoral Slopes'!R$1,'IAI 1.5'!$B$21:$G$28,7,FALSE) ->  | S7: =HLOOKUP('Sectoral Slopes'!S$1,'IAI 1.5'!$B$21:$G$28,7,FALSE) ->  | T7: =HLOOKUP('Sectoral Slopes'!T$1,'IAI 1.5'!$B$21:$G$28,7,FALSE) ->  | U7: =HLOOKUP('Sectoral Slopes'!U$1,'IAI 1.5'!$B$21:$G$28,7,FALSE) ->  | V7: =HLOOKUP('Sectoral Slopes'!V$1,'IAI 1.5'!$B$21:$G$28,7,FALSE) -> 24 | W7: =HLOOKUP('Sectoral Slopes'!W$1,'IAI 1.5'!$B$21:$G$28,7,FALSE) ->  | X7: =HLOOKUP('Sectoral Slopes'!X$1,'IAI 1.5'!$B$21:$G$28,7,FALSE) ->  | Y7: =HLOOKUP('Sectoral Slopes'!Y$1,'IAI 1.5'!$B$21:$G$28,7,FALSE) ->  | Z7: =HLOOKUP('Sectoral Slopes'!Z$1,'IAI 1.5'!$B$21:$G$28,7,FALSE) ->  | AA7: =HLOOKUP('Sectoral Slopes'!AA$1,'IAI 1.5'!$B$21:$G$28,7,FALSE) -> 23 | AB7: =HLOOKUP('Sectoral Slopes'!AB$1,'IAI 1.5'!$B$21:$G$28,7,FALSE) ->  | AC7: =HLOOKUP('Sectoral Slopes'!AC$1,'IAI 1.5'!$B$21:$G$28,7,FALSE) ->  | AD7: =HLOOKUP('Sectoral Slopes'!AD$1,'IAI 1.5'!$B$21:$G$28,7,FALSE) ->  | AE7: =HLOOKUP('Sectoral Slopes'!AE$1,'IAI 1.5'!$B$21:$G$28,7,FALSE) ->  | AF7: =HLOOKUP('Sectoral Slopes'!AF$1,'IAI 1.5'!$B$21:$G$28,7,FALSE) -> 21 | AG7: =HLOOKUP('Sectoral Slopes'!AG$1,'IAI 1.5'!$B$21:$G$28,7,FALSE) ->  | AH7: =HLOOKUP('Sectoral Slopes'!AH$1,'IAI 1.5'!$B$21:$G$28,7,FALSE) ->  | AI7: =HLOOKUP('Sectoral Slopes'!AI$1,'IAI 1.5'!$B$21:$G$28,7,FALSE) ->  | AJ7: =HLOOKUP('Sectoral Slopes'!AJ$1,'IAI 1.5'!$B$21:$G$28,7,FALSE) ->  | AK7: =HLOOKUP('Sectoral Slopes'!AK$1,'IAI 1.5'!$B$21:$G$28,7,FALSE) -> 8
A8: 8
A9: 9 | B9: Primary production Mt Al (IAI) | C9: =D9 -> 64 | D9: =E9 -> 64 | E9: =HLOOKUP('Sectoral Slopes'!E$1,'IAI 1.5'!$B$34:$G$41,2,FALSE) -> 64 | F9: =HLOOKUP('Sectoral Slopes'!F$1,'IAI 1.5'!$B$34:$G$41,2,FALSE) ->  | G9: =HLOOKUP('Sectoral Slopes'!G$1,'IAI 1.5'!$B$34:$G$41,2,FALSE) ->  | H9: =HLOOKUP('Sectoral Slopes'!H$1,'IAI 1.5'!$B$34:$G$41,2,FALSE) ->  | I9: =HLOOKUP('Sectoral Slopes'!I$1,'IAI 1.5'!$B$34:$G$41,2,FALSE) ->  | J9: =HLOOKUP('Sectoral Slopes'!J$1,'IAI 1.5'!$B$34:$G$41,2,FALSE) ->  | K9: =HLOOKUP('Sectoral Slopes'!K$1,'IAI 1.5'!$B$34:$G$41,2,FALSE) ->  | L9: =HLOOKUP('Sectoral Slopes'!L$1,'IAI 1.5'!$B$34:$G$41,2,FALSE) ->  | M9: =HLOOKUP('Sectoral Slopes'!M$1,'IAI 1.5'!$B$34:$G$41,2,FALSE) ->  | N9: =HLOOKUP('Sectoral Slopes'!N$1,'IAI 1.5'!$B$34:$G$41,2,FALSE) ->  | O9: =HLOOKUP('Sectoral Slopes'!O$1,'IAI 1.5'!$B$34:$G$41,2,FALSE) ->  | P9: =HLOOKUP('Sectoral Slopes'!P$1,'IAI 1.5'!$B$34:$G$41,2,FALSE) ->  | Q9: =HLOOKUP('Sectoral Slopes'!Q$1,'IAI 1.5'!$B$34:$G$41,2,FALSE) -> 66 | R9: =HLOOKUP('Sectoral Slopes'!R$1,'IAI 1.5'!$B$34:$G$41,2,FALSE) ->  | S9: =HLOOKUP('Sectoral Slopes'!S$1,'IAI 1.5'!$B$34:$G$41,2,FALSE) ->  | T9: =HLOOKUP('Sectoral Slopes'!T$1,'IAI 1.5'!$B$34:$G$41,2,FALSE) ->  | U9: =HLOOKUP('Sectoral Slopes'!U$1,'IAI 1.5'!$B$34:$G$41,2,FALSE) ->  | V9: =HLOOKUP('Sectoral Slopes'!V$1,'IAI 1.5'!$B$34:$G$41,2,FALSE) -> 69 | W9: =HLOOKUP('Sectoral Slopes'!W$1,'IAI 1.5'!$B$34:$G$41,2,FALSE) ->  | X9: =HLOOKUP('Sectoral Slopes'!X$1,'IAI 1.5'!$B$34:$G$41,2,FALSE) ->  | Y9: =HLOOKUP('Sectoral Slopes'!Y$1,'IAI 1.5'!$B$34:$G$41,2,FALSE) ->  | Z9: =HLOOKUP('Sectoral Slopes'!Z$1,'IAI 1.5'!$B$34:$G$41,2,FALSE) ->  | AA9: =HLOOKUP('Sectoral Slopes'!AA$1,'IAI 1.5'!$B$34:$G$41,2,FALSE) -> 71 | AB9: =HLOOKUP('Sectoral Slopes'!AB$1,'IAI 1.5'!$B$34:$G$41,2,FALSE) ->  | AC9: =HLOOKUP('Sectoral Slopes'!AC$1,'IAI 1.5'!$B$34:$G$41,2,FALSE) ->  | AD9: =HLOOKUP('Sectoral Slopes'!AD$1,'IAI 1.5'!$B$34:$G$41,2,FALSE) ->  | AE9: =HLOOKUP('Sectoral Slopes'!AE$1,'IAI 1.5'!$B$34:$G$41,2,FALSE) ->  | AF9: =HLOOKUP('Sectoral Slopes'!AF$1,'IAI 1.5'!$B$34:$G$41,2,FALSE) -> 70 | AG9: =HLOOKUP('Sectoral Slopes'!AG$1,'IAI 1.5'!$B$34:$G$41,2,FALSE) ->  | AH9: =HLOOKUP('Sectoral Slopes'!AH$1,'IAI 1.5'!$B$34:$G$41,2,FALSE) ->  | AI9: =HLOOKUP('Sectoral Slopes'!AI$1,'IAI 1.5'!$B$34:$G$41,2,FALSE) ->  | AJ9: =HLOOKUP('Sectoral Slopes'!AJ$1,'IAI 1.5'!$B$34:$G$41,2,FALSE) ->  | AK9: =HLOOKUP('Sectoral Slopes'!AK$1,'IAI 1.5'!$B$34:$G$41,2,FALSE) -> 68
A10: 10 | B10: Internal & fabrication scrap (semis) Mt Al | C10: =D10 -> 33 | D10: 33 | E10: =HLOOKUP('Sectoral Slopes'!E$1,'IAI 1.5'!$B$34:$G$41,6,FALSE) -> 33 | F10: =HLOOKUP('Sectoral Slopes'!F$1,'IAI 1.5'!$B$34:$G$41,6,FALSE) ->  | G10: =HLOOKUP('Sectoral Slopes'!G$1,'IAI 1.5'!$B$34:$G$41,6,FALSE) ->  | H10: =HLOOKUP('Sectoral Slopes'!H$1,'IAI 1.5'!$B$34:$G$41,6,FALSE) ->  | I10: =HLOOKUP('Sectoral Slopes'!I$1,'IAI 1.5'!$B$34:$G$41,6,FALSE) ->  | J10: =HLOOKUP('Sectoral Slopes'!J$1,'IAI 1.5'!$B$34:$G$41,6,FALSE) ->  | K10: =HLOOKUP('Sectoral Slopes'!K$1,'IAI 1.5'!$B$34:$G$41,6,FALSE) ->  | L10: =HLOOKUP('Sectoral Slopes'!L$1,'IAI 1.5'!$B$34:$G$41,6,FALSE) ->  | M10: =HLOOKUP('Sectoral Slopes'!M$1,'IAI 1.5'!$B$34:$G$41,6,FALSE) ->  | N10: =HLOOKUP('Sectoral Slopes'!N$1,'IAI 1.5'!$B$34:$G$41,6,FALSE) ->  | O10: =HLOOKUP('Sectoral Slopes'!O$1,'IAI 1.5'!$B$34:$G$41,6,FALSE) ->  | P10: =HLOOKUP('Sectoral Slopes'!P$1,'IAI 1.5'!$B$34:$G$41,6,FALSE) ->  | Q10: =HLOOKUP('Sectoral Slopes'!Q$1,'IAI 1.5'!$B$34:$G$41,6,FALSE) -> 36 | R10: =HLOOKUP('Sectoral Slopes'!R$1,'IAI 1.5'!$B$34:$G$41,6,FALSE) ->  | S10: =HLOOKUP('Sectoral Slopes'!S$1,'IAI 1.5'!$B$34:$G$41,6,FALSE) ->  | T10: =HLOOKUP('Sectoral Slopes'!T$1,'IAI 1.5'!$B$34:$G$41,6,FALSE) ->  | U10: =HLOOKUP('Sectoral Slopes'!U$1,'IAI 1.5'!$B$34:$G$41,6,FALSE) ->  | V10: =HLOOKUP('Sectoral Slopes'!V$1,'IAI 1.5'!$B$34:$G$41,6,FALSE) -> 34 | W10: =HLOOKUP('Sectoral Slopes'!W$1,'IAI 1.5'!$B$34:$G$41,6,FALSE) ->  | X10: =HLOOKUP('Sectoral Slopes'!X$1,'IAI 1.5'!$B$34:$G$41,6,FALSE) ->  | Y10: =HLOOKUP('Sectoral Slopes'!Y$1,'IAI 1.5'!$B$34:$G$41,6,FALSE) ->  | Z10: =HLOOKUP('Sectoral Slopes'!Z$1,'IAI 1.5'!$B$34:$G$41,6,FALSE) ->  | AA10: =HLOOKUP('Sectoral Slopes'!AA$1,'IAI 1.5'!$B$34:$G$41,6,FALSE) -> 32 | AB10: =HLOOKUP('Sectoral Slopes'!AB$1,'IAI 1.5'!$B$34:$G$41,6,FALSE) ->  | AC10: =HLOOKUP('Sectoral Slopes'!AC$1,'IAI 1.5'!$B$34:$G$41,6,FALSE) ->  | AD10: =HLOOKUP('Sectoral Slopes'!AD$1,'IAI 1.5'!$B$34:$G$41,6,FALSE) ->  | AE10: =HLOOKUP('Sectoral Slopes'!AE$1,'IAI 1.5'!$B$34:$G$41,6,FALSE) ->  | AF10: =HLOOKUP('Sectoral Slopes'!AF$1,'IAI 1.5'!$B$34:$G$41,6,FALSE) -> 30 | AG10: =HLOOKUP('Sectoral Slopes'!AG$1,'IAI 1.5'!$B$34:$G$41,6,FALSE) ->  | AH10: =HLOOKUP('Sectoral Slopes'!AH$1,'IAI 1.5'!$B$34:$G$41,6,FALSE) ->  | AI10: =HLOOKUP('Sectoral Slopes'!AI$1,'IAI 1.5'!$B$34:$G$41,6,FALSE) ->  | AJ10: =HLOOKUP('Sectoral Slopes'!AJ$1,'IAI 1.5'!$B$34:$G$41,6,FALSE) ->  | AK10: =HLOOKUP('Sectoral Slopes'!AK$1,'IAI 1.5'!$B$34:$G$41,6,FALSE) -> 27
A11: 11 | B11: Manufacturing scrap (post-semis) Mt Al | C11: =D11 -> 13 | D11: 13 | E11: =HLOOKUP('Sectoral Slopes'!E$1,'IAI 1.5'!$B$34:$G$41,4,FALSE) -> 13 | F11: =HLOOKUP('Sectoral Slopes'!F$1,'IAI 1.5'!$B$34:$G$41,4,FALSE) ->  | G11: =HLOOKUP('Sectoral Slopes'!G$1,'IAI 1.5'!$B$34:$G$41,4,FALSE) ->  | H11: =HLOOKUP('Sectoral Slopes'!H$1,'IAI 1.5'!$B$34:$G$41,4,FALSE) ->  | I11: =HLOOKUP('Sectoral Slopes'!I$1,'IAI 1.5'!$B$34:$G$41,4,FALSE) ->  | J11: =HLOOKUP('Sectoral Slopes'!J$1,'IAI 1.5'!$B$34:$G$41,4,FALSE) ->  | K11: =HLOOKUP('Sectoral Slopes'!K$1,'IAI 1.5'!$B$34:$G$41,4,FALSE) ->  | L11: =HLOOKUP('Sectoral Slopes'!L$1,'IAI 1.5'!$B$34:$G$41,4,FALSE) ->  | M11: =HLOOKUP('Sectoral Slopes'!M$1,'IAI 1.5'!$B$34:$G$41,4,FALSE) ->  | N11: =HLOOKUP('Sectoral Slopes'!N$1,'IAI 1.5'!$B$34:$G$41,4,FALSE) ->  | O11: =HLOOKUP('Sectoral Slopes'!O$1,'IAI 1.5'!$B$34:$G$41,4,FALSE) ->  | P11: =HLOOKUP('Sectoral Slopes'!P$1,'IAI 1.5'!$B$34:$G$41,4,FALSE) ->  | Q11: =HLOOKUP('Sectoral Slopes'!Q$1,'IAI 1.5'!$B$34:$G$41,4,FALSE) -> 16 | R11: =HLOOKUP('Sectoral Slopes'!R$1,'IAI 1.5'!$B$34:$G$41,4,FALSE) ->  | S11: =HLOOKUP('Sectoral Slopes'!S$1,'IAI 1.5'!$B$34:$G$41,4,FALSE) ->  | T11: =HLOOKUP('Sectoral Slopes'!T$1,'IAI 1.5'!$B$34:$G$41,4,FALSE) ->  | U11: =HLOOKUP('Sectoral Slopes'!U$1,'IAI 1.5'!$B$34:$G$41,4,FALSE) ->  | V11: =HLOOKUP('Sectoral Slopes'!V$1,'IAI 1.5'!$B$34:$G$41,4,FALSE) -> 15 | W11: =HLOOKUP('Sectoral Slopes'!W$1,'IAI 1.5'!$B$34:$G$41,4,FALSE) ->  | X11: =HLOOKUP('Sectoral Slopes'!X$1,'IAI 1.5'!$B$34:$G$41,4,FALSE) ->  | Y11: =HLOOKUP('Sectoral Slopes'!Y$1,'IAI 1.5'!$B$34:$G$41,4,FALSE) ->  | Z11: =HLOOKUP('Sectoral Slopes'!Z$1,'IAI 1.5'!$B$34:$G$41,4,FALSE) ->  | AA11: =HLOOKUP('Sectoral Slopes'!AA$1,'IAI 1.5'!$B$34:$G$41,4,FALSE) -> 15 | AB11: =HLOOKUP('Sectoral Slopes'!AB$1,'IAI 1.5'!$B$34:$G$41,4,FALSE) ->  | AC11: =HLOOKUP('Sectoral Slopes'!AC$1,'IAI 1.5'!$B$34:$G$41,4,FALSE) ->  | AD11: =HLOOKUP('Sectoral Slopes'!AD$1,'IAI 1.5'!$B$34:$G$41,4,FALSE) ->  | AE11: =HLOOKUP('Sectoral Slopes'!AE$1,'IAI 1.5'!$B$34:$G$41,4,FALSE) ->  | AF11: =HLOOKUP('Sectoral Slopes'!AF$1,'IAI 1.5'!$B$34:$G$41,4,FALSE) -> 14 | AG11: =HLOOKUP('Sectoral Slopes'!AG$1,'IAI 1.5'!$B$34:$G$41,4,FALSE) ->  | AH11: =HLOOKUP('Sectoral Slopes'!AH$1,'IAI 1.5'!$B$34:$G$41,4,FALSE) ->  | AI11: =HLOOKUP('Sectoral Slopes'!AI$1,'IAI 1.5'!$B$34:$G$41,4,FALSE) ->  | AJ11: =HLOOKUP('Sectoral Slopes'!AJ$1,'IAI 1.5'!$B$34:$G$41,4,FALSE) ->  | AK11: =HLOOKUP('Sectoral Slopes'!AK$1,'IAI 1.5'!$B$34:$G$41,4,FALSE) -> 13
A12: 12 | B12: Post-consumer scrap Mt Al | C12: =D12 -> 19 | D12: 19 | E12: =HLOOKUP('Sectoral Slopes'!E$1,'IAI 1.5'!$B$34:$G$41,5,FALSE) -> 19 | F12: =HLOOKUP('Sectoral Slopes'!F$1,'IAI 1.5'!$B$34:$G$41,5,FALSE) ->  | G12: =HLOOKUP('Sectoral Slopes'!G$1,'IAI 1.5'!$B$34:$G$41,5,FALSE) ->  | H12: =HLOOKUP('Sectoral Slopes'!H$1,'IAI 1.5'!$B$34:$G$41,5,FALSE) ->  | I12: =HLOOKUP('Sectoral Slopes'!I$1,'IAI 1.5'!$B$34:$G$41,5,FALSE) ->  | J12: =HLOOKUP('Sectoral Slopes'!J$1,'IAI 1.5'!$B$34:$G$41,5,FALSE) ->  | K12: =HLOOKUP('Sectoral Slopes'!K$1,'IAI 1.5'!$B$34:$G$41,5,FALSE) ->  | L12: =HLOOKUP('Sectoral Slopes'!L$1,'IAI 1.5'!$B$34:$G$41,5,FALSE) ->  | M12: =HLOOKUP('Sectoral Slopes'!M$1,'IAI 1.5'!$B$34:$G$41,5,FALSE) ->  | N12: =HLOOKUP('Sectoral Slopes'!N$1,'IAI 1.5'!$B$34:$G$41,5,FALSE) ->  | O12: =HLOOKUP('Sectoral Slopes'!O$1,'IAI 1.5'!$B$34:$G$41,5,FALSE) ->  | P12: =HLOOKUP('Sectoral Slopes'!P$1,'IAI 1.5'!$B$34:$G$41,5,FALSE) ->  | Q12: =HLOOKUP('Sectoral Slopes'!Q$1,'IAI 1.5'!$B$34:$G$41,5,FALSE) -> 33 | R12: =HLOOKUP('Sectoral Slopes'!R$1,'IAI 1.5'!$B$34:$G$41,5,FALSE) ->  | S12: =HLOOKUP('Sectoral Slopes'!S$1,'IAI 1.5'!$B$34:$G$41,5,FALSE) ->  | T12: =HLOOKUP('Sectoral Slopes'!T$1,'IAI 1.5'!$B$34:$G$41,5,FALSE) ->  | U12: =HLOOKUP('Sectoral Slopes'!U$1,'IAI 1.5'!$B$34:$G$41,5,FALSE) ->  | V12: =HLOOKUP('Sectoral Slopes'!V$1,'IAI 1.5'!$B$34:$G$41,5,FALSE) -> 42 | W12: =HLOOKUP('Sectoral Slopes'!W$1,'IAI 1.5'!$B$34:$G$41,5,FALSE) ->  | X12: =HLOOKUP('Sectoral Slopes'!X$1,'IAI 1.5'!$B$34:$G$41,5,FALSE) ->  | Y12: =HLOOKUP('Sectoral Slopes'!Y$1,'IAI 1.5'!$B$34:$G$41,5,FALSE) ->  | Z12: =HLOOKUP('Sectoral Slopes'!Z$1,'IAI 1.5'!$B$34:$G$41,5,FALSE) ->  | AA12: =HLOOKUP('Sectoral Slopes'!AA$1,'IAI 1.5'!$B$34:$G$41,5,FALSE) -> 52 | AB12: =HLOOKUP('Sectoral Slopes'!AB$1,'IAI 1.5'!$B$34:$G$41,5,FALSE) ->  | AC12: =HLOOKUP('Sectoral Slopes'!AC$1,'IAI 1.5'!$B$34:$G$41,5,FALSE) ->  | AD12: =HLOOKUP('Sectoral Slopes'!AD$1,'IAI 1.5'!$B$34:$G$41,5,FALSE) ->  | AE12: =HLOOKUP('Sectoral Slopes'!AE$1,'IAI 1.5'!$B$34:$G$41,5,FALSE) ->  | AF12: =HLOOKUP('Sectoral Slopes'!AF$1,'IAI 1.5'!$B$34:$G$41,5,FALSE) -> 60 | AG12: =HLOOKUP('Sectoral Slopes'!AG$1,'IAI 1.5'!$B$34:$G$41,5,FALSE) ->  | AH12: =HLOOKUP('Sectoral Slopes'!AH$1,'IAI 1.5'!$B$34:$G$41,5,FALSE) ->  | AI12: =HLOOKUP('Sectoral Slopes'!AI$1,'IAI 1.5'!$B$34:$G$41,5,FALSE) ->  | AJ12: =HLOOKUP('Sectoral Slopes'!AJ$1,'IAI 1.5'!$B$34:$G$41,5,FALSE) ->  | AK12: =HLOOKUP('Sectoral Slopes'!AK$1,'IAI 1.5'!$B$34:$G$41,5,FALSE) -> 68
A13: 13 | B13: Total remelt production Mt Al [equivalent to Semis INPUT] | C13: 129 | D13: =E13 -> 129 | E13: =SUM(E10:E12,E9) -> 129 | Q13: 150 | V13: 160 | AA13: 170 | AF13: 173 | AK13: 175
A14: 14
A15: 15 | B15: Aluminium Sector Semis SHIPMENTS Mt Al (IAI) [equivalent to Fab INPUT] | C15: =D15 -> 95 | D15: =E15 -> 95 | E15: =HLOOKUP('Sectoral Slopes'!E$1,'IAI 1.5'!$B$34:$G$41,7,FALSE) -> 95 | F15: =HLOOKUP('Sectoral Slopes'!F$1,'IAI 1.5'!$B$34:$G$41,7,FALSE) ->  | G15: =HLOOKUP('Sectoral Slopes'!G$1,'IAI 1.5'!$B$34:$G$41,7,FALSE) ->  | H15: =HLOOKUP('Sectoral Slopes'!H$1,'IAI 1.5'!$B$34:$G$41,7,FALSE) ->  | I15: =HLOOKUP('Sectoral Slopes'!I$1,'IAI 1.5'!$B$34:$G$41,7,FALSE) ->  | J15: =HLOOKUP('Sectoral Slopes'!J$1,'IAI 1.5'!$B$34:$G$41,7,FALSE) ->  | K15: =HLOOKUP('Sectoral Slopes'!K$1,'IAI 1.5'!$B$34:$G$41,7,FALSE) ->  | L15: =HLOOKUP('Sectoral Slopes'!L$1,'IAI 1.5'!$B$34:$G$41,7,FALSE) ->  | M15: =HLOOKUP('Sectoral Slopes'!M$1,'IAI 1.5'!$B$34:$G$41,7,FALSE) ->  | N15: =HLOOKUP('Sectoral Slopes'!N$1,'IAI 1.5'!$B$34:$G$41,7,FALSE) ->  | O15: =HLOOKUP('Sectoral Slopes'!O$1,'IAI 1.5'!$B$34:$G$41,7,FALSE) ->  | P15: =HLOOKUP('Sectoral Slopes'!P$1,'IAI 1.5'!$B$34:$G$41,7,FALSE) ->  | Q15: =HLOOKUP('Sectoral Slopes'!Q$1,'IAI 1.5'!$B$34:$G$41,7,FALSE) -> 118 | R15: =HLOOKUP('Sectoral Slopes'!R$1,'IAI 1.5'!$B$34:$G$41,7,FALSE) ->  | S15: =HLOOKUP('Sectoral Slopes'!S$1,'IAI 1.5'!$B$34:$G$41,7,FALSE) ->  | T15: =HLOOKUP('Sectoral Slopes'!T$1,'IAI 1.5'!$B$34:$G$41,7,FALSE) ->  | U15: =HLOOKUP('Sectoral Slopes'!U$1,'IAI 1.5'!$B$34:$G$41,7,FALSE) ->  | V15: =HLOOKUP('Sectoral Slopes'!V$1,'IAI 1.5'!$B$34:$G$41,7,FALSE) -> 126 | W15: =HLOOKUP('Sectoral Slopes'!W$1,'IAI 1.5'!$B$34:$G$41,7,FALSE) ->  | X15: =HLOOKUP('Sectoral Slopes'!X$1,'IAI 1.5'!$B$34:$G$41,7,FALSE) ->  | Y15: =HLOOKUP('Sectoral Slopes'!Y$1,'IAI 1.5'!$B$34:$G$41,7,FALSE) ->  | Z15: =HLOOKUP('Sectoral Slopes'!Z$1,'IAI 1.5'!$B$34:$G$41,7,FALSE) ->  | AA15: =HLOOKUP('Sectoral Slopes'!AA$1,'IAI 1.5'!$B$34:$G$41,7,FALSE) -> 138 | AB15: =HLOOKUP('Sectoral Slopes'!AB$1,'IAI 1.5'!$B$34:$G$41,7,FALSE) ->  | AC15: =HLOOKUP('Sectoral Slopes'!AC$1,'IAI 1.5'!$B$34:$G$41,7,FALSE) ->  | AD15: =HLOOKUP('Sectoral Slopes'!AD$1,'IAI 1.5'!$B$34:$G$41,7,FALSE) ->  | AE15: =HLOOKUP('Sectoral Slopes'!AE$1,'IAI 1.5'!$B$34:$G$41,7,FALSE) ->  | AF15: =HLOOKUP('Sectoral Slopes'!AF$1,'IAI 1.5'!$B$34:$G$41,7,FALSE) -> 144 | AG15: =HLOOKUP('Sectoral Slopes'!AG$1,'IAI 1.5'!$B$34:$G$41,7,FALSE) ->  | AH15: =HLOOKUP('Sectoral Slopes'!AH$1,'IAI 1.5'!$B$34:$G$41,7,FALSE) ->  | AI15: =HLOOKUP('Sectoral Slopes'!AI$1,'IAI 1.5'!$B$34:$G$41,7,FALSE) ->  | AJ15: =HLOOKUP('Sectoral Slopes'!AJ$1,'IAI 1.5'!$B$34:$G$41,7,FALSE) ->  | AK15: =HLOOKUP('Sectoral Slopes'!AK$1,'IAI 1.5'!$B$34:$G$41,7,FALSE) -> 150
A16: 16
A17: 17 | B17: Primary (electricity) Sectoral Cradle-to-Gate (t CO2e/t Al) (IAI/MPP) - need ref (CCAF DRAFT - PUBLISHED 4 Dec '23) | C17: =D17 -> 10.7 | D17: 10.7 | E17: 10.7 | F17: 10.4 | G17: 9.7 | H17: 9.9 | I17: 9.6 | J17: 9.0 | K17: 8.7 | L17: 8.4 | M17: 8.1 | N17: 8.1 | O17: 7.7 | P17: 7.3 | Q17: 7.0 | R17: 5.7 | S17: 4.1 | T17: 3.6 | U17: 2.4 | V17: 1.6 | W17: 1.5 | X17: 1.3 | Y17: 1.1 | Z17: 1.0 | AA17: 1.0 | AB17: 1.0 | AC17: 0.9 | AD17: 0.8 | AE17: 0.8 | AF17: 0.8 | AG17: 0.7 | AH17: 0.7 | AI17: 0.7 | AJ17: 0.7 | AK17: 0.7
A18: 18 | B18: Primary (non-electricity) Sectoral Cradle-to-Gate (t CO2e/t Al) (IAI/MPP) - need ref (CCAF - PUBLISHED 4 Dec '23) | C18: =D18 -> 4.8 | D18: 4.8 | E18: 4.8 | F18: 4.8 | G18: 4.8 | H18: 4.7 | I18: 4.8 | J18: 4.8 | K18: 4.8 | L18: 4.7 | M18: 4.4 | N18: 4.4 | O18: 4.4 | P18: 4.3 | Q18: 4.1 | R18: 3.9 | S18: 3.4 | T18: 3.1 | U18: 2.9 | V18: 2.2 | W18: 2.1 | X18: 1.7 | Y18: 1.5 | Z18: 1.3 | AA18: 1.3 | AB18: 1.1 | AC18: 0.8 | AD18: 0.7 | AE18: 0.6 | AF18: 0.5 | AG18: 0.5 | AH18: 0.5 | AI18: 0.3 | AJ18: 0.3 | AK18: 0.3
A19: 19 | B19: Primary Sectoral Cradle-to-Gate (t CO2e/t Al) (IAI/MPP) - need ref (CCAF - PUBLISHED 4 Dec '23) | C19: =D19 -> 15.5 | D19: 15.5 | E19: =SUM(E17:E18) -> 15.5 | F19: =SUM(F17:F18) -> 15.2 | G19: 14.6 | H19: 14.7 | I19: 14.4 | J19: 13.8 | K19: 13.4 | L19: 13.1 | M19: 12.6 | N19: 12.5 | O19: 12.1 | P19: 11.6 | Q19: 11.1 | R19: 9.5 | S19: 7.4 | T19: 6.8 | U19: 5.3 | V19: 3.8 | W19: 3.6 | X19: 3.0 | Y19: 2.6 | Z19: 2.3 | AA19: 2.2 | AB19: 2.0 | AC19: 1.7 | AD19: 1.5 | AE19: 1.4 | AF19: 1.3 | AG19: 1.2 | AH19: 1.2 | AI19: 1.0 | AJ19: 1.0 | AK19: 0.9
A20: 20 | B20: Casthouse Input (t CO2e/t Al) | C20: =D20 -> 8.0 | D20: 8.0 | E20: =E4/E13 -> 8.0 | F20: =E20-(E19-F19)*($E20-$Q20)/($E$19-$Q$19) -> 7.8 | G20: =F20-(F19-G19)*($E20-$Q20)/($E$19-$Q$19) -> 7.4 | H20: 7.4 | I20: 7.2 | J20: 6.8 | K20: 6.6 | L20: 6.4 | M20: 6.0 | N20: 6.0 | O20: 5.7 | P20: 5.4 | Q20: =Q4/Q13 -> 5.0 | R20: =Q20-(Q19-R19)*($Q20-$V20)/($Q$19-$V$19) -> 4.3 | S20: =R20-(R19-S19)*($Q20-$V20)/($Q$19-$V$19) -> 3.4 | T20: =S20-(S19-T19)*($Q20-$V20)/($Q$19-$V$19) -> 3.1 | U20: =T20-(T19-U19)*($Q20-$V20)/($Q$19-$V$19) -> 2.5 | V20: =V4/V13 -> 1.8 | W20: =V20-(V19-W19)*($V20-$AA20)/($V$19-$AA$19) -> 1.7 | X20: =W20-(W19-X19)*($V20-$AA20)/($V$19-$AA$19) -> 1.3 | Y20: =X20-(X19-Y19)*($V20-$AA20)/($V$19-$AA$19) -> 1.1 | Z20: =Y20-(Y19-Z19)*($V20-$AA20)/($V$19-$AA$19) -> 0.9 | AA20: =AA4/AA13 -> 0.9 | AB20: =AA20-(AA19-AB19)*($AA20-$AF20)/($AA$19-$AF$19) -> 0.8 | AC20: =AB20-(AB19-AC19)*($AA20-$AF20)/($AA$19-$AF$19) -> 0.7 | AD20: =AC20-(AC19-AD19)*($AA20-$AF20)/($AA$19-$AF$19) -> 0.6 | AE20: =AD20-(AD19-AE19)*($AA20-$AF20)/($AA$19-$AF$19) -> 0.6 | AF20: =AF4/AF13 -> 0.5 | AG20: =AF20-(AF19-AG19)*($AF20-$AK20)/($AF$19-$AK$19) -> 0.5 | AH20: =AG20-(AG19-AH19)*($AF20-$AK20)/($AF$19-$AK$19) -> 0.4 | AI20: =AH20-(AH19-AI19)*($AF20-$AK20)/($AF$19-$AK$19) -> 0.3 | AJ20: =AI20-(AI19-AJ19)*($AF20-$AK20)/($AF$19-$AK$19) -> 0.2 | AK20: =AK4/AK13 -> 0.2
A21: 21 | B21: Casthouse Sectoral Cradle-to-Gate (t CO2e/t Al) | C21: =D21 -> 8.2 | D21: 8.2 | E21: =SUM(E4:E6)/E13 -> 8.2 | F21: =E21-(E19-F19)*($E21-$Q21)/($E$19-$Q$19) -> 8.1 | G21: 7.6 | H21: 7.7 | I21: 7.4 | J21: 7.1 | K21: 6.8 | L21: 6.6 | M21: 6.2 | N21: 6.2 | O21: 5.9 | P21: 5.6 | Q21: =SUM(Q4:Q6)/Q13 -> 5.2 | R21: =Q21-(Q19-R19)*($Q21-$V21)/($Q$19-$V$19) -> 4.5 | S21: =R21-(R19-S19)*($Q21-$V21)/($Q$19-$V$19) -> 3.6 | T21: =S21-(S19-T19)*($Q21-$V21)/($Q$19-$V$19) -> 3.3 | U21: =T21-(T19-U19)*($Q21-$V21)/($Q$19-$V$19) -> 2.6 | V21: =SUM(V4:V6)/V13 -> 2.0 | W21: =V21-(V19-W19)*($V21-$AA21)/($V$19-$AA$19) -> 1.8 | X21: =W21-(W19-X19)*($V21-$AA21)/($V$19-$AA$19) -> 1.5 | Y21: =X21-(X19-Y19)*($V21-$AA21)/($V$19-$AA$19) -> 1.3 | Z21: =Y21-(Y19-Z19)*($V21-$AA21)/($V$19-$AA$19) -> 1.1 | AA21: =SUM(AA4:AA6)/AA13 -> 1.0 | AB21: =AA21-(AA19-AB19)*($AA21-$AF21)/($AA$19-$AF$19) -> 0.9 | AC21: =AB21-(AB19-AC19)*($AA21-$AF21)/($AA$19-$AF$19) -> 0.8 | AD21: =AC21-(AC19-AD19)*($AA21-$AF21)/($AA$19-$AF$19) -> 0.7 | AE21: =AD21-(AD19-AE19)*($AA21-$AF21)/($AA$19-$AF$19) -> 0.7 | AF21: =SUM(AF4:AF6)/AF13 -> 0.6 | AG21: =AF21-(AF19-AG19)*($AF21-$AK21)/($AF$19-$AK$19) -> 0.5 | AH21: =AG21-(AG19-AH19)*($AF21-$AK21)/($AF$19-$AK$19) -> 0.5 | AI21: =AH21-(AH19-AI19)*($AF21-$AK21)/($AF$19-$AK$19) -> 0.4 | AJ21: =AI21-(AI19-AJ19)*($AF21-$AK21)/($AF$19-$AK$19) -> 0.3 | AK21: =SUM(AK4:AK6)/AK13 -> 0.3
A22: 22 | B22: Semis Sectoral Cradle-to-Gate (t CO2e/t Al) | C22: =D22 -> 11.5 | D22: 11.5 | E22: =E2/E15 -> 11.5 | F22: =E22-(E19-F19)*($E22-$Q22)/($E$19-$Q$19) -> 11.2 | G22: 10.5 | H22: 10.6 | I22: 10.3 | J22: 9.7 | K22: 9.3 | L22: 9.0 | M22: 8.4 | N22: 8.4 | O22: 7.9 | P22: 7.4 | Q22: =Q2/Q15 -> 6.9 | R22: =Q22-(Q19-R19)*($Q22-$V22)/($Q$19-$V$19) -> 6.0 | S22: =R22-(R19-S19)*($Q22-$V22)/($Q$19-$V$19) -> 4.8 | T22: =S22-(S19-T19)*($Q22-$V22)/($Q$19-$V$19) -> 4.4 | U22: =T22-(T19-U19)*($Q22-$V22)/($Q$19-$V$19) -> 3.5 | V22: =V2/V15 -> 2.7 | W22: =V22-(V19-W19)*($V22-$AA22)/($V$19-$AA$19) -> 2.5 | X22: =W22-(W19-X19)*($V22-$AA22)/($V$19-$AA$19) -> 2.0 | Y22: =X22-(X19-Y19)*($V22-$AA22)/($V$19-$AA$19) -> 1.8 | Z22: =Y22-(Y19-Z19)*($V22-$AA22)/($V$19-$AA$19) -> 1.5 | AA22: =AA2/AA15 -> 1.4 | AB22: =AA22-(AA19-AB19)*($AA22-$AF22)/($AA$19-$AF$19) -> 1.3 | AC22: =AB22-(AB19-AC19)*($AA22-$AF22)/($AA$19-$AF$19) -> 1.1 | AD22: =AC22-(AC19-AD19)*($AA22-$AF22)/($AA$19-$AF$19) -> 1.0 | AE22: =AD22-(AD19-AE19)*($AA22-$AF22)/($AA$19-$AF$19) -> 0.9 | AF22: =AF2/AF15 -> 0.8 | AG22: =AF22-(AF19-AG19)*($AF22-$AK22)/($AF$19-$AK$19) -> 0.8 | AH22: =AG22-(AG19-AH19)*($AF22-$AK22)/($AF$19-$AK$19) -> 0.7 | AI22: =AH22-(AH19-AI19)*($AF22-$AK22)/($AF$19-$AK$19) -> 0.5 | AJ22: =AI22-(AI19-AJ19)*($AF22-$AK22)/($AF$19-$AK$19) -> 0.4 | AK22: =AK2/AK15 -> 0.4
A23: 23 | B23: Recycling Gate-to-Gate Sectoral (IAI/MPP) - need ref (CCAF - PUBLISHED 4 Dec '23) | C23: =D23 -> 0.4 | D23: 0.4 | E23: 0.4 | F23: 0.4 | G23: 0.4 | H23: 0.4 | I23: 0.4 | J23: 0.4 | K23: 0.4 | L23: 0.4 | M23: 0.4 | N23: 0.3 | O23: 0.3 | P23: 0.3 | Q23: 0.3 | R23: 0.3 | S23: 0.3 | T23: 0.3 | U23: 0.3 | V23: 0.3 | W23: 0.2 | X23: 0.2 | Y23: 0.2 | Z23: 0.2 | AA23: 0.2 | AB23: 0.2 | AC23: 0.2 | AD23: 0.1 | AE23: 0.1 | AF23: 0.1 | AG23: 0.1 | AH23: 0.1 | AI23: 0.1 | AJ23: 0.1 | AK23: 0.1
A24: 24 | B24: Semis Gate-to-Gate Sectoral (IAI/MPP) - need ref (CCAF - PUBLISHED 4 Dec '23) | C24: =D24 -> 0.3 | D24: 0.3 | E24: 0.3 | F24: 0.3 | G24: 0.3 | H24: 0.3 | I24: 0.3 | J24: 0.3 | K24: 0.3 | L24: 0.3 | M24: 0.2 | N24: 0.2 | O24: 0.2 | P24: 0.2 | Q24: 0.2 | R24: 0.2 | S24: 0.2 | T24: 0.2 | U24: 0.2 | V24: 0.2 | W24: 0.2 | X24: 0.2 | Y24: 0.2 | Z24: 0.2 | AA24: 0.2 | AB24: 0.2 | AC24: 0.2 | AD24: 0.2 | AE24: 0.1 | AF24: 0.1 | AG24: 0.1 | AH24: 0.1 | AI24: 0.1 | AJ24: 0.1 | AK24: 0.1
Q57: Pre consumer scrap
K58: Post consumer scrap | Q58: =E11 -> 13
K59: =E12 -> 19
G64: Electrolysis | I64: =E9 -> 64 | K64: Casthouse | M64: =E13 -> 129 | O64: Semis | Q64: =E15 -> 95 | S64: Fab | U64: =#REF! -> 
O68: =E10 -> 33
O69: Pre consumer scrap

Sheet IAI 1.5
B4: 1.5° Scenario for the Aluminium Sector
A6: Table 1: 1.5 GHG Budget Aluminium Sector
B8: CO2e emissions (Mt) | H8: 2018-2030 | I8: 2018-2040 | J8: 2018-2050
B9: 2018 | C9: 2030 | D9: 2035 | E9: 2040 | F9: 2045 | G9: 2050
A10: Electricity (Electrolysis) | B10: 670 | C10: 461 | D10: 74 | E10: 15 | F10: 6 | G10: 6 | H10: =(C10-B10)/B10 -> -31% | I10: =(E10-B10)/B10 -> -98% | J10: =(G10-B10)/B10 -> -99% | L10: Mine to electricity use
A11: Electricity (Other) | B11: 33 | C11: 27 | D11: 20 | E11: 14 | F11: 9 | G11: 4 | H11: -19% | I11: -58% | J11: -89% | L11: Mine to electricity use
A12: Aluminium Industry | B12: 279 | C12: 231 | D12: 176 | E12: 120 | F12: 76 | G12: 31 | H12: -17% | I12: -57% | J12: -89% | L12: Calculated based on IEA
A13: Aluminium in Other Sectors + Transport | B13: 77 | C13: 64 | D13: 49 | E13: 34 | F13: 21 | G13: 9 | H13: -17% | I13: -57% | J13: -89%
A14: PFC | B14: 35 | C14: 29 | D14: 22 | E14: 15 | F14: 10 | G14: 4 | H14: -17% | I14: -57% | J14: -89%
A15: Aluminium Sector | B15: =SUM(B10:B14) -> 1,095 | C15: 813 | D15: 341 | E15: 198 | F15: 121 | G15: 53 | H15: -26% | I15: -82% | J15: -95%
A18: Table 2: 1.5 Budget Aluminium Sector by Process
B20: CO2e emissions (Mt) | H20: 2018-2030 | I20: 2018-2040 | J20: 2018-2050
B21: 2018 | C21: 2030 | D21: 2035 | E21: 2040 | F21: 2045 | G21: 2050
A22: Primary Aluminium | B22: 1,037 | C22: 756 | D22: 289 | E22: 155 | F22: 87 | G22: 35 | H22: =(C22-B22)/B22 -> -27% | I22: =(E22-B22)/B22 -> -85% | J22: =(G22-B22)/B22 -> -97%
A23: Electrolysis | B23: 823 | C23: 586 | D23: 165 | E23: 75 | F23: 40 | G23: 18 | H23: =(C23-B23)/B23 -> -29% | I23: =(E23-B23)/B23 -> -91% | J23: =(G23-B23)/B23 -> -98%
A24: Refining | B24: 171 | C24: 136 | D24: 99 | E24: 63 | F24: 37 | G24: 13 | H24: -21% | I24: -63% | J24: -92%
A25: Recycled Aluminium | B25: 19 | C25: 22 | D25: 20 | E25: 16 | F25: 10 | G25: 8 | H25: 19% | I25: -14% | J25: -55%
A26: Internal Scrap/Fabrication Scrap | B26: 11 | C26: 9 | D26: 7 | E26: 5 | F26: 3 | G26: 1 | H26: -20% | I26: -58% | J26: -89%
A27: Semis Process | B27: 29 | C27: 26 | D27: 24 | E27: 23 | F27: 21 | G27: 8 | H27: -11% | I27: -20% | J27: -71%
A28: Aluminium Sector | B28: =B22+B25+B26+B27 -> 1,095 | C28: =C22+C25+C26+C27 -> 813 | D28: 341 | E28: 198 | F28: 121 | G28: 53 | H28: -26% | I28: -82% | J28: -95%
A31: Table 3: 1.5 Production
B33: Aluminium (Mt) | H33: 2018-2030 | I33: 2018-2040 | J33: 2018-2050
B34: 2018 | C34: 2030 | D34: 2035 | E34: 2040 | F34: 2045 | G34: 2050
A35: Primary Aluminium | B35: 64 | C35: 66 | D35: 69 | E35: 71 | F35: 70 | G35: 68 | H35: =(C35-B35)/B35 -> 2% | I35: =(E35-B35)/B35 -> 10% | J35: =(G35-B35)/B35 -> 6%
A36: Recycled Aluminium | B36: 32 | C36: 49 | D36: 57 | E36: 66 | F36: 74 | G36: 81 | H36: 54% | I36: 108% | J36: 155%
A37: New Scrap/Manufacturing Scrap | B37: 13 | C37: 16 | D37: 15 | E37: 15 | F37: 14 | G37: 13 | H37: 24% | I37: 15% | J37: 1%
A38: Old Scrap/Post-Consumer Scrap | B38: 19 | C38: 33 | D38: 42 | E38: 52 | F38: 60 | G38: 68 | H38: 73% | I38: 170% | J38: 257%
A39: Internal Scrap/Fabrication Scrap | B39: 33 | C39: 36 | D39: 34 | E39: 32 | F39: 30 | G39: 27 | H39: 7% | I39: -2% | J39: -19%
A40: Semis Shipments | B40: 95 | C40: 118 | D40: 126 | E40: 138 | F40: 144 | G40: 150 | H40: 24% | I40: 45% | J40: 57%
A41: Final Product Shipments | B41: 82 | C41: 103 | D41: 112 | E41: 123 | F41: 131 | G41: 137 | H41: 26% | I41: 51% | J41: 68%
A43: New Scrap + Internal Scrap = Pre-Consumer Scrap
A44: Recycled Aluminium = Includes Alloying Elements and Metal Losses
A45: Primary Aluminium = Tapped from Electrolytic Cells or Pots
A47: Table 4: 1.5 Intensity Data (Process Emissions)
B49: CO2e emissions intensity (tonnes per tonne) | H49: 2018-2030 | I49: 2018-2040 | J49: 2018-2050
B50: 2018 | C50: 2030 | D50: 2035 | E50: 2040 | F50: 2045 | G50: 2050
A51: Primary Aluminium | B51: =B22/B35 -> 16.1 | C51: =C22/C35 -> 11.5 | D51: 4.2 | E51: 2.2 | F51: 1.2 | G51: 0.5 | H51: =(C51-B51)/B51 -> -28% | I51: =(E51-B51)/B51 -> -86% | J51: =(G51-B51)/B51 -> -97%
A52: Recycled Aluminium (Gate to Gate) | B52: =B25/B36 -> 0.6 | C52: =C25/C36 -> 0.5 | D52: 0.4 | E52: 0.2 | F52: 0.1 | G52: 0.1 | H52: =(C52-B52)/B52 -> -22% | I52: =(E52-B52)/B52 -> -59% | J52: =(G52-B52)/B52 -> -82% | L52: Including collection and processing
A53: Semis Process (Gate to Gate) | B53: =B27/B40 -> 0.3 | C53: =C27/C40 -> 0.2 | D53: 0.2 | E53: 0.2 | F53: 0.1 | G53: 0.1 | H53: =(C53-B53)/B53 -> -28% | I53: =(E53-B53)/B53 -> -45% | J53: =(G53-B53)/B53 -> -81%

Sheet 5.2 smelter thresholds (hidden)
D3: 2016 | E3: 2017 | F3: 2018 | G3: 2019 | H3: 2020 | I3: 2021 | J3: 2022 | K3: 2023 | L3: 2024 | M3: 2025 | N3: 2026 | O3: 2027 | P3: 2028 | Q3: 2029 | R3: 2030
C4: 5.2 threshold (pre-2020 ) | D4: 13 | E4: 13 | F4: 13 | G4: 13 | H4: 13 | I4: 13 | J4: 13 | K4: 13 | L4: 13 | M4: 13 | R4: 11
C5: drop-line 13 | M5: 13
C6: 5.2 threshold (post-2020) | D6: 11 | E6: 11 | F6: 11 | G6: 11 | H6: 11 | I6: 11 | J6: 11 | K6: 11 | L6: 11 | M6: 11 | N6: 11 | O6: 11 | P6: 11 | Q6: 11 | R6: 11
C7: drop-line 11 | R7: 11

Sheet Primary Archetype Data Tables (hidden)
A1: Sectoral Benchmark | B1: 2016 | C1: 2017 | D1: 2018 | E1: 2019 | F1: 2020 | G1: 2021 | H1: 2022 | I1: 2023 | J1: 2024 | K1: 2025 | L1: 2026 | M1: 2027 | N1: 2028 | O1: 2029 | P1: 2030 | Q1: 2031 | R1: 2032 | S1: 2033 | T1: 2034 | U1: 2035 | V1: 2036 | W1: 2037 | X1: 2038 | Y1: 2039 | Z1: 2040 | AA1: 2041 | AB1: 2042 | AC1: 2043 | AD1: 2044 | AE1: 2045 | AF1: 2046 | AG1: 2047 | AH1: 2048 | AI1: 2049 | AJ1: 2050
A2: Primary Sectoral Electricity (IAI/MPP) | B2: ='Sectoral Slopes'!C17 -> 10.7 | C2: ='Sectoral Slopes'!D17 -> 10.7 | D2: ='Sectoral Slopes'!E17 -> 10.7 | E2: ='Sectoral Slopes'!F17 -> 10.4 | F2: ='Sectoral Slopes'!G17 -> 9.7 | G2: ='Sectoral Slopes'!H17 -> 9.9 | H2: ='Sectoral Slopes'!I17 -> 9.6 | I2: ='Sectoral Slopes'!J17 -> 9.0 | J2: ='Sectoral Slopes'!K17 -> 8.7 | K2: ='Sectoral Slopes'!L17 -> 8.4 | L2: ='Sectoral Slopes'!M17 -> 8.1 | M2: ='Sectoral Slopes'!N17 -> 8.1 | N2: ='Sectoral Slopes'!O17 -> 7.7 | O2: ='Sectoral Slopes'!P17 -> 7.3 | P2: ='Sectoral Slopes'!Q17 -> 7.0 | Q2: ='Sectoral Slopes'!R17 -> 5.7 | R2: ='Sectoral Slopes'!S17 -> 4.1 | S2: ='Sectoral Slopes'!T17 -> 3.6 | T2: ='Sectoral Slopes'!U17 -> 2.4 | U2: ='Sectoral Slopes'!V17 -> 1.6 | V2: ='Sectoral Slopes'!W17 -> 1.5 | W2: ='Sectoral Slopes'!X17 -> 1.3 | X2: ='Sectoral Slopes'!Y17 -> 1.1 | Y2: ='Sectoral Slopes'!Z17 -> 1.0 | Z2: ='Sectoral Slopes'!AA17 -> 1.0 | AA2: ='Sectoral Slopes'!AB17 -> 1.0 | AB2: ='Sectoral Slopes'!AC17 -> 0.9 | AC2: ='Sectoral Slopes'!AD17 -> 0.8 | AD2: ='Sectoral Slopes'!AE17 -> 0.8 | AE2: ='Sectoral Slopes'!AF17 -> 0.8 | AF2: ='Sectoral Slopes'!AG17 -> 0.7 | AG2: ='Sectoral Slopes'!AH17 -> 0.7 | AH2: ='Sectoral Slopes'!AI17 -> 0.7 | AI2: ='Sectoral Slopes'!AJ17 -> 0.7 | AJ2: ='Sectoral Slopes'!AK17 -> 0.7
A3: Primary Sectoral Non-Electricity (IAI/MPP) | B3: ='Sectoral Slopes'!C18 -> 4.8 | C3: ='Sectoral Slopes'!D18 -> 4.8 | D3: ='Sectoral Slopes'!E18 -> 4.8 | E3: ='Sectoral Slopes'!F18 -> 4.8 | F3: ='Sectoral Slopes'!G18 -> 4.8 | G3: ='Sectoral Slopes'!H18 -> 4.7 | H3: ='Sectoral Slopes'!I18 -> 4.8 | I3: ='Sectoral Slopes'!J18 -> 4.8 | J3: ='Sectoral Slopes'!K18 -> 4.8 | K3: ='Sectoral Slopes'!L18 -> 4.7 | L3: ='Sectoral Slopes'!M18 -> 4.4 | M3: ='Sectoral Slopes'!N18 -> 4.4 | N3: ='Sectoral Slopes'!O18 -> 4.4 | O3: ='Sectoral Slopes'!P18 -> 4.3 | P3: ='Sectoral Slopes'!Q18 -> 4.1 | Q3: ='Sectoral Slopes'!R18 -> 3.9 | R3: ='Sectoral Slopes'!S18 -> 3.4 | S3: ='Sectoral Slopes'!T18 -> 3.1 | T3: ='Sectoral Slopes'!U18 -> 2.9 | U3: ='Sectoral Slopes'!V18 -> 2.2 | V3: ='Sectoral Slopes'!W18 -> 2.1 | W3: ='Sectoral Slopes'!X18 -> 1.7 | X3: ='Sectoral Slopes'!Y18 -> 1.5 | Y3: ='Sectoral Slopes'!Z18 -> 1.3 | Z3: ='Sectoral Slopes'!AA18 -> 1.3 | AA3: ='Sectoral Slopes'!AB18 -> 1.1 | AB3: ='Sectoral Slopes'!AC18 -> 0.8 | AC3: ='Sectoral Slopes'!AD18 -> 0.7 | AD3: ='Sectoral Slopes'!AE18 -> 0.6 | AE3: ='Sectoral Slopes'!AF18 -> 0.5 | AF3: ='Sectoral Slopes'!AG18 -> 0.5 | AG3: ='Sectoral Slopes'!AH18 -> 0.5 | AH3: ='Sectoral Slopes'!AI18 -> 0.3 | AI3: ='Sectoral Slopes'!AJ18 -> 0.3 | AJ3: ='Sectoral Slopes'!AK18 -> 0.3
A4: Primary Sectoral Cradle-to-Gate (IAI/MPP) | B4: ='Sectoral Slopes'!C19 -> 15.5 | C4: ='Sectoral Slopes'!D19 -> 15.5 | D4: ='Sectoral Slopes'!E19 -> 15.5 | E4: ='Sectoral Slopes'!F19 -> 15.2 | F4: ='Sectoral Slopes'!G19 -> 14.6 | G4: ='Sectoral Slopes'!H19 -> 14.7 | H4: ='Sectoral Slopes'!I19 -> 14.4 | I4: ='Sectoral Slopes'!J19 -> 13.8 | J4: ='Sectoral Slopes'!K19 -> 13.4 | K4: ='Sectoral Slopes'!L19 -> 13.1 | L4: ='Sectoral Slopes'!M19 -> 12.6 | M4: ='Sectoral Slopes'!N19 -> 12.5 | N4: ='Sectoral Slopes'!O19 -> 12.1 | O4: ='Sectoral Slopes'!P19 -> 11.6 | P4: ='Sectoral Slopes'!Q19 -> 11.1 | Q4: ='Sectoral Slopes'!R19 -> 9.5 | R4: ='Sectoral Slopes'!S19 -> 7.4 | S4: ='Sectoral Slopes'!T19 -> 6.8 | T4: ='Sectoral Slopes'!U19 -> 5.3 | U4: ='Sectoral Slopes'!V19 -> 3.8 | V4: ='Sectoral Slopes'!W19 -> 3.6 | W4: ='Sectoral Slopes'!X19 -> 3.0 | X4: ='Sectoral Slopes'!Y19 -> 2.6 | Y4: ='Sectoral Slopes'!Z19 -> 2.3 | Z4: ='Sectoral Slopes'!AA19 -> 2.2 | AA4: ='Sectoral Slopes'!AB19 -> 2.0 | AB4: ='Sectoral Slopes'!AC19 -> 1.7 | AC4: ='Sectoral Slopes'!AD19 -> 1.5 | AD4: ='Sectoral Slopes'!AE19 -> 1.4 | AE4: ='Sectoral Slopes'!AF19 -> 1.3 | AF4: ='Sectoral Slopes'!AG19 -> 1.2 | AG4: ='Sectoral Slopes'!AH19 -> 1.2 | AH4: ='Sectoral Slopes'!AI19 -> 1.0 | AI4: ='Sectoral Slopes'!AJ19 -> 1.0 | AJ4: ='Sectoral Slopes'!AK19 -> 0.9
A6: Electricity SDAs (0.1 t CO2e/t Al increments) | B6: 2016 | C6: 2017 | D6: 2018 | E6: 2019 | F6: 2020 | G6: 2021 | H6: 2022 | I6: 2023 | J6: 2024 | K6: 2025 | L6: 2026 | M6: 2027 | N6: 2028 | O6: 2029 | P6: 2030 | Q6: 2031 | R6: 2032 | S6: 2033 | T6: 2034 | U6: 2035 | V6: 2036 | W6: 2037 | X6: 2038 | Y6: 2039 | Z6: 2040 | AA6: 2041 | AB6: 2042 | AC6: 2043 | AD6: 2044 | AE6: 2045 | AF6: 2046 | AG6: 2047 | AH6: 2048 | AI6: 2049 | AJ6: 2050
A7: ="electricity_archetype_"&TEXT(ROUND(Table2[[#This Row],[2016]],1),"0.0") -> electricity_archetype_20.0 | B7: 20.00 | C7: =MROUND((($B7-$AJ$2)*((C$2-$AJ$2)/($B$2-$AJ$2)))+$AJ$2,0.01) -> 20.00 | D7: =MROUND((($B7-$AJ$2)*((D$2-$AJ$2)/($B$2-$AJ$2)))+$AJ$2,0.01) -> 20.00 | E7: 19.45 | F7: 18.11 | G7: 18.50 | H7: 17.81 | I7: 16.72 | J7: 16.14 | K7: 15.52 | L7: 15.09 | M7: 15.04 | N7: 14.26 | O7: 13.47 | P7: 12.79 | Q7: 10.32 | R7: 7.21 | S7: 6.37 | T7: 4.06 | U7: 2.48 | V7: 2.21 | W7: 1.82 | X7: 1.52 | Y7: 1.23 | Z7: 1.30 | AA7: 1.24 | AB7: 1.21 | AC7: 0.96 | AD7: 0.92 | AE7: 0.87 | AF7: 0.80 | AG7: 0.76 | AH7: 0.73 | AI7: 0.69 | AJ7: 0.66
A8: ="electricity_archetype_"&TEXT(ROUND(Table2[[#This Row],[2016]],1),"0.0") -> electricity_archetype_19.9 | B8: =MROUND(B7-0.1,0.1) -> 19.90 | C8: =MROUND((($B8-$AJ$2)*((C$2-$AJ$2)/($B$2-$AJ$2)))+$AJ$2,0.01) -> 19.90 | D8: 19.90 | E8: 19.35 | F8: 18.02 | G8: 18.40 | H8: 17.72 | I8: 16.63 | J8: 16.06 | K8: 15.45 | L8: 15.02 | M8: 14.97 | N8: 14.19 | O8: 13.41 | P8: 12.73 | Q8: 10.27 | R8: 7.18 | S8: 6.34 | T8: 4.04 | U8: 2.47 | V8: 2.20 | W8: 1.81 | X8: 1.51 | Y8: 1.23 | Z8: 1.30 | AA8: 1.24 | AB8: 1.20 | AC8: 0.96 | AD8: 0.92 | AE8: 0.87 | AF8: 0.79 | AG8: 0.76 | AH8: 0.73 | AI8: 0.69 | AJ8: 0.66
A9: ="electricity_archetype_"&TEXT(ROUND(Table2[[#This Row],[2016]],1),"0.0") -> electricity_archetype_19.8 | B9: =MROUND(B8-0.1,0.1) -> 19.80 | C9: 19.80 | D9: 19.80 | E9: 19.25 | F9: 17.93 | G9: 18.31 | H9: 17.64 | I9: 16.55 | J9: 15.98 | K9: 15.37 | L9: 14.94 | M9: 14.90 | N9: 14.12 | O9: 13.34 | P9: 12.67 | Q9: 10.22 | R9: 7.15 | S9: 6.31 | T9: 4.02 | U9: 2.46 | V9: 2.19 | W9: 1.80 | X9: 1.51 | Y9: 1.23 | Z9: 1.29 | AA9: 1.24 | AB9: 1.20 | AC9: 0.96 | AD9: 0.92 | AE9: 0.87 | AF9: 0.79 | AG9: 0.76 | AH9: 0.73 | AI9: 0.69 | AJ9: 0.66
A10: ="electricity_archetype_"&TEXT(ROUND(Table2[[#This Row],[2016]],1),"0.0") -> electricity_archetype_19.7 | B10: 19.70 | C10: 19.70 | D10: 19.70 | E10: 19.16 | F10: 17.84 | G10: 18.22 | H10: 17.55 | I10: 16.47 | J10: 15.90 | K10: 15.29 | L10: 14.87 | M10: 14.82 | N10: 14.05 | O10: 13.27 | P10: 12.61 | Q10: 10.17 | R10: 7.11 | S10: 6.28 | T10: 4.00 | U10: 2.45 | V10: 2.19 | W10: 1.80 | X10: 1.50 | Y10: 1.22 | Z10: 1.29 | AA10: 1.23 | AB10: 1.20 | AC10: 0.96 | AD10: 0.92 | AE10: 0.87 | AF10: 0.79 | AG10: 0.76 | AH10: 0.73 | AI10: 0.69 | AJ10: 0.66
A11: ="electricity_archetype_"&TEXT(ROUND(Table2[[#This Row],[2016]],1),"0.0") -> electricity_archetype_19.6 | B11: 19.60 | C11: 19.60 | D11: 19.60 | E11: 19.06 | F11: 17.75 | G11: 18.13 | H11: 17.46 | I11: 16.38 | J11: 15.82 | K11: 15.22 | L11: 14.79 | M11: 14.75 | N11: 13.98 | O11: 13.21 | P11: 12.54 | Q11: 10.12 | R11: 7.08 | S11: 6.25 | T11: 3.99 | U11: 2.44 | V11: 2.18 | W11: 1.79 | X11: 1.50 | Y11: 1.22 | Z11: 1.29 | AA11: 1.23 | AB11: 1.20 | AC11: 0.96 | AD11: 0.92 | AE11: 0.87 | AF11: 0.79 | AG11: 0.76 | AH11: 0.72 | AI11: 0.69 | AJ11: 0.66
A12: ="electricity_archetype_"&TEXT(ROUND(Table2[[#This Row],[2016]],1),"0.0") -> electricity_archetype_19.5 | B12: 19.50 | C12: 19.50 | D12: 19.50 | E12: 18.96 | F12: 17.66 | G12: 18.04 | H12: 17.37 | I12: 16.30 | J12: 15.74 | K12: 15.14 | L12: 14.72 | M12: 14.67 | N12: 13.91 | O12: 13.14 | P12: 12.48 | Q12: 10.07 | R12: 7.05 | S12: 6.22 | T12: 3.97 | U12: 2.43 | V12: 2.17 | W12: 1.79 | X12: 1.49 | Y12: 1.22 | Z12: 1.28 | AA12: 1.23 | AB12: 1.19 | AC12: 0.96 | AD12: 0.91 | AE12: 0.87 | AF12: 0.79 | AG12: 0.76 | AH12: 0.72 | AI12: 0.69 | AJ12: 0.66
A13: ="electricity_archetype_"&TEXT(ROUND(Table2[[#This Row],[2016]],1),"0.0") -> electricity_archetype_19.4 | B13: 19.40 | C13: 19.40 | D13: 19.40 | E13: 18.86 | F13: 17.57 | G13: 17.94 | H13: 17.28 | I13: 16.22 | J13: 15.66 | K13: 15.06 | L13: 14.64 | M13: 14.60 | N13: 13.84 | O13: 13.08 | P13: 12.42 | Q13: 10.02 | R13: 7.01 | S13: 6.19 | T13: 3.95 | U13: 2.43 | V13: 2.16 | W13: 1.78 | X13: 1.49 | Y13: 1.21 | Z13: 1.28 | AA13: 1.22 | AB13: 1.19 | AC13: 0.95 | AD13: 0.91 | AE13: 0.87 | AF13: 0.79 | AG13: 0.76 | AH13: 0.72 | AI13: 0.69 | AJ13: 0.66
A14: ="electricity_archetype_"&TEXT(ROUND(Table2[[#This Row],[2016]],1),"0.0") -> electricity_archetype_19.3 | B14: 19.30 | C14: 19.30 | D14: 19.30 | E14: 18.77 | F14: 17.48 | G14: 17.85 | H14: 17.19 | I14: 16.14 | J14: 15.58 | K14: 14.99 | L14: 14.57 | M14: 14.52 | N14: 13.77 | O14: 13.01 | P14: 12.36 | Q14: 9.97 | R14: 6.98 | S14: 6.16 | T14: 3.93 | U14: 2.42 | V14: 2.15 | W14: 1.77 | X14: 1.49 | Y14: 1.21 | Z14: 1.28 | AA14: 1.22 | AB14: =MROUND((($B14-$AJ$2)*((AB$2-$AJ$2)/($B$2-$AJ$2)))+$AJ$2,0.01) -> 1.19 | AC14: 0.95 | AD14: 0.91 | AE14: 0.87 | AF14: 0.79 | AG14: 0.76 | AH14: 0.72 | AI14: 0.69 | AJ14: 0.66
A15: ="electricity_archetype_"&TEXT(ROUND(Table2[[#This Row],[2016]],1),"0.0") -> electricity_archetype_19.2 | B15: 19.20 | C15: 19.20 | D15: 19.20 | E15: 18.67 | F15: 17.39 | G15: 17.76 | H15: 17.10 | I15: 16.05 | J15: 15.50 | K15: 14.91 | L15: 14.49 | M15: 14.45 | N15: 13.70 | O15: 12.94 | P15: 12.29 | Q15: 9.92 | R15: 6.94 | S15: =MROUND((($B15-$AJ$2)*((S$2-$AJ$2)/($B$2-$AJ$2)))+$AJ$2,0.01) -> 6.13 | T15: 3.92 | U15: 2.41 | V15: 2.15 | W15: 1.77 | X15: 1.48 | Y15: 1.21 | Z15: 1.27 | AA15: 1.22 | AB15: 1.18 | AC15: 0.95 | AD15: 0.91 | AE15: 0.87 | AF15: 0.79 | AG15: 0.76 | AH15: 0.72 | AI15: 0.69 | AJ15: 0.66
A16: ="electricity_archetype_"&TEXT(ROUND(Table2[[#This Row],[2016]],1),"0.0") -> electricity_archetype_19.1 | B16: 19.10 | C16: 19.10 | D16: 19.10 | E16: 18.57 | F16: 17.30 | G16: 17.67 | H16: 17.02 | I16: 15.97 | J16: 15.42 | K16: 14.83 | L16: 14.42 | M16: 14.37 | N16: 13.63 | O16: 12.88 | P16: 12.23 | Q16: 9.87 | R16: 6.91 | S16: 6.10 | T16: 3.90 | U16: 2.40 | V16: 2.14 | W16: 1.76 | X16: 1.48 | Y16: 1.20 | Z16: 1.27 | AA16: 1.22 | AB16: 1.18 | AC16: 0.95 | AD16: 0.91 | AE16: 0.86 | AF16: 0.79 | AG16: 0.76 | AH16: 0.72 | AI16: 0.69 | AJ16: 0.66
A17: ="electricity_archetype_"&TEXT(ROUND(Table2[[#This Row],[2016]],1),"0.0") -> electricity_archetype_19.0 | B17: 19.00 | C17: 19.00 | D17: 19.00 | E17: 18.48 | F17: 17.21 | G17: 17.57 | H17: 16.93 | I17: 15.89 | J17: 15.34 | K17: 14.76 | L17: 14.35 | M17: 14.30 | N17: 13.56 | O17: 12.81 | P17: 12.17 | Q17: 9.82 | R17: 6.88 | S17: 6.07 | T17: 3.88 | U17: 2.39 | V17: 2.13 | W17: 1.76 | X17: 1.47 | Y17: 1.20 | Z17: 1.27 | AA17: 1.21 | AB17: 1.18 | AC17: 0.95 | AD17: 0.91 | AE17: 0.86 | AF17: 0.79 | AG17: 0.76 | AH17: 0.72 | AI17: 0.69 | AJ17: 0.66
A18: ="electricity_archetype_"&TEXT(ROUND(Table2[[#This Row],[2016]],1),"0.0") -> electricity_archetype_18.9 | B18: 18.90 | C18: 18.90 | D18: 18.90 | E18: 18.38 | F18: 17.12 | G18: 17.48 | H18: 16.84 | I18: 15.80 | J18: 15.26 | K18: 14.68 | L18: 14.27 | M18: 14.23 | N18: 13.49 | O18: 12.74 | P18: 12.10 | Q18: 9.77 | R18: 6.84 | S18: 6.04 | T18: 3.86 | U18: 2.38 | V18: 2.12 | W18: 1.75 | X18: 1.47 | Y18: 1.20 | Z18: 1.26 | AA18: 1.21 | AB18: 1.18 | AC18: 0.95 | AD18: 0.91 | AE18: 0.86 | AF18: 0.79 | AG18: 0.75 | AH18: 0.72 | AI18: 0.69 | AJ18: 0.66
A19: ="electricity_archetype_"&TEXT(ROUND(Table2[[#This Row],[2016]],1),"0.0") -> electricity_archetype_18.8 | B19: 18.80 | C19: 18.80 | D19: 18.80 | E19: 18.28 | F19: 17.03 | G19: 17.39 | H19: 16.75 | I19: 15.72 | J19: 15.18 | K19: 14.60 | L19: 14.20 | M19: 14.15 | N19: 13.42 | O19: 12.68 | P19: 12.04 | Q19: 9.72 | R19: 6.81 | S19: 6.01 | T19: 3.85 | U19: 2.37 | V19: 2.11 | W19: 1.74 | X19: 1.46 | Y19: 1.20 | Z19: 1.26 | AA19: 1.21 | AB19: 1.17 | AC19: 0.94 | AD19: 0.91 | AE19: 0.86 | AF19: 0.79 | AG19: 0.75 | AH19: 0.72 | AI19: 0.69 | AJ19: 0.66
A20: ="electricity_archetype_"&TEXT(ROUND(Table2[[#This Row],[2016]],1),"0.0") -> electricity_archetype_18.7 | B20: 18.70 | C20: 18.70 | D20: 18.70 | E20: 18.18 | F20: 16.94 | G20: 17.30 | H20: 16.66 | I20: 15.64 | J20: 15.10 | K20: 14.53 | L20: 14.12 | M20: 14.08 | N20: 13.35 | O20: 12.61 | P20: 11.98 | Q20: 9.67 | R20: 6.77 | S20: 5.98 | T20: 3.83 | U20: 2.36 | V20: 2.11 | W20: 1.74 | X20: 1.46 | Y20: 1.19 | Z20: 1.26 | AA20: 1.20 | AB20: 1.17 | AC20: 0.94 | AD20: 0.90 | AE20: 0.86 | AF20: 0.79 | AG20: 0.75 | AH20: 0.72 | AI20: 0.69 | AJ20: 0.66
A21: ="electricity_archetype_"&TEXT(ROUND(Table2[[#This Row],[2016]],1),"0.0") -> electricity_archetype_18.6 | B21: 18.60 | C21: 18.60 | D21: 18.60 | E21: 18.09 | F21: 16.85 | G21: 17.21 | H21: 16.57 | I21: 15.55 | J21: 15.02 | K21: 14.45 | L21: 14.05 | M21: 14.00 | N21: 13.28 | O21: 12.55 | P21: 11.92 | Q21: 9.62 | R21: 6.74 | S21: 5.95 | T21: 3.81 | U21: 2.35 | V21: 2.10 | W21: 1.73 | X21: 1.45 | Y21: 1.19 | Z21: 1.25 | AA21: 1.20 | AB21: 1.17 | AC21: 0.94 | AD21: 0.90 | AE21: 0.86 | AF21: 0.79 | AG21: 0.75 | AH21: 0.72 | AI21: 0.69 | AJ21: 0.66
A22: ="electricity_archetype_"&TEXT(ROUND(Table2[[#This Row],[2016]],1),"0.0") -> electricity_archetype_18.5 | B22: 18.50 | C22: 18.50 | D22: 18.50 | E22: 17.99 | F22: 16.76 | G22: 17.11 | H22: 16.48 | I22: 15.47 | J22: 14.94 | K22: 14.37 | L22: 13.97 | M22: 13.93 | N22: 13.21 | O22: 12.48 | P22: 11.85 | Q22: 9.57 | R22: 6.71 | S22: 5.92 | T22: 3.79 | U22: 2.34 | V22: 2.09 | W22: 1.73 | X22: 1.45 | Y22: 1.19 | Z22: 1.25 | AA22: 1.20 | AB22: 1.16 | AC22: 0.94 | AD22: 0.90 | AE22: 0.86 | AF22: 0.78 | AG22: 0.75 | AH22: 0.72 | AI22: 0.69 | AJ22: 0.66
A23: ="electricity_archetype_"&TEXT(ROUND(Table2[[#This Row],[2016]],1),"0.0") -> electricity_archetype_18.4 | B23: 18.40 | C23: 18.40 | D23: 18.40 | E23: 17.89 | F23: 16.67 | G23: 17.02 | H23: 16.39 | I23: 15.39 | J23: 14.86 | K23: 14.29 | L23: 13.90 | M23: 13.85 | N23: 13.14 | O23: 12.41 | P23: 11.79 | Q23: 9.52 | R23: 6.67 | S23: 5.89 | T23: 3.78 | U23: 2.33 | V23: 2.08 | W23: 1.72 | X23: 1.45 | Y23: 1.18 | Z23: 1.25 | AA23: 1.19 | AB23: 1.16 | AC23: 0.94 | AD23: 0.90 | AE23: 0.86 | AF23: 0.78 | AG23: 0.75 | AH23: 0.72 | AI23: 0.69 | AJ23: 0.66
A24: ="electricity_archetype_"&TEXT(ROUND(Table2[[#This Row],[2016]],1),"0.0") -> electricity_archetype_18.3 | B24: 18.30 | C24: 18.30 | D24: 18.30 | E24: 17.80 | F24: 16.58 | G24: 16.93 | H24: 16.31 | I24: 15.31 | J24: 14.78 | K24: 14.22 | L24: 13.82 | M24: 13.78 | N24: 13.07 | O24: 12.35 | P24: 11.73 | Q24: 9.47 | R24: 6.64 | S24: 5.86 | T24: 3.76 | U24: 2.32 | V24: 2.07 | W24: 1.71 | X24: 1.44 | Y24: 1.18 | Z24: 1.24 | AA24: 1.19 | AB24: 1.16 | AC24: 0.94 | AD24: 0.90 | AE24: 0.86 | AF24: 0.78 | AG24: 0.75 | AH24: 0.72 | AI24: 0.69 | AJ24: 0.66
A25: ="electricity_archetype_"&TEXT(ROUND(Table2[[#This Row],[2016]],1),"0.0") -> electricity_archetype_18.2 | B25: 18.20 | C25: 18.20 | D25: 18.20 | E25: 17.70 | F25: 16.49 | G25: 16.84 | H25: 16.22 | I25: 15.22 | J25: 14.70 | K25: 14.14 | L25: 13.75 | M25: 13.71 | N25: 13.00 | O25: 12.28 | P25: 11.67 | Q25: 9.42 | R25: 6.60 | S25: 5.83 | T25: 3.74 | U25: 2.31 | V25: 2.07 | W25: 1.71 | X25: 1.44 | Y25: 1.18 | Z25: 1.24 | AA25: 1.19 | AB25: 1.16 | AC25: 0.93 | AD25: 0.90 | AE25: 0.85 | AF25: 0.78 | AG25: 0.75 | AH25: 0.72 | AI25: 0.69 | AJ25: 0.66
A26: ="electricity_archetype_"&TEXT(ROUND(Table2[[#This Row],[2016]],1),"0.0") -> electricity_archetype_18.1 | B26: 18.10 | C26: 18.10 | D26: 18.10 | E26: 17.60 | F26: 16.40 | G26: 16.74 | H26: 16.13 | I26: 15.14 | J26: 14.62 | K26: 14.06 | L26: 13.67 | M26: 13.63 | N26: 12.92 | O26: 12.21 | P26: 11.60 | Q26: 9.37 | R26: 6.57 | S26: 5.80 | T26: 3.72 | U26: 2.30 | V26: 2.06 | W26: 1.70 | X26: 1.43 | Y26: 1.18 | Z26: 1.24 | AA26: 1.19 | AB26: 1.15 | AC26: 0.93 | AD26: 0.90 | AE26: 0.85 | AF26: 0.78 | AG26: 0.75 | AH26: 0.72 | AI26: 0.69 | AJ26: 0.66
A27: ="electricity_archetype_"&TEXT(ROUND(Table2[[#This Row],[2016]],1),"0.0") -> electricity_archetype_18.0 | B27: 18.00 | C27: 18.00 | D27: 18.00 | E27: 17.50 | F27: 16.30 | G27: 16.65 | H27: 16.04 | I27: 15.06 | J27: 14.54 | K27: 13.99 | L27: 13.60 | M27: 13.56 | N27: 12.85 | O27: 12.15 | P27: 11.54 | Q27: 9.32 | R27: 6.54 | S27: 5.77 | T27: 3.71 | U27: 2.29 | V27: 2.05 | W27: 1.70 | X27: 1.43 | Y27: 1.17 | Z27: 1.23 | AA27: 1.18 | AB27: 1.15 | AC27: 0.93 | AD27: 0.89 | AE27: 0.85 | AF27: 0.78 | AG27: 0.75 | AH27: 0.72 | AI27: 0.69 | AJ27: 0.66
A28: ="electricity_archetype_"&TEXT(ROUND(Table2[[#This Row],[2016]],1),"0.0") -> electricity_archetype_17.9 | B28: 17.90 | C28: 17.90 | D28: 17.90 | E28: 17.41 | F28: 16.21 | G28: 16.56 | H28: 15.95 | I28: 14.97 | J28: 14.46 | K28: 13.91 | L28: 13.52 | M28: 13.48 | N28: 12.78 | O28: 12.08 | P28: 11.48 | Q28: 9.27 | R28: 6.50 | S28: 5.75 | T28: 3.69 | U28: 2.28 | V28: 2.04 | W28: 1.69 | X28: 1.42 | Y28: 1.17 | Z28: 1.23 | AA28: 1.18 | AB28: 1.15 | AC28: 0.93 | AD28: 0.89 | AE28: 0.85 | AF28: 0.78 | AG28: 0.75 | AH28: 0.72 | AI28: 0.69 | AJ28: 0.66
A29: ="electricity_archetype_"&TEXT(ROUND(Table2[[#This Row],[2016]],1),"0.0") -> electricity_archetype_17.8 | B29: 17.80 | C29: 17.80 | D29: 17.80 | E29: 17.31 | F29: 16.12 | G29: 16.47 | H29: 15.86 | I29: 14.89 | J29: 14.38 | K29: 13.83 | L29: 13.45 | M29: 13.41 | N29: 12.71 | O29: 12.02 | P29: 11.41 | Q29: 9.22 | R29: 6.47 | S29: 5.72 | T29: 3.67 | U29: 2.27 | V29: 2.03 | W29: 1.68 | X29: 1.42 | Y29: 1.17 | Z29: 1.23 | AA29: 1.18 | AB29: 1.14 | AC29: 0.93 | AD29: 0.89 | AE29: 0.85 | AF29: 0.78 | AG29: 0.75 | AH29: 0.72 | AI29: 0.69 | AJ29: 0.66
A30: ="electricity_archetype_"&TEXT(ROUND(Table2[[#This Row],[2016]],1),"0.0") -> electricity_archetype_17.7 | B30: 17.70 | C30: 17.70 | D30: 17.70 | E30: 17.21 | F30: 16.03 | G30: 16.38 | H30: 15.77 | I30: 14.81 | J30: 14.30 | K30: =MROUND((($B30-$AJ$2)*((K$2-$AJ$2)/($B$2-$AJ$2)))+$AJ$2,0.01) -> 13.76 | L30: 13.38 | M30: 13.33 | N30: 12.64 | O30: 11.95 | P30: 11.35 | Q30: 9.17 | R30: 6.44 | S30: 5.69 | T30: 3.65 | U30: 2.27 | V30: 2.03 | W30: 1.68 | X30: 1.41 | Y30: 1.16 | Z30: 1.22 | AA30: 1.17 | AB30: 1.14 | AC30: 0.93 | AD30: 0.89 | AE30: 0.85 | AF30: 0.78 | AG30: 0.75 | AH30: 0.72 | AI30: 0.69 | AJ30: 0.66
A31: ="electricity_archetype_"&TEXT(ROUND(Table2[[#This Row],[2016]],1),"0.0") -> electricity_archetype_17.6 | B31: 17.60 | C31: =MROUND((($B31-$AJ$2)*((C$2-$AJ$2)/($B$2-$AJ$2)))+$AJ$2,0.01) -> 17.60 | D31: 17.60 | E31: 17.12 | F31: 15.94 | G31: 16.28 | H31: 15.68 | I31: 14.72 | J31: 14.22 | K31: 13.68 | L31: 13.30 | M31: 13.26 | N31: 12.57 | O31: 11.88 | P31: 11.29 | Q31: 9.12 | R31: 6.40 | S31: 5.66 | T31: 3.63 | U31: 2.26 | V31: 2.02 | W31: 1.67 | X31: 1.41 | Y31: 1.16 | Z31: 1.22 | AA31: 1.17 | AB31: 1.14 | AC31: 0.93 | AD31: 0.89 | AE31: 0.85 | AF31: 0.78 | AG31: 0.75 | AH31: =MROUND((($B31-$AJ$2)*((AH$2-$AJ$2)/($B$2-$AJ$2)))+$AJ$2,0.01) -> 0.72 | AI31: 0.69 | AJ31: 0.66
A32: ="electricity_archetype_"&TEXT(ROUND(Table2[[#This Row],[2016]],1),"0.0") -> electricity_archetype_17.5 | B32: 17.50 | C32: 17.50 | D32: 17.50 | E32: 17.02 | F32: 15.85 | G32: 16.19 | H32: 15.60 | I32: 14.64 | J32: 14.14 | K32: 13.60 | L32: 13.23 | M32: 13.18 | N32: 12.50 | O32: 11.82 | P32: 11.23 | Q32: 9.07 | R32: 6.37 | S32: 5.63 | T32: 3.62 | U32: 2.25 | V32: 2.01 | W32: 1.67 | X32: 1.41 | Y32: 1.16 | Z32: 1.22 | AA32: =MROUND((($B32-$AJ$2)*((AA$2-$AJ$2)/($B$2-$AJ$2)))+$AJ$2,0.01) -> 1.17 | AB32: 1.14 | AC32: 0.92 | AD32: 0.89 | AE32: 0.85 | AF32: 0.78 | AG32: 0.75 | AH32: 0.72 | AI32: 0.69 | AJ32: 0.66
A33: ="electricity_archetype_"&TEXT(ROUND(Table2[[#This Row],[2016]],1),"0.0") -> electricity_archetype_17.4 | B33: 17.40 | C33: 17.40 | D33: 17.40 | E33: 16.92 | F33: 15.76 | G33: 16.10 | H33: 15.51 | I33: 14.56 | J33: 14.06 | K33: 13.53 | L33: 13.15 | M33: 13.11 | N33: 12.43 | O33: 11.75 | P33: 11.16 | Q33: 9.02 | R33: 6.33 | S33: 5.60 | T33: 3.60 | U33: 2.24 | V33: 2.00 | W33: 1.66 | X33: 1.40 | Y33: 1.15 | Z33: 1.21 | AA33: 1.16 | AB33: 1.13 | AC33: 0.92 | AD33: 0.89 | AE33: 0.85 | AF33: 0.78 | AG33: 0.75 | AH33: 0.72 | AI33: 0.69 | AJ33: 0.66
A34: ="electricity_archetype_"&TEXT(ROUND(Table2[[#This Row],[2016]],1),"0.0") -> electricity_archetype_17.3 | B34: 17.30 | C34: 17.30 | D34: 17.30 | E34: 16.82 | F34: 15.67 | G34: 16.01 | H34: 15.42 | I34: 14.48 | J34: 13.98 | K34: 13.45 | L34: 13.08 | M34: 13.04 | N34: 12.36 | O34: 11.68 | P34: 11.10 | Q34: 8.97 | R34: 6.30 | S34: 5.57 | T34: 3.58 | U34: 2.23 | V34: 1.99 | W34: 1.65 | X34: 1.40 | Y34: 1.15 | Z34: 1.21 | AA34: 1.16 | AB34: 1.13 | AC34: 0.92 | AD34: 0.88 | AE34: 0.84 | AF34: 0.78 | AG34: 0.75 | AH34: 0.72 | AI34: 0.69 | AJ34: 0.66
A35: ="electricity_archetype_"&TEXT(ROUND(Table2[[#This Row],[2016]],1),"0.0") -> electricity_archetype_17.2 | B35: 17.20 | C35: 17.20 | D35: 17.20 | E35: 16.73 | F35: 15.58 | G35: 15.91 | H35: 15.33 | I35: 14.39 | J35: 13.90 | K35: 13.37 | L35: 13.00 | M35: 12.96 | N35: 12.29 | O35: 11.62 | P35: 11.04 | Q35: 8.92 | R35: 6.27 | S35: 5.54 | T35: 3.56 | U35: 2.22 | V35: 1.99 | W35: 1.65 | X35: 1.39 | Y35: 1.15 | Z35: 1.21 | AA35: 1.16 | AB35: 1.13 | AC35: 0.92 | AD35: 0.88 | AE35: 0.84 | AF35: 0.78 | AG35: 0.75 | AH35: 0.72 | AI35: 0.69 | AJ35: 0.66
A36: ="electricity_archetype_"&TEXT(ROUND(Table2[[#This Row],[2016]],1),"0.0") -> electricity_archetype_17.1 | B36: 17.10 | C36: 17.10 | D36: 17.10 | E36: 16.63 | F36: 15.49 | G36: 15.82 | H36: 15.24 | I36: 14.31 | J36: 13.82 | K36: 13.30 | L36: 12.93 | M36: 12.89 | N36: 12.22 | O36: 11.55 | P36: 10.98 | Q36: 8.87 | R36: 6.23 | S36: 5.51 | T36: 3.55 | U36: 2.21 | V36: 1.98 | W36: 1.64 | X36: 1.39 | Y36: 1.15 | Z36: 1.20 | AA36: 1.15 | AB36: 1.12 | AC36: 0.92 | AD36: 0.88 | AE36: 0.84 | AF36: 0.77 | AG36: 0.75 | AH36: 0.72 | AI36: 0.69 | AJ36: 0.66
A37: ="electricity_archetype_"&TEXT(ROUND(Table2[[#This Row],[2016]],1),"0.0") -> electricity_archetype_17.0 | B37: 17.00 | C37: 17.00 | D37: 17.00 | E37: 16.53 | F37: 15.40 | G37: 15.73 | H37: 15.15 | I37: 14.23 | J37: 13.74 | K37: 13.22 | L37: 12.85 | M37: 12.81 | N37: 12.15 | O37: 11.49 | P37: 10.91 | Q37: 8.82 | R37: 6.20 | S37: 5.48 | T37: 3.53 | U37: 2.20 | V37: 1.97 | W37: 1.64 | X37: 1.38 | Y37: 1.14 | Z37: 1.20 | AA37: 1.15 | AB37: 1.12 | AC37: 0.92 | AD37: 0.88 | AE37: 0.84 | AF37: 0.77 | AG37: 0.74 | AH37: 0.72 | AI37: 0.69 | AJ37: 0.66
A38: ="electricity_archetype_"&TEXT(ROUND(Table2[[#This Row],[2016]],1),"0.0") -> electricity_archetype_16.9 | B38: 16.90 | C38: 16.90 | D38: 16.90 | E38: 16.44 | F38: 15.31 | G38: 15.64 | H38: 15.06 | I38: 14.14 | J38: 13.66 | K38: 13.14 | L38: 12.78 | M38: 12.74 | N38: 12.08 | O38: 11.42 | P38: 10.85 | Q38: 8.77 | R38: 6.16 | S38: 5.45 | T38: 3.51 | U38: 2.19 | V38: 1.96 | W38: 1.63 | X38: 1.38 | Y38: 1.14 | Z38: 1.20 | AA38: 1.15 | AB38: 1.12 | AC38: 0.91 | AD38: 0.88 | AE38: 0.84 | AF38: 0.77 | AG38: 0.74 | AH38: 0.72 | AI38: 0.69 | AJ38: 0.66
A39: ="electricity_archetype_"&TEXT(ROUND(Table2[[#This Row],[2016]],1),"0.0") -> electricity_archetype_16.8 | B39: 16.80 | C39: 16.80 | D39: 16.80 | E39: 16.34 | F39: 15.22 | G39: 15.55 | H39: 14.98 | I39: 14.06 | J39: 13.58 | K39: 13.06 | L39: 12.70 | M39: 12.66 | N39: 12.01 | O39: 11.35 | P39: 10.79 | Q39: 8.72 | R39: 6.13 | S39: 5.42 | T39: 3.49 | U39: 2.18 | V39: 1.95 | W39: 1.62 | X39: 1.37 | Y39: 1.14 | Z39: 1.19 | AA39: 1.15 | AB39: 1.12 | AC39: 0.91 | AD39: 0.88 | AE39: 0.84 | AF39: 0.77 | AG39: 0.74 | AH39: 0.71 | AI39: 0.69 | AJ39: 0.66
A40: ="electricity_archetype_"&TEXT(ROUND(Table2[[#This Row],[2016]],1),"0.0") -> electricity_archetype_16.7 | B40: 16.70 | C40: 16.70 | D40: 16.70 | E40: 16.24 | F40: 15.13 | G40: 15.45 | H40: 14.89 | I40: 13.98 | J40: 13.50 | K40: 12.99 | L40: 12.63 | M40: 12.59 | N40: 11.94 | O40: 11.29 | P40: 10.72 | Q40: 8.67 | R40: 6.10 | S40: 5.39 | T40: 3.48 | U40: 2.17 | V40: 1.95 | W40: 1.62 | X40: 1.37 | Y40: 1.13 | Z40: 1.19 | AA40: 1.14 | AB40: 1.11 | AC40: 0.91 | AD40: 0.88 | AE40: 0.84 | AF40: 0.77 | AG40: 0.74 | AH40: 0.71 | AI40: 0.69 | AJ40: 0.66
A41: ="electricity_archetype_"&TEXT(ROUND(Table2[[#This Row],[2016]],1),"0.0") -> electricity_archetype_16.6 | B41: 16.60 | C41: 16.60 | D41: 16.60 | E41: 16.14 | F41: 15.04 | G41: 15.36 | H41: 14.80 | I41: 13.89 | J41: 13.42 | K41: 12.91 | L41: 12.55 | M41: 12.52 | N41: 11.87 | O41: 11.22 | P41: 10.66 | Q41: 8.62 | R41: 6.06 | S41: 5.36 | T41: 3.46 | U41: 2.16 | V41: 1.94 | W41: 1.61 | X41: 1.37 | Y41: 1.13 | Z41: 1.19 | AA41: 1.14 | AB41: 1.11 | AC41: 0.91 | AD41: 0.88 | AE41: 0.84 | AF41: 0.77 | AG41: 0.74 | AH41: 0.71 | AI41: 0.69 | AJ41: 0.66
A42: ="electricity_archetype_"&TEXT(ROUND(Table2[[#This Row],[2016]],1),"0.0") -> electricity_archetype_16.5 | B42: 16.50 | C42: 16.50 | D42: 16.50 | E42: 16.05 | F42: 14.95 | G42: 15.27 | H42: 14.71 | I42: 13.81 | J42: 13.34 | K42: 12.83 | L42: 12.48 | M42: 12.44 | N42: 11.80 | O42: 11.15 | P42: 10.60 | Q42: 8.57 | R42: 6.03 | S42: 5.33 | T42: 3.44 | U42: 2.15 | V42: 1.93 | W42: 1.61 | X42: 1.36 | Y42: 1.13 | Z42: 1.18 | AA42: 1.14 | AB42: 1.11 | AC42: 0.91 | AD42: 0.87 | AE42: 0.84 | AF42: 0.77 | AG42: 0.74 | AH42: 0.71 | AI42: 0.69 | AJ42: 0.66
A43: ="electricity_archetype_"&TEXT(ROUND(Table2[[#This Row],[2016]],1),"0.0") -> electricity_archetype_16.4 | B43: 16.40 | C43: 16.40 | D43: 16.40 | E43: 15.95 | F43: 14.86 | G43: 15.18 | H43: 14.62 | I43: 13.73 | J43: 13.26 | K43: 12.76 | L43: 12.41 | M43: 12.37 | N43: 11.73 | O43: 11.09 | P43: 10.54 | Q43: 8.52 | R43: 5.99 | S43: 5.30 | T43: 3.42 | U43: 2.14 | V43: 1.92 | W43: 1.60 | X43: 1.36 | Y43: 1.12 | Z43: 1.18 | AA43: 1.13 | AB43: 1.11 | AC43: 0.91 | AD43: 0.87 | AE43: 0.83 | AF43: 0.77 | AG43: 0.74 | AH43: 0.71 | AI43: 0.69 | AJ43: 0.66
A44: ="electricity_archetype_"&TEXT(ROUND(Table2[[#This Row],[2016]],1),"0.0") -> electricity_archetype_16.3 | B44: 16.30 | C44: 16.30 | D44: 16.30 | E44: 15.85 | F44: 14.77 | G44: 15.08 | H44: 14.53 | I44: 13.64 | J44: 13.18 | K44: 12.68 | L44: 12.33 | M44: 12.29 | N44: 11.66 | O44: 11.02 | P44: 10.47 | Q44: 8.47 | R44: 5.96 | S44: 5.27 | T44: 3.41 | U44: 2.13 | V44: 1.91 | W44: 1.59 | X44: 1.35 | Y44: 1.12 | Z44: 1.18 | AA44: 1.13 | AB44: 1.10 | AC44: 0.90 | AD44: 0.87 | AE44: 0.83 | AF44: 0.77 | AG44: 0.74 | AH44: 0.71 | AI44: 0.69 | AJ44: 0.66
A45: ="electricity_archetype_"&TEXT(ROUND(Table2[[#This Row],[2016]],1),"0.0") -> electricity_archetype_16.2 | B45: 16.20 | C45: 16.20 | D45: 16.20 | E45: 15.76 | F45: 14.68 | G45: 14.99 | H45: 14.44 | I45: 13.56 | J45: 13.10 | K45: 12.60 | L45: 12.26 | M45: 12.22 | N45: 11.59 | O45: 10.96 | P45: 10.41 | Q45: 8.42 | R45: 5.93 | S45: 5.24 | T45: 3.39 | U45: 2.12 | V45: 1.91 | W45: 1.59 | X45: 1.35 | Y45: 1.12 | Z45: 1.17 | AA45: 1.13 | AB45: 1.10 | AC45: 0.90 | AD45: 0.87 | AE45: 0.83 | AF45: 0.77 | AG45: 0.74 | AH45: 0.71 | AI45: 0.69 | AJ45: 0.66
A46: ="electricity_archetype_"&TEXT(ROUND(Table2[[#This Row],[2016]],1),"0.0") -> electricity_archetype_16.1 | B46: 16.10 | C46: 16.10 | D46: 16.10 | E46: 15.66 | F46: 14.59 | G46: 14.90 | H46: 14.35 | I46: 13.48 | J46: 13.02 | K46: 12.53 | L46: 12.18 | M46: 12.14 | N46: 11.52 | O46: 10.89 | P46: 10.35 | Q46: 8.37 | R46: =MROUND((($B46-$AJ$2)*((R$2-$AJ$2)/($B$2-$AJ$2)))+$AJ$2,0.01) -> 5.89 | S46: 5.21 | T46: 3.37 | U46: 2.11 | V46: 1.90 | W46: 1.58 | X46: 1.34 | Y46: 1.12 | Z46: 1.17 | AA46: 1.12 | AB46: 1.10 | AC46: 0.90 | AD46: 0.87 | AE46: 0.83 | AF46: 0.77 | AG46: 0.74 | AH46: 0.71 | AI46: 0.68 | AJ46: 0.66
A47: ="electricity_archetype_"&TEXT(ROUND(Table2[[#This Row],[2016]],1),"0.0") -> electricity_archetype_16.0 | B47: 16.00 | C47: =MROUND((($B47-$AJ$2)*((C$2-$AJ$2)/($B$2-$AJ$2)))+$AJ$2,0.01) -> 16.00 | D47: 16.00 | E47: 15.56 | F47: 14.50 | G47: 14.81 | H47: 14.27 | I47: 13.40 | J47: 12.94 | K47: 12.45 | L47: 12.11 | M47: 12.07 | N47: 11.45 | O47: 10.82 | P47: 10.28 | Q47: 8.32 | R47: 5.86 | S47: 5.18 | T47: 3.35 | U47: 2.10 | V47: 1.89 | W47: 1.58 | X47: 1.34 | Y47: 1.11 | Z47: 1.17 | AA47: 1.12 | AB47: 1.09 | AC47: 0.90 | AD47: 0.87 | AE47: 0.83 | AF47: 0.77 | AG47: 0.74 | AH47: 0.71 | AI47: 0.68 | AJ47: 0.66
A48: ="electricity_archetype_"&TEXT(ROUND(Table2[[#This Row],[2016]],1),"0.0") -> electricity_archetype_15.9 | B48: 15.90 | C48: 15.90 | D48: 15.90 | E48: 15.46 | F48: 14.41 | G48: 14.72 | H48: 14.18 | I48: 13.31 | J48: 12.86 | K48: 12.37 | L48: 12.03 | M48: 11.99 | N48: 11.38 | O48: 10.76 | P48: 10.22 | Q48: 8.27 | R48: 5.82 | S48: 5.16 | T48: 3.34 | U48: 2.10 | V48: 1.88 | W48: 1.57 | X48: 1.33 | Y48: 1.11 | Z48: 1.16 | AA48: 1.12 | AB48: 1.09 | AC48: 0.90 | AD48: 0.87 | AE48: 0.83 | AF48: 0.77 | AG48: 0.74 | AH48: 0.71 | AI48: 0.68 | AJ48: 0.66
A49: ="electricity_archetype_"&TEXT(ROUND(Table2[[#This Row],[2016]],1),"0.0") -> electricity_archetype_15.8 | B49: 15.80 | C49: 15.80 | D49: 15.80 | E49: 15.37 | F49: 14.32 | G49: 14.62 | H49: 14.09 | I49: 13.23 | J49: 12.78 | K49: 12.30 | L49: 11.96 | M49: 11.92 | N49: 11.31 | O49: 10.69 | P49: 10.16 | Q49: 8.22 | R49: 5.79 | S49: 5.13 | T49: 3.32 | U49: 2.09 | V49: 1.87 | W49: 1.56 | X49: 1.33 | Y49: 1.11 | Z49: 1.16 | AA49: 1.12 | AB49: 1.09 | AC49: 0.90 | AD49: 0.86 | AE49: 0.83 | AF49: 0.77 | AG49: 0.74 | AH49: 0.71 | AI49: 0.68 | AJ49: 0.66
A50: ="electricity_archetype_"&TEXT(ROUND(Table2[[#This Row],[2016]],1),"0.0") -> electricity_archetype_15.7 | B50: 15.70 | C50: 15.70 | D50: 15.70 | E50: 15.27 | F50: 14.23 | G50: 14.53 | H50: 14.00 | I50: 13.15 | J50: 12.70 | K50: 12.22 | L50: 11.88 | M50: 11.85 | N50: 11.24 | O50: 10.62 | P50: 10.10 | Q50: 8.17 | R50: 5.76 | S50: 5.10 | T50: 3.30 | U50: 2.08 | V50: 1.86 | W50: 1.56 | X50: 1.33 | Y50: 1.10 | Z50: 1.16 | AA50: 1.11 | AB50: 1.09 | AC50: 0.90 | AD50: 0.86 | AE50: 0.83 | AF50: 0.76 | AG50: 0.74 | AH50: 0.71 | AI50: 0.68 | AJ50: 0.66
A51: ="electricity_archetype_"&TEXT(ROUND(Table2[[#This Row],[2016]],1),"0.0") -> electricity_archetype_15.6 | B51: 15.60 | C51: 15.60 | D51: 15.60 | E51: 15.17 | F51: 14.14 | G51: 14.44 | H51: 13.91 | I51: 13.06 | J51: 12.62 | K51: 12.14 | L51: 11.81 | M51: 11.77 | N51: 11.17 | O51: 10.56 | P51: 10.03 | Q51: 8.12 | R51: 5.72 | S51: 5.07 | T51: 3.28 | U51: 2.07 | V51: 1.86 | W51: 1.55 | X51: 1.32 | Y51: 1.10 | Z51: 1.15 | AA51: 1.11 | AB51: 1.08 | AC51: 0.89 | AD51: 0.86 | AE51: 0.82 | AF51: 0.76 | AG51: 0.74 | AH51: 0.71 | AI51: 0.68 | AJ51: 0.66
A52: ="electricity_archetype_"&TEXT(ROUND(Table2[[#This Row],[2016]],1),"0.0") -> electricity_archetype_15.5 | B52: 15.50 | C52: 15.50 | D52: 15.50 | E52: 15.08 | F52: 14.05 | G52: 14.35 | H52: 13.82 | I52: 12.98 | J52: 12.54 | K52: 12.07 | L52: 11.73 | M52: 11.70 | N52: 11.10 | O52: 10.49 | P52: 9.97 | Q52: 8.07 | R52: 5.69 | S52: 5.04 | T52: 3.27 | U52: 2.06 | V52: 1.85 | W52: 1.55 | X52: 1.32 | Y52: 1.10 | Z52: 1.15 | AA52: 1.11 | AB52: 1.08 | AC52: 0.89 | AD52: 0.86 | AE52: 0.82 | AF52: 0.76 | AG52: 0.74 | AH52: 0.71 | AI52: 0.68 | AJ52: 0.66
A53: ="electricity_archetype_"&TEXT(ROUND(Table2[[#This Row],[2016]],1),"0.0") -> electricity_archetype_15.4 | B53: 15.40 | C53: 15.40 | D53: 15.40 | E53: 14.98 | F53: 13.96 | G53: 14.25 | H53: 13.73 | I53: 12.90 | J53: 12.46 | K53: 11.99 | L53: 11.66 | M53: 11.62 | N53: 11.03 | O53: 10.43 | P53: 9.91 | Q53: 8.02 | R53: 5.66 | S53: 5.01 | T53: 3.25 | U53: 2.05 | V53: 1.84 | W53: 1.54 | X53: 1.31 | Y53: 1.10 | Z53: 1.15 | AA53: 1.10 | AB53: 1.08 | AC53: 0.89 | AD53: 0.86 | AE53: 0.82 | AF53: 0.76 | AG53: 0.74 | AH53: 0.71 | AI53: 0.68 | AJ53: 0.66
A54: ="electricity_archetype_"&TEXT(ROUND(Table2[[#This Row],[2016]],1),"0.0") -> electricity_archetype_15.3 | B54: 15.30 | C54: 15.30 | D54: 15.30 | E54: 14.88 | F54: 13.87 | G54: 14.16 | H54: 13.64 | I54: 12.81 | J54: 12.38 | K54: 11.91 | L54: 11.58 | M54: 11.55 | N54: 10.96 | O54: 10.36 | P54: 9.85 | Q54: 7.97 | R54: 5.62 | S54: 4.98 | T54: 3.23 | U54: 2.04 | V54: 1.83 | W54: 1.53 | X54: 1.31 | Y54: 1.09 | Z54: 1.14 | AA54: 1.10 | AB54: 1.07 | AC54: 0.89 | AD54: 0.86 | AE54: 0.82 | AF54: 0.76 | AG54: 0.74 | AH54: 0.71 | AI54: 0.68 | AJ54: 0.66
A55: ="electricity_archetype_"&TEXT(ROUND(Table2[[#This Row],[2016]],1),"0.0") -> electricity_archetype_15.2 | B55: 15.20 | C55: 15.20 | D55: 15.20 | E55: 14.78 | F55: 13.78 | G55: 14.07 | H55: 13.56 | I55: 12.73 | J55: 12.30 | K55: 11.84 | L55: 11.51 | M55: 11.47 | N55: 10.89 | O55: 10.29 | P55: 9.78 | Q55: 7.92 | R55: 5.59 | S55: 4.95 | T55: 3.21 | U55: 2.03 | V55: 1.82 | W55: 1.53 | X55: 1.30 | Y55: 1.09 | Z55: 1.14 | AA55: 1.10 | AB55: 1.07 | AC55: 0.89 | AD55: 0.86 | AE55: 0.82 | AF55: 0.76 | AG55: 0.74 | AH55: 0.71 | AI55: 0.68 | AJ55: 0.66
A56: ="electricity_archetype_"&TEXT(ROUND(Table2[[#This Row],[2016]],1),"0.0") -> electricity_archetype_15.1 | B56: 15.10 | C56: 15.10 | D56: 15.10 | E56: 14.69 | F56: 13.69 | G56: 13.98 | H56: 13.47 | I56: 12.65 | J56: 12.22 | K56: 11.76 | L56: 11.44 | M56: 11.40 | N56: 10.81 | O56: 10.23 | P56: 9.72 | Q56: 7.87 | R56: 5.55 | S56: 4.92 | T56: 3.20 | U56: 2.02 | V56: 1.82 | W56: 1.52 | X56: 1.30 | Y56: 1.09 | Z56: 1.14 | AA56: 1.09 | AB56: 1.07 | AC56: 0.89 | AD56: 0.85 | AE56: 0.82 | AF56: 0.76 | AG56: 0.73 | AH56: 0.71 | AI56: 0.68 | AJ56: 0.66
A57: ="electricity_archetype_"&TEXT(ROUND(Table2[[#This Row],[2016]],1),"0.0") -> electricity_archetype_15.0 | B57: 15.00 | C57: 15.00 | D57: 15.00 | E57: 14.59 | F57: 13.60 | G57: 13.89 | H57: 13.38 | I57: 12.57 | J57: 12.14 | K57: 11.68 | L57: 11.36 | M57: 11.33 | N57: 10.74 | O57: 10.16 | P57: 9.66 | Q57: 7.82 | R57: 5.52 | S57: 4.89 | T57: 3.18 | U57: 2.01 | V57: 1.81 | W57: 1.52 | X57: 1.29 | Y57: 1.08 | Z57: 1.13 | AA57: 1.09 | AB57: 1.07 | AC57: 0.88 | AD57: 0.85 | AE57: 0.82 | AF57: 0.76 | AG57: 0.73 | AH57: 0.71 | AI57: 0.68 | AJ57: 0.66
A58: ="electricity_archetype_"&TEXT(ROUND(Table2[[#This Row],[2016]],1),"0.0") -> electricity_archetype_14.9 | B58: 14.90 | C58: 14.90 | D58: 14.90 | E58: 14.49 | F58: 13.51 | G58: 13.79 | H58: 13.29 | I58: 12.48 | J58: 12.06 | K58: 11.60 | L58: 11.29 | M58: 11.25 | N58: 10.67 | O58: 10.09 | P58: 9.59 | Q58: 7.77 | R58: 5.49 | S58: 4.86 | T58: 3.16 | U58: 2.00 | V58: 1.80 | W58: 1.51 | X58: 1.29 | Y58: 1.08 | Z58: 1.13 | AA58: 1.09 | AB58: 1.06 | AC58: 0.88 | AD58: 0.85 | AE58: 0.82 | AF58: 0.76 | AG58: 0.73 | AH58: 0.71 | AI58: 0.68 | AJ58: 0.66
A59: ="electricity_archetype_"&TEXT(ROUND(Table2[[#This Row],[2016]],1),"0.0") -> electricity_archetype_14.8 | B59: 14.80 | C59: 14.80 | D59: 14.80 | E59: 14.40 | F59: 13.42 | G59: 13.70 | H59: 13.20 | I59: 12.40 | J59: 11.98 | K59: 11.53 | L59: 11.21 | M59: 11.18 | N59: 10.60 | O59: 10.03 | P59: 9.53 | Q59: 7.72 | R59: 5.45 | S59: 4.83 | T59: 3.14 | U59: 1.99 | V59: 1.79 | W59: 1.50 | X59: 1.29 | Y59: 1.08 | Z59: 1.13 | AA59: 1.09 | AB59: 1.06 | AC59: 0.88 | AD59: 0.85 | AE59: 0.82 | AF59: 0.76 | AG59: 0.73 | AH59: 0.71 | AI59: 0.68 | AJ59: 0.66
A60: ="electricity_archetype_"&TEXT(ROUND(Table2[[#This Row],[2016]],1),"0.0") -> electricity_archetype_14.7 | B60: 14.70 | C60: 14.70 | D60: 14.70 | E60: 14.30 | F60: 13.33 | G60: 13.61 | H60: 13.11 | I60: 12.32 | J60: 11.90 | K60: 11.45 | L60: 11.14 | M60: 11.10 | N60: 10.53 | O60: 9.96 | P60: 9.47 | Q60: 7.67 | R60: 5.42 | S60: 4.80 | T60: 3.13 | U60: 1.98 | V60: 1.78 | W60: 1.50 | X60: 1.28 | Y60: 1.07 | Z60: 1.12 | AA60: 1.08 | AB60: 1.06 | AC60: 0.88 | AD60: 0.85 | AE60: 0.81 | AF60: 0.76 | AG60: 0.73 | AH60: 0.71 | AI60: 0.68 | AJ60: 0.66
A61: ="electricity_archetype_"&TEXT(ROUND(Table2[[#This Row],[2016]],1),"0.0") -> electricity_archetype_14.6 | B61: 14.60 | C61: 14.60 | D61: 14.60 | E61: 14.20 | F61: 13.24 | G61: 13.52 | H61: 13.02 | I61: 12.23 | J61: 11.82 | K61: 11.37 | L61: 11.06 | M61: 11.03 | N61: 10.46 | O61: 9.90 | P61: 9.41 | Q61: 7.62 | R61: 5.38 | S61: 4.77 | T61: 3.11 | U61: 1.97 | V61: 1.78 | W61: 1.49 | X61: 1.28 | Y61: 1.07 | Z61: 1.12 | AA61: 1.08 | AB61: 1.05 | AC61: 0.88 | AD61: 0.85 | AE61: 0.81 | AF61: 0.76 | AG61: 0.73 | AH61: 0.71 | AI61: 0.68 | AJ61: 0.66
A62: ="electricity_archetype_"&TEXT(ROUND(Table2[[#This Row],[2016]],1),"0.0") -> electricity_archetype_14.5 | B62: 14.50 | C62: 14.50 | D62: 14.50 | E62: 14.10 | F62: 13.15 | G62: 13.42 | H62: 12.94 | I62: 12.15 | J62: 11.74 | K62: 11.30 | L62: 10.99 | M62: 10.95 | N62: 10.39 | O62: 9.83 | P62: 9.34 | Q62: 7.57 | R62: =MROUND((($B62-$AJ$2)*((R$2-$AJ$2)/($B$2-$AJ$2)))+$AJ$2,0.01) -> 5.35 | S62: 4.74 | T62: 3.09 | U62: 1.96 | V62: 1.77 | W62: 1.49 | X62: 1.27 | Y62: 1.07 | Z62: 1.12 | AA62: 1.08 | AB62: 1.05 | AC62: 0.88 | AD62: 0.85 | AE62: 0.81 | AF62: 0.76 | AG62: 0.73 | AH62: 0.71 | AI62: 0.68 | AJ62: 0.66
A63: ="electricity_archetype_"&TEXT(ROUND(Table2[[#This Row],[2016]],1),"0.0") -> electricity_archetype_14.4 | B63: 14.40 | C63: =MROUND((($B63-$AJ$2)*((C$2-$AJ$2)/($B$2-$AJ$2)))+$AJ$2,0.01) -> 14.40 | D63: 14.40 | E63: 14.01 | F63: 13.06 | G63: 13.33 | H63: 12.85 | I63: 12.07 | J63: 11.66 | K63: 11.22 | L63: 10.91 | M63: 10.88 | N63: 10.32 | O63: 9.76 | P63: 9.28 | Q63: 7.52 | R63: 5.32 | S63: 4.71 | T63: 3.07 | U63: 1.95 | V63: 1.76 | W63: 1.48 | X63: 1.27 | Y63: 1.07 | Z63: 1.11 | AA63: 1.07 | AB63: 1.05 | AC63: 0.87 | AD63: 0.85 | AE63: 0.81 | AF63: 0.76 | AG63: 0.73 | AH63: 0.71 | AI63: 0.68 | AJ63: 0.66
A64: ="electricity_archetype_"&TEXT(ROUND(Table2[[#This Row],[2016]],1),"0.0") -> electricity_archetype_14.3 | B64: 14.30 | C64: 14.30 | D64: 14.30 | E64: 13.91 | F64: 12.97 | G64: 13.24 | H64: 12.76 | I64: 11.98 | J64: 11.58 | K64: 11.14 | L64: 10.84 | M64: 10.80 | N64: 10.25 | O64: 9.70 | P64: 9.22 | Q64: 7.47 | R64: 5.28 | S64: 4.68 | T64: 3.05 | U64: 1.94 | V64: 1.75 | W64: 1.47 | X64: 1.26 | Y64: 1.06 | Z64: 1.11 | AA64: 1.07 | AB64: 1.05 | AC64: 0.87 | AD64: 0.84 | AE64: 0.81 | AF64: 0.75 | AG64: 0.73 | AH64: 0.71 | AI64: 0.68 | AJ64: 0.66
A65: ="electricity_archetype_"&TEXT(ROUND(Table2[[#This Row],[2016]],1),"0.0") -> electricity_archetype_14.2 | B65: 14.20 | C65: 14.20 | D65: 14.20 | E65: 13.81 | F65: 12.88 | G65: 13.15 | H65: 12.67 | I65: 11.90 | J65: 11.50 | K65: 11.07 | L65: 10.76 | M65: 10.73 | N65: 10.18 | O65: 9.63 | P65: 9.16 | Q65: 7.42 | R65: 5.25 | S65: 4.65 | T65: 3.04 | U65: 1.93 | V65: 1.74 | W65: 1.47 | X65: 1.26 | Y65: 1.06 | Z65: 1.11 | AA65: 1.07 | AB65: 1.04 | AC65: 0.87 | AD65: 0.84 | AE65: 0.81 | AF65: 0.75 | AG65: 0.73 | AH65: 0.71 | AI65: 0.68 | AJ65: 0.66
A66: ="electricity_archetype_"&TEXT(ROUND(Table2[[#This Row],[2016]],1),"0.0") -> electricity_archetype_14.1 | B66: 14.10 | C66: 14.10 | D66: 14.10 | E66: 13.72 | F66: 12.79 | G66: 13.06 | H66: 12.58 | I66: 11.82 | J66: 11.42 | K66: 10.99 | L66: 10.69 | M66: 10.66 | N66: 10.11 | O66: 9.56 | P66: 9.09 | Q66: 7.37 | R66: 5.21 | S66: 4.62 | T66: 3.02 | U66: 1.93 | V66: 1.74 | W66: 1.46 | X66: 1.25 | Y66: 1.06 | Z66: 1.10 | AA66: 1.06 | AB66: 1.04 | AC66: 0.87 | AD66: 0.84 | AE66: 0.81 | AF66: 0.75 | AG66: 0.73 | AH66: 0.71 | AI66: 0.68 | AJ66: 0.66
A67: ="electricity_archetype_"&TEXT(ROUND(Table2[[#This Row],[2016]],1),"0.0") -> electricity_archetype_14.0 | B67: 14.00 | C67: 14.00 | D67: 14.00 | E67: 13.62 | F67: 12.70 | G67: 12.96 | H67: 12.49 | I67: 11.74 | J67: 11.34 | K67: 10.91 | L67: 10.61 | M67: 10.58 | N67: 10.04 | O67: 9.50 | P67: 9.03 | Q67: 7.32 | R67: 5.18 | S67: 4.59 | T67: 3.00 | U67: 1.92 | V67: 1.73 | W67: 1.46 | X67: 1.25 | Y67: 1.05 | Z67: 1.10 | AA67: 1.06 | AB67: 1.04 | AC67: 0.87 | AD67: 0.84 | AE67: 0.81 | AF67: 0.75 | AG67: 0.73 | AH67: 0.70 | AI67: 0.68 | AJ67: 0.66
A68: ="electricity_archetype_"&TEXT(ROUND(Table2[[#This Row],[2016]],1),"0.0") -> electricity_archetype_13.9 | B68: 13.90 | C68: 13.90 | D68: 13.90 | E68: 13.52 | F68: 12.61 | G68: 12.87 | H68: 12.40 | I68: 11.65 | J68: 11.26 | K68: 10.84 | L68: 10.54 | M68: 10.51 | N68: 9.97 | O68: 9.43 | P68: 8.97 | Q68: 7.27 | R68: 5.15 | S68: 4.57 | T68: 2.98 | U68: 1.91 | V68: 1.72 | W68: 1.45 | X68: 1.25 | Y68: 1.05 | Z68: 1.10 | AA68: 1.06 | AB68: 1.03 | AC68: 0.87 | AD68: 0.84 | AE68: 0.81 | AF68: 0.75 | AG68: 0.73 | AH68: 0.70 | AI68: 0.68 | AJ68: 0.66
A69: ="electricity_archetype_"&TEXT(ROUND(Table2[[#This Row],[2016]],1),"0.0") -> electricity_archetype_13.8 | B69: 13.80 | C69: 13.80 | D69: 13.80 | E69: 13.42 | F69: 12.52 | G69: 12.78 | H69: 12.31 | I69: 11.57 | J69: 11.18 | K69: 10.76 | L69: 10.46 | M69: 10.43 | N69: 9.90 | O69: 9.36 | P69: 8.90 | Q69: 7.22 | R69: 5.11 | S69: 4.54 | T69: 2.97 | U69: 1.90 | V69: 1.71 | W69: 1.44 | X69: 1.24 | Y69: 1.05 | Z69: 1.09 | AA69: 1.06 | AB69: 1.03 | AC69: 0.87 | AD69: 0.84 | AE69: 0.80 | AF69: 0.75 | AG69: 0.73 | AH69: 0.70 | AI69: 0.68 | AJ69: 0.66
A70: ="electricity_archetype_"&TEXT(ROUND(Table2[[#This Row],[2016]],1),"0.0") -> electricity_archetype_13.7 | B70: 13.70 | C70: 13.70 | D70: 13.70 | E70: 13.33 | F70: 12.43 | G70: 12.69 | H70: 12.23 | I70: 11.49 | J70: 11.10 | K70: 10.68 | L70: 10.39 | M70: 10.36 | N70: 9.83 | O70: 9.30 | P70: 8.84 | Q70: 7.17 | R70: 5.08 | S70: 4.51 | T70: 2.95 | U70: 1.89 | V70: 1.70 | W70: 1.44 | X70: 1.24 | Y70: 1.04 | Z70: 1.09 | AA70: 1.05 | AB70: 1.03 | AC70: 0.86 | AD70: 0.84 | AE70: 0.80 | AF70: 0.75 | AG70: 0.73 | AH70: 0.70 | AI70: 0.68 | AJ70: 0.66
A71: ="electricity_archetype_"&TEXT(ROUND(Table2[[#This Row],[2016]],1),"0.0") -> electricity_archetype_13.6 | B71: 13.60 | C71: 13.60 | D71: 13.60 | E71: 13.23 | F71: 12.33 | G71: 12.59 | H71: 12.14 | I71: 11.40 | J71: 11.02 | K71: 10.61 | L71: 10.32 | M71: 10.28 | N71: 9.76 | O71: 9.23 | P71: 8.78 | Q71: 7.12 | R71: 5.05 | S71: 4.48 | T71: 2.93 | U71: 1.88 | V71: 1.70 | W71: 1.43 | X71: 1.23 | Y71: 1.04 | Z71: 1.09 | AA71: 1.05 | AB71: 1.03 | AC71: 0.86 | AD71: 0.83 | AE71: 0.80 | AF71: 0.75 | AG71: 0.73 | AH71: 0.70 | AI71: 0.68 | AJ71: 0.66
A72: ="electricity_archetype_"&TEXT(ROUND(Table2[[#This Row],[2016]],1),"0.0") -> electricity_archetype_13.5 | B72: 13.50 | C72: 13.50 | D72: 13.50 | E72: 13.13 | F72: 12.24 | G72: 12.50 | H72: 12.05 | I72: 11.32 | J72: 10.94 | K72: 10.53 | L72: 10.24 | M72: 10.21 | N72: 9.69 | O72: 9.17 | P72: 8.72 | Q72: 7.07 | R72: 5.01 | S72: 4.45 | T72: 2.91 | U72: 1.87 | V72: 1.69 | W72: 1.43 | X72: 1.23 | Y72: 1.04 | Z72: 1.08 | AA72: 1.05 | AB72: 1.02 | AC72: 0.86 | AD72: 0.83 | AE72: 0.80 | AF72: 0.75 | AG72: 0.73 | AH72: 0.70 | AI72: 0.68 | AJ72: 0.66
A73: ="electricity_archetype_"&TEXT(ROUND(Table2[[#This Row],[2016]],1),"0.0") -> electricity_archetype_13.4 | B73: =MROUND(B72-0.1,0.1) -> 13.40 | C73: 13.40 | D73: 13.40 | E73: 13.04 | F73: 12.15 | G73: 12.41 | H73: 11.96 | I73: 11.24 | J73: 10.86 | K73: 10.45 | L73: 10.17 | M73: 10.13 | N73: 9.62 | O73: 9.10 | P73: 8.65 | Q73: 7.02 | R73: 4.98 | S73: 4.42 | T73: 2.90 | U73: 1.86 | V73: 1.68 | W73: 1.42 | X73: 1.22 | Y73: 1.04 | Z73: 1.08 | AA73: 1.04 | AB73: 1.02 | AC73: 0.86 | AD73: 0.83 | AE73: 0.80 | AF73: 0.75 | AG73: 0.73 | AH73: 0.70 | AI73: 0.68 | AJ73: 0.66
A74: ="electricity_archetype_"&TEXT(ROUND(Table2[[#This Row],[2016]],1),"0.0") -> electricity_archetype_13.3 | B74: 13.30 | C74: 13.30 | D74: 13.30 | E74: 12.94 | F74: 12.06 | G74: 12.32 | H74: 11.87 | I74: 11.15 | J74: 10.78 | K74: 10.37 | L74: 10.09 | M74: 10.06 | N74: 9.55 | O74: 9.03 | P74: 8.59 | Q74: 6.97 | R74: 4.94 | S74: 4.39 | T74: 2.88 | U74: 1.85 | V74: 1.67 | W74: 1.41 | X74: 1.22 | Y74: 1.03 | Z74: 1.08 | AA74: 1.04 | AB74: 1.02 | AC74: 0.86 | AD74: 0.83 | AE74: 0.80 | AF74: 0.75 | AG74: 0.72 | AH74: 0.70 | AI74: 0.68 | AJ74: 0.66
A75: ="electricity_archetype_"&TEXT(ROUND(Table2[[#This Row],[2016]],1),"0.0") -> electricity_archetype_13.2 | B75: 13.20 | C75: 13.20 | D75: 13.20 | E75: 12.84 | F75: 11.97 | G75: 12.23 | H75: 11.78 | I75: 11.07 | J75: 10.70 | K75: 10.30 | L75: 10.02 | M75: 9.99 | N75: 9.48 | O75: 8.97 | P75: 8.53 | Q75: 6.92 | R75: 4.91 | S75: 4.36 | T75: 2.86 | U75: 1.84 | V75: 1.66 | W75: 1.41 | X75: 1.21 | Y75: 1.03 | Z75: 1.07 | AA75: 1.04 | AB75: 1.01 | AC75: 0.86 | AD75: 0.83 | AE75: 0.80 | AF75: 0.75 | AG75: 0.72 | AH75: 0.70 | AI75: 0.68 | AJ75: 0.66
A76: ="electricity_archetype_"&TEXT(ROUND(Table2[[#This Row],[2016]],1),"0.0") -> electricity_archetype_13.1 | B76: 13.10 | C76: 13.10 | D76: 13.10 | E76: 12.74 | F76: 11.88 | G76: 12.13 | H76: 11.69 | I76: 10.99 | J76: 10.62 | K76: 10.22 | L76: 9.94 | M76: 9.91 | N76: 9.41 | O76: 8.90 | P76: 8.47 | Q76: 6.87 | R76: 4.88 | S76: 4.33 | T76: 2.84 | U76: 1.83 | V76: 1.66 | W76: 1.40 | X76: 1.21 | Y76: 1.03 | Z76: 1.07 | AA76: 1.03 | AB76: 1.01 | AC76: 0.85 | AD76: 0.83 | AE76: 0.80 | AF76: 0.75 | AG76: 0.72 | AH76: 0.70 | AI76: 0.68 | AJ76: 0.66
A77: ="electricity_archetype_"&TEXT(ROUND(Table2[[#This Row],[2016]],1),"0.0") -> electricity_archetype_13.0 | B77: 13.00 | C77: 13.00 | D77: 13.00 | E77: 12.65 | F77: 11.79 | G77: 12.04 | H77: 11.60 | I77: 10.90 | J77: 10.54 | K77: 10.14 | L77: 9.87 | M77: 9.84 | N77: 9.34 | O77: 8.83 | P77: 8.40 | Q77: 6.82 | R77: 4.84 | S77: 4.30 | T77: 2.83 | U77: 1.82 | V77: 1.65 | W77: 1.40 | X77: 1.21 | Y77: 1.02 | Z77: 1.07 | AA77: 1.03 | AB77: 1.01 | AC77: 0.85 | AD77: 0.83 | AE77: 0.80 | AF77: 0.75 | AG77: 0.72 | AH77: 0.70 | AI77: 0.68 | AJ77: 0.66
A78: ="electricity_archetype_"&TEXT(ROUND(Table2[[#This Row],[2016]],1),"0.0") -> electricity_archetype_12.9 | B78: 12.90 | C78: 12.90 | D78: 12.90 | E78: 12.55 | F78: 11.70 | G78: 11.95 | H78: 11.52 | I78: 10.82 | J78: 10.46 | K78: 10.07 | L78: 9.79 | M78: 9.76 | N78: 9.27 | O78: 8.77 | P78: 8.34 | Q78: 6.77 | R78: =MROUND((($B78-$AJ$2)*((R$2-$AJ$2)/($B$2-$AJ$2)))+$AJ$2,0.01) -> 4.81 | S78: 4.27 | T78: 2.81 | U78: 1.81 | V78: 1.64 | W78: 1.39 | X78: 1.20 | Y78: 1.02 | Z78: 1.06 | AA78: 1.03 | AB78: 1.01 | AC78: 0.85 | AD78: 0.82 | AE78: 0.79 | AF78: 0.74 | AG78: 0.72 | AH78: 0.70 | AI78: 0.68 | AJ78: 0.66
A79: ="electricity_archetype_"&TEXT(ROUND(Table2[[#This Row],[2016]],1),"0.0") -> electricity_archetype_12.8 | B79: 12.80 | C79: =MROUND((($B79-$AJ$2)*((C$2-$AJ$2)/($B$2-$AJ$2)))+$AJ$2,0.01) -> 12.80 | D79: 12.80 | E79: 12.45 | F79: 11.61 | G79: 11.86 | H79: 11.43 | I79: 10.74 | J79: 10.38 | K79: 9.99 | L79: 9.72 | M79: 9.69 | N79: 9.20 | O79: 8.70 | P79: 8.28 | Q79: 6.72 | R79: 4.77 | S79: 4.24 | T79: 2.79 | U79: 1.80 | V79: 1.63 | W79: 1.38 | X79: 1.20 | Y79: 1.02 | Z79: 1.06 | AA79: 1.02 | AB79: 1.00 | AC79: 0.85 | AD79: 0.82 | AE79: 0.79 | AF79: 0.74 | AG79: 0.72 | AH79: 0.70 | AI79: 0.68 | AJ79: 0.66
A80: ="electricity_archetype_"&TEXT(ROUND(Table2[[#This Row],[2016]],1),"0.0") -> electricity_archetype_12.7 | B80: 12.70 | C80: 12.70 | D80: 12.70 | E80: 12.36 | F80: 11.52 | G80: 11.76 | H80: 11.34 | I80: 10.66 | J80: 10.30 | K80: 9.91 | L80: 9.64 | M80: 9.61 | N80: 9.13 | O80: 8.64 | P80: 8.21 | Q80: 6.67 | R80: 4.74 | S80: 4.21 | T80: 2.77 | U80: 1.79 | V80: 1.62 | W80: 1.38 | X80: 1.19 | Y80: 1.01 | Z80: 1.06 | AA80: 1.02 | AB80: 1.00 | AC80: 0.85 | AD80: 0.82 | AE80: 0.79 | AF80: 0.74 | AG80: 0.72 | AH80: 0.70 | AI80: 0.68 | AJ80: 0.66
A81: ="electricity_archetype_"&TEXT(ROUND(Table2[[#This Row],[2016]],1),"0.0") -> electricity_archetype_12.6 | B81: 12.60 | C81: 12.60 | D81: 12.60 | E81: 12.26 | F81: 11.43 | G81: 11.67 | H81: 11.25 | I81: 10.57 | J81: 10.22 | K81: 9.84 | L81: 9.57 | M81: 9.54 | N81: 9.06 | O81: 8.57 | P81: 8.15 | Q81: 6.62 | R81: 4.71 | S81: 4.18 | T81: 2.76 | U81: 1.78 | V81: 1.62 | W81: 1.37 | X81: 1.19 | Y81: 1.01 | Z81: 1.05 | AA81: 1.02 | AB81: 1.00 | AC81: 0.85 | AD81: 0.82 | AE81: 0.79 | AF81: 0.74 | AG81: 0.72 | AH81: 0.70 | AI81: 0.68 | AJ81: 0.66
A82: ="electricity_archetype_"&TEXT(ROUND(Table2[[#This Row],[2016]],1),"0.0") -> electricity_archetype_12.5 | B82: 12.50 | C82: 12.50 | D82: 12.50 | E82: 12.16 | F82: 11.34 | G82: 11.58 | H82: 11.16 | I82: 10.49 | J82: 10.14 | K82: 9.76 | L82: 9.49 | M82: 9.47 | N82: 8.99 | O82: 8.50 | P82: 8.09 | Q82: 6.57 | R82: 4.67 | S82: 4.15 | T82: 2.74 | U82: 1.77 | V82: 1.61 | W82: 1.37 | X82: 1.18 | Y82: 1.01 | Z82: 1.05 | AA82: 1.02 | AB82: 0.99 | AC82: 0.84 | AD82: 0.82 | AE82: 0.79 | AF82: 0.74 | AG82: 0.72 | AH82: 0.70 | AI82: 0.68 | AJ82: 0.66
A83: ="electricity_archetype_"&TEXT(ROUND(Table2[[#This Row],[2016]],1),"0.0") -> electricity_archetype_12.4 | B83: 12.40 | C83: 12.40 | D83: 12.40 | E83: 12.06 | F83: 11.25 | G83: 11.49 | H83: 11.07 | I83: 10.41 | J83: 10.06 | K83: 9.68 | L83: 9.42 | M83: 9.39 | N83: 8.92 | O83: 8.44 | P83: 8.03 | Q83: 6.52 | R83: 4.64 | S83: 4.12 | T83: 2.72 | U83: 1.77 | V83: 1.60 | W83: 1.36 | X83: 1.18 | Y83: 1.01 | Z83: 1.05 | AA83: 1.01 | AB83: 0.99 | AC83: 0.84 | AD83: 0.82 | AE83: 0.79 | AF83: 0.74 | AG83: 0.72 | AH83: 0.70 | AI83: 0.68 | AJ83: 0.66
A84: ="electricity_archetype_"&TEXT(ROUND(Table2[[#This Row],[2016]],1),"0.0") -> electricity_archetype_12.3 | B84: 12.30 | C84: 12.30 | D84: 12.30 | E84: 11.97 | F84: 11.16 | G84: 11.40 | H84: 10.98 | I84: 10.32 | J84: 9.98 | K84: 9.61 | L84: 9.35 | M84: 9.32 | N84: 8.85 | O84: 8.37 | P84: 7.96 | Q84: 6.47 | R84: 4.60 | S84: 4.09 | T84: 2.70 | U84: 1.76 | V84: 1.59 | W84: 1.35 | X84: 1.17 | Y84: 1.00 | Z84: 1.04 | AA84: 1.01 | AB84: 0.99 | AC84: 0.84 | AD84: 0.82 | AE84: 0.79 | AF84: 0.74 | AG84: 0.72 | AH84: 0.70 | AI84: =MROUND((($B84-$AJ$2)*((AI$2-$AJ$2)/($B$2-$AJ$2)))+$AJ$2,0.01) -> 0.68 | AJ84: 0.66
A85: ="electricity_archetype_"&TEXT(ROUND(Table2[[#This Row],[2016]],1),"0.0") -> electricity_archetype_12.2 | B85: 12.20 | C85: 12.20 | D85: 12.20 | E85: 11.87 | F85: 11.07 | G85: 11.30 | H85: 10.90 | I85: 10.24 | J85: 9.90 | K85: 9.53 | L85: 9.27 | M85: 9.24 | N85: 8.78 | O85: 8.30 | P85: 7.90 | Q85: 6.42 | R85: 4.57 | S85: 4.06 | T85: 2.69 | U85: 1.75 | V85: 1.58 | W85: 1.35 | X85: 1.17 | Y85: 1.00 | Z85: 1.04 | AA85: 1.01 | AB85: 0.99 | AC85: 0.84 | AD85: 0.82 | AE85: 0.79 | AF85: 0.74 | AG85: 0.72 | AH85: =MROUND((($B85-$AJ$2)*((AH$2-$AJ$2)/($B$2-$AJ$2)))+$AJ$2,0.01) -> 0.70 | AI85: 0.68 | AJ85: 0.66
A86: ="electricity_archetype_"&TEXT(ROUND(Table2[[#This Row],[2016]],1),"0.0") -> electricity_archetype_12.1 | B86: 12.10 | C86: 12.10 | D86: 12.10 | E86: 11.77 | F86: 10.98 | G86: 11.21 | H86: 10.81 | I86: 10.16 | J86: 9.82 | K86: 9.45 | L86: 9.20 | M86: 9.17 | N86: 8.70 | O86: 8.24 | P86: 7.84 | Q86: 6.37 | R86: 4.54 | S86: 4.03 | T86: 2.67 | U86: 1.74 | V86: 1.58 | W86: 1.34 | X86: 1.17 | Y86: 1.00 | Z86: 1.04 | AA86: 1.00 | AB86: 0.98 | AC86: 0.84 | AD86: 0.81 | AE86: 0.79 | AF86: 0.74 | AG86: 0.72 | AH86: 0.70 | AI86: 0.68 | AJ86: 0.66
A87: ="electricity_archetype_"&TEXT(ROUND(Table2[[#This Row],[2016]],1),"0.0") -> electricity_archetype_12.0 | B87: 12.00 | C87: 12.00 | D87: 12.00 | E87: 11.68 | F87: 10.89 | G87: 11.12 | H87: 10.72 | I87: 10.07 | J87: 9.74 | K87: 9.38 | L87: 9.12 | M87: 9.09 | N87: 8.63 | O87: 8.17 | P87: 7.77 | Q87: 6.32 | R87: 4.50 | S87: 4.00 | T87: 2.65 | U87: 1.73 | V87: 1.57 | W87: 1.34 | X87: 1.16 | Y87: 0.99 | Z87: 1.03 | AA87: 1.00 | AB87: 0.98 | AC87: 0.84 | AD87: 0.81 | AE87: 0.78 | AF87: 0.74 | AG87: 0.72 | AH87: 0.70 | AI87: 0.68 | AJ87: 0.66
A88: ="electricity_archetype_"&TEXT(ROUND(Table2[[#This Row],[2016]],1),"0.0") -> electricity_archetype_11.9 | B88: 11.90 | C88: 11.90 | D88: 11.90 | E88: 11.58 | F88: 10.80 | G88: 11.03 | H88: 10.63 | I88: 9.99 | J88: 9.66 | K88: 9.30 | L88: 9.05 | M88: 9.02 | N88: 8.56 | O88: 8.11 | P88: 7.71 | Q88: 6.27 | R88: 4.47 | S88: 3.97 | T88: 2.63 | U88: 1.72 | V88: 1.56 | W88: 1.33 | X88: 1.16 | Y88: 0.99 | Z88: 1.03 | AA88: 1.00 | AB88: 0.98 | AC88: 0.84 | AD88: 0.81 | AE88: 0.78 | AF88: 0.74 | AG88: 0.72 | AH88: 0.70 | AI88: 0.68 | AJ88: 0.66
A89: ="electricity_archetype_"&TEXT(ROUND(Table2[[#This Row],[2016]],1),"0.0") -> electricity_archetype_11.8 | B89: 11.80 | C89: 11.80 | D89: 11.80 | E89: 11.48 | F89: 10.71 | G89: 10.93 | H89: 10.54 | I89: 9.91 | J89: 9.58 | K89: 9.22 | L89: 8.97 | M89: 8.94 | N89: 8.49 | O89: 8.04 | P89: 7.65 | Q89: 6.22 | R89: 4.43 | S89: 3.95 | T89: 2.62 | U89: 1.71 | V89: 1.55 | W89: 1.32 | X89: 1.15 | Y89: 0.99 | Z89: 1.03 | AA89: 0.99 | AB89: 0.97 | AC89: 0.83 | AD89: 0.81 | AE89: 0.78 | AF89: 0.74 | AG89: 0.72 | AH89: 0.70 | AI89: 0.68 | AJ89: 0.66
A90: ="electricity_archetype_"&TEXT(ROUND(Table2[[#This Row],[2016]],1),"0.0") -> electricity_archetype_11.7 | B90: 11.70 | C90: 11.70 | D90: 11.70 | E90: 11.38 | F90: 10.62 | G90: 10.84 | H90: 10.45 | I90: 9.83 | J90: 9.50 | K90: 9.14 | L90: 8.90 | M90: 8.87 | N90: 8.42 | O90: 7.97 | P90: 7.59 | Q90: 6.18 | R90: 4.40 | S90: 3.92 | T90: 2.60 | U90: 1.70 | V90: 1.54 | W90: 1.32 | X90: 1.15 | Y90: 0.99 | Z90: 1.02 | AA90: 0.99 | AB90: 0.97 | AC90: 0.83 | AD90: 0.81 | AE90: 0.78 | AF90: 0.74 | AG90: 0.72 | AH90: 0.70 | AI90: 0.68 | AJ90: 0.66
A91: ="electricity_archetype_"&TEXT(ROUND(Table2[[#This Row],[2016]],1),"0.0") -> electricity_archetype_11.6 | B91: 11.60 | C91: 11.60 | D91: 11.60 | E91: 11.29 | F91: 10.53 | G91: 10.75 | H91: 10.36 | I91: 9.74 | J91: 9.42 | K91: 9.07 | L91: 8.82 | M91: 8.80 | N91: 8.35 | O91: 7.91 | P91: 7.52 | Q91: 6.13 | R91: 4.37 | S91: 3.89 | T91: 2.58 | U91: 1.69 | V91: 1.54 | W91: 1.31 | X91: 1.14 | Y91: 0.98 | Z91: 1.02 | AA91: 0.99 | AB91: 0.97 | AC91: 0.83 | AD91: 0.81 | AE91: 0.78 | AF91: 0.74 | AG91: 0.72 | AH91: 0.70 | AI91: 0.68 | AJ91: 0.66
A92: ="electricity_archetype_"&TEXT(ROUND(Table2[[#This Row],[2016]],1),"0.0") -> electricity_archetype_11.5 | B92: 11.50 | C92: 11.50 | D92: 11.50 | E92: 11.19 | F92: 10.44 | G92: 10.66 | H92: 10.27 | I92: 9.66 | J92: 9.34 | K92: 8.99 | L92: 8.75 | M92: 8.72 | N92: 8.28 | O92: 7.84 | P92: 7.46 | Q92: 6.08 | R92: 4.33 | S92: 3.86 | T92: 2.56 | U92: 1.68 | V92: 1.53 | W92: 1.31 | X92: 1.14 | Y92: 0.98 | Z92: 1.02 | AA92: 0.99 | AB92: 0.97 | AC92: 0.83 | AD92: 0.81 | AE92: 0.78 | AF92: 0.73 | AG92: 0.72 | AH92: 0.70 | AI92: 0.68 | AJ92: 0.66
A93: ="electricity_archetype_"&TEXT(ROUND(Table2[[#This Row],[2016]],1),"0.0") -> electricity_archetype_11.4 | B93: 11.40 | C93: 11.40 | D93: 11.40 | E93: 11.09 | F93: 10.35 | G93: 10.57 | H93: 10.19 | I93: 9.58 | J93: 9.26 | K93: 8.91 | L93: 8.67 | M93: 8.65 | N93: 8.21 | O93: 7.77 | P93: 7.40 | Q93: 6.03 | R93: 4.30 | S93: 3.83 | T93: 2.55 | U93: 1.67 | V93: 1.52 | W93: 1.30 | X93: 1.13 | Y93: 0.98 | Z93: 1.01 | AA93: 0.98 | AB93: 0.96 | AC93: 0.83 | AD93: 0.80 | AE93: 0.78 | AF93: 0.73 | AG93: 0.71 | AH93: 0.70 | AI93: 0.68 | AJ93: 0.66
A94: ="electricity_archetype_"&TEXT(ROUND(Table2[[#This Row],[2016]],1),"0.0") -> electricity_archetype_11.3 | B94: 11.30 | C94: 11.30 | D94: 11.30 | E94: 11.00 | F94: 10.26 | G94: 10.47 | H94: 10.10 | I94: 9.49 | J94: 9.18 | K94: 8.84 | L94: 8.60 | M94: 8.57 | N94: 8.14 | O94: 7.71 | P94: 7.34 | Q94: 5.98 | R94: =MROUND((($B94-$AJ$2)*((R$2-$AJ$2)/($B$2-$AJ$2)))+$AJ$2,0.01) -> 4.27 | S94: 3.80 | T94: 2.53 | U94: 1.66 | V94: 1.51 | W94: 1.29 | X94: 1.13 | Y94: 0.97 | Z94: 1.01 | AA94: 0.98 | AB94: 0.96 | AC94: 0.83 | AD94: 0.80 | AE94: 0.78 | AF94: 0.73 | AG94: 0.71 | AH94: 0.70 | AI94: 0.68 | AJ94: 0.66
A95: ="electricity_archetype_"&TEXT(ROUND(Table2[[#This Row],[2016]],1),"0.0") -> electricity_archetype_11.2 | B95: 11.20 | C95: =MROUND((($B95-$AJ$2)*((C$2-$AJ$2)/($B$2-$AJ$2)))+$AJ$2,0.01) -> 11.20 | D95: 11.20 | E95: 10.90 | F95: 10.17 | G95: 10.38 | H95: 10.01 | I95: 9.41 | J95: 9.10 | K95: 8.76 | L95: 8.52 | M95: 8.50 | N95: 8.07 | O95: 7.64 | P95: 7.27 | Q95: 5.93 | R95: 4.23 | S95: 3.77 | T95: 2.51 | U95: 1.65 | V95: 1.50 | W95: 1.29 | X95: 1.13 | Y95: 0.97 | Z95: 1.01 | AA95: 0.98 | AB95: 0.96 | AC95: 0.82 | AD95: 0.80 | AE95: 0.78 | AF95: 0.73 | AG95: 0.71 | AH95: 0.69 | AI95: 0.68 | AJ95: 0.66
A96: ="electricity_archetype_"&TEXT(ROUND(Table2[[#This Row],[2016]],1),"0.0") -> electricity_archetype_11.1 | B96: 11.10 | C96: 11.10 | D96: 11.10 | E96: 10.80 | F96: 10.08 | G96: 10.29 | H96: 9.92 | I96: 9.33 | J96: 9.02 | K96: 8.68 | L96: 8.45 | M96: 8.42 | N96: 8.00 | O96: 7.58 | P96: 7.21 | Q96: 5.88 | R96: 4.20 | S96: 3.74 | T96: 2.49 | U96: 1.64 | V96: 1.50 | W96: 1.28 | X96: 1.12 | Y96: 0.97 | Z96: 1.00 | AA96: 0.97 | AB96: 0.95 | AC96: 0.82 | AD96: 0.80 | AE96: 0.77 | AF96: 0.73 | AG96: 0.71 | AH96: 0.69 | AI96: 0.68 | AJ96: 0.66
A97: ="electricity_archetype_"&TEXT(ROUND(Table2[[#This Row],[2016]],1),"0.0") -> electricity_archetype_11.0 | B97: 11.00 | C97: 11.00 | D97: 11.00 | E97: 10.70 | F97: 9.99 | G97: 10.20 | H97: 9.83 | I97: 9.24 | J97: 8.94 | K97: 8.61 | L97: 8.38 | M97: 8.35 | N97: 7.93 | O97: 7.51 | P97: 7.15 | Q97: 5.83 | R97: 4.16 | S97: 3.71 | T97: 2.47 | U97: 1.63 | V97: 1.49 | W97: 1.28 | X97: 1.12 | Y97: 0.96 | Z97: 1.00 | AA97: 0.97 | AB97: 0.95 | AC97: 0.82 | AD97: 0.80 | AE97: 0.77 | AF97: 0.73 | AG97: 0.71 | AH97: 0.69 | AI97: 0.68 | AJ97: 0.66
A98: ="electricity_archetype_"&TEXT(ROUND(Table2[[#This Row],[2016]],1),"0.0") -> electricity_archetype_10.9 | B98: 10.90 | C98: 10.90 | D98: 10.90 | E98: 10.61 | F98: 9.90 | G98: 10.10 | H98: 9.74 | I98: 9.16 | J98: 8.86 | K98: 8.53 | L98: 8.30 | M98: 8.28 | N98: 7.86 | O98: 7.44 | P98: 7.08 | Q98: 5.78 | R98: 4.13 | S98: 3.68 | T98: 2.46 | U98: 1.62 | V98: 1.48 | W98: 1.27 | X98: 1.11 | Y98: 0.96 | Z98: 1.00 | AA98: 0.97 | AB98: 0.95 | AC98: 0.82 | AD98: 0.80 | AE98: 0.77 | AF98: 0.73 | AG98: 0.71 | AH98: 0.69 | AI98: 0.68 | AJ98: 0.66
A99: ="electricity_archetype_"&TEXT(ROUND(Table2[[#This Row],[2016]],1),"0.0") -> electricity_archetype_10.8 | B99: 10.80 | C99: 10.80 | D99: 10.80 | E99: 10.51 | F99: 9.81 | G99: 10.01 | H99: 9.65 | I99: 9.08 | J99: 8.78 | K99: 8.45 | L99: 8.23 | M99: 8.20 | N99: 7.79 | O99: 7.38 | P99: 7.02 | Q99: 5.73 | R99: 4.10 | S99: 3.65 | T99: 2.44 | U99: 1.61 | V99: 1.47 | W99: 1.26 | X99: 1.11 | Y99: 0.96 | Z99: 0.99 | AA99: 0.96 | AB99: 0.95 | AC99: 0.82 | AD99: 0.80 | AE99: 0.77 | AF99: 0.73 | AG99: 0.71 | AH99: 0.69 | AI99: 0.68 | AJ99: 0.66
A100: ="electricity_archetype_"&TEXT(ROUND(Table2[[#This Row],[2016]],1),"0.0") -> electricity_archetype_10.7 | B100: 10.70 | C100: 10.70 | D100: 10.70 | E100: 10.41 | F100: 9.72 | G100: 9.92 | H100: 9.56 | I100: 9.00 | J100: 8.70 | K100: 8.38 | L100: 8.15 | M100: 8.13 | N100: 7.72 | O100: 7.31 | P100: 6.96 | Q100: 5.68 | R100: 4.06 | S100: 3.62 | T100: 2.42 | U100: 1.60 | V100: 1.46 | W100: 1.26 | X100: 1.10 | Y100: 0.96 | Z100: 0.99 | AA100: 0.96 | AB100: 0.94 | AC100: 0.82 | AD100: 0.79 | AE100: 0.77 | AF100: 0.73 | AG100: 0.71 | AH100: 0.69 | AI100: 0.68 | AJ100: 0.66
A101: ="electricity_archetype_"&TEXT(ROUND(Table2[[#This Row],[2016]],1),"0.0") -> electricity_archetype_10.6 | B101: 10.60 | C101: 10.60 | D101: 10.60 | E101: 10.32 | F101: 9.63 | G101: 9.83 | H101: 9.48 | I101: 8.91 | J101: 8.62 | K101: 8.30 | L101: 8.08 | M101: 8.05 | N101: 7.65 | O101: 7.24 | P101: 6.90 | Q101: 5.63 | R101: 4.03 | S101: 3.59 | T101: 2.40 | U101: 1.60 | V101: 1.46 | W101: 1.25 | X101: 1.10 | Y101: 0.95 | Z101: 0.99 | AA101: 0.96 | AB101: 0.94 | AC101: 0.81 | AD101: 0.79 | AE101: 0.77 | AF101: 0.73 | AG101: 0.71 | AH101: 0.69 | AI101: 0.68 | AJ101: 0.66
A102: ="electricity_archetype_"&TEXT(ROUND(Table2[[#This Row],[2016]],1),"0.0") -> electricity_archetype_10.5 | B102: 10.50 | C102: 10.50 | D102: 10.50 | E102: 10.22 | F102: 9.54 | G102: 9.74 | H102: 9.39 | I102: 8.83 | J102: 8.54 | K102: 8.22 | L102: 8.00 | M102: 7.98 | N102: 7.58 | O102: 7.18 | P102: 6.83 | Q102: 5.58 | R102: 3.99 | S102: 3.56 | T102: 2.39 | U102: 1.59 | V102: 1.45 | W102: 1.25 | X102: 1.09 | Y102: 0.95 | Z102: 0.98 | AA102: 0.96 | AB102: 0.94 | AC102: 0.81 | AD102: 0.79 | AE102: 0.77 | AF102: 0.73 | AG102: 0.71 | AH102: 0.69 | AI102: 0.67 | AJ102: 0.66
A103: ="electricity_archetype_"&TEXT(ROUND(Table2[[#This Row],[2016]],1),"0.0") -> electricity_archetype_10.4 | B103: 10.40 | C103: 10.40 | D103: 10.40 | E103: 10.12 | F103: 9.45 | G103: 9.64 | H103: 9.30 | I103: 8.75 | J103: 8.46 | K103: 8.15 | L103: 7.93 | M103: 7.90 | N103: 7.51 | O103: 7.11 | P103: 6.77 | Q103: 5.53 | R103: 3.96 | S103: 3.53 | T103: 2.37 | U103: 1.58 | V103: 1.44 | W103: 1.24 | X103: 1.09 | Y103: 0.95 | Z103: 0.98 | AA103: 0.95 | AB103: 0.93 | AC103: 0.81 | AD103: 0.79 | AE103: 0.77 | AF103: 0.73 | AG103: 0.71 | AH103: 0.69 | AI103: 0.67 | AJ103: 0.66
A104: ="electricity_archetype_"&TEXT(ROUND(Table2[[#This Row],[2016]],1),"0.0") -> electricity_archetype_10.3 | B104: 10.30 | C104: 10.30 | D104: 10.30 | E104: 10.02 | F104: 9.36 | G104: 9.55 | H104: 9.21 | I104: 8.66 | J104: 8.38 | K104: 8.07 | L104: 7.85 | M104: 7.83 | N104: 7.44 | O104: 7.05 | P104: 6.71 | Q104: 5.48 | R104: 3.93 | S104: 3.50 | T104: 2.35 | U104: 1.57 | V104: 1.43 | W104: 1.23 | X104: 1.09 | Y104: 0.94 | Z104: 0.98 | AA104: 0.95 | AB104: 0.93 | AC104: 0.81 | AD104: 0.79 | AE104: 0.77 | AF104: 0.73 | AG104: 0.71 | AH104: 0.69 | AI104: 0.67 | AJ104: 0.66
A105: ="electricity_archetype_"&TEXT(ROUND(Table2[[#This Row],[2016]],1),"0.0") -> electricity_archetype_10.2 | B105: 10.20 | C105: 10.20 | D105: 10.20 | E105: 9.93 | F105: 9.27 | G105: 9.46 | H105: 9.12 | I105: 8.58 | J105: 8.30 | K105: 7.99 | L105: 7.78 | M105: 7.75 | N105: 7.37 | O105: 6.98 | P105: 6.65 | Q105: 5.43 | R105: 3.89 | S105: 3.47 | T105: 2.33 | U105: 1.56 | V105: 1.42 | W105: 1.23 | X105: 1.08 | Y105: 0.94 | Z105: 0.97 | AA105: 0.95 | AB105: 0.93 | AC105: 0.81 | AD105: 0.79 | AE105: 0.76 | AF105: 0.73 | AG105: 0.71 | AH105: 0.69 | AI105: 0.67 | AJ105: 0.66
A106: ="electricity_archetype_"&TEXT(ROUND(Table2[[#This Row],[2016]],1),"0.0") -> electricity_archetype_10.1 | B106: 10.10 | C106: 10.10 | D106: 10.10 | E106: 9.83 | F106: 9.18 | G106: 9.37 | H106: 9.03 | I106: 8.50 | J106: 8.22 | K106: 7.92 | L106: 7.70 | M106: 7.68 | N106: 7.30 | O106: 6.91 | P106: 6.58 | Q106: 5.38 | R106: 3.86 | S106: 3.44 | T106: 2.32 | U106: 1.55 | V106: 1.42 | W106: 1.22 | X106: 1.08 | Y106: 0.94 | Z106: 0.97 | AA106: 0.94 | AB106: 0.93 | AC106: 0.81 | AD106: 0.79 | AE106: 0.76 | AF106: 0.72 | AG106: 0.71 | AH106: 0.69 | AI106: 0.67 | AJ106: 0.66
A107: ="electricity_archetype_"&TEXT(ROUND(Table2[[#This Row],[2016]],1),"0.0") -> electricity_archetype_10.0 | B107: 10.00 | C107: 10.00 | D107: 10.00 | E107: 9.73 | F107: 9.09 | G107: 9.27 | H107: 8.94 | I107: 8.41 | J107: 8.14 | K107: 7.84 | L107: 7.63 | M107: 7.61 | N107: 7.23 | O107: 6.85 | P107: 6.52 | Q107: 5.33 | R107: 3.82 | S107: 3.41 | T107: 2.30 | U107: 1.54 | V107: 1.41 | W107: 1.22 | X107: 1.07 | Y107: 0.93 | Z107: 0.97 | AA107: 0.94 | AB107: 0.92 | AC107: 0.81 | AD107: 0.79 | AE107: 0.76 | AF107: 0.72 | AG107: 0.71 | AH107: 0.69 | AI107: 0.67 | AJ107: 0.66
A108: ="electricity_archetype_"&TEXT(ROUND(Table2[[#This Row],[2016]],1),"0.0") -> electricity_archetype_9.9 | B108: 9.90 | C108: 9.90 | D108: 9.90 | E108: 9.64 | F108: 9.00 | G108: 9.18 | H108: 8.86 | I108: 8.33 | J108: 8.06 | K108: 7.76 | L108: 7.55 | M108: 7.53 | N108: 7.16 | O108: 6.78 | P108: 6.46 | Q108: 5.28 | R108: 3.79 | S108: 3.38 | T108: 2.28 | U108: 1.53 | V108: 1.40 | W108: 1.21 | X108: 1.07 | Y108: 0.93 | Z108: 0.97 | AA108: 0.94 | AB108: 0.92 | AC108: 0.80 | AD108: 0.78 | AE108: 0.76 | AF108: 0.72 | AG108: 0.71 | AH108: 0.69 | AI108: 0.67 | AJ108: 0.66
A109: ="electricity_archetype_"&TEXT(ROUND(Table2[[#This Row],[2016]],1),"0.0") -> electricity_archetype_9.8 | B109: 9.80 | C109: 9.80 | D109: 9.80 | E109: 9.54 | F109: 8.91 | G109: 9.09 | H109: 8.77 | I109: 8.25 | J109: 7.98 | K109: 7.68 | L109: 7.48 | M109: 7.46 | N109: 7.09 | O109: 6.71 | P109: 6.39 | Q109: 5.23 | R109: 3.76 | S109: 3.36 | T109: 2.26 | U109: 1.52 | V109: 1.39 | W109: 1.21 | X109: 1.06 | Y109: 0.93 | Z109: 0.96 | AA109: 0.93 | AB109: 0.92 | AC109: 0.80 | AD109: 0.78 | AE109: 0.76 | AF109: 0.72 | AG109: 0.71 | AH109: 0.69 | AI109: 0.67 | AJ109: 0.66
A110: ="electricity_archetype_"&TEXT(ROUND(Table2[[#This Row],[2016]],1),"0.0") -> electricity_archetype_9.7 | B110: 9.70 | C110: 9.70 | D110: 9.70 | E110: 9.44 | F110: 8.82 | G110: 9.00 | H110: 8.68 | I110: 8.17 | J110: 7.90 | K110: 7.61 | L110: 7.41 | M110: 7.38 | N110: 7.02 | O110: 6.65 | P110: 6.33 | Q110: 5.18 | R110: =MROUND((($B110-$AJ$2)*((R$2-$AJ$2)/($B$2-$AJ$2)))+$AJ$2,0.01) -> 3.72 | S110: 3.33 | T110: 2.25 | U110: 1.51 | V110: 1.38 | W110: 1.20 | X110: 1.06 | Y110: 0.93 | Z110: 0.96 | AA110: 0.93 | AB110: 0.91 | AC110: 0.80 | AD110: 0.78 | AE110: 0.76 | AF110: 0.72 | AG110: 0.71 | AH110: 0.69 | AI110: 0.67 | AJ110: 0.66
A111: ="electricity_archetype_"&TEXT(ROUND(Table2[[#This Row],[2016]],1),"0.0") -> electricity_archetype_9.6 | B111: 9.60 | C111: =MROUND((($B111-$AJ$2)*((C$2-$AJ$2)/($B$2-$AJ$2)))+$AJ$2,0.01) -> 9.60 | D111: 9.60 | E111: 9.34 | F111: 8.73 | G111: 8.91 | H111: 8.59 | I111: 8.08 | J111: 7.82 | K111: 7.53 | L111: 7.33 | M111: 7.31 | N111: 6.95 | O111: 6.58 | P111: 6.27 | Q111: 5.13 | R111: 3.69 | S111: 3.30 | T111: 2.23 | U111: 1.50 | V111: 1.38 | W111: 1.19 | X111: 1.05 | Y111: 0.92 | Z111: 0.96 | AA111: 0.93 | AB111: 0.91 | AC111: 0.80 | AD111: 0.78 | AE111: 0.76 | AF111: 0.72 | AG111: 0.71 | AH111: 0.69 | AI111: 0.67 | AJ111: 0.66
A112: ="electricity_archetype_"&TEXT(ROUND(Table2[[#This Row],[2016]],1),"0.0") -> electricity_archetype_9.5 | B112: 9.50 | C112: 9.50 | D112: 9.50 | E112: 9.25 | F112: 8.64 | G112: 8.81 | H112: 8.50 | I112: 8.00 | J112: 7.74 | K112: 7.45 | L112: 7.26 | M112: 7.23 | N112: 6.88 | O112: 6.52 | P112: 6.21 | Q112: 5.08 | R112: 3.66 | S112: 3.27 | T112: 2.21 | U112: 1.49 | V112: 1.37 | W112: 1.19 | X112: 1.05 | Y112: 0.92 | Z112: 0.95 | AA112: 0.92 | AB112: 0.91 | AC112: 0.80 | AD112: 0.78 | AE112: 0.76 | AF112: 0.72 | AG112: 0.70 | AH112: 0.69 | AI112: 0.67 | AJ112: 0.66
A113: ="electricity_archetype_"&TEXT(ROUND(Table2[[#This Row],[2016]],1),"0.0") -> electricity_archetype_9.4 | B113: 9.40 | C113: 9.40 | D113: 9.40 | E113: 9.15 | F113: 8.55 | G113: 8.72 | H113: 8.41 | I113: 7.92 | J113: 7.66 | K113: 7.38 | L113: 7.18 | M113: 7.16 | N113: 6.81 | O113: 6.45 | P113: 6.14 | Q113: 5.03 | R113: 3.62 | S113: 3.24 | T113: 2.19 | U113: 1.48 | V113: 1.36 | W113: 1.18 | X113: 1.05 | Y113: 0.92 | Z113: 0.95 | AA113: 0.92 | AB113: 0.91 | AC113: 0.80 | AD113: 0.78 | AE113: 0.76 | AF113: 0.72 | AG113: 0.70 | AH113: 0.69 | AI113: 0.67 | AJ113: 0.66
A114: ="electricity_archetype_"&TEXT(ROUND(Table2[[#This Row],[2016]],1),"0.0") -> electricity_archetype_9.3 | B114: 9.30 | C114: 9.30 | D114: 9.30 | E114: 9.05 | F114: 8.46 | G114: 8.63 | H114: 8.32 | I114: 7.83 | J114: 7.58 | K114: 7.30 | L114: 7.11 | M114: 7.09 | N114: 6.74 | O114: 6.38 | P114: 6.08 | Q114: 4.98 | R114: 3.59 | S114: 3.21 | T114: 2.18 | U114: 1.47 | V114: 1.35 | W114: 1.18 | X114: 1.04 | Y114: 0.91 | Z114: 0.95 | AA114: 0.92 | AB114: 0.90 | AC114: 0.79 | AD114: 0.78 | AE114: 0.75 | AF114: 0.72 | AG114: 0.70 | AH114: 0.69 | AI114: 0.67 | AJ114: 0.66
A115: ="electricity_archetype_"&TEXT(ROUND(Table2[[#This Row],[2016]],1),"0.0") -> electricity_archetype_9.2 | B115: 9.20 | C115: 9.20 | D115: 9.20 | E115: 8.96 | F115: 8.37 | G115: 8.54 | H115: 8.23 | I115: 7.75 | J115: 7.50 | K115: 7.22 | L115: 7.03 | M115: 7.01 | N115: 6.67 | O115: 6.32 | P115: 6.02 | Q115: 4.93 | R115: 3.55 | S115: 3.18 | T115: 2.16 | U115: 1.46 | V115: 1.34 | W115: 1.17 | X115: 1.04 | Y115: 0.91 | Z115: 0.94 | AA115: 0.92 | AB115: 0.90 | AC115: 0.79 | AD115: 0.77 | AE115: 0.75 | AF115: 0.72 | AG115: 0.70 | AH115: 0.69 | AI115: 0.67 | AJ115: 0.66
A116: ="electricity_archetype_"&TEXT(ROUND(Table2[[#This Row],[2016]],1),"0.0") -> electricity_archetype_9.1 | B116: 9.10 | C116: 9.10 | D116: 9.10 | E116: 8.86 | F116: 8.27 | G116: 8.44 | H116: 8.15 | I116: 7.67 | J116: 7.42 | K116: 7.15 | L116: 6.96 | M116: 6.94 | N116: 6.60 | O116: 6.25 | P116: 5.96 | Q116: 4.88 | R116: 3.52 | S116: 3.15 | T116: 2.14 | U116: 1.45 | V116: 1.34 | W116: 1.16 | X116: 1.03 | Y116: 0.91 | Z116: 0.94 | AA116: 0.91 | AB116: 0.90 | AC116: 0.79 | AD116: 0.77 | AE116: 0.75 | AF116: 0.72 | AG116: 0.70 | AH116: 0.69 | AI116: 0.67 | AJ116: 0.66
A117: ="electricity_archetype_"&TEXT(ROUND(Table2[[#This Row],[2016]],1),"0.0") -> electricity_archetype_9.0 | B117: 9.00 | C117: 9.00 | D117: 9.00 | E117: 8.76 | F117: 8.18 | G117: 8.35 | H117: 8.06 | I117: 7.58 | J117: 7.34 | K117: 7.07 | L117: 6.88 | M117: 6.86 | N117: 6.52 | O117: 6.18 | P117: 5.89 | Q117: 4.83 | R117: 3.49 | S117: 3.12 | T117: 2.12 | U117: 1.44 | V117: 1.33 | W117: 1.16 | X117: 1.03 | Y117: 0.91 | Z117: 0.94 | AA117: 0.91 | AB117: 0.89 | AC117: 0.79 | AD117: 0.77 | AE117: 0.75 | AF117: 0.72 | AG117: 0.70 | AH117: 0.69 | AI117: 0.67 | AJ117: 0.66
A118: ="electricity_archetype_"&TEXT(ROUND(Table2[[#This Row],[2016]],1),"0.0") -> electricity_archetype_8.9 | B118: 8.90 | C118: 8.90 | D118: 8.90 | E118: 8.66 | F118: 8.09 | G118: 8.26 | H118: 7.97 | I118: 7.50 | J118: 7.26 | K118: 6.99 | L118: 6.81 | M118: 6.79 | N118: 6.45 | O118: 6.12 | P118: 5.83 | Q118: 4.78 | R118: 3.45 | S118: 3.09 | T118: 2.11 | U118: 1.43 | V118: 1.32 | W118: 1.15 | X118: 1.02 | Y118: 0.90 | Z118: 0.93 | AA118: 0.91 | AB118: 0.89 | AC118: 0.79 | AD118: 0.77 | AE118: 0.75 | AF118: 0.72 | AG118: 0.70 | AH118: 0.69 | AI118: 0.67 | AJ118: 0.66
A119: ="electricity_archetype_"&TEXT(ROUND(Table2[[#This Row],[2016]],1),"0.0") -> electricity_archetype_8.8 | B119: 8.80 | C119: 8.80 | D119: 8.80 | E119: 8.57 | F119: 8.00 | G119: 8.17 | H119: 7.88 | I119: 7.42 | J119: 7.18 | K119: 6.92 | L119: 6.73 | M119: 6.71 | N119: 6.38 | O119: 6.05 | P119: 5.77 | Q119: 4.73 | R119: 3.42 | S119: 3.06 | T119: 2.09 | U119: 1.43 | V119: 1.31 | W119: 1.15 | X119: 1.02 | Y119: 0.90 | Z119: 0.93 | AA119: 0.90 | AB119: 0.89 | AC119: 0.79 | AD119: 0.77 | AE119: 0.75 | AF119: 0.72 | AG119: 0.70 | AH119: 0.69 | AI119: 0.67 | AJ119: 0.66
A120: ="electricity_archetype_"&TEXT(ROUND(Table2[[#This Row],[2016]],1),"0.0") -> electricity_archetype_8.7 | B120: 8.70 | C120: 8.70 | D120: 8.70 | E120: 8.47 | F120: 7.91 | G120: 8.07 | H120: 7.79 | I120: 7.33 | J120: 7.10 | K120: 6.84 | L120: 6.66 | M120: 6.64 | N120: 6.31 | O120: 5.99 | P120: 5.70 | Q120: 4.68 | R120: 3.38 | S120: 3.03 | T120: 2.07 | U120: 1.42 | V120: 1.30 | W120: 1.14 | X120: 1.01 | Y120: 0.90 | Z120: 0.93 | AA120: 0.90 | AB120: 0.89 | AC120: 0.78 | AD120: 0.77 | AE120: 0.75 | AF120: 0.71 | AG120: 0.70 | AH120: 0.69 | AI120: 0.67 | AJ120: 0.66
A121: ="electricity_archetype_"&TEXT(ROUND(Table2[[#This Row],[2016]],1),"0.0") -> electricity_archetype_8.6 | B121: 8.60 | C121: 8.60 | D121: 8.60 | E121: 8.37 | F121: 7.82 | G121: 7.98 | H121: 7.70 | I121: 7.25 | J121: 7.02 | K121: 6.76 | L121: 6.58 | M121: 6.56 | N121: 6.24 | O121: 5.92 | P121: 5.64 | Q121: 4.63 | R121: 3.35 | S121: 3.00 | T121: 2.05 | U121: 1.41 | V121: 1.29 | W121: 1.13 | X121: 1.01 | Y121: 0.89 | Z121: 0.92 | AA121: 0.90 | AB121: 0.88 | AC121: 0.78 | AD121: 0.77 | AE121: 0.75 | AF121: 0.71 | AG121: 0.70 | AH121: 0.69 | AI121: 0.67 | AJ121: 0.66
A122: ="electricity_archetype_"&TEXT(ROUND(Table2[[#This Row],[2016]],1),"0.0") -> electricity_archetype_8.5 | B122: 8.50 | C122: 8.50 | D122: 8.50 | E122: 8.28 | F122: 7.73 | G122: 7.89 | H122: 7.61 | I122: 7.17 | J122: 6.94 | K122: 6.69 | L122: 6.51 | M122: 6.49 | N122: 6.17 | O122: 5.85 | P122: 5.58 | Q122: 4.58 | R122: 3.32 | S122: 2.97 | T122: 2.04 | U122: 1.40 | V122: 1.29 | W122: 1.13 | X122: 1.01 | Y122: 0.89 | Z122: 0.92 | AA122: 0.89 | AB122: 0.88 | AC122: 0.78 | AD122: 0.76 | AE122: 0.75 | AF122: 0.71 | AG122: 0.70 | AH122: 0.69 | AI122: 0.67 | AJ122: 0.66
A123: ="electricity_archetype_"&TEXT(ROUND(Table2[[#This Row],[2016]],1),"0.0") -> electricity_archetype_8.4 | B123: 8.40 | C123: 8.40 | D123: 8.40 | E123: 8.18 | F123: 7.64 | G123: 7.80 | H123: 7.52 | I123: 7.09 | J123: 6.85 | K123: 6.61 | L123: 6.44 | M123: 6.42 | N123: 6.10 | O123: 5.79 | P123: 5.52 | Q123: 4.53 | R123: 3.28 | S123: 2.94 | T123: 2.02 | U123: 1.39 | V123: 1.28 | W123: 1.12 | X123: 1.00 | Y123: 0.89 | Z123: 0.92 | AA123: 0.89 | AB123: 0.88 | AC123: 0.78 | AD123: 0.76 | AE123: 0.74 | AF123: 0.71 | AG123: 0.70 | AH123: 0.68 | AI123: 0.67 | AJ123: 0.66
A124: ="electricity_archetype_"&TEXT(ROUND(Table2[[#This Row],[2016]],1),"0.0") -> electricity_archetype_8.3 | B124: 8.30 | C124: 8.30 | D124: 8.30 | E124: 8.08 | F124: 7.55 | G124: 7.71 | H124: 7.44 | I124: 7.00 | J124: 6.77 | K124: 6.53 | L124: 6.36 | M124: 6.34 | N124: 6.03 | O124: 5.72 | P124: 5.45 | Q124: 4.48 | R124: 3.25 | S124: 2.91 | T124: 2.00 | U124: 1.38 | V124: 1.27 | W124: 1.12 | X124: 1.00 | Y124: 0.88 | Z124: 0.91 | AA124: 0.89 | AB124: 0.87 | AC124: 0.78 | AD124: 0.76 | AE124: 0.74 | AF124: 0.71 | AG124: 0.70 | AH124: 0.68 | AI124: 0.67 | AJ124: 0.66
A125: ="electricity_archetype_"&TEXT(ROUND(Table2[[#This Row],[2016]],1),"0.0") -> electricity_archetype_8.2 | B125: 8.20 | C125: 8.20 | D125: 8.20 | E125: 7.98 | F125: 7.46 | G125: 7.61 | H125: 7.35 | I125: 6.92 | J125: 6.69 | K125: 6.45 | L125: 6.29 | M125: 6.27 | N125: 5.96 | O125: 5.65 | P125: 5.39 | Q125: 4.43 | R125: 3.21 | S125: 2.88 | T125: 1.98 | U125: 1.37 | V125: 1.26 | W125: 1.11 | X125: 0.99 | Y125: 0.88 | Z125: 0.91 | AA125: 0.89 | AB125: 0.87 | AC125: 0.78 | AD125: 0.76 | AE125: 0.74 | AF125: 0.71 | AG125: 0.70 | AH125: 0.68 | AI125: 0.67 | AJ125: 0.66
A126: ="electricity_archetype_"&TEXT(ROUND(Table2[[#This Row],[2016]],1),"0.0") -> electricity_archetype_8.1 | B126: 8.10 | C126: 8.10 | D126: 8.10 | E126: 7.89 | F126: 7.37 | G126: 7.52 | H126: 7.26 | I126: 6.84 | J126: 6.61 | K126: 6.38 | L126: 6.21 | M126: 6.19 | N126: 5.89 | O126: 5.59 | P126: 5.33 | Q126: 4.38 | R126: =MROUND((($B126-$AJ$2)*((R$2-$AJ$2)/($B$2-$AJ$2)))+$AJ$2,0.01) -> 3.18 | S126: 2.85 | T126: 1.97 | U126: 1.36 | V126: 1.25 | W126: 1.10 | X126: 0.99 | Y126: 0.88 | Z126: 0.91 | AA126: 0.88 | AB126: 0.87 | AC126: 0.78 | AD126: 0.76 | AE126: 0.74 | AF126: 0.71 | AG126: 0.70 | AH126: 0.68 | AI126: 0.67 | AJ126: 0.66
A127: ="electricity_archetype_"&TEXT(ROUND(Table2[[#This Row],[2016]],1),"0.0") -> electricity_archetype_8.0 | B127: 8.00 | C127: =MROUND((($B127-$AJ$2)*((C$2-$AJ$2)/($B$2-$AJ$2)))+$AJ$2,0.01) -> 8.00 | D127: 8.00 | E127: 7.79 | F127: 7.28 | G127: 7.43 | H127: 7.17 | I127: 6.75 | J127: 6.53 | K127: 6.30 | L127: 6.14 | M127: 6.12 | N127: 5.82 | O127: 5.52 | P127: 5.26 | Q127: 4.33 | R127: 3.15 | S127: 2.82 | T127: 1.95 | U127: 1.35 | V127: 1.25 | W127: 1.10 | X127: 0.98 | Y127: 0.88 | Z127: 0.90 | AA127: 0.88 | AB127: 0.87 | AC127: 0.77 | AD127: 0.76 | AE127: 0.74 | AF127: 0.71 | AG127: 0.70 | AH127: 0.68 | AI127: 0.67 | AJ127: 0.66
A128: ="electricity_archetype_"&TEXT(ROUND(Table2[[#This Row],[2016]],1),"0.0") -> electricity_archetype_7.9 | B128: 7.90 | C128: 7.90 | D128: 7.90 | E128: 7.69 | F128: 7.19 | G128: 7.34 | H128: 7.08 | I128: 6.67 | J128: 6.45 | K128: 6.22 | L128: 6.06 | M128: 6.04 | N128: 5.75 | O128: 5.46 | P128: 5.20 | Q128: 4.28 | R128: 3.11 | S128: 2.79 | T128: 1.93 | U128: 1.34 | V128: 1.24 | W128: 1.09 | X128: 0.98 | Y128: 0.87 | Z128: 0.90 | AA128: 0.88 | AB128: 0.86 | AC128: 0.77 | AD128: 0.76 | AE128: 0.74 | AF128: 0.71 | AG128: 0.70 | AH128: 0.68 | AI128: 0.67 | AJ128: 0.66
A129: ="electricity_archetype_"&TEXT(ROUND(Table2[[#This Row],[2016]],1),"0.0") -> electricity_archetype_7.8 | B129: 7.80 | C129: 7.80 | D129: 7.80 | E129: 7.60 | F129: 7.10 | G129: 7.24 | H129: 6.99 | I129: 6.59 | J129: 6.37 | K129: 6.15 | L129: 5.99 | M129: 5.97 | N129: 5.68 | O129: 5.39 | P129: 5.14 | Q129: 4.23 | R129: 3.08 | S129: 2.77 | T129: 1.91 | U129: 1.33 | V129: 1.23 | W129: 1.09 | X129: 0.97 | Y129: 0.87 | Z129: 0.90 | AA129: 0.87 | AB129: 0.86 | AC129: 0.77 | AD129: 0.75 | AE129: 0.74 | AF129: 0.71 | AG129: 0.70 | AH129: 0.68 | AI129: 0.67 | AJ129: 0.66
A130: ="electricity_archetype_"&TEXT(ROUND(Table2[[#This Row],[2016]],1),"0.0") -> electricity_archetype_7.7 | B130: 7.70 | C130: 7.70 | D130: 7.70 | E130: 7.50 | F130: 7.01 | G130: 7.15 | H130: 6.90 | I130: 6.50 | J130: 6.29 | K130: 6.07 | L130: 5.91 | M130: 5.90 | N130: 5.61 | O130: 5.32 | P130: 5.08 | Q130: 4.18 | R130: 3.04 | S130: 2.74 | T130: 1.89 | U130: 1.32 | V130: 1.22 | W130: 1.08 | X130: 0.97 | Y130: 0.87 | Z130: 0.89 | AA130: 0.87 | AB130: 0.86 | AC130: 0.77 | AD130: 0.75 | AE130: 0.74 | AF130: 0.71 | AG130: 0.69 | AH130: 0.68 | AI130: 0.67 | AJ130: 0.66
A131: ="electricity_archetype_"&TEXT(ROUND(Table2[[#This Row],[2016]],1),"0.0") -> electricity_archetype_7.6 | B131: 7.60 | C131: 7.60 | D131: 7.60 | E131: 7.40 | F131: 6.92 | G131: 7.06 | H131: 6.82 | I131: 6.42 | J131: 6.21 | K131: 5.99 | L131: 5.84 | M131: 5.82 | N131: 5.54 | O131: 5.26 | P131: 5.01 | Q131: 4.13 | R131: 3.01 | S131: 2.71 | T131: 1.88 | U131: 1.31 | V131: 1.21 | W131: 1.07 | X131: 0.97 | Y131: 0.86 | Z131: 0.89 | AA131: 0.87 | AB131: 0.85 | AC131: 0.77 | AD131: 0.75 | AE131: 0.74 | AF131: 0.71 | AG131: 0.69 | AH131: 0.68 | AI131: 0.67 | AJ131: 0.66
A132: ="electricity_archetype_"&TEXT(ROUND(Table2[[#This Row],[2016]],1),"0.0") -> electricity_archetype_7.5 | B132: 7.50 | C132: 7.50 | D132: 7.50 | E132: 7.30 | F132: 6.83 | G132: 6.97 | H132: 6.73 | I132: 6.34 | J132: 6.13 | K132: 5.92 | L132: 5.76 | M132: 5.75 | N132: 5.47 | O132: 5.19 | P132: 4.95 | Q132: 4.08 | R132: 2.98 | S132: 2.68 | T132: 1.86 | U132: 1.30 | V132: 1.21 | W132: 1.07 | X132: 0.96 | Y132: 0.86 | Z132: 0.89 | AA132: 0.86 | AB132: 0.85 | AC132: 0.77 | AD132: 0.75 | AE132: 0.73 | AF132: 0.71 | AG132: 0.69 | AH132: 0.68 | AI132: 0.67 | AJ132: 0.66
A133: ="electricity_archetype_"&TEXT(ROUND(Table2[[#This Row],[2016]],1),"0.0") -> electricity_archetype_7.4 | B133: 7.40 | C133: 7.40 | D133: 7.40 | E133: 7.21 | F133: 6.74 | G133: 6.88 | H133: 6.64 | I133: 6.26 | J133: 6.05 | K133: 5.84 | L133: 5.69 | M133: 5.67 | N133: 5.40 | O133: 5.12 | P133: 4.89 | Q133: 4.03 | R133: 2.94 | S133: 2.65 | T133: 1.84 | U133: 1.29 | V133: 1.20 | W133: 1.06 | X133: 0.96 | Y133: 0.86 | Z133: 0.88 | AA133: 0.86 | AB133: 0.85 | AC133: 0.76 | AD133: 0.75 | AE133: 0.73 | AF133: 0.71 | AG133: 0.69 | AH133: 0.68 | AI133: 0.67 | AJ133: 0.66
A134: ="electricity_archetype_"&TEXT(ROUND(Table2[[#This Row],[2016]],1),"0.0") -> electricity_archetype_7.3 | B134: 7.30 | C134: 7.30 | D134: 7.30 | E134: 7.11 | F134: 6.65 | G134: 6.78 | H134: 6.55 | I134: 6.17 | J134: 5.97 | K134: 5.76 | L134: 5.61 | M134: 5.60 | N134: 5.33 | O134: 5.06 | P134: 4.83 | Q134: 3.98 | R134: 2.91 | S134: 2.62 | T134: 1.82 | U134: 1.28 | V134: 1.19 | W134: 1.06 | X134: 0.95 | Y134: 0.85 | Z134: 0.88 | AA134: 0.86 | AB134: 0.85 | AC134: 0.76 | AD134: 0.75 | AE134: 0.73 | AF134: 0.70 | AG134: 0.69 | AH134: 0.68 | AI134: 0.67 | AJ134: 0.66
A135: ="electricity_archetype_"&TEXT(ROUND(Table2[[#This Row],[2016]],1),"0.0") -> electricity_archetype_7.2 | B135: 7.20 | C135: 7.20 | D135: 7.20 | E135: 7.01 | F135: 6.56 | G135: 6.69 | H135: 6.46 | I135: 6.09 | J135: 5.89 | K135: 5.69 | L135: 5.54 | M135: 5.52 | N135: 5.26 | O135: 4.99 | P135: 4.76 | Q135: 3.93 | R135: 2.88 | S135: 2.59 | T135: 1.81 | U135: 1.27 | V135: 1.18 | W135: 1.05 | X135: 0.95 | Y135: 0.85 | Z135: 0.88 | AA135: 0.86 | AB135: 0.84 | AC135: 0.76 | AD135: 0.75 | AE135: 0.73 | AF135: 0.70 | AG135: 0.69 | AH135: 0.68 | AI135: 0.67 | AJ135: 0.66
A136: ="electricity_archetype_"&TEXT(ROUND(Table2[[#This Row],[2016]],1),"0.0") -> electricity_archetype_7.1 | B136: 7.10 | C136: 7.10 | D136: 7.10 | E136: 6.92 | F136: 6.47 | G136: 6.60 | H136: 6.37 | I136: 6.01 | J136: 5.81 | K136: 5.61 | L136: 5.47 | M136: 5.45 | N136: 5.19 | O136: 4.93 | P136: 4.70 | Q136: 3.88 | R136: 2.84 | S136: 2.56 | T136: 1.79 | U136: 1.27 | V136: 1.17 | W136: 1.04 | X136: 0.94 | Y136: 0.85 | Z136: 0.87 | AA136: 0.85 | AB136: 0.84 | AC136: 0.76 | AD136: 0.75 | AE136: 0.73 | AF136: 0.70 | AG136: 0.69 | AH136: 0.68 | AI136: 0.67 | AJ136: 0.66
A137: ="electricity_archetype_"&TEXT(ROUND(Table2[[#This Row],[2016]],1),"0.0") -> electricity_archetype_7.0 | B137: =MROUND(B136-0.1,0.1) -> 7.00 | C137: 7.00 | D137: 7.00 | E137: 6.82 | F137: 6.38 | G137: 6.51 | H137: 6.28 | I137: 5.92 | J137: 5.73 | K137: 5.53 | L137: 5.39 | M137: 5.37 | N137: 5.12 | O137: 4.86 | P137: 4.64 | Q137: 3.83 | R137: 2.81 | S137: 2.53 | T137: 1.77 | U137: 1.26 | V137: 1.17 | W137: 1.04 | X137: 0.94 | Y137: 0.85 | Z137: 0.87 | AA137: 0.85 | AB137: 0.84 | AC137: 0.76 | AD137: 0.74 | AE137: 0.73 | AF137: 0.70 | AG137: 0.69 | AH137: 0.68 | AI137: 0.67 | AJ137: 0.66
A138: ="electricity_archetype_"&TEXT(ROUND(Table2[[#This Row],[2016]],1),"0.0") -> electricity_archetype_6.9 | B138: 6.90 | C138: 6.90 | D138: 6.90 | E138: 6.72 | F138: 6.29 | G138: 6.41 | H138: 6.19 | I138: 5.84 | J138: 5.65 | K138: 5.46 | L138: 5.32 | M138: 5.30 | N138: 5.05 | O138: 4.79 | P138: 4.57 | Q138: 3.78 | R138: 2.77 | S138: 2.50 | T138: 1.75 | U138: 1.25 | V138: 1.16 | W138: 1.03 | X138: 0.93 | Y138: 0.84 | Z138: 0.87 | AA138: 0.85 | AB138: 0.83 | AC138: 0.76 | AD138: 0.74 | AE138: 0.73 | AF138: 0.70 | AG138: 0.69 | AH138: 0.68 | AI138: 0.67 | AJ138: 0.66
A139: ="electricity_archetype_"&TEXT(ROUND(Table2[[#This Row],[2016]],1),"0.0") -> electricity_archetype_6.8 | B139: 6.80 | C139: 6.80 | D139: 6.80 | E139: 6.62 | F139: 6.20 | G139: 6.32 | H139: 6.11 | I139: 5.76 | J139: 5.57 | K139: 5.38 | L139: 5.24 | M139: 5.23 | N139: 4.98 | O139: 4.73 | P139: 4.51 | Q139: 3.73 | R139: 2.74 | S139: 2.47 | T139: 1.74 | U139: 1.24 | V139: 1.15 | W139: 1.03 | X139: 0.93 | Y139: 0.84 | Z139: 0.86 | AA139: 0.84 | AB139: 0.83 | AC139: 0.75 | AD139: 0.74 | AE139: 0.73 | AF139: 0.70 | AG139: 0.69 | AH139: 0.68 | AI139: 0.67 | AJ139: 0.66
A140: ="electricity_archetype_"&TEXT(ROUND(Table2[[#This Row],[2016]],1),"0.0") -> electricity_archetype_6.7 | B140: 6.70 | C140: 6.70 | D140: 6.70 | E140: 6.53 | F140: 6.11 | G140: 6.23 | H140: 6.02 | I140: 5.67 | J140: 5.49 | K140: 5.30 | L140: 5.17 | M140: 5.15 | N140: 4.91 | O140: 4.66 | P140: 4.45 | Q140: 3.68 | R140: 2.71 | S140: 2.44 | T140: 1.72 | U140: 1.23 | V140: 1.14 | W140: 1.02 | X140: 0.93 | Y140: 0.84 | Z140: 0.86 | AA140: 0.84 | AB140: 0.83 | AC140: 0.75 | AD140: 0.74 | AE140: 0.73 | AF140: 0.70 | AG140: 0.69 | AH140: 0.68 | AI140: 0.67 | AJ140: 0.66
A141: ="electricity_archetype_"&TEXT(ROUND(Table2[[#This Row],[2016]],1),"0.0") -> electricity_archetype_6.6 | B141: 6.60 | C141: 6.60 | D141: 6.60 | E141: 6.43 | F141: 6.02 | G141: 6.14 | H141: 5.93 | I141: 5.59 | J141: 5.41 | K141: 5.22 | L141: 5.09 | M141: 5.08 | N141: 4.84 | O141: 4.59 | P141: 4.39 | Q141: 3.63 | R141: 2.67 | S141: 2.41 | T141: 1.70 | U141: 1.22 | V141: 1.13 | W141: 1.01 | X141: 0.92 | Y141: 0.83 | Z141: 0.86 | AA141: 0.84 | AB141: 0.83 | AC141: 0.75 | AD141: 0.74 | AE141: 0.72 | AF141: 0.70 | AG141: 0.69 | AH141: 0.68 | AI141: 0.67 | AJ141: 0.66
A142: ="electricity_archetype_"&TEXT(ROUND(Table2[[#This Row],[2016]],1),"0.0") -> electricity_archetype_6.5 | B142: 6.50 | C142: 6.50 | D142: 6.50 | E142: 6.33 | F142: 5.93 | G142: 6.05 | H142: 5.84 | I142: 5.51 | J142: 5.33 | K142: 5.15 | L142: 5.02 | M142: 5.00 | N142: 4.77 | O142: 4.53 | P142: 4.32 | Q142: 3.58 | R142: =MROUND((($B142-$AJ$2)*((R$2-$AJ$2)/($B$2-$AJ$2)))+$AJ$2,0.01) -> 2.64 | S142: 2.38 | T142: 1.68 | U142: 1.21 | V142: 1.13 | W142: 1.01 | X142: 0.92 | Y142: 0.83 | Z142: 0.85 | AA142: 0.83 | AB142: 0.82 | AC142: 0.75 | AD142: 0.74 | AE142: 0.72 | AF142: 0.70 | AG142: 0.69 | AH142: 0.68 | AI142: 0.67 | AJ142: 0.66
A143: ="electricity_archetype_"&TEXT(ROUND(Table2[[#This Row],[2016]],1),"0.0") -> electricity_archetype_6.4 | B143: 6.40 | C143: =MROUND((($B143-$AJ$2)*((C$2-$AJ$2)/($B$2-$AJ$2)))+$AJ$2,0.01) -> 6.40 | D143: 6.40 | E143: 6.24 | F143: 5.84 | G143: 5.95 | H143: 5.75 | I143: 5.43 | J143: 5.25 | K143: 5.07 | L143: 4.94 | M143: 4.93 | N143: 4.70 | O143: 4.46 | P143: 4.26 | Q143: 3.53 | R143: 2.60 | S143: 2.35 | T143: 1.67 | U143: 1.20 | V143: 1.12 | W143: 1.00 | X143: 0.91 | Y143: 0.83 | Z143: 0.85 | AA143: 0.83 | AB143: 0.82 | AC143: 0.75 | AD143: 0.74 | AE143: 0.72 | AF143: 0.70 | AG143: 0.69 | AH143: 0.68 | AI143: 0.67 | AJ143: 0.66
A144: ="electricity_archetype_"&TEXT(ROUND(Table2[[#This Row],[2016]],1),"0.0") -> electricity_archetype_6.3 | B144: 6.30 | C144: 6.30 | D144: 6.30 | E144: 6.14 | F144: 5.75 | G144: 5.86 | H144: 5.66 | I144: 5.34 | J144: 5.17 | K144: 4.99 | L144: 4.87 | M144: 4.85 | N144: 4.63 | O144: 4.40 | P144: 4.20 | Q144: 3.48 | R144: 2.57 | S144: 2.32 | T144: 1.65 | U144: 1.19 | V144: 1.11 | W144: 1.00 | X144: 0.91 | Y144: 0.82 | Z144: 0.85 | AA144: 0.83 | AB144: 0.82 | AC144: 0.75 | AD144: 0.73 | AE144: 0.72 | AF144: 0.70 | AG144: 0.69 | AH144: 0.68 | AI144: 0.67 | AJ144: 0.66
A145: ="electricity_archetype_"&TEXT(ROUND(Table2[[#This Row],[2016]],1),"0.0") -> electricity_archetype_6.2 | B145: 6.20 | C145: 6.20 | D145: 6.20 | E145: 6.04 | F145: 5.66 | G145: 5.77 | H145: 5.57 | I145: 5.26 | J145: 5.09 | K145: 4.92 | L145: 4.79 | M145: 4.78 | N145: 4.56 | O145: 4.33 | P145: 4.14 | Q145: 3.43 | R145: 2.54 | S145: 2.29 | T145: 1.63 | U145: 1.18 | V145: 1.10 | W145: 0.99 | X145: 0.90 | Y145: 0.82 | Z145: 0.84 | AA145: 0.83 | AB145: 0.81 | AC145: 0.74 | AD145: 0.73 | AE145: 0.72 | AF145: 0.70 | AG145: 0.69 | AH145: 0.68 | AI145: 0.67 | AJ145: 0.66
A146: ="electricity_archetype_"&TEXT(ROUND(Table2[[#This Row],[2016]],1),"0.0") -> electricity_archetype_6.1 | B146: 6.10 | C146: 6.10 | D146: 6.10 | E146: 5.94 | F146: 5.57 | G146: 5.68 | H146: 5.48 | I146: 5.18 | J146: 5.01 | K146: 4.84 | L146: 4.72 | M146: 4.71 | N146: 4.49 | O146: 4.26 | P146: 4.07 | Q146: 3.38 | R146: 2.50 | S146: 2.26 | T146: 1.61 | U146: 1.17 | V146: 1.09 | W146: 0.98 | X146: 0.90 | Y146: 0.82 | Z146: 0.84 | AA146: 0.82 | AB146: 0.81 | AC146: 0.74 | AD146: 0.73 | AE146: 0.72 | AF146: 0.70 | AG146: 0.69 | AH146: 0.68 | AI146: 0.67 | AJ146: 0.66
A147: ="electricity_archetype_"&TEXT(ROUND(Table2[[#This Row],[2016]],1),"0.0") -> electricity_archetype_6.0 | B147: 6.00 | C147: 6.00 | D147: 6.00 | E147: 5.85 | F147: 5.48 | G147: 5.58 | H147: 5.40 | I147: 5.09 | J147: 4.93 | K147: 4.76 | L147: 4.64 | M147: 4.63 | N147: 4.41 | O147: 4.20 | P147: 4.01 | Q147: 3.33 | R147: 2.47 | S147: 2.23 | T147: 1.60 | U147: 1.16 | V147: 1.09 | W147: 0.98 | X147: 0.89 | Y147: 0.82 | Z147: 0.84 | AA147: 0.82 | AB147: 0.81 | AC147: 0.74 | AD147: 0.73 | AE147: 0.72 | AF147: 0.70 | AG147: 0.69 | AH147: 0.68 | AI147: 0.67 | AJ147: 0.66
A148: ="electricity_archetype_"&TEXT(ROUND(Table2[[#This Row],[2016]],1),"0.0") -> electricity_archetype_5.9 | B148: 5.90 | C148: 5.90 | D148: 5.90 | E148: 5.75 | F148: 5.39 | G148: 5.49 | H148: 5.31 | I148: 5.01 | J148: 4.85 | K148: 4.69 | L148: 4.57 | M148: 4.56 | N148: 4.34 | O148: 4.13 | P148: 3.95 | Q148: 3.28 | R148: 2.43 | S148: 2.20 | T148: 1.58 | U148: 1.15 | V148: 1.08 | W148: 0.97 | X148: 0.89 | Y148: 0.81 | Z148: 0.83 | AA148: 0.82 | AB148: 0.81 | AC148: 0.74 | AD148: 0.73 | AE148: 0.72 | AF148: 0.69 | AG148: 0.69 | AH148: 0.68 | AI148: 0.67 | AJ148: 0.66
A149: ="electricity_archetype_"&TEXT(ROUND(Table2[[#This Row],[2016]],1),"0.0") -> electricity_archetype_5.8 | B149: 5.80 | C149: 5.80 | D149: 5.80 | E149: 5.65 | F149: 5.30 | G149: 5.40 | H149: 5.22 | I149: 4.93 | J149: 4.77 | K149: 4.61 | L149: 4.49 | M149: 4.48 | N149: 4.27 | O149: 4.06 | P149: 3.88 | Q149: 3.23 | R149: 2.40 | S149: 2.17 | T149: 1.56 | U149: 1.14 | V149: 1.07 | W149: 0.97 | X149: 0.89 | Y149: 0.81 | Z149: 0.83 | AA149: 0.81 | AB149: 0.80 | AC149: 0.74 | AD149: 0.73 | AE149: 0.72 | AF149: 0.69 | AG149: 0.68 | AH149: =MROUND((($B149-$AJ$2)*((AH$2-$AJ$2)/($B$2-$AJ$2)))+$AJ$2,0.01) -> 0.68 | AI149: 0.67 | AJ149: 0.66
A150: ="electricity_archetype_"&TEXT(ROUND(Table2[[#This Row],[2016]],1),"0.0") -> electricity_archetype_5.7 | B150: 5.70 | C150: 5.70 | D150: 5.70 | E150: 5.56 | F150: 5.21 | G150: 5.31 | H150: 5.13 | I150: 4.84 | J150: 4.69 | K150: 4.53 | L150: 4.42 | M150: 4.41 | N150: 4.20 | O150: 4.00 | P150: 3.82 | Q150: 3.18 | R150: 2.37 | S150: 2.15 | T150: 1.54 | U150: 1.13 | V150: 1.06 | W150: 0.96 | X150: 0.88 | Y150: 0.81 | Z150: 0.83 | AA150: 0.81 | AB150: 0.80 | AC150: 0.74 | AD150: 0.73 | AE150: 0.71 | AF150: 0.69 | AG150: 0.68 | AH150: 0.68 | AI150: 0.67 | AJ150: 0.66
A151: ="electricity_archetype_"&TEXT(ROUND(Table2[[#This Row],[2016]],1),"0.0") -> electricity_archetype_5.6 | B151: 5.60 | C151: 5.60 | D151: 5.60 | E151: 5.46 | F151: 5.12 | G151: 5.22 | H151: 5.04 | I151: 4.76 | J151: 4.61 | K151: 4.46 | L151: 4.35 | M151: 4.33 | N151: 4.13 | O151: 3.93 | P151: 3.76 | Q151: 3.13 | R151: 2.33 | S151: 2.12 | T151: 1.53 | U151: 1.12 | V151: 1.05 | W151: 0.95 | X151: 0.88 | Y151: 0.80 | Z151: 0.82 | AA151: 0.81 | AB151: 0.80 | AC151: 0.74 | AD151: 0.72 | AE151: 0.71 | AF151: 0.69 | AG151: 0.68 | AH151: 0.67 | AI151: 0.67 | AJ151: 0.66
A152: ="electricity_archetype_"&TEXT(ROUND(Table2[[#This Row],[2016]],1),"0.0") -> electricity_archetype_5.5 | B152: 5.50 | C152: 5.50 | D152: 5.50 | E152: 5.36 | F152: 5.03 | G152: 5.12 | H152: 4.95 | I152: 4.68 | J152: 4.53 | K152: 4.38 | L152: 4.27 | M152: 4.26 | N152: 4.06 | O152: 3.87 | P152: 3.70 | Q152: 3.08 | R152: 2.30 | S152: 2.09 | T152: 1.51 | U152: 1.11 | V152: 1.05 | W152: 0.95 | X152: 0.87 | Y152: 0.80 | Z152: 0.82 | AA152: 0.80 | AB152: 0.80 | AC152: 0.73 | AD152: 0.72 | AE152: 0.71 | AF152: 0.69 | AG152: 0.68 | AH152: 0.67 | AI152: 0.67 | AJ152: 0.66
A153: ="electricity_archetype_"&TEXT(ROUND(Table2[[#This Row],[2016]],1),"0.0") -> electricity_archetype_5.4 | B153: 5.40 | C153: 5.40 | D153: 5.40 | E153: 5.26 | F153: 4.94 | G153: 5.03 | H153: 4.86 | I153: 4.59 | J153: 4.45 | K153: 4.30 | L153: 4.20 | M153: 4.18 | N153: 3.99 | O153: 3.80 | P153: 3.63 | Q153: 3.03 | R153: 2.27 | S153: 2.06 | T153: 1.49 | U153: 1.10 | V153: 1.04 | W153: 0.94 | X153: 0.87 | Y153: 0.80 | Z153: 0.82 | AA153: 0.80 | AB153: 0.79 | AC153: 0.73 | AD153: 0.72 | AE153: 0.71 | AF153: 0.69 | AG153: 0.68 | AH153: 0.67 | AI153: 0.67 | AJ153: 0.66
A154: ="electricity_archetype_"&TEXT(ROUND(Table2[[#This Row],[2016]],1),"0.0") -> electricity_archetype_5.3 | B154: 5.30 | C154: 5.30 | D154: 5.30 | E154: 5.17 | F154: 4.85 | G154: 4.94 | H154: 4.78 | I154: 4.51 | J154: 4.37 | K154: 4.23 | L154: 4.12 | M154: 4.11 | N154: 3.92 | O154: 3.73 | P154: 3.57 | Q154: 2.98 | R154: 2.23 | S154: 2.03 | T154: 1.47 | U154: 1.10 | V154: 1.03 | W154: 0.94 | X154: 0.86 | Y154: 0.80 | Z154: 0.81 | AA154: 0.80 | AB154: 0.79 | AC154: 0.73 | AD154: 0.72 | AE154: 0.71 | AF154: 0.69 | AG154: 0.68 | AH154: 0.67 | AI154: 0.67 | AJ154: 0.66
A155: ="electricity_archetype_"&TEXT(ROUND(Table2[[#This Row],[2016]],1),"0.0") -> electricity_archetype_5.2 | B155: 5.20 | C155: 5.20 | D155: 5.20 | E155: 5.07 | F155: 4.76 | G155: 4.85 | H155: 4.69 | I155: 4.43 | J155: 4.29 | K155: 4.15 | L155: 4.05 | M155: 4.04 | N155: 3.85 | O155: 3.67 | P155: 3.51 | Q155: 2.93 | R155: 2.20 | S155: 2.00 | T155: 1.46 | U155: 1.09 | V155: 1.02 | W155: 0.93 | X155: 0.86 | Y155: 0.79 | Z155: 0.81 | AA155: 0.79 | AB155: 0.79 | AC155: 0.73 | AD155: 0.72 | AE155: 0.71 | AF155: 0.69 | AG155: 0.68 | AH155: 0.67 | AI155: 0.67 | AJ155: 0.66
A156: ="electricity_archetype_"&TEXT(ROUND(Table2[[#This Row],[2016]],1),"0.0") -> electricity_archetype_5.1 | B156: 5.10 | C156: 5.10 | D156: 5.10 | E156: 4.97 | F156: 4.67 | G156: 4.75 | H156: 4.60 | I156: 4.35 | J156: 4.21 | K156: 4.07 | L156: 3.97 | M156: 3.96 | N156: 3.78 | O156: 3.60 | P156: 3.45 | Q156: 2.88 | R156: 2.16 | S156: 1.97 | T156: 1.44 | U156: 1.08 | V156: 1.01 | W156: 0.92 | X156: 0.85 | Y156: 0.79 | Z156: 0.81 | AA156: 0.79 | AB156: 0.78 | AC156: 0.73 | AD156: 0.72 | AE156: 0.71 | AF156: 0.69 | AG156: 0.68 | AH156: 0.67 | AI156: 0.67 | AJ156: 0.66
A157: ="electricity_archetype_"&TEXT(ROUND(Table2[[#This Row],[2016]],1),"0.0") -> electricity_archetype_5.0 | B157: 5.00 | C157: 5.00 | D157: 5.00 | E157: 4.88 | F157: 4.58 | G157: 4.66 | H157: 4.51 | I157: 4.26 | J157: 4.13 | K157: 4.00 | L157: 3.90 | M157: 3.89 | N157: 3.71 | O157: 3.53 | P157: 3.38 | Q157: 2.83 | R157: 2.13 | S157: 1.94 | T157: 1.42 | U157: 1.07 | V157: 1.01 | W157: 0.92 | X157: 0.85 | Y157: 0.79 | Z157: 0.80 | AA157: 0.79 | AB157: 0.78 | AC157: 0.73 | AD157: 0.72 | AE157: 0.71 | AF157: 0.69 | AG157: 0.68 | AH157: 0.67 | AI157: 0.67 | AJ157: 0.66
A158: ="electricity_archetype_"&TEXT(ROUND(Table2[[#This Row],[2016]],1),"0.0") -> electricity_archetype_4.9 | B158: 4.90 | C158: 4.90 | D158: 4.90 | E158: 4.78 | F158: 4.49 | G158: 4.57 | H158: 4.42 | I158: 4.18 | J158: 4.05 | K158: 3.92 | L158: 3.82 | M158: 3.81 | N158: 3.64 | O158: 3.47 | P158: 3.32 | Q158: 2.78 | R158: =MROUND((($B158-$AJ$2)*((R$2-$AJ$2)/($B$2-$AJ$2)))+$AJ$2,0.01) -> 2.10 | S158: 1.91 | T158: 1.40 | U158: 1.06 | V158: 1.00 | W158: 0.91 | X158: 0.85 | Y158: 0.78 | Z158: 0.80 | AA158: 0.79 | AB158: 0.78 | AC158: 0.72 | AD158: 0.72 | AE158: 0.70 | AF158: 0.69 | AG158: 0.68 | AH158: 0.67 | AI158: 0.66 | AJ158: 0.66
A159: ="electricity_archetype_"&TEXT(ROUND(Table2[[#This Row],[2016]],1),"0.0") -> electricity_archetype_4.8 | B159: 4.80 | C159: =MROUND((($B159-$AJ$2)*((C$2-$AJ$2)/($B$2-$AJ$2)))+$AJ$2,0.01) -> 4.80 | D159: 4.80 | E159: 4.68 | F159: 4.40 | G159: 4.48 | H159: 4.33 | I159: 4.10 | J159: 3.97 | K159: 3.84 | L159: 3.75 | M159: 3.74 | N159: 3.57 | O159: 3.40 | P159: 3.26 | Q159: 2.73 | R159: 2.06 | S159: 1.88 | T159: 1.39 | U159: 1.05 | V159: 0.99 | W159: 0.91 | X159: 0.84 | Y159: 0.78 | Z159: 0.80 | AA159: 0.78 | AB159: 0.78 | AC159: 0.72 | AD159: 0.71 | AE159: 0.70 | AF159: 0.69 | AG159: 0.68 | AH159: 0.67 | AI159: 0.66 | AJ159: 0.66
A160: ="electricity_archetype_"&TEXT(ROUND(Table2[[#This Row],[2016]],1),"0.0") -> electricity_archetype_4.7 | B160: 4.70 | C160: 4.70 | D160: 4.70 | E160: 4.58 | F160: 4.30 | G160: 4.39 | H160: 4.24 | I160: 4.01 | J160: 3.89 | K160: 3.76 | L160: 3.67 | M160: 3.66 | N160: 3.50 | O160: 3.34 | P160: 3.19 | Q160: 2.68 | R160: 2.03 | S160: 1.85 | T160: 1.37 | U160: 1.04 | V160: 0.98 | W160: 0.90 | X160: 0.84 | Y160: 0.78 | Z160: 0.79 | AA160: 0.78 | AB160: 0.77 | AC160: 0.72 | AD160: 0.71 | AE160: 0.70 | AF160: 0.69 | AG160: 0.68 | AH160: 0.67 | AI160: 0.66 | AJ160: 0.66
A161: ="electricity_archetype_"&TEXT(ROUND(Table2[[#This Row],[2016]],1),"0.0") -> electricity_archetype_4.6 | B161: 4.60 | C161: 4.60 | D161: 4.60 | E161: 4.49 | F161: 4.21 | G161: 4.29 | H161: 4.15 | I161: 3.93 | J161: 3.81 | K161: 3.69 | L161: 3.60 | M161: 3.59 | N161: 3.43 | O161: 3.27 | P161: 3.13 | Q161: 2.63 | R161: 1.99 | S161: 1.82 | T161: 1.35 | U161: 1.03 | V161: 0.97 | W161: 0.89 | X161: 0.83 | Y161: 0.77 | Z161: 0.79 | AA161: 0.78 | AB161: 0.77 | AC161: 0.72 | AD161: 0.71 | AE161: 0.70 | AF161: 0.69 | AG161: 0.68 | AH161: 0.67 | AI161: 0.66 | AJ161: 0.66
A162: ="electricity_archetype_"&TEXT(ROUND(Table2[[#This Row],[2016]],1),"0.0") -> electricity_archetype_4.5 | B162: 4.50 | C162: 4.50 | D162: 4.50 | E162: 4.39 | F162: 4.12 | G162: 4.20 | H162: 4.07 | I162: 3.85 | J162: 3.73 | K162: 3.61 | L162: 3.52 | M162: 3.52 | N162: 3.36 | O162: 3.20 | P162: 3.07 | Q162: 2.58 | R162: 1.96 | S162: 1.79 | T162: 1.33 | U162: 1.02 | V162: 0.97 | W162: 0.89 | X162: 0.83 | Y162: 0.77 | Z162: 0.79 | AA162: 0.77 | AB162: 0.77 | AC162: 0.72 | AD162: 0.71 | AE162: 0.70 | AF162: 0.68 | AG162: 0.68 | AH162: 0.67 | AI162: 0.66 | AJ162: 0.66
A163: ="electricity_archetype_"&TEXT(ROUND(Table2[[#This Row],[2016]],1),"0.0") -> electricity_archetype_4.4 | B163: 4.40 | C163: 4.40 | D163: 4.40 | E163: 4.29 | F163: 4.03 | G163: 4.11 | H163: 3.98 | I163: 3.76 | J163: 3.65 | K163: 3.53 | L163: 3.45 | M163: 3.44 | N163: 3.29 | O163: 3.14 | P163: 3.01 | Q163: 2.53 | R163: 1.93 | S163: 1.76 | T163: 1.32 | U163: 1.01 | V163: 0.96 | W163: 0.88 | X163: 0.82 | Y163: 0.77 | Z163: 0.78 | AA163: 0.77 | AB163: 0.76 | AC163: 0.72 | AD163: 0.71 | AE163: 0.70 | AF163: 0.68 | AG163: 0.68 | AH163: 0.67 | AI163: 0.66 | AJ163: 0.66
A164: ="electricity_archetype_"&TEXT(ROUND(Table2[[#This Row],[2016]],1),"0.0") -> electricity_archetype_4.3 | B164: 4.30 | C164: 4.30 | D164: 4.30 | E164: 4.20 | F164: 3.94 | G164: 4.02 | H164: 3.89 | I164: 3.68 | J164: 3.57 | K164: 3.46 | L164: 3.38 | M164: 3.37 | N164: 3.22 | O164: 3.07 | P164: 2.94 | Q164: 2.48 | R164: 1.89 | S164: 1.73 | T164: 1.30 | U164: 1.00 | V164: 0.95 | W164: 0.88 | X164: 0.82 | Y164: 0.77 | Z164: 0.78 | AA164: 0.77 | AB164: 0.76 | AC164: 0.71 | AD164: 0.71 | AE164: 0.70 | AF164: 0.68 | AG164: 0.68 | AH164: 0.67 | AI164: 0.66 | AJ164: 0.66
A165: ="electricity_archetype_"&TEXT(ROUND(Table2[[#This Row],[2016]],1),"0.0") -> electricity_archetype_4.2 | B165: 4.20 | C165: 4.20 | D165: 4.20 | E165: 4.10 | F165: 3.85 | G165: 3.92 | H165: 3.80 | I165: 3.60 | J165: 3.49 | K165: 3.38 | L165: 3.30 | M165: 3.29 | N165: 3.15 | O165: 3.00 | P165: 2.88 | Q165: 2.43 | R165: 1.86 | S165: 1.70 | T165: 1.28 | U165: 0.99 | V165: 0.94 | W165: 0.87 | X165: 0.81 | Y165: 0.76 | Z165: 0.78 | AA165: 0.76 | AB165: 0.76 | AC165: 0.71 | AD165: 0.71 | AE165: 0.70 | AF165: 0.68 | AG165: 0.68 | AH165: 0.67 | AI165: 0.66 | AJ165: 0.66
A166: ="electricity_archetype_"&TEXT(ROUND(Table2[[#This Row],[2016]],1),"0.0") -> electricity_archetype_4.1 | B166: 4.10 | C166: 4.10 | D166: 4.10 | E166: 4.00 | F166: 3.76 | G166: 3.83 | H166: 3.71 | I166: 3.52 | J166: 3.41 | K166: 3.30 | L166: 3.23 | M166: 3.22 | N166: 3.08 | O166: 2.94 | P166: 2.82 | Q166: 2.38 | R166: 1.82 | S166: 1.67 | T166: 1.26 | U166: 0.98 | V166: 0.93 | W166: 0.86 | X166: 0.81 | Y166: 0.76 | Z166: 0.77 | AA166: 0.76 | AB166: 0.76 | AC166: 0.71 | AD166: 0.70 | AE166: 0.70 | AF166: 0.68 | AG166: 0.68 | AH166: 0.67 | AI166: 0.66 | AJ166: 0.66
A167: ="electricity_archetype_"&TEXT(ROUND(Table2[[#This Row],[2016]],1),"0.0") -> electricity_archetype_4.0 | B167: 4.00 | C167: 4.00 | D167: 4.00 | E167: 3.90 | F167: 3.67 | G167: 3.74 | H167: 3.62 | I167: 3.43 | J167: 3.33 | K167: 3.23 | L167: 3.15 | M167: 3.14 | N167: 3.01 | O167: 2.87 | P167: 2.75 | Q167: 2.33 | R167: 1.79 | S167: 1.64 | T167: 1.24 | U167: 0.97 | V167: 0.93 | W167: 0.86 | X167: 0.81 | Y167: 0.76 | Z167: 0.77 | AA167: 0.76 | AB167: 0.75 | AC167: 0.71 | AD167: 0.70 | AE167: 0.69 | AF167: 0.68 | AG167: 0.68 | AH167: 0.67 | AI167: 0.66 | AJ167: 0.66
A168: ="electricity_archetype_"&TEXT(ROUND(Table2[[#This Row],[2016]],1),"0.0") -> electricity_archetype_3.9 | B168: 3.90 | C168: 3.90 | D168: 3.90 | E168: 3.81 | F168: 3.58 | G168: 3.65 | H168: 3.53 | I168: 3.35 | J168: 3.25 | K168: 3.15 | L168: 3.08 | M168: 3.07 | N168: 2.94 | O168: 2.81 | P168: 2.69 | Q168: 2.28 | R168: 1.76 | S168: 1.61 | T168: 1.23 | U168: 0.96 | V168: 0.92 | W168: 0.85 | X168: 0.80 | Y168: 0.75 | Z168: 0.77 | AA168: 0.76 | AB168: 0.75 | AC168: 0.71 | AD168: 0.70 | AE168: 0.69 | AF168: 0.68 | AG168: 0.67 | AH168: 0.67 | AI168: 0.66 | AJ168: 0.66
A169: ="electricity_archetype_"&TEXT(ROUND(Table2[[#This Row],[2016]],1),"0.0") -> electricity_archetype_3.8 | B169: 3.80 | C169: 3.80 | D169: 3.80 | E169: 3.71 | F169: 3.49 | G169: 3.56 | H169: 3.44 | I169: 3.27 | J169: 3.17 | K169: 3.07 | L169: 3.00 | M169: 2.99 | N169: 2.87 | O169: 2.74 | P169: 2.63 | Q169: 2.23 | R169: 1.72 | S169: 1.58 | T169: 1.21 | U169: 0.95 | V169: 0.91 | W169: 0.85 | X169: 0.80 | Y169: 0.75 | Z169: 0.76 | AA169: 0.75 | AB169: 0.75 | AC169: 0.71 | AD169: 0.70 | AE169: 0.69 | AF169: 0.68 | AG169: 0.67 | AH169: 0.67 | AI169: 0.66 | AJ169: 0.66
A170: ="electricity_archetype_"&TEXT(ROUND(Table2[[#This Row],[2016]],1),"0.0") -> electricity_archetype_3.7 | B170: 3.70 | C170: 3.70 | D170: 3.70 | E170: 3.61 | F170: 3.40 | G170: 3.46 | H170: 3.36 | I170: 3.18 | J170: 3.09 | K170: 3.00 | L170: 2.93 | M170: 2.92 | N170: 2.80 | O170: 2.67 | P170: 2.57 | Q170: 2.18 | R170: 1.69 | S170: 1.56 | T170: 1.19 | U170: 0.94 | V170: 0.90 | W170: 0.84 | X170: 0.79 | Y170: 0.75 | Z170: 0.76 | AA170: 0.75 | AB170: 0.74 | AC170: 0.71 | AD170: 0.70 | AE170: 0.69 | AF170: 0.68 | AG170: 0.67 | AH170: 0.67 | AI170: 0.66 | AJ170: 0.66
A171: ="electricity_archetype_"&TEXT(ROUND(Table2[[#This Row],[2016]],1),"0.0") -> electricity_archetype_3.6 | B171: 3.60 | C171: 3.60 | D171: 3.60 | E171: 3.52 | F171: 3.31 | G171: 3.37 | H171: 3.27 | I171: 3.10 | J171: 3.01 | K171: 2.92 | L171: 2.85 | M171: 2.85 | N171: 2.73 | O171: 2.61 | P171: 2.50 | Q171: 2.13 | R171: 1.65 | S171: 1.53 | T171: 1.17 | U171: 0.93 | V171: 0.89 | W171: 0.83 | X171: 0.79 | Y171: 0.74 | Z171: 0.76 | AA171: 0.75 | AB171: 0.74 | AC171: 0.70 | AD171: 0.70 | AE171: 0.69 | AF171: 0.68 | AG171: 0.67 | AH171: 0.67 | AI171: 0.66 | AJ171: 0.66
A172: ="electricity_archetype_"&TEXT(ROUND(Table2[[#This Row],[2016]],1),"0.0") -> electricity_archetype_3.5 | B172: 3.50 | C172: 3.50 | D172: 3.50 | E172: 3.42 | F172: 3.22 | G172: 3.28 | H172: 3.18 | I172: 3.02 | J172: 2.93 | K172: 2.84 | L172: 2.78 | M172: 2.77 | N172: 2.66 | O172: 2.54 | P172: 2.44 | Q172: 2.08 | R172: 1.62 | S172: 1.50 | T172: 1.16 | U172: 0.93 | V172: 0.89 | W172: 0.83 | X172: 0.78 | Y172: 0.74 | Z172: 0.75 | AA172: 0.74 | AB172: 0.74 | AC172: 0.70 | AD172: 0.70 | AE172: 0.69 | AF172: 0.68 | AG172: 0.67 | AH172: 0.67 | AI172: 0.66 | AJ172: 0.66
A173: ="electricity_archetype_"&TEXT(ROUND(Table2[[#This Row],[2016]],1),"0.0") -> electricity_archetype_3.4 | B173: 3.40 | C173: 3.40 | D173: 3.40 | E173: 3.32 | F173: 3.13 | G173: 3.19 | H173: 3.09 | I173: 2.93 | J173: 2.85 | K173: 2.77 | L173: 2.70 | M173: 2.70 | N173: 2.59 | O173: 2.47 | P173: 2.38 | Q173: 2.03 | R173: 1.59 | S173: 1.47 | T173: 1.14 | U173: 0.92 | V173: 0.88 | W173: 0.82 | X173: 0.78 | Y173: 0.74 | Z173: 0.75 | AA173: 0.74 | AB173: 0.74 | AC173: 0.70 | AD173: 0.69 | AE173: 0.69 | AF173: 0.68 | AG173: 0.67 | AH173: 0.67 | AI173: 0.66 | AJ173: 0.66
A174: ="electricity_archetype_"&TEXT(ROUND(Table2[[#This Row],[2016]],1),"0.0") -> electricity_archetype_3.3 | B174: 3.30 | C174: 3.30 | D174: 3.30 | E174: 3.22 | F174: 3.04 | G174: 3.09 | H174: 3.00 | I174: 2.85 | J174: 2.77 | K174: 2.69 | L174: 2.63 | M174: 2.62 | N174: 2.52 | O174: 2.41 | P174: 2.32 | Q174: 1.98 | R174: =MROUND((($B174-$AJ$2)*((R$2-$AJ$2)/($B$2-$AJ$2)))+$AJ$2,0.01) -> 1.55 | S174: 1.44 | T174: 1.12 | U174: 0.91 | V174: 0.87 | W174: 0.82 | X174: 0.77 | Y174: 0.74 | Z174: 0.75 | AA174: 0.74 | AB174: 0.73 | AC174: 0.70 | AD174: 0.69 | AE174: 0.69 | AF174: 0.68 | AG174: 0.67 | AH174: 0.67 | AI174: 0.66 | AJ174: 0.66
A175: ="electricity_archetype_"&TEXT(ROUND(Table2[[#This Row],[2016]],1),"0.0") -> electricity_archetype_3.2 | B175: 3.20 | C175: =MROUND((($B175-$AJ$2)*((C$2-$AJ$2)/($B$2-$AJ$2)))+$AJ$2,0.01) -> 3.20 | D175: 3.20 | E175: 3.13 | F175: 2.95 | G175: 3.00 | H175: 2.91 | I175: 2.77 | J175: 2.69 | K175: 2.61 | L175: 2.55 | M175: 2.55 | N175: 2.45 | O175: 2.34 | P175: 2.25 | Q175: 1.93 | R175: 1.52 | S175: 1.41 | T175: 1.10 | U175: 0.90 | V175: 0.86 | W175: 0.81 | X175: 0.77 | Y175: 0.73 | Z175: 0.74 | AA175: 0.73 | AB175: 0.73 | AC175: 0.70 | AD175: 0.69 | AE175: 0.69 | AF175: 0.68 | AG175: 0.67 | AH175: 0.67 | AI175: 0.66 | AJ175: 0.66
A176: ="electricity_archetype_"&TEXT(ROUND(Table2[[#This Row],[2016]],1),"0.0") -> electricity_archetype_3.1 | B176: 3.10 | C176: 3.10 | D176: 3.10 | E176: 3.03 | F176: 2.86 | G176: 2.91 | H176: 2.82 | I176: 2.69 | J176: 2.61 | K176: 2.53 | L176: 2.48 | M176: 2.47 | N176: 2.38 | O176: 2.28 | P176: 2.19 | Q176: 1.88 | R176: 1.49 | S176: 1.38 | T176: 1.09 | U176: 0.89 | V176: 0.85 | W176: 0.80 | X176: 0.77 | Y176: 0.73 | Z176: 0.74 | AA176: 0.73 | AB176: 0.73 | AC176: 0.70 | AD176: 0.69 | AE176: 0.68 | AF176: 0.67 | AG176: 0.67 | AH176: 0.67 | AI176: 0.66 | AJ176: 0.66
A177: ="electricity_archetype_"&TEXT(ROUND(Table2[[#This Row],[2016]],1),"0.0") -> electricity_archetype_3.0 | B177: 3.00 | C177: 3.00 | D177: 3.00 | E177: 2.93 | F177: 2.77 | G177: 2.82 | H177: 2.74 | I177: 2.60 | J177: 2.53 | K177: 2.46 | L177: 2.41 | M177: 2.40 | N177: 2.30 | O177: 2.21 | P177: 2.13 | Q177: 1.83 | R177: 1.45 | S177: 1.35 | T177: 1.07 | U177: 0.88 | V177: 0.85 | W177: 0.80 | X177: 0.76 | Y177: 0.73 | Z177: 0.74 | AA177: 0.73 | AB177: 0.72 | AC177: 0.69 | AD177: 0.69 | AE177: 0.68 | AF177: 0.67 | AG177: 0.67 | AH177: 0.67 | AI177: 0.66 | AJ177: 0.66
A178: ="electricity_archetype_"&TEXT(ROUND(Table2[[#This Row],[2016]],1),"0.0") -> electricity_archetype_2.9 | B178: 2.90 | C178: 2.90 | D178: 2.90 | E178: 2.84 | F178: 2.68 | G178: 2.73 | H178: 2.65 | I178: 2.52 | J178: 2.45 | K178: 2.38 | L178: 2.33 | M178: 2.33 | N178: 2.23 | O178: 2.14 | P178: 2.06 | Q178: 1.78 | R178: 1.42 | S178: 1.32 | T178: 1.05 | U178: 0.87 | V178: 0.84 | W178: 0.79 | X178: 0.76 | Y178: 0.72 | Z178: 0.73 | AA178: 0.73 | AB178: 0.72 | AC178: 0.69 | AD178: 0.69 | AE178: 0.68 | AF178: 0.67 | AG178: 0.67 | AH178: 0.67 | AI178: 0.66 | AJ178: 0.66
A179: ="electricity_archetype_"&TEXT(ROUND(Table2[[#This Row],[2016]],1),"0.0") -> electricity_archetype_2.8 | B179: 2.80 | C179: 2.80 | D179: 2.80 | E179: 2.74 | F179: 2.59 | G179: 2.63 | H179: 2.56 | I179: 2.44 | J179: 2.37 | K179: 2.30 | L179: 2.26 | M179: 2.25 | N179: 2.16 | O179: 2.08 | P179: 2.00 | Q179: 1.73 | R179: 1.38 | S179: 1.29 | T179: 1.03 | U179: 0.86 | V179: 0.83 | W179: 0.79 | X179: 0.75 | Y179: 0.72 | Z179: 0.73 | AA179: 0.72 | AB179: 0.72 | AC179: 0.69 | AD179: 0.69 | AE179: 0.68 | AF179: 0.67 | AG179: 0.67 | AH179: 0.66 | AI179: 0.66 | AJ179: 0.66
A180: ="electricity_archetype_"&TEXT(ROUND(Table2[[#This Row],[2016]],1),"0.0") -> electricity_archetype_2.7 | B180: 2.70 | C180: 2.70 | D180: 2.70 | E180: 2.64 | F180: 2.50 | G180: 2.54 | H180: 2.47 | I180: 2.35 | J180: 2.29 | K180: 2.23 | L180: 2.18 | M180: 2.18 | N180: 2.09 | O180: 2.01 | P180: 1.94 | Q180: 1.68 | R180: 1.35 | S180: 1.26 | T180: 1.02 | U180: 0.85 | V180: 0.82 | W180: 0.78 | X180: 0.75 | Y180: 0.72 | Z180: 0.73 | AA180: 0.72 | AB180: 0.72 | AC180: 0.69 | AD180: 0.69 | AE180: 0.68 | AF180: 0.67 | AG180: 0.67 | AH180: 0.66 | AI180: 0.66 | AJ180: 0.66
A181: ="electricity_archetype_"&TEXT(ROUND(Table2[[#This Row],[2016]],1),"0.0") -> electricity_archetype_2.6 | B181: 2.60 | C181: 2.60 | D181: 2.60 | E181: 2.54 | F181: 2.41 | G181: 2.45 | H181: 2.38 | I181: 2.27 | J181: 2.21 | K181: 2.15 | L181: 2.11 | M181: 2.10 | N181: 2.02 | O181: 1.94 | P181: 1.88 | Q181: 1.63 | R181: 1.32 | S181: 1.23 | T181: 1.00 | U181: 0.84 | V181: 0.81 | W181: 0.77 | X181: 0.74 | Y181: 0.72 | Z181: 0.72 | AA181: 0.72 | AB181: 0.71 | AC181: 0.69 | AD181: 0.68 | AE181: 0.68 | AF181: 0.67 | AG181: 0.67 | AH181: 0.66 | AI181: 0.66 | AJ181: 0.66
A182: ="electricity_archetype_"&TEXT(ROUND(Table2[[#This Row],[2016]],1),"0.0") -> electricity_archetype_2.5 | B182: 2.50 | C182: 2.50 | D182: 2.50 | E182: 2.45 | F182: 2.32 | G182: 2.36 | H182: 2.29 | I182: 2.19 | J182: 2.13 | K182: 2.07 | L182: 2.03 | M182: 2.03 | N182: 1.95 | O182: 1.88 | P182: 1.81 | Q182: 1.58 | R182: 1.28 | S182: 1.20 | T182: 0.98 | U182: 0.83 | V182: 0.81 | W182: 0.77 | X182: 0.74 | Y182: 0.71 | Z182: 0.72 | AA182: 0.71 | AB182: 0.71 | AC182: 0.69 | AD182: 0.68 | AE182: 0.68 | AF182: 0.67 | AG182: 0.67 | AH182: 0.66 | AI182: 0.66 | AJ182: 0.66
A183: ="electricity_archetype_"&TEXT(ROUND(Table2[[#This Row],[2016]],1),"0.0") -> electricity_archetype_2.4 | B183: 2.40 | C183: 2.40 | D183: 2.40 | E183: 2.35 | F183: 2.23 | G183: 2.26 | H183: 2.20 | I183: 2.10 | J183: 2.05 | K183: 2.00 | L183: 1.96 | M183: 1.95 | N183: 1.88 | O183: 1.81 | P183: 1.75 | Q183: 1.53 | R183: 1.25 | S183: 1.17 | T183: 0.96 | U183: 0.82 | V183: 0.80 | W183: 0.76 | X183: 0.73 | Y183: 0.71 | Z183: 0.72 | AA183: 0.71 | AB183: 0.71 | AC183: 0.68 | AD183: 0.68 | AE183: 0.68 | AF183: 0.67 | AG183: 0.67 | AH183: 0.66 | AI183: 0.66 | AJ183: 0.66
A184: ="electricity_archetype_"&TEXT(ROUND(Table2[[#This Row],[2016]],1),"0.0") -> electricity_archetype_2.3 | B184: 2.30 | C184: 2.30 | D184: 2.30 | E184: 2.25 | F184: 2.14 | G184: 2.17 | H184: 2.11 | I184: 2.02 | J184: 1.97 | K184: 1.92 | L184: 1.88 | M184: 1.88 | N184: 1.81 | O184: 1.75 | P184: 1.69 | Q184: 1.48 | R184: 1.21 | S184: 1.14 | T184: 0.95 | U184: 0.81 | V184: 0.79 | W184: 0.76 | X184: 0.73 | Y184: 0.71 | Z184: 0.71 | AA184: 0.71 | AB184: 0.70 | AC184: 0.68 | AD184: 0.68 | AE184: 0.68 | AF184: 0.67 | AG184: 0.67 | AH184: 0.66 | AI184: 0.66 | AJ184: 0.66
A185: ="electricity_archetype_"&TEXT(ROUND(Table2[[#This Row],[2016]],1),"0.0") -> electricity_archetype_2.2 | B185: 2.20 | C185: 2.20 | D185: 2.20 | E185: 2.16 | F185: 2.05 | G185: 2.08 | H185: 2.03 | I185: 1.94 | J185: 1.89 | K185: 1.84 | L185: 1.81 | M185: 1.80 | N185: 1.74 | O185: 1.68 | P185: 1.63 | Q185: 1.43 | R185: 1.18 | S185: 1.11 | T185: 0.93 | U185: 0.80 | V185: 0.78 | W185: 0.75 | X185: 0.73 | Y185: 0.70 | Z185: 0.71 | AA185: 0.70 | AB185: 0.70 | AC185: 0.68 | AD185: 0.68 | AE185: 0.67 | AF185: 0.67 | AG185: 0.67 | AH185: 0.66 | AI185: 0.66 | AJ185: 0.66
A186: ="electricity_archetype_"&TEXT(ROUND(Table2[[#This Row],[2016]],1),"0.0") -> electricity_archetype_2.1 | B186: 2.10 | C186: 2.10 | D186: 2.10 | E186: 2.06 | F186: 1.96 | G186: 1.99 | H186: 1.94 | I186: 1.86 | J186: 1.81 | K186: 1.77 | L186: 1.73 | M186: 1.73 | N186: 1.67 | O186: 1.61 | P186: 1.56 | Q186: 1.38 | R186: 1.15 | S186: 1.08 | T186: 0.91 | U186: 0.79 | V186: 0.77 | W186: 0.74 | X186: 0.72 | Y186: 0.70 | Z186: 0.71 | AA186: 0.70 | AB186: 0.70 | AC186: 0.68 | AD186: 0.68 | AE186: 0.67 | AF186: 0.67 | AG186: 0.67 | AH186: 0.66 | AI186: 0.66 | AJ186: 0.66
A187: ="electricity_archetype_"&TEXT(ROUND(Table2[[#This Row],[2016]],1),"0.0") -> electricity_archetype_2.0 | B187: 2.00 | C187: 2.00 | D187: 2.00 | E187: 1.96 | F187: 1.87 | G187: 1.90 | H187: 1.85 | I187: 1.77 | J187: 1.73 | K187: 1.69 | L187: 1.66 | M187: 1.66 | N187: 1.60 | O187: 1.55 | P187: 1.50 | Q187: 1.33 | R187: 1.11 | S187: 1.05 | T187: 0.89 | U187: 0.78 | V187: 0.77 | W187: 0.74 | X187: 0.72 | Y187: 0.70 | Z187: 0.70 | AA187: 0.70 | AB187: 0.70 | AC187: 0.68 | AD187: 0.68 | AE187: 0.67 | AF187: 0.67 | AG187: 0.66 | AH187: 0.66 | AI187: 0.66 | AJ187: 0.66
A188: ="electricity_archetype_"&TEXT(ROUND(Table2[[#This Row],[2016]],1),"0.0") -> electricity_archetype_1.9 | B188: 1.90 | C188: 1.90 | D188: 1.90 | E188: 1.86 | F188: 1.78 | G188: 1.80 | H188: 1.76 | I188: 1.69 | J188: 1.65 | K188: 1.61 | L188: 1.58 | M188: 1.58 | N188: 1.53 | O188: 1.48 | P188: 1.44 | Q188: 1.28 | R188: 1.08 | S188: 1.02 | T188: 0.88 | U188: 0.77 | V188: 0.76 | W188: 0.73 | X188: 0.71 | Y188: 0.69 | Z188: 0.70 | AA188: 0.69 | AB188: 0.69 | AC188: 0.68 | AD188: 0.67 | AE188: 0.67 | AF188: 0.67 | AG188: 0.66 | AH188: 0.66 | AI188: 0.66 | AJ188: 0.66
A189: ="electricity_archetype_"&TEXT(ROUND(Table2[[#This Row],[2016]],1),"0.0") -> electricity_archetype_1.8 | B189: 1.80 | C189: 1.80 | D189: 1.80 | E189: 1.77 | F189: 1.69 | G189: 1.71 | H189: 1.67 | I189: 1.61 | J189: 1.57 | K189: 1.54 | L189: 1.51 | M189: 1.51 | N189: 1.46 | O189: 1.41 | P189: 1.37 | Q189: 1.23 | R189: 1.04 | S189: 0.99 | T189: 0.86 | U189: 0.77 | V189: 0.75 | W189: 0.73 | X189: 0.71 | Y189: 0.69 | Z189: 0.70 | AA189: 0.69 | AB189: 0.69 | AC189: 0.68 | AD189: 0.67 | AE189: 0.67 | AF189: 0.67 | AG189: 0.66 | AH189: 0.66 | AI189: 0.66 | AJ189: 0.66
A190: ="electricity_archetype_"&TEXT(ROUND(Table2[[#This Row],[2016]],1),"0.0") -> electricity_archetype_1.7 | B190: 1.70 | C190: 1.70 | D190: 1.70 | E190: 1.67 | F190: 1.60 | G190: 1.62 | H190: 1.58 | I190: 1.52 | J190: 1.49 | K190: 1.46 | L190: 1.44 | M190: 1.43 | N190: 1.39 | O190: 1.35 | P190: 1.31 | Q190: 1.18 | R190: =MROUND((($B190-$AJ$2)*((R$2-$AJ$2)/($B$2-$AJ$2)))+$AJ$2,0.01) -> 1.01 | S190: 0.97 | T190: 0.84 | U190: 0.76 | V190: 0.74 | W190: 0.72 | X190: 0.70 | Y190: 0.69 | Z190: 0.69 | AA190: 0.69 | AB190: 0.69 | AC190: 0.67 | AD190: 0.67 | AE190: 0.67 | AF190: 0.66 | AG190: 0.66 | AH190: 0.66 | AI190: 0.66 | AJ190: 0.66
A191: ="electricity_archetype_"&TEXT(ROUND(Table2[[#This Row],[2016]],1),"0.0") -> electricity_archetype_1.6 | B191: 1.60 | C191: =MROUND((($B191-$AJ$2)*((C$2-$AJ$2)/($B$2-$AJ$2)))+$AJ$2,0.01) -> 1.60 | D191: 1.60 | E191: 1.57 | F191: 1.51 | G191: 1.53 | H191: 1.49 | I191: 1.44 | J191: 1.41 | K191: 1.38 | L191: 1.36 | M191: 1.36 | N191: 1.32 | O191: 1.28 | P191: 1.25 | Q191: 1.13 | R191: 0.98 | S191: 0.94 | T191: 0.82 | U191: 0.75 | V191: 0.73 | W191: 0.71 | X191: 0.70 | Y191: 0.69 | Z191: 0.69 | AA191: 0.69 | AB191: 0.68 | AC191: 0.67 | AD191: 0.67 | AE191: 0.67 | AF191: 0.66 | AG191: 0.66 | AH191: 0.66 | AI191: 0.66 | AJ191: 0.66
A192: ="electricity_archetype_"&TEXT(ROUND(Table2[[#This Row],[2016]],1),"0.0") -> electricity_archetype_1.5 | B192: 1.50 | C192: 1.50 | D192: 1.50 | E192: 1.48 | F192: 1.42 | G192: 1.43 | H192: 1.40 | I192: 1.36 | J192: 1.33 | K192: 1.31 | L192: 1.29 | M192: 1.28 | N192: 1.25 | O192: 1.22 | P192: 1.19 | Q192: 1.08 | R192: 0.94 | S192: 0.91 | T192: 0.81 | U192: 0.74 | V192: 0.72 | W192: 0.71 | X192: 0.69 | Y192: 0.68 | Z192: 0.69 | AA192: 0.68 | AB192: 0.68 | AC192: 0.67 | AD192: 0.67 | AE192: 0.67 | AF192: 0.66 | AG192: 0.66 | AH192: 0.66 | AI192: 0.66 | AJ192: 0.66
A193: ="electricity_archetype_"&TEXT(ROUND(Table2[[#This Row],[2016]],1),"0.0") -> electricity_archetype_1.4 | B193: 1.40 | C193: 1.40 | D193: 1.40 | E193: 1.38 | F193: 1.33 | G193: 1.34 | H193: 1.32 | I193: 1.27 | J193: 1.25 | K193: 1.23 | L193: 1.21 | M193: 1.21 | N193: 1.18 | O193: 1.15 | P193: 1.12 | Q193: 1.03 | R193: 0.91 | S193: 0.88 | T193: 0.79 | U193: 0.73 | V193: 0.72 | W193: 0.70 | X193: 0.69 | Y193: 0.68 | Z193: 0.68 | AA193: 0.68 | AB193: 0.68 | AC193: 0.67 | AD193: 0.67 | AE193: 0.67 | AF193: 0.66 | AG193: 0.66 | AH193: 0.66 | AI193: 0.66 | AJ193: 0.66
A194: ="electricity_archetype_"&TEXT(ROUND(Table2[[#This Row],[2016]],1),"0.0") -> electricity_archetype_1.3 | B194: 1.30 | C194: 1.30 | D194: 1.30 | E194: 1.28 | F194: 1.24 | G194: 1.25 | H194: 1.23 | I194: 1.19 | J194: 1.17 | K194: 1.15 | L194: 1.14 | M194: 1.14 | N194: 1.11 | O194: 1.08 | P194: 1.06 | Q194: 0.98 | R194: 0.88 | S194: 0.85 | T194: 0.77 | U194: 0.72 | V194: 0.71 | W194: 0.70 | X194: 0.69 | Y194: 0.68 | Z194: 0.68 | AA194: 0.68 | AB194: 0.68 | AC194: 0.67 | AD194: 0.67 | AE194: 0.66 | AF194: 0.66 | AG194: 0.66 | AH194: 0.66 | AI194: 0.66 | AJ194: 0.66
A195: ="electricity_archetype_"&TEXT(ROUND(Table2[[#This Row],[2016]],1),"0.0") -> electricity_archetype_1.2 | B195: 1.20 | C195: 1.20 | D195: 1.20 | E195: 1.18 | F195: 1.15 | G195: 1.16 | H195: 1.14 | I195: 1.11 | J195: 1.09 | K195: 1.07 | L195: 1.06 | M195: 1.06 | N195: 1.04 | O195: 1.02 | P195: 1.00 | Q195: 0.93 | R195: 0.84 | S195: 0.82 | T195: 0.75 | U195: 0.71 | V195: 0.70 | W195: 0.69 | X195: 0.68 | Y195: 0.67 | Z195: 0.68 | AA195: 0.67 | AB195: 0.67 | AC195: 0.67 | AD195: 0.66 | AE195: 0.66 | AF195: 0.66 | AG195: 0.66 | AH195: 0.66 | AI195: 0.66 | AJ195: 0.66
A196: ="electricity_archetype_"&TEXT(ROUND(Table2[[#This Row],[2016]],1),"0.0") -> electricity_archetype_1.1 | B196: 1.10 | C196: 1.10 | D196: 1.10 | E196: 1.09 | F196: 1.06 | G196: 1.07 | H196: 1.05 | I196: 1.02 | J196: 1.01 | K196: 1.00 | L196: 0.99 | M196: 0.99 | N196: 0.97 | O196: 0.95 | P196: 0.94 | Q196: 0.88 | R196: 0.81 | S196: 0.79 | T196: 0.74 | U196: 0.70 | V196: 0.69 | W196: 0.68 | X196: 0.68 | Y196: 0.67 | Z196: 0.67 | AA196: 0.67 | AB196: 0.67 | AC196: 0.66 | AD196: 0.66 | AE196: 0.66 | AF196: 0.66 | AG196: 0.66 | AH196: 0.66 | AI196: 0.66 | AJ196: 0.66
A197: ="electricity_archetype_"&TEXT(ROUND(Table2[[#This Row],[2016]],1),"0.0") -> electricity_archetype_1.0 | B197: 1.00 | C197: 1.00 | D197: 1.00 | E197: 0.99 | F197: 0.97 | G197: 0.97 | H197: 0.96 | I197: 0.94 | J197: 0.93 | K197: 0.92 | L197: 0.91 | M197: 0.91 | N197: 0.90 | O197: 0.88 | P197: 0.87 | Q197: 0.83 | R197: 0.77 | S197: 0.76 | T197: 0.72 | U197: 0.69 | V197: 0.68 | W197: 0.68 | X197: 0.67 | Y197: 0.67 | Z197: 0.67 | AA197: 0.67 | AB197: 0.67 | AC197: 0.66 | AD197: 0.66 | AE197: 0.66 | AF197: 0.66 | AG197: 0.66 | AH197: 0.66 | AI197: 0.66 | AJ197: 0.66
A198: ="electricity_archetype_"&TEXT(ROUND(Table2[[#This Row],[2016]],1),"0.0") -> electricity_archetype_0.9 | B198: 0.90 | C198: 0.90 | D198: 0.90 | E198: 0.89 | F198: 0.88 | G198: 0.88 | H198: 0.87 | I198: 0.86 | J198: 0.85 | K198: 0.84 | L198: 0.84 | M198: 0.84 | N198: 0.83 | O198: 0.82 | P198: 0.81 | Q198: 0.78 | R198: 0.74 | S198: 0.73 | T198: 0.70 | U198: 0.68 | V198: 0.68 | W198: 0.67 | X198: 0.67 | Y198: 0.66 | Z198: 0.67 | AA198: 0.66 | AB198: 0.66 | AC198: 0.66 | AD198: 0.66 | AE198: 0.66 | AF198: 0.66 | AG198: 0.66 | AH198: 0.66 | AI198: 0.66 | AJ198: 0.66
A199: ="electricity_archetype_"&TEXT(ROUND(Table2[[#This Row],[2016]],1),"0.0") -> electricity_archetype_0.8 | B199: 0.80 | C199: 0.80 | D199: 0.80 | E199: 0.80 | F199: 0.79 | G199: 0.79 | H199: 0.78 | I199: 0.78 | J199: 0.77 | K199: 0.77 | L199: 0.76 | M199: 0.76 | N199: 0.76 | O199: 0.75 | P199: 0.75 | Q199: 0.73 | R199: 0.71 | S199: 0.70 | T199: 0.68 | U199: 0.67 | V199: 0.67 | W199: 0.67 | X199: 0.66 | Y199: 0.66 | Z199: 0.66 | AA199: 0.66 | AB199: 0.66 | AC199: 0.66 | AD199: 0.66 | AE199: 0.66 | AF199: 0.66 | AG199: 0.66 | AH199: 0.66 | AI199: 0.66 | AJ199: 0.66
A200: ="electricity_archetype_"&TEXT(ROUND(Table2[[#This Row],[2016]],1),"0.0") -> electricity_archetype_0.7 | B200: 0.70 | C200: 0.70 | D200: 0.70 | E200: 0.70 | F200: 0.70 | G200: 0.70 | H200: 0.70 | I200: 0.69 | J200: 0.69 | K200: 0.69 | L200: 0.69 | M200: 0.69 | N200: 0.69 | O200: 0.69 | P200: 0.68 | Q200: 0.68 | R200: 0.67 | S200: 0.67 | T200: 0.66 | U200: 0.66 | V200: 0.66 | W200: 0.66 | X200: 0.66 | Y200: 0.66 | Z200: 0.66 | AA200: 0.66 | AB200: 0.66 | AC200: 0.66 | AD200: 0.66 | AE200: 0.66 | AF200: 0.66 | AG200: 0.66 | AH200: 0.66 | AI200: 0.66 | AJ200: 0.66
A201: BASELINE BELOW 2050 TARGET | B201: 0.00 | C201: 0.00 | D201: 0.00 | E201: 0.00 | F201: 0.00 | G201: 0.00 | H201: 0.00 | I201: 0.00 | J201: 0.00 | K201: 0.00 | L201: 0.00 | M201: 0.00 | N201: 0.00 | O201: 0.00 | P201: 0.00 | Q201: 0.00 | R201: 0.00 | S201: 0.00 | T201: 0.00 | U201: 0.00 | V201: 0.00 | W201: 0.00 | X201: 0.00 | Y201: 0.00 | Z201: 0.00 | AA201: 0.00 | AB201: 0.00 | AC201: 0.00 | AD201: 0.00 | AE201: 0.00 | AF201: 0.00 | AG201: 0.00 | AH201: 0.00 | AI201: 0.00 | AJ201: 0.00
... 100 more rows

Sheet Primary (no split) Data Table (hidden)
A1: Sectoral Benchmark | B1: 2016 | C1: 2017 | D1: 2018 | E1: 2019 | F1: 2020 | G1: 2021 | H1: 2022 | I1: 2023 | J1: 2024 | K1: 2025 | L1: 2026 | M1: 2027 | N1: 2028 | O1: 2029 | P1: 2030 | Q1: 2031 | R1: 2032 | S1: 2033 | T1: 2034 | U1: 2035 | V1: 2036 | W1: 2037 | X1: 2038 | Y1: 2039 | Z1: 2040 | AA1: 2041 | AB1: 2042 | AC1: 2043 | AD1: 2044 | AE1: 2045 | AF1: 2046 | AG1: 2047 | AH1: 2048 | AI1: 2049 | AJ1: 2050
A2: Primary Sectoral Cradle-to-Gate (IAI/MPP) | B2: ='Sectoral Slopes'!C19 -> 15.535 | C2: ='Sectoral Slopes'!D19 -> 15.535 | D2: ='Sectoral Slopes'!E19 -> 15.535 | E2: ='Sectoral Slopes'!F19 -> 15.248 | F2: ='Sectoral Slopes'!G19 -> 14.554 | G2: ='Sectoral Slopes'!H19 -> 14.651 | H2: ='Sectoral Slopes'!I19 -> 14.350 | I2: ='Sectoral Slopes'!J19 -> 13.768 | J2: ='Sectoral Slopes'!K19 -> 13.440 | K2: ='Sectoral Slopes'!L19 -> 13.105 | L2: ='Sectoral Slopes'!M19 -> 12.574 | M2: ='Sectoral Slopes'!N19 -> 12.510 | N2: ='Sectoral Slopes'!O19 -> 12.075 | O2: ='Sectoral Slopes'!P19 -> 11.624 | P2: ='Sectoral Slopes'!Q19 -> 11.091 | Q2: ='Sectoral Slopes'!R19 -> 9.530 | R2: ='Sectoral Slopes'!S19 -> 7.424 | S2: ='Sectoral Slopes'!T19 -> 6.752 | T2: ='Sectoral Slopes'!U19 -> 5.292 | U2: ='Sectoral Slopes'!V19 -> 3.821 | V2: ='Sectoral Slopes'!W19 -> 3.607 | W2: ='Sectoral Slopes'!X19 -> 2.963 | X2: ='Sectoral Slopes'!Y19 -> 2.636 | Y2: ='Sectoral Slopes'!Z19 -> 2.296 | Z2: ='Sectoral Slopes'!AA19 -> 2.242 | AA2: ='Sectoral Slopes'!AB19 -> 2.030 | AB2: ='Sectoral Slopes'!AC19 -> 1.721 | AC2: ='Sectoral Slopes'!AD19 -> 1.467 | AD2: ='Sectoral Slopes'!AE19 -> 1.425 | AE2: ='Sectoral Slopes'!AF19 -> 1.254 | AF2: ='Sectoral Slopes'!AG19 -> 1.207 | AG2: ='Sectoral Slopes'!AH19 -> 1.171 | AH2: ='Sectoral Slopes'!AI19 -> 1.037 | AI2: ='Sectoral Slopes'!AJ19 -> 0.961 | AJ2: ='Sectoral Slopes'!AK19 -> 0.925
A4: Electricity SDAs (0.1 t CO2e/t Al increments) | B4: 2016 | C4: 2017 | D4: 2018 | E4: 2019 | F4: 2020 | G4: 2021 | H4: 2022 | I4: 2023 | J4: 2024 | K4: 2025 | L4: 2026 | M4: 2027 | N4: 2028 | O4: 2029 | P4: 2030 | Q4: 2031 | R4: 2032 | S4: 2033 | T4: 2034 | U4: 2035 | V4: 2036 | W4: 2037 | X4: 2038 | Y4: 2039 | Z4: 2040 | AA4: 2041 | AB4: 2042 | AC4: 2043 | AD4: 2044 | AE4: 2045 | AF4: 2046 | AG4: 2047 | AH4: 2048 | AI4: 2049 | AJ4: 2050
A5: ="primary_archetype_"&TEXT(ROUND(Table213[[#This Row],[2016]],1),"0.0") -> primary_archetype_30.0 | B5: 30.00 | C5: =MROUND((($B5-$AH$2)*((C$2-$AH$2)/($B$2-$AH$2)))+$AH$2,0.01) -> 30.00 | D5: =MROUND((($B5-$AH$2)*((D$2-$AH$2)/($B$2-$AH$2)))+$AH$2,0.01) -> 30.00 | E5: 29.43 | F5: 28.04 | G5: 28.23 | H5: 27.63 | I5: 26.47 | J5: 25.82 | K5: 25.15 | L5: 24.09 | M5: 23.96 | N5: 23.09 | O5: 22.19 | P5: 21.12 | Q5: 18.00 | R5: 13.80 | S5: 12.45 | T5: 9.54 | U5: 6.60 | V5: 6.17 | W5: 4.88 | X5: 4.23 | Y5: 3.55 | Z5: 3.45 | AA5: 3.02 | AB5: 2.40 | AC5: 1.90 | AD5: 1.81 | AE5: 1.47 | AF5: 1.38 | AG5: 1.30 | AH5: 1.04 | AI5: 0.89 | AJ5: 0.81
A6: ="primary_archetype_"&TEXT(ROUND(Table213[[#This Row],[2016]],1),"0.0") -> primary_archetype_29.9 | B6: =MROUND(B5-0.1,0.1) -> 29.90 | C6: =MROUND((($B6-$AH$2)*((C$2-$AH$2)/($B$2-$AH$2)))+$AH$2,0.01) -> 29.90 | D6: 29.90 | E6: 29.33 | F6: 27.95 | G6: 28.14 | H6: 27.54 | I6: 26.38 | J6: 25.73 | K6: 25.06 | L6: 24.01 | M6: 23.88 | N6: 23.01 | O6: 22.11 | P6: 21.05 | Q6: 17.95 | R6: 13.75 | S6: 12.42 | T6: 9.51 | U6: 6.58 | V6: 6.15 | W6: 4.87 | X6: 4.22 | Y6: 3.54 | Z6: 3.44 | AA6: 3.02 | AB6: 2.40 | AC6: 1.89 | AD6: 1.81 | AE6: 1.47 | AF6: 1.37 | AG6: 1.30 | AH6: 1.04 | AI6: 0.89 | AJ6: 0.81
A7: ="primary_archetype_"&TEXT(ROUND(Table213[[#This Row],[2016]],1),"0.0") -> primary_archetype_29.8 | B7: =MROUND(B6-0.1,0.1) -> 29.80 | C7: 29.80 | D7: 29.80 | E7: 29.23 | F7: 27.85 | G7: 28.05 | H7: 27.45 | I7: 26.29 | J7: 25.65 | K7: 24.98 | L7: 23.93 | M7: 23.80 | N7: 22.94 | O7: 22.04 | P7: 20.98 | Q7: 17.89 | R7: 13.71 | S7: 12.38 | T7: 9.48 | U7: 6.56 | V7: 6.14 | W7: 4.86 | X7: 4.21 | Y7: 3.53 | Z7: 3.43 | AA7: 3.01 | AB7: 2.39 | AC7: 1.89 | AD7: 1.81 | AE7: 1.47 | AF7: 1.37 | AG7: 1.30 | AH7: 1.04 | AI7: 0.89 | AJ7: 0.82
A8: ="primary_archetype_"&TEXT(ROUND(Table213[[#This Row],[2016]],1),"0.0") -> primary_archetype_29.7 | B8: 29.70 | C8: 29.70 | D8: 29.70 | E8: 29.13 | F8: 27.76 | G8: 27.95 | H8: 27.36 | I8: 26.21 | J8: 25.56 | K8: 24.90 | L8: 23.85 | M8: 23.72 | N8: 22.86 | O8: 21.97 | P8: 20.92 | Q8: 17.83 | R8: 13.66 | S8: 12.34 | T8: 9.45 | U8: 6.54 | V8: 6.12 | W8: 4.84 | X8: 4.20 | Y8: 3.53 | Z8: 3.42 | AA8: 3.00 | AB8: 2.39 | AC8: 1.89 | AD8: 1.80 | AE8: 1.47 | AF8: 1.37 | AG8: 1.30 | AH8: 1.04 | AI8: 0.89 | AJ8: 0.82
A9: ="primary_archetype_"&TEXT(ROUND(Table213[[#This Row],[2016]],1),"0.0") -> primary_archetype_29.6 | B9: 29.60 | C9: 29.60 | D9: 29.60 | E9: 29.03 | F9: 27.67 | G9: 27.86 | H9: 27.27 | I9: 26.12 | J9: 25.47 | K9: 24.81 | L9: 23.77 | M9: 23.64 | N9: 22.78 | O9: 21.90 | P9: 20.85 | Q9: 17.77 | R9: 13.62 | S9: 12.30 | T9: 9.42 | U9: 6.52 | V9: 6.10 | W9: 4.83 | X9: 4.19 | Y9: 3.52 | Z9: 3.41 | AA9: 2.99 | AB9: 2.38 | AC9: 1.88 | AD9: 1.80 | AE9: 1.47 | AF9: 1.37 | AG9: 1.30 | AH9: 1.04 | AI9: 0.89 | AJ9: 0.82
A10: ="primary_archetype_"&TEXT(ROUND(Table213[[#This Row],[2016]],1),"0.0") -> primary_archetype_29.5 | B10: 29.50 | C10: 29.50 | D10: 29.50 | E10: 28.94 | F10: 27.57 | G10: 27.77 | H10: 27.17 | I10: 26.03 | J10: 25.39 | K10: 24.73 | L10: 23.69 | M10: 23.56 | N10: 22.71 | O10: 21.82 | P10: 20.78 | Q10: 17.71 | R10: 13.58 | S10: 12.26 | T10: 9.39 | U10: 6.50 | V10: 6.08 | W10: 4.82 | X10: 4.18 | Y10: 3.51 | Z10: 3.40 | AA10: 2.99 | AB10: 2.38 | AC10: 1.88 | AD10: 1.80 | AE10: 1.46 | AF10: 1.37 | AG10: 1.30 | AH10: 1.04 | AI10: 0.89 | AJ10: 0.82
A11: ="primary_archetype_"&TEXT(ROUND(Table213[[#This Row],[2016]],1),"0.0") -> primary_archetype_29.4 | B11: 29.40 | C11: 29.40 | D11: 29.40 | E11: 28.84 | F11: 27.48 | G11: 27.67 | H11: 27.08 | I11: 25.94 | J11: 25.30 | K11: 24.65 | L11: 23.61 | M11: 23.48 | N11: 22.63 | O11: 21.75 | P11: 20.71 | Q11: 17.65 | R11: 13.53 | S11: 12.22 | T11: 9.36 | U11: 6.48 | V11: 6.07 | W11: 4.80 | X11: 4.16 | Y11: 3.50 | Z11: 3.40 | AA11: 2.98 | AB11: 2.38 | AC11: 1.88 | AD11: 1.80 | AE11: 1.46 | AF11: 1.37 | AG11: 1.30 | AH11: 1.04 | AI11: 0.89 | AJ11: 0.82
A12: ="primary_archetype_"&TEXT(ROUND(Table213[[#This Row],[2016]],1),"0.0") -> primary_archetype_29.3 | B12: 29.30 | C12: 29.30 | D12: 29.30 | E12: 28.74 | F12: 27.39 | G12: 27.58 | H12: 26.99 | I12: 25.86 | J12: 25.22 | K12: 24.56 | L12: 23.53 | M12: 23.40 | N12: 22.56 | O12: 21.68 | P12: 20.64 | Q12: 17.59 | R12: 13.49 | S12: 12.18 | T12: 9.33 | U12: 6.46 | V12: 6.05 | W12: 4.79 | X12: 4.15 | Y12: 3.49 | Z12: 3.39 | AA12: 2.97 | AB12: =MROUND((($B12-$AH$2)*((AB$2-$AH$2)/($B$2-$AH$2)))+$AH$2,0.01) -> 2.37 | AC12: 1.88 | AD12: 1.79 | AE12: 1.46 | AF12: 1.37 | AG12: 1.30 | AH12: 1.04 | AI12: 0.89 | AJ12: 0.82
A13: ="primary_archetype_"&TEXT(ROUND(Table213[[#This Row],[2016]],1),"0.0") -> primary_archetype_29.2 | B13: 29.20 | C13: 29.20 | D13: 29.20 | E13: 28.64 | F13: 27.30 | G13: 27.48 | H13: 26.90 | I13: 25.77 | J13: 25.13 | K13: 24.48 | L13: 23.45 | M13: 23.32 | N13: 22.48 | O13: 21.60 | P13: 20.57 | Q13: 17.54 | R13: 13.44 | S13: =MROUND((($B13-$AH$2)*((S$2-$AH$2)/($B$2-$AH$2)))+$AH$2,0.01) -> 12.14 | T13: 9.30 | U13: 6.44 | V13: 6.03 | W13: 4.78 | X13: 4.14 | Y13: 3.48 | Z13: 3.38 | AA13: 2.97 | AB13: 2.37 | AC13: 1.87 | AD13: 1.79 | AE13: 1.46 | AF13: 1.37 | AG13: 1.30 | AH13: 1.04 | AI13: 0.89 | AJ13: 0.82
A14: ="primary_archetype_"&TEXT(ROUND(Table213[[#This Row],[2016]],1),"0.0") -> primary_archetype_29.1 | B14: 29.10 | C14: 29.10 | D14: 29.10 | E14: 28.54 | F14: 27.20 | G14: 27.39 | H14: 26.81 | I14: 25.68 | J14: 25.05 | K14: 24.40 | L14: 23.37 | M14: 23.24 | N14: 22.40 | O14: 21.53 | P14: 20.50 | Q14: 17.48 | R14: 13.40 | S14: 12.10 | T14: 9.27 | U14: 6.43 | V14: 6.01 | W14: 4.76 | X14: 4.13 | Y14: 3.47 | Z14: 3.37 | AA14: 2.96 | AB14: 2.36 | AC14: 1.87 | AD14: 1.79 | AE14: 1.46 | AF14: 1.37 | AG14: 1.30 | AH14: 1.04 | AI14: 0.89 | AJ14: 0.82
A15: ="primary_archetype_"&TEXT(ROUND(Table213[[#This Row],[2016]],1),"0.0") -> primary_archetype_29.0 | B15: 29.00 | C15: 29.00 | D15: 29.00 | E15: 28.45 | F15: 27.11 | G15: 27.30 | H15: 26.72 | I15: 25.59 | J15: 24.96 | K15: 24.31 | L15: 23.29 | M15: 23.17 | N15: 22.33 | O15: 21.46 | P15: 20.43 | Q15: 17.42 | R15: 13.36 | S15: 12.06 | T15: 9.24 | U15: 6.41 | V15: 5.99 | W15: 4.75 | X15: 4.12 | Y15: 3.46 | Z15: 3.36 | AA15: 2.95 | AB15: 2.36 | AC15: 1.87 | AD15: 1.79 | AE15: 1.46 | AF15: 1.36 | AG15: 1.30 | AH15: 1.04 | AI15: 0.89 | AJ15: 0.82
A16: ="primary_archetype_"&TEXT(ROUND(Table213[[#This Row],[2016]],1),"0.0") -> primary_archetype_28.9 | B16: 28.90 | C16: 28.90 | D16: 28.90 | E16: 28.35 | F16: 27.02 | G16: 27.20 | H16: 26.62 | I16: 25.50 | J16: 24.88 | K16: 24.23 | L16: 23.21 | M16: 23.09 | N16: 22.25 | O16: 21.38 | P16: 20.36 | Q16: 17.36 | R16: 13.31 | S16: 12.02 | T16: 9.22 | U16: 6.39 | V16: 5.98 | W16: 4.74 | X16: 4.11 | Y16: 3.46 | Z16: 3.35 | AA16: 2.95 | AB16: 2.35 | AC16: 1.86 | AD16: 1.78 | AE16: 1.45 | AF16: 1.36 | AG16: 1.29 | AH16: 1.04 | AI16: 0.89 | AJ16: 0.82
A17: ="primary_archetype_"&TEXT(ROUND(Table213[[#This Row],[2016]],1),"0.0") -> primary_archetype_28.8 | B17: 28.80 | C17: 28.80 | D17: 28.80 | E17: 28.25 | F17: 26.92 | G17: 27.11 | H17: 26.53 | I17: 25.42 | J17: 24.79 | K17: 24.15 | L17: 23.13 | M17: 23.01 | N17: 22.17 | O17: 21.31 | P17: 20.29 | Q17: 17.30 | R17: 13.27 | S17: 11.98 | T17: 9.19 | U17: 6.37 | V17: 5.96 | W17: 4.73 | X17: 4.10 | Y17: 3.45 | Z17: 3.35 | AA17: 2.94 | AB17: 2.35 | AC17: 1.86 | AD17: 1.78 | AE17: 1.45 | AF17: 1.36 | AG17: 1.29 | AH17: 1.04 | AI17: 0.89 | AJ17: 0.82
A18: ="primary_archetype_"&TEXT(ROUND(Table213[[#This Row],[2016]],1),"0.0") -> primary_archetype_28.7 | B18: 28.70 | C18: 28.70 | D18: 28.70 | E18: 28.15 | F18: 26.83 | G18: 27.01 | H18: 26.44 | I18: 25.33 | J18: 24.70 | K18: 24.06 | L18: 23.05 | M18: 22.93 | N18: 22.10 | O18: 21.24 | P18: 20.22 | Q18: 17.24 | R18: 13.22 | S18: 11.94 | T18: 9.16 | U18: 6.35 | V18: 5.94 | W18: 4.71 | X18: 4.09 | Y18: 3.44 | Z18: 3.34 | AA18: 2.93 | AB18: 2.34 | AC18: 1.86 | AD18: 1.78 | AE18: 1.45 | AF18: 1.36 | AG18: 1.29 | AH18: 1.04 | AI18: 0.89 | AJ18: 0.82
A19: ="primary_archetype_"&TEXT(ROUND(Table213[[#This Row],[2016]],1),"0.0") -> primary_archetype_28.6 | B19: 28.60 | C19: 28.60 | D19: 28.60 | E19: 28.05 | F19: 26.74 | G19: 26.92 | H19: 26.35 | I19: 25.24 | J19: 24.62 | K19: 23.98 | L19: 22.97 | M19: 22.85 | N19: 22.02 | O19: 21.17 | P19: 20.15 | Q19: 17.18 | R19: 13.18 | S19: 11.90 | T19: 9.13 | U19: 6.33 | V19: 5.92 | W19: 4.70 | X19: 4.08 | Y19: 3.43 | Z19: 3.33 | AA19: 2.93 | AB19: 2.34 | AC19: 1.86 | AD19: 1.78 | AE19: 1.45 | AF19: 1.36 | AG19: 1.29 | AH19: 1.04 | AI19: 0.89 | AJ19: 0.82
A20: ="primary_archetype_"&TEXT(ROUND(Table213[[#This Row],[2016]],1),"0.0") -> primary_archetype_28.5 | B20: 28.50 | C20: 28.50 | D20: 28.50 | E20: 27.96 | F20: 26.64 | G20: 26.83 | H20: 26.26 | I20: 25.15 | J20: 24.53 | K20: 23.90 | L20: 22.89 | M20: 22.77 | N20: 21.95 | O20: 21.09 | P20: 20.08 | Q20: 17.13 | R20: 13.14 | S20: 11.86 | T20: 9.10 | U20: 6.31 | V20: 5.91 | W20: 4.69 | X20: 4.07 | Y20: 3.42 | Z20: 3.32 | AA20: 2.92 | AB20: 2.33 | AC20: 1.85 | AD20: 1.77 | AE20: 1.45 | AF20: 1.36 | AG20: 1.29 | AH20: 1.04 | AI20: 0.89 | AJ20: 0.83
A21: ="primary_archetype_"&TEXT(ROUND(Table213[[#This Row],[2016]],1),"0.0") -> primary_archetype_28.4 | B21: 28.40 | C21: 28.40 | D21: 28.40 | E21: 27.86 | F21: 26.55 | G21: 26.73 | H21: 26.16 | I21: 25.06 | J21: 24.45 | K21: 23.81 | L21: 22.81 | M21: 22.69 | N21: 21.87 | O21: 21.02 | P21: 20.01 | Q21: 17.07 | R21: 13.09 | S21: 11.82 | T21: 9.07 | U21: 6.29 | V21: 5.89 | W21: 4.67 | X21: 4.05 | Y21: 3.41 | Z21: 3.31 | AA21: 2.91 | AB21: 2.33 | AC21: 1.85 | AD21: 1.77 | AE21: 1.45 | AF21: 1.36 | AG21: 1.29 | AH21: 1.04 | AI21: 0.89 | AJ21: 0.83
A22: ="primary_archetype_"&TEXT(ROUND(Table213[[#This Row],[2016]],1),"0.0") -> primary_archetype_28.3 | B22: 28.30 | C22: 28.30 | D22: 28.30 | E22: 27.76 | F22: 26.46 | G22: 26.64 | H22: 26.07 | I22: 24.98 | J22: 24.36 | K22: 23.73 | L22: 22.73 | M22: 22.61 | N22: 21.79 | O22: 20.95 | P22: 19.94 | Q22: 17.01 | R22: 13.05 | S22: 11.78 | T22: 9.04 | U22: 6.27 | V22: 5.87 | W22: 4.66 | X22: 4.04 | Y22: 3.40 | Z22: 3.30 | AA22: 2.91 | AB22: 2.32 | AC22: 1.85 | AD22: 1.77 | AE22: 1.45 | AF22: 1.36 | AG22: 1.29 | AH22: 1.04 | AI22: 0.89 | AJ22: 0.83
A23: ="primary_archetype_"&TEXT(ROUND(Table213[[#This Row],[2016]],1),"0.0") -> primary_archetype_28.2 | B23: 28.20 | C23: 28.20 | D23: 28.20 | E23: 27.66 | F23: 26.36 | G23: 26.54 | H23: 25.98 | I23: 24.89 | J23: 24.28 | K23: 23.65 | L23: 22.65 | M23: 22.53 | N23: 21.72 | O23: 20.87 | P23: 19.87 | Q23: 16.95 | R23: 13.00 | S23: 11.75 | T23: 9.01 | U23: 6.25 | V23: 5.85 | W23: 4.65 | X23: 4.03 | Y23: 3.40 | Z23: 3.30 | AA23: 2.90 | AB23: 2.32 | AC23: 1.84 | AD23: 1.76 | AE23: 1.44 | AF23: 1.35 | AG23: 1.29 | AH23: 1.04 | AI23: 0.89 | AJ23: 0.83
A24: ="primary_archetype_"&TEXT(ROUND(Table213[[#This Row],[2016]],1),"0.0") -> primary_archetype_28.1 | B24: 28.10 | C24: 28.10 | D24: 28.10 | E24: 27.56 | F24: 26.27 | G24: 26.45 | H24: 25.89 | I24: 24.80 | J24: 24.19 | K24: 23.56 | L24: 22.57 | M24: 22.45 | N24: 21.64 | O24: 20.80 | P24: 19.81 | Q24: 16.89 | R24: 12.96 | S24: 11.71 | T24: 8.98 | U24: 6.23 | V24: 5.83 | W24: 4.63 | X24: 4.02 | Y24: 3.39 | Z24: 3.29 | AA24: 2.89 | AB24: 2.31 | AC24: 1.84 | AD24: 1.76 | AE24: 1.44 | AF24: 1.35 | AG24: 1.29 | AH24: 1.04 | AI24: 0.90 | AJ24: 0.83
A25: ="primary_archetype_"&TEXT(ROUND(Table213[[#This Row],[2016]],1),"0.0") -> primary_archetype_28.0 | B25: 28.00 | C25: 28.00 | D25: 28.00 | E25: 27.47 | F25: 26.18 | G25: 26.36 | H25: 25.80 | I25: 24.71 | J25: 24.11 | K25: 23.48 | L25: 22.49 | M25: 22.37 | N25: 21.57 | O25: 20.73 | P25: 19.74 | Q25: 16.83 | R25: 12.92 | S25: 11.67 | T25: 8.95 | U25: 6.21 | V25: 5.82 | W25: 4.62 | X25: 4.01 | Y25: 3.38 | Z25: 3.28 | AA25: 2.88 | AB25: 2.31 | AC25: 1.84 | AD25: 1.76 | AE25: 1.44 | AF25: 1.35 | AG25: 1.29 | AH25: 1.04 | AI25: 0.90 | AJ25: 0.83
A26: ="primary_archetype_"&TEXT(ROUND(Table213[[#This Row],[2016]],1),"0.0") -> primary_archetype_27.9 | B26: 27.90 | C26: 27.90 | D26: 27.90 | E26: 27.37 | F26: 26.08 | G26: 26.26 | H26: 25.70 | I26: 24.63 | J26: 24.02 | K26: 23.40 | L26: 22.41 | M26: 22.29 | N26: 21.49 | O26: 20.65 | P26: 19.67 | Q26: 16.77 | R26: 12.87 | S26: 11.63 | T26: 8.92 | U26: 6.20 | V26: 5.80 | W26: 4.61 | X26: 4.00 | Y26: 3.37 | Z26: 3.27 | AA26: 2.88 | AB26: 2.30 | AC26: 1.83 | AD26: 1.76 | AE26: 1.44 | AF26: 1.35 | AG26: 1.29 | AH26: 1.04 | AI26: 0.90 | AJ26: 0.83
A27: ="primary_archetype_"&TEXT(ROUND(Table213[[#This Row],[2016]],1),"0.0") -> primary_archetype_27.8 | B27: 27.80 | C27: 27.80 | D27: 27.80 | E27: 27.27 | F27: 25.99 | G27: 26.17 | H27: 25.61 | I27: 24.54 | J27: 23.93 | K27: 23.31 | L27: 22.33 | M27: 22.22 | N27: 21.41 | O27: 20.58 | P27: 19.60 | Q27: 16.72 | R27: 12.83 | S27: 11.59 | T27: 8.89 | U27: 6.18 | V27: 5.78 | W27: 4.59 | X27: 3.99 | Y27: 3.36 | Z27: 3.26 | AA27: 2.87 | AB27: 2.30 | AC27: 1.83 | AD27: 1.75 | AE27: 1.44 | AF27: 1.35 | AG27: 1.28 | AH27: 1.04 | AI27: 0.90 | AJ27: 0.83
A28: ="primary_archetype_"&TEXT(ROUND(Table213[[#This Row],[2016]],1),"0.0") -> primary_archetype_27.7 | B28: 27.70 | C28: 27.70 | D28: 27.70 | E28: 27.17 | F28: 25.90 | G28: 26.07 | H28: 25.52 | I28: 24.45 | J28: 23.85 | K28: =MROUND((($B28-$AH$2)*((K$2-$AH$2)/($B$2-$AH$2)))+$AH$2,0.01) -> 23.23 | L28: 22.26 | M28: 22.14 | N28: 21.34 | O28: 20.51 | P28: 19.53 | Q28: 16.66 | R28: 12.78 | S28: 11.55 | T28: 8.86 | U28: 6.16 | V28: 5.76 | W28: 4.58 | X28: 3.98 | Y28: 3.35 | Z28: 3.25 | AA28: 2.86 | AB28: 2.29 | AC28: 1.83 | AD28: 1.75 | AE28: 1.44 | AF28: 1.35 | AG28: 1.28 | AH28: 1.04 | AI28: 0.90 | AJ28: 0.83
A29: ="primary_archetype_"&TEXT(ROUND(Table213[[#This Row],[2016]],1),"0.0") -> primary_archetype_27.6 | B29: 27.60 | C29: =MROUND((($B29-$AH$2)*((C$2-$AH$2)/($B$2-$AH$2)))+$AH$2,0.01) -> 27.60 | D29: 27.60 | E29: 27.07 | F29: 25.80 | G29: 25.98 | H29: 25.43 | I29: 24.36 | J29: 23.76 | K29: 23.15 | L29: 22.18 | M29: 22.06 | N29: 21.26 | O29: 20.44 | P29: 19.46 | Q29: 16.60 | R29: 12.74 | S29: 11.51 | T29: 8.83 | U29: 6.14 | V29: 5.75 | W29: 4.57 | X29: 3.97 | Y29: 3.34 | Z29: 3.25 | AA29: 2.86 | AB29: 2.29 | AC29: 1.83 | AD29: 1.75 | AE29: 1.44 | AF29: 1.35 | AG29: 1.28 | AH29: =MROUND((($B29-$AH$2)*((AH$2-$AH$2)/($B$2-$AH$2)))+$AH$2,0.01) -> 1.04 | AI29: 0.90 | AJ29: 0.83
A30: ="primary_archetype_"&TEXT(ROUND(Table213[[#This Row],[2016]],1),"0.0") -> primary_archetype_27.5 | B30: 27.50 | C30: 27.50 | D30: 27.50 | E30: 26.98 | F30: 25.71 | G30: 25.89 | H30: 25.34 | I30: 24.27 | J30: 23.68 | K30: 23.06 | L30: 22.10 | M30: 21.98 | N30: 21.18 | O30: 20.36 | P30: 19.39 | Q30: 16.54 | R30: 12.70 | S30: 11.47 | T30: 8.80 | U30: 6.12 | V30: 5.73 | W30: 4.55 | X30: 3.96 | Y30: 3.33 | Z30: 3.24 | AA30: =MROUND((($B30-$AH$2)*((AA$2-$AH$2)/($B$2-$AH$2)))+$AH$2,0.01) -> 2.85 | AB30: 2.29 | AC30: 1.82 | AD30: 1.75 | AE30: 1.43 | AF30: 1.35 | AG30: 1.28 | AH30: 1.04 | AI30: 0.90 | AJ30: 0.83
A31: ="primary_archetype_"&TEXT(ROUND(Table213[[#This Row],[2016]],1),"0.0") -> primary_archetype_27.4 | B31: 27.40 | C31: 27.40 | D31: 27.40 | E31: 26.88 | F31: 25.62 | G31: 25.79 | H31: 25.25 | I31: 24.19 | J31: 23.59 | K31: 22.98 | L31: 22.02 | M31: 21.90 | N31: 21.11 | O31: 20.29 | P31: 19.32 | Q31: 16.48 | R31: 12.65 | S31: 11.43 | T31: 8.77 | U31: 6.10 | V31: 5.71 | W31: 4.54 | X31: 3.94 | Y31: 3.33 | Z31: 3.23 | AA31: 2.84 | AB31: 2.28 | AC31: 1.82 | AD31: 1.74 | AE31: 1.43 | AF31: 1.35 | AG31: 1.28 | AH31: 1.04 | AI31: 0.90 | AJ31: 0.83
A32: ="primary_archetype_"&TEXT(ROUND(Table213[[#This Row],[2016]],1),"0.0") -> primary_archetype_27.3 | B32: 27.30 | C32: 27.30 | D32: 27.30 | E32: 26.78 | F32: 25.52 | G32: 25.70 | H32: 25.15 | I32: 24.10 | J32: 23.51 | K32: 22.90 | L32: 21.94 | M32: 21.82 | N32: 21.03 | O32: 20.22 | P32: 19.25 | Q32: 16.42 | R32: 12.61 | S32: 11.39 | T32: 8.75 | U32: 6.08 | V32: 5.69 | W32: 4.53 | X32: 3.93 | Y32: 3.32 | Z32: 3.22 | AA32: 2.84 | AB32: 2.28 | AC32: 1.82 | AD32: 1.74 | AE32: 1.43 | AF32: 1.34 | AG32: 1.28 | AH32: 1.04 | AI32: 0.90 | AJ32: 0.83
A33: ="primary_archetype_"&TEXT(ROUND(Table213[[#This Row],[2016]],1),"0.0") -> primary_archetype_27.2 | B33: 27.20 | C33: 27.20 | D33: 27.20 | E33: 26.68 | F33: 25.43 | G33: 25.61 | H33: 25.06 | I33: 24.01 | J33: 23.42 | K33: 22.81 | L33: 21.86 | M33: 21.74 | N33: 20.96 | O33: 20.14 | P33: 19.18 | Q33: 16.36 | R33: 12.56 | S33: 11.35 | T33: 8.72 | U33: 6.06 | V33: 5.68 | W33: 4.51 | X33: 3.92 | Y33: 3.31 | Z33: 3.21 | AA33: 2.83 | AB33: 2.27 | AC33: 1.81 | AD33: 1.74 | AE33: 1.43 | AF33: 1.34 | AG33: 1.28 | AH33: 1.04 | AI33: 0.90 | AJ33: 0.84
A34: ="primary_archetype_"&TEXT(ROUND(Table213[[#This Row],[2016]],1),"0.0") -> primary_archetype_27.1 | B34: 27.10 | C34: 27.10 | D34: 27.10 | E34: 26.58 | F34: 25.34 | G34: 25.51 | H34: 24.97 | I34: 23.92 | J34: 23.34 | K34: 22.73 | L34: 21.78 | M34: 21.66 | N34: 20.88 | O34: 20.07 | P34: 19.11 | Q34: 16.31 | R34: 12.52 | S34: 11.31 | T34: 8.69 | U34: 6.04 | V34: 5.66 | W34: 4.50 | X34: 3.91 | Y34: 3.30 | Z34: 3.20 | AA34: 2.82 | AB34: 2.27 | AC34: 1.81 | AD34: 1.74 | AE34: 1.43 | AF34: 1.34 | AG34: 1.28 | AH34: 1.04 | AI34: 0.90 | AJ34: 0.84
A35: ="primary_archetype_"&TEXT(ROUND(Table213[[#This Row],[2016]],1),"0.0") -> primary_archetype_27.0 | B35: 27.00 | C35: 27.00 | D35: 27.00 | E35: 26.49 | F35: 25.24 | G35: 25.42 | H35: 24.88 | I35: 23.84 | J35: 23.25 | K35: 22.65 | L35: 21.70 | M35: 21.58 | N35: 20.80 | O35: 20.00 | P35: 19.04 | Q35: 16.25 | R35: 12.47 | S35: 11.27 | T35: 8.66 | U35: 6.02 | V35: 5.64 | W35: 4.49 | X35: 3.90 | Y35: 3.29 | Z35: 3.20 | AA35: 2.82 | AB35: 2.26 | AC35: 1.81 | AD35: 1.73 | AE35: 1.43 | AF35: 1.34 | AG35: 1.28 | AH35: 1.04 | AI35: 0.90 | AJ35: 0.84
A36: ="primary_archetype_"&TEXT(ROUND(Table213[[#This Row],[2016]],1),"0.0") -> primary_archetype_26.9 | B36: 26.90 | C36: 26.90 | D36: 26.90 | E36: 26.39 | F36: 25.15 | G36: 25.32 | H36: 24.79 | I36: 23.75 | J36: 23.16 | K36: 22.56 | L36: 21.62 | M36: 21.50 | N36: 20.73 | O36: 19.92 | P36: 18.97 | Q36: 16.19 | R36: 12.43 | S36: 11.23 | T36: 8.63 | U36: 6.00 | V36: 5.62 | W36: 4.47 | X36: 3.89 | Y36: 3.28 | Z36: 3.19 | AA36: 2.81 | AB36: 2.26 | AC36: 1.80 | AD36: 1.73 | AE36: 1.42 | AF36: 1.34 | AG36: 1.28 | AH36: 1.04 | AI36: 0.90 | AJ36: 0.84
A37: ="primary_archetype_"&TEXT(ROUND(Table213[[#This Row],[2016]],1),"0.0") -> primary_archetype_26.8 | B37: 26.80 | C37: 26.80 | D37: 26.80 | E37: 26.29 | F37: 25.06 | G37: 25.23 | H37: 24.69 | I37: 23.66 | J37: 23.08 | K37: 22.48 | L37: 21.54 | M37: 21.42 | N37: 20.65 | O37: 19.85 | P37: 18.90 | Q37: 16.13 | R37: 12.39 | S37: 11.19 | T37: 8.60 | U37: 5.98 | V37: 5.60 | W37: 4.46 | X37: 3.88 | Y37: 3.27 | Z37: 3.18 | AA37: 2.80 | AB37: 2.25 | AC37: 1.80 | AD37: 1.73 | AE37: 1.42 | AF37: 1.34 | AG37: 1.27 | AH37: 1.04 | AI37: 0.90 | AJ37: 0.84
A38: ="primary_archetype_"&TEXT(ROUND(Table213[[#This Row],[2016]],1),"0.0") -> primary_archetype_26.7 | B38: 26.70 | C38: 26.70 | D38: 26.70 | E38: 26.19 | F38: 24.96 | G38: 25.14 | H38: 24.60 | I38: 23.57 | J38: 22.99 | K38: 22.40 | L38: 21.46 | M38: 21.35 | N38: 20.58 | O38: 19.78 | P38: 18.83 | Q38: 16.07 | R38: 12.34 | S38: 11.15 | T38: 8.57 | U38: 5.96 | V38: 5.59 | W38: 4.45 | X38: 3.87 | Y38: 3.27 | Z38: 3.17 | AA38: 2.80 | AB38: 2.25 | AC38: 1.80 | AD38: 1.72 | AE38: 1.42 | AF38: 1.34 | AG38: 1.27 | AH38: 1.04 | AI38: 0.90 | AJ38: 0.84
A39: ="primary_archetype_"&TEXT(ROUND(Table213[[#This Row],[2016]],1),"0.0") -> primary_archetype_26.6 | B39: 26.60 | C39: 26.60 | D39: 26.60 | E39: 26.09 | F39: 24.87 | G39: 25.04 | H39: 24.51 | I39: 23.48 | J39: 22.91 | K39: 22.32 | L39: 21.38 | M39: 21.27 | N39: 20.50 | O39: 19.70 | P39: 18.77 | Q39: 16.01 | R39: 12.30 | S39: 11.11 | T39: 8.54 | U39: 5.95 | V39: 5.57 | W39: 4.43 | X39: 3.86 | Y39: 3.26 | Z39: 3.16 | AA39: 2.79 | AB39: 2.24 | AC39: 1.80 | AD39: 1.72 | AE39: 1.42 | AF39: 1.34 | AG39: 1.27 | AH39: 1.04 | AI39: 0.90 | AJ39: 0.84
A40: ="primary_archetype_"&TEXT(ROUND(Table213[[#This Row],[2016]],1),"0.0") -> primary_archetype_26.5 | B40: 26.50 | C40: 26.50 | D40: 26.50 | E40: 26.00 | F40: 24.78 | G40: 24.95 | H40: 24.42 | I40: 23.40 | J40: 22.82 | K40: 22.23 | L40: 21.30 | M40: 21.19 | N40: 20.42 | O40: 19.63 | P40: 18.70 | Q40: 15.95 | R40: 12.25 | S40: 11.07 | T40: 8.51 | U40: 5.93 | V40: 5.55 | W40: 4.42 | X40: 3.85 | Y40: 3.25 | Z40: 3.15 | AA40: 2.78 | AB40: 2.24 | AC40: 1.79 | AD40: 1.72 | AE40: 1.42 | AF40: 1.33 | AG40: 1.27 | AH40: 1.04 | AI40: 0.90 | AJ40: 0.84
A41: ="primary_archetype_"&TEXT(ROUND(Table213[[#This Row],[2016]],1),"0.0") -> primary_archetype_26.4 | B41: 26.40 | C41: 26.40 | D41: 26.40 | E41: 25.90 | F41: 24.68 | G41: 24.85 | H41: 24.33 | I41: 23.31 | J41: 22.74 | K41: 22.15 | L41: 21.22 | M41: 21.11 | N41: 20.35 | O41: 19.56 | P41: 18.63 | Q41: 15.90 | R41: 12.21 | S41: 11.04 | T41: 8.48 | U41: 5.91 | V41: 5.53 | W41: 4.41 | X41: 3.83 | Y41: 3.24 | Z41: 3.15 | AA41: 2.78 | AB41: 2.23 | AC41: 1.79 | AD41: 1.72 | AE41: 1.42 | AF41: 1.33 | AG41: 1.27 | AH41: 1.04 | AI41: 0.90 | AJ41: 0.84
A42: ="primary_archetype_"&TEXT(ROUND(Table213[[#This Row],[2016]],1),"0.0") -> primary_archetype_26.3 | B42: 26.30 | C42: 26.30 | D42: 26.30 | E42: 25.80 | F42: 24.59 | G42: 24.76 | H42: 24.24 | I42: 23.22 | J42: 22.65 | K42: 22.07 | L42: 21.14 | M42: 21.03 | N42: 20.27 | O42: 19.49 | P42: 18.56 | Q42: 15.84 | R42: 12.17 | S42: 11.00 | T42: 8.45 | U42: 5.89 | V42: 5.52 | W42: 4.39 | X42: 3.82 | Y42: 3.23 | Z42: 3.14 | AA42: 2.77 | AB42: 2.23 | AC42: 1.79 | AD42: 1.71 | AE42: 1.42 | AF42: 1.33 | AG42: 1.27 | AH42: 1.04 | AI42: 0.90 | AJ42: 0.84
A43: ="primary_archetype_"&TEXT(ROUND(Table213[[#This Row],[2016]],1),"0.0") -> primary_archetype_26.2 | B43: 26.20 | C43: 26.20 | D43: 26.20 | E43: 25.70 | F43: 24.50 | G43: 24.67 | H43: 24.14 | I43: 23.13 | J43: 22.57 | K43: 21.98 | L43: 21.06 | M43: 20.95 | N43: 20.20 | O43: 19.41 | P43: 18.49 | Q43: 15.78 | R43: 12.12 | S43: 10.96 | T43: 8.42 | U43: 5.87 | V43: 5.50 | W43: 4.38 | X43: 3.81 | Y43: 3.22 | Z43: 3.13 | AA43: 2.76 | AB43: 2.22 | AC43: 1.78 | AD43: 1.71 | AE43: 1.41 | AF43: 1.33 | AG43: 1.27 | AH43: 1.04 | AI43: 0.91 | AJ43: 0.84
A44: ="primary_archetype_"&TEXT(ROUND(Table213[[#This Row],[2016]],1),"0.0") -> primary_archetype_26.1 | B44: 26.10 | C44: 26.10 | D44: 26.10 | E44: 25.60 | F44: 24.40 | G44: 24.57 | H44: 24.05 | I44: 23.05 | J44: 22.48 | K44: 21.90 | L44: 20.98 | M44: 20.87 | N44: 20.12 | O44: 19.34 | P44: 18.42 | Q44: 15.72 | R44: =MROUND((($B44-$AH$2)*((R$2-$AH$2)/($B$2-$AH$2)))+$AH$2,0.01) -> 12.08 | S44: 10.92 | T44: 8.39 | U44: 5.85 | V44: 5.48 | W44: 4.37 | X44: 3.80 | Y44: 3.21 | Z44: 3.12 | AA44: 2.75 | AB44: 2.22 | AC44: 1.78 | AD44: 1.71 | AE44: 1.41 | AF44: 1.33 | AG44: 1.27 | AH44: 1.04 | AI44: 0.91 | AJ44: 0.84
A45: ="primary_archetype_"&TEXT(ROUND(Table213[[#This Row],[2016]],1),"0.0") -> primary_archetype_26.0 | B45: 26.00 | C45: =MROUND((($B45-$AH$2)*((C$2-$AH$2)/($B$2-$AH$2)))+$AH$2,0.01) -> 26.00 | D45: 26.00 | E45: 25.51 | F45: 24.31 | G45: 24.48 | H45: 23.96 | I45: 22.96 | J45: 22.39 | K45: 21.82 | L45: 20.90 | M45: 20.79 | N45: 20.04 | O45: 19.27 | P45: 18.35 | Q45: 15.66 | R45: 12.03 | S45: 10.88 | T45: 8.36 | U45: 5.83 | V45: 5.46 | W45: 4.35 | X45: 3.79 | Y45: 3.20 | Z45: 3.11 | AA45: 2.75 | AB45: 2.21 | AC45: 1.78 | AD45: 1.71 | AE45: 1.41 | AF45: 1.33 | AG45: 1.27 | AH45: 1.04 | AI45: 0.91 | AJ45: 0.84
A46: ="primary_archetype_"&TEXT(ROUND(Table213[[#This Row],[2016]],1),"0.0") -> primary_archetype_25.9 | B46: 25.90 | C46: 25.90 | D46: 25.90 | E46: 25.41 | F46: 24.22 | G46: 24.38 | H46: 23.87 | I46: 22.87 | J46: 22.31 | K46: 21.73 | L46: 20.82 | M46: 20.71 | N46: 19.97 | O46: 19.19 | P46: 18.28 | Q46: 15.60 | R46: 11.99 | S46: 10.84 | T46: 8.33 | U46: 5.81 | V46: 5.44 | W46: 4.34 | X46: 3.78 | Y46: 3.20 | Z46: 3.10 | AA46: 2.74 | AB46: 2.21 | AC46: 1.77 | AD46: 1.70 | AE46: 1.41 | AF46: 1.33 | AG46: 1.27 | AH46: 1.04 | AI46: 0.91 | AJ46: 0.85
A47: ="primary_archetype_"&TEXT(ROUND(Table213[[#This Row],[2016]],1),"0.0") -> primary_archetype_25.8 | B47: 25.80 | C47: 25.80 | D47: 25.80 | E47: 25.31 | F47: 24.13 | G47: 24.29 | H47: 23.78 | I47: 22.78 | J47: 22.22 | K47: 21.65 | L47: 20.74 | M47: 20.63 | N47: 19.89 | O47: 19.12 | P47: 18.21 | Q47: 15.54 | R47: 11.95 | S47: 10.80 | T47: 8.31 | U47: 5.79 | V47: 5.43 | W47: 4.33 | X47: 3.77 | Y47: 3.19 | Z47: 3.10 | AA47: 2.73 | AB47: 2.21 | AC47: 1.77 | AD47: 1.70 | AE47: 1.41 | AF47: 1.33 | AG47: 1.27 | AH47: 1.04 | AI47: 0.91 | AJ47: 0.85
A48: ="primary_archetype_"&TEXT(ROUND(Table213[[#This Row],[2016]],1),"0.0") -> primary_archetype_25.7 | B48: 25.70 | C48: 25.70 | D48: 25.70 | E48: 25.21 | F48: 24.03 | G48: 24.20 | H48: 23.68 | I48: 22.69 | J48: 22.14 | K48: 21.57 | L48: 20.66 | M48: 20.55 | N48: 19.81 | O48: 19.05 | P48: 18.14 | Q48: 15.49 | R48: 11.90 | S48: 10.76 | T48: 8.28 | U48: 5.77 | V48: 5.41 | W48: 4.31 | X48: 3.76 | Y48: 3.18 | Z48: 3.09 | AA48: 2.73 | AB48: 2.20 | AC48: 1.77 | AD48: 1.70 | AE48: 1.41 | AF48: 1.33 | AG48: 1.26 | AH48: 1.04 | AI48: 0.91 | AJ48: 0.85
A49: ="primary_archetype_"&TEXT(ROUND(Table213[[#This Row],[2016]],1),"0.0") -> primary_archetype_25.6 | B49: 25.60 | C49: 25.60 | D49: 25.60 | E49: 25.11 | F49: 23.94 | G49: 24.10 | H49: 23.59 | I49: 22.61 | J49: 22.05 | K49: 21.48 | L49: 20.58 | M49: 20.47 | N49: 19.74 | O49: 18.97 | P49: 18.07 | Q49: 15.43 | R49: 11.86 | S49: 10.72 | T49: 8.25 | U49: 5.75 | V49: 5.39 | W49: 4.30 | X49: 3.75 | Y49: 3.17 | Z49: 3.08 | AA49: 2.72 | AB49: 2.20 | AC49: 1.77 | AD49: 1.70 | AE49: 1.41 | AF49: 1.32 | AG49: 1.26 | AH49: 1.04 | AI49: 0.91 | AJ49: 0.85
A50: ="primary_archetype_"&TEXT(ROUND(Table213[[#This Row],[2016]],1),"0.0") -> primary_archetype_25.5 | B50: 25.50 | C50: 25.50 | D50: 25.50 | E50: 25.02 | F50: 23.85 | G50: 24.01 | H50: 23.50 | I50: 22.52 | J50: 21.97 | K50: 21.40 | L50: 20.50 | M50: 20.40 | N50: 19.66 | O50: 18.90 | P50: 18.00 | Q50: 15.37 | R50: 11.81 | S50: 10.68 | T50: 8.22 | U50: 5.73 | V50: 5.37 | W50: 4.29 | X50: 3.73 | Y50: 3.16 | Z50: 3.07 | AA50: 2.71 | AB50: 2.19 | AC50: 1.76 | AD50: 1.69 | AE50: 1.40 | AF50: 1.32 | AG50: 1.26 | AH50: 1.04 | AI50: 0.91 | AJ50: 0.85
A51: ="primary_archetype_"&TEXT(ROUND(Table213[[#This Row],[2016]],1),"0.0") -> primary_archetype_25.4 | B51: 25.40 | C51: 25.40 | D51: 25.40 | E51: 24.92 | F51: 23.75 | G51: 23.92 | H51: 23.41 | I51: 22.43 | J51: 21.88 | K51: 21.32 | L51: 20.42 | M51: 20.32 | N51: 19.59 | O51: 18.83 | P51: 17.93 | Q51: 15.31 | R51: 11.77 | S51: 10.64 | T51: 8.19 | U51: 5.72 | V51: 5.36 | W51: 4.27 | X51: 3.72 | Y51: 3.15 | Z51: 3.06 | AA51: 2.71 | AB51: 2.19 | AC51: 1.76 | AD51: 1.69 | AE51: 1.40 | AF51: 1.32 | AG51: 1.26 | AH51: 1.04 | AI51: 0.91 | AJ51: 0.85
A52: ="primary_archetype_"&TEXT(ROUND(Table213[[#This Row],[2016]],1),"0.0") -> primary_archetype_25.3 | B52: 25.30 | C52: 25.30 | D52: 25.30 | E52: 24.82 | F52: 23.66 | G52: 23.82 | H52: 23.32 | I52: 22.34 | J52: 21.80 | K52: 21.23 | L52: 20.35 | M52: 20.24 | N52: 19.51 | O52: 18.76 | P52: 17.86 | Q52: 15.25 | R52: 11.73 | S52: 10.60 | T52: 8.16 | U52: 5.70 | V52: 5.34 | W52: 4.26 | X52: 3.71 | Y52: 3.14 | Z52: 3.05 | AA52: 2.70 | AB52: 2.18 | AC52: 1.76 | AD52: 1.69 | AE52: 1.40 | AF52: 1.32 | AG52: 1.26 | AH52: 1.04 | AI52: 0.91 | AJ52: 0.85
A53: ="primary_archetype_"&TEXT(ROUND(Table213[[#This Row],[2016]],1),"0.0") -> primary_archetype_25.2 | B53: 25.20 | C53: 25.20 | D53: 25.20 | E53: 24.72 | F53: 23.57 | G53: 23.73 | H53: 23.23 | I53: 22.25 | J53: 21.71 | K53: 21.15 | L53: 20.27 | M53: 20.16 | N53: 19.43 | O53: 18.68 | P53: 17.79 | Q53: 15.19 | R53: 11.68 | S53: 10.56 | T53: 8.13 | U53: 5.68 | V53: 5.32 | W53: 4.25 | X53: 3.70 | Y53: 3.13 | Z53: 3.05 | AA53: 2.69 | AB53: 2.18 | AC53: 1.75 | AD53: 1.68 | AE53: 1.40 | AF53: 1.32 | AG53: 1.26 | AH53: 1.04 | AI53: 0.91 | AJ53: 0.85
A54: ="primary_archetype_"&TEXT(ROUND(Table213[[#This Row],[2016]],1),"0.0") -> primary_archetype_25.1 | B54: 25.10 | C54: 25.10 | D54: 25.10 | E54: 24.62 | F54: 23.47 | G54: 23.63 | H54: 23.13 | I54: 22.17 | J54: 21.62 | K54: 21.07 | L54: 20.19 | M54: 20.08 | N54: 19.36 | O54: 18.61 | P54: 17.72 | Q54: 15.13 | R54: 11.64 | S54: 10.52 | T54: 8.10 | U54: 5.66 | V54: 5.30 | W54: 4.23 | X54: 3.69 | Y54: 3.13 | Z54: 3.04 | AA54: 2.69 | AB54: 2.17 | AC54: 1.75 | AD54: 1.68 | AE54: 1.40 | AF54: 1.32 | AG54: 1.26 | AH54: 1.04 | AI54: 0.91 | AJ54: 0.85
A55: ="primary_archetype_"&TEXT(ROUND(Table213[[#This Row],[2016]],1),"0.0") -> primary_archetype_25.0 | B55: 25.00 | C55: 25.00 | D55: 25.00 | E55: 24.53 | F55: 23.38 | G55: 23.54 | H55: 23.04 | I55: 22.08 | J55: 21.54 | K55: 20.98 | L55: 20.11 | M55: 20.00 | N55: 19.28 | O55: 18.54 | P55: 17.66 | Q55: 15.08 | R55: 11.59 | S55: 10.48 | T55: 8.07 | U55: 5.64 | V55: 5.29 | W55: 4.22 | X55: 3.68 | Y55: 3.12 | Z55: 3.03 | AA55: 2.68 | AB55: 2.17 | AC55: 1.75 | AD55: 1.68 | AE55: 1.40 | AF55: 1.32 | AG55: 1.26 | AH55: 1.04 | AI55: 0.91 | AJ55: 0.85
A56: ="primary_archetype_"&TEXT(ROUND(Table213[[#This Row],[2016]],1),"0.0") -> primary_archetype_24.9 | B56: 24.90 | C56: 24.90 | D56: 24.90 | E56: 24.43 | F56: 23.29 | G56: 23.45 | H56: 22.95 | I56: 21.99 | J56: 21.45 | K56: 20.90 | L56: 20.03 | M56: 19.92 | N56: 19.21 | O56: 18.46 | P56: 17.59 | Q56: 15.02 | R56: 11.55 | S56: 10.44 | T56: 8.04 | U56: 5.62 | V56: 5.27 | W56: 4.21 | X56: 3.67 | Y56: 3.11 | Z56: 3.02 | AA56: 2.67 | AB56: 2.16 | AC56: 1.75 | AD56: 1.68 | AE56: 1.39 | AF56: 1.32 | AG56: 1.26 | AH56: 1.04 | AI56: 0.91 | AJ56: 0.85
A57: ="primary_archetype_"&TEXT(ROUND(Table213[[#This Row],[2016]],1),"0.0") -> primary_archetype_24.8 | B57: 24.80 | C57: 24.80 | D57: 24.80 | E57: 24.33 | F57: 23.19 | G57: 23.35 | H57: 22.86 | I57: 21.90 | J57: 21.37 | K57: 20.82 | L57: 19.95 | M57: 19.84 | N57: 19.13 | O57: 18.39 | P57: 17.52 | Q57: 14.96 | R57: 11.51 | S57: 10.40 | T57: 8.01 | U57: 5.60 | V57: 5.25 | W57: 4.19 | X57: 3.66 | Y57: 3.10 | Z57: 3.01 | AA57: 2.67 | AB57: 2.16 | AC57: 1.74 | AD57: 1.67 | AE57: 1.39 | AF57: 1.32 | AG57: 1.26 | AH57: 1.04 | AI57: 0.91 | AJ57: 0.85
A58: ="primary_archetype_"&TEXT(ROUND(Table213[[#This Row],[2016]],1),"0.0") -> primary_archetype_24.7 | B58: 24.70 | C58: 24.70 | D58: 24.70 | E58: 24.23 | F58: 23.10 | G58: 23.26 | H58: 22.77 | I58: 21.82 | J58: 21.28 | K58: 20.73 | L58: 19.87 | M58: 19.76 | N58: 19.05 | O58: 18.32 | P58: 17.45 | Q58: 14.90 | R58: 11.46 | S58: 10.37 | T58: 7.98 | U58: 5.58 | V58: 5.23 | W58: 4.18 | X58: 3.65 | Y58: 3.09 | Z58: 3.00 | AA58: 2.66 | AB58: 2.15 | AC58: 1.74 | AD58: 1.67 | AE58: 1.39 | AF58: 1.31 | AG58: 1.26 | AH58: 1.04 | AI58: 0.91 | AJ58: 0.85
A59: ="primary_archetype_"&TEXT(ROUND(Table213[[#This Row],[2016]],1),"0.0") -> primary_archetype_24.6 | B59: 24.60 | C59: 24.60 | D59: 24.60 | E59: 24.13 | F59: 23.01 | G59: 23.16 | H59: 22.67 | I59: 21.73 | J59: 21.20 | K59: 20.65 | L59: 19.79 | M59: 19.68 | N59: 18.98 | O59: 18.24 | P59: 17.38 | Q59: 14.84 | R59: 11.42 | S59: 10.33 | T59: 7.95 | U59: 5.56 | V59: 5.21 | W59: 4.17 | X59: 3.64 | Y59: 3.08 | Z59: 3.00 | AA59: 2.65 | AB59: 2.15 | AC59: 1.74 | AD59: 1.67 | AE59: 1.39 | AF59: 1.31 | AG59: 1.25 | AH59: 1.04 | AI59: 0.91 | AJ59: 0.86
A60: ="primary_archetype_"&TEXT(ROUND(Table213[[#This Row],[2016]],1),"0.0") -> primary_archetype_24.5 | B60: 24.50 | C60: 24.50 | D60: 24.50 | E60: 24.04 | F60: 22.91 | G60: 23.07 | H60: 22.58 | I60: 21.64 | J60: 21.11 | K60: 20.57 | L60: 19.71 | M60: 19.60 | N60: 18.90 | O60: 18.17 | P60: 17.31 | Q60: 14.78 | R60: =MROUND((($B60-$AH$2)*((R$2-$AH$2)/($B$2-$AH$2)))+$AH$2,0.01) -> 11.37 | S60: 10.29 | T60: 7.92 | U60: 5.54 | V60: 5.20 | W60: 4.15 | X60: 3.62 | Y60: 3.07 | Z60: 2.99 | AA60: 2.64 | AB60: 2.14 | AC60: 1.73 | AD60: 1.67 | AE60: 1.39 | AF60: 1.31 | AG60: 1.25 | AH60: 1.04 | AI60: 0.91 | AJ60: 0.86
A61: ="primary_archetype_"&TEXT(ROUND(Table213[[#This Row],[2016]],1),"0.0") -> primary_archetype_24.4 | B61: 24.40 | C61: =MROUND((($B61-$AH$2)*((C$2-$AH$2)/($B$2-$AH$2)))+$AH$2,0.01) -> 24.40 | D61: 24.40 | E61: 23.94 | F61: 22.82 | G61: 22.98 | H61: 22.49 | I61: 21.55 | J61: 21.03 | K61: 20.48 | L61: 19.63 | M61: 19.53 | N61: 18.82 | O61: 18.10 | P61: 17.24 | Q61: 14.72 | R61: 11.33 | S61: 10.25 | T61: 7.89 | U61: 5.52 | V61: 5.18 | W61: 4.14 | X61: 3.61 | Y61: 3.07 | Z61: 2.98 | AA61: 2.64 | AB61: 2.14 | AC61: 1.73 | AD61: 1.66 | AE61: 1.39 | AF61: 1.31 | AG61: 1.25 | AH61: 1.04 | AI61: 0.91 | AJ61: 0.86
A62: ="primary_archetype_"&TEXT(ROUND(Table213[[#This Row],[2016]],1),"0.0") -> primary_archetype_24.3 | B62: 24.30 | C62: 24.30 | D62: 24.30 | E62: 23.84 | F62: 22.73 | G62: 22.88 | H62: 22.40 | I62: 21.46 | J62: 20.94 | K62: 20.40 | L62: 19.55 | M62: 19.45 | N62: 18.75 | O62: 18.03 | P62: 17.17 | Q62: 14.66 | R62: 11.29 | S62: 10.21 | T62: 7.86 | U62: 5.50 | V62: 5.16 | W62: 4.13 | X62: 3.60 | Y62: 3.06 | Z62: 2.97 | AA62: 2.63 | AB62: 2.13 | AC62: 1.73 | AD62: 1.66 | AE62: 1.39 | AF62: 1.31 | AG62: 1.25 | AH62: 1.04 | AI62: 0.92 | AJ62: 0.86
A63: ="primary_archetype_"&TEXT(ROUND(Table213[[#This Row],[2016]],1),"0.0") -> primary_archetype_24.2 | B63: 24.20 | C63: 24.20 | D63: 24.20 | E63: 23.74 | F63: 22.63 | G63: 22.79 | H63: 22.31 | I63: 21.38 | J63: 20.85 | K63: 20.32 | L63: 19.47 | M63: 19.37 | N63: 18.67 | O63: 17.95 | P63: 17.10 | Q63: 14.61 | R63: 11.24 | S63: 10.17 | T63: 7.84 | U63: 5.48 | V63: 5.14 | W63: 4.11 | X63: 3.59 | Y63: 3.05 | Z63: 2.96 | AA63: 2.62 | AB63: 2.13 | AC63: 1.72 | AD63: 1.66 | AE63: 1.38 | AF63: 1.31 | AG63: 1.25 | AH63: 1.04 | AI63: 0.92 | AJ63: 0.86
A64: ="primary_archetype_"&TEXT(ROUND(Table213[[#This Row],[2016]],1),"0.0") -> primary_archetype_24.1 | B64: 24.10 | C64: 24.10 | D64: 24.10 | E64: 23.64 | F64: 22.54 | G64: 22.69 | H64: 22.22 | I64: 21.29 | J64: 20.77 | K64: 20.23 | L64: 19.39 | M64: 19.29 | N64: 18.60 | O64: 17.88 | P64: 17.03 | Q64: 14.55 | R64: 11.20 | S64: 10.13 | T64: 7.81 | U64: 5.47 | V64: 5.13 | W64: 4.10 | X64: 3.58 | Y64: 3.04 | Z64: 2.95 | AA64: 2.62 | AB64: 2.12 | AC64: 1.72 | AD64: 1.65 | AE64: 1.38 | AF64: 1.31 | AG64: 1.25 | AH64: 1.04 | AI64: 0.92 | AJ64: 0.86
A65: ="primary_archetype_"&TEXT(ROUND(Table213[[#This Row],[2016]],1),"0.0") -> primary_archetype_24.0 | B65: 24.00 | C65: 24.00 | D65: 24.00 | E65: 23.55 | F65: 22.45 | G65: 22.60 | H65: 22.12 | I65: 21.20 | J65: 20.68 | K65: 20.15 | L65: 19.31 | M65: 19.21 | N65: 18.52 | O65: 17.81 | P65: 16.96 | Q65: 14.49 | R65: 11.15 | S65: 10.09 | T65: 7.78 | U65: 5.45 | V65: 5.11 | W65: 4.09 | X65: 3.57 | Y65: 3.03 | Z65: 2.95 | AA65: 2.61 | AB65: 2.12 | AC65: 1.72 | AD65: 1.65 | AE65: 1.38 | AF65: 1.31 | AG65: 1.25 | AH65: 1.04 | AI65: 0.92 | AJ65: 0.86
A66: ="primary_archetype_"&TEXT(ROUND(Table213[[#This Row],[2016]],1),"0.0") -> primary_archetype_23.9 | B66: 23.90 | C66: 23.90 | D66: 23.90 | E66: 23.45 | F66: 22.35 | G66: 22.51 | H66: 22.03 | I66: 21.11 | J66: 20.60 | K66: 20.07 | L66: 19.23 | M66: 19.13 | N66: 18.44 | O66: 17.73 | P66: 16.89 | Q66: 14.43 | R66: 11.11 | S66: 10.05 | T66: 7.75 | U66: 5.43 | V66: 5.09 | W66: 4.07 | X66: 3.56 | Y66: 3.02 | Z66: 2.94 | AA66: 2.60 | AB66: 2.12 | AC66: 1.72 | AD66: 1.65 | AE66: 1.38 | AF66: 1.30 | AG66: 1.25 | AH66: 1.04 | AI66: 0.92 | AJ66: 0.86
A67: ="primary_archetype_"&TEXT(ROUND(Table213[[#This Row],[2016]],1),"0.0") -> primary_archetype_23.8 | B67: 23.80 | C67: 23.80 | D67: 23.80 | E67: 23.35 | F67: 22.26 | G67: 22.41 | H67: 21.94 | I67: 21.03 | J67: 20.51 | K67: 19.98 | L67: 19.15 | M67: 19.05 | N67: 18.37 | O67: 17.66 | P67: 16.82 | Q67: 14.37 | R67: 11.07 | S67: 10.01 | T67: 7.72 | U67: 5.41 | V67: 5.07 | W67: 4.06 | X67: 3.55 | Y67: 3.01 | Z67: 2.93 | AA67: 2.60 | AB67: 2.11 | AC67: 1.71 | AD67: 1.65 | AE67: 1.38 | AF67: 1.30 | AG67: 1.25 | AH67: 1.04 | AI67: 0.92 | AJ67: 0.86
A68: ="primary_archetype_"&TEXT(ROUND(Table213[[#This Row],[2016]],1),"0.0") -> primary_archetype_23.7 | B68: 23.70 | C68: 23.70 | D68: 23.70 | E68: 23.25 | F68: 22.17 | G68: 22.32 | H68: 21.85 | I68: 20.94 | J68: 20.43 | K68: 19.90 | L68: 19.07 | M68: 18.97 | N68: 18.29 | O68: 17.59 | P68: 16.75 | Q68: 14.31 | R68: 11.02 | S68: 9.97 | T68: 7.69 | U68: 5.39 | V68: 5.05 | W68: 4.05 | X68: 3.54 | Y68: 3.00 | Z68: 2.92 | AA68: 2.59 | AB68: 2.11 | AC68: 1.71 | AD68: 1.64 | AE68: 1.38 | AF68: 1.30 | AG68: 1.25 | AH68: 1.04 | AI68: 0.92 | AJ68: 0.86
A69: ="primary_archetype_"&TEXT(ROUND(Table213[[#This Row],[2016]],1),"0.0") -> primary_archetype_23.6 | B69: 23.60 | C69: 23.60 | D69: 23.60 | E69: 23.15 | F69: 22.07 | G69: 22.22 | H69: 21.76 | I69: 20.85 | J69: 20.34 | K69: 19.82 | L69: 18.99 | M69: 18.89 | N69: 18.22 | O69: 17.51 | P69: 16.68 | Q69: 14.25 | R69: 10.98 | S69: 9.93 | T69: 7.66 | U69: 5.37 | V69: 5.04 | W69: 4.03 | X69: 3.53 | Y69: 3.00 | Z69: 2.91 | AA69: 2.58 | AB69: 2.10 | AC69: 1.71 | AD69: 1.64 | AE69: 1.38 | AF69: 1.30 | AG69: 1.25 | AH69: 1.04 | AI69: 0.92 | AJ69: 0.86
A70: ="primary_archetype_"&TEXT(ROUND(Table213[[#This Row],[2016]],1),"0.0") -> primary_archetype_23.5 | B70: 23.50 | C70: 23.50 | D70: 23.50 | E70: 23.06 | F70: 21.98 | G70: 22.13 | H70: 21.66 | I70: 20.76 | J70: 20.26 | K70: 19.73 | L70: 18.91 | M70: 18.81 | N70: 18.14 | O70: 17.44 | P70: 16.62 | Q70: 14.20 | R70: 10.93 | S70: 9.89 | T70: 7.63 | U70: 5.35 | V70: 5.02 | W70: 4.02 | X70: 3.51 | Y70: 2.99 | Z70: 2.90 | AA70: 2.58 | AB70: 2.10 | AC70: 1.70 | AD70: 1.64 | AE70: 1.37 | AF70: 1.30 | AG70: 1.24 | AH70: 1.04 | AI70: 0.92 | AJ70: 0.86
A71: ="primary_archetype_"&TEXT(ROUND(Table213[[#This Row],[2016]],1),"0.0") -> primary_archetype_23.4 | B71: =MROUND(B70-0.1,0.1) -> 23.40 | C71: 23.40 | D71: 23.40 | E71: 22.96 | F71: 21.89 | G71: 22.04 | H71: 21.57 | I71: 20.67 | J71: 20.17 | K71: 19.65 | L71: 18.83 | M71: 18.73 | N71: 18.06 | O71: 17.37 | P71: 16.55 | Q71: 14.14 | R71: 10.89 | S71: 9.85 | T71: 7.60 | U71: 5.33 | V71: 5.00 | W71: 4.01 | X71: 3.50 | Y71: 2.98 | Z71: 2.90 | AA71: 2.57 | AB71: 2.09 | AC71: 1.70 | AD71: 1.64 | AE71: 1.37 | AF71: 1.30 | AG71: 1.24 | AH71: 1.04 | AI71: 0.92 | AJ71: 0.86
A72: ="primary_archetype_"&TEXT(ROUND(Table213[[#This Row],[2016]],1),"0.0") -> primary_archetype_23.3 | B72: 23.30 | C72: 23.30 | D72: 23.30 | E72: 22.86 | F72: 21.79 | G72: 21.94 | H72: 21.48 | I72: 20.59 | J72: 20.08 | K72: 19.57 | L72: 18.75 | M72: 18.65 | N72: 17.99 | O72: 17.29 | P72: 16.48 | Q72: 14.08 | R72: 10.84 | S72: 9.81 | T72: 7.57 | U72: 5.31 | V72: 4.98 | W72: 3.99 | X72: 3.49 | Y72: 2.97 | Z72: 2.89 | AA72: 2.56 | AB72: 2.09 | AC72: 1.70 | AD72: 1.63 | AE72: 1.37 | AF72: 1.30 | AG72: 1.24 | AH72: 1.04 | AI72: 0.92 | AJ72: 0.87
A73: ="primary_archetype_"&TEXT(ROUND(Table213[[#This Row],[2016]],1),"0.0") -> primary_archetype_23.2 | B73: 23.20 | C73: 23.20 | D73: 23.20 | E73: 22.76 | F73: 21.70 | G73: 21.85 | H73: 21.39 | I73: 20.50 | J73: 20.00 | K73: 19.48 | L73: 18.67 | M73: 18.58 | N73: 17.91 | O73: 17.22 | P73: 16.41 | Q73: 14.02 | R73: 10.80 | S73: 9.77 | T73: 7.54 | U73: 5.29 | V73: 4.97 | W73: 3.98 | X73: 3.48 | Y73: 2.96 | Z73: 2.88 | AA73: 2.56 | AB73: 2.08 | AC73: 1.69 | AD73: 1.63 | AE73: 1.37 | AF73: 1.30 | AG73: 1.24 | AH73: 1.04 | AI73: 0.92 | AJ73: 0.87
A74: ="primary_archetype_"&TEXT(ROUND(Table213[[#This Row],[2016]],1),"0.0") -> primary_archetype_23.1 | B74: 23.10 | C74: 23.10 | D74: 23.10 | E74: 22.66 | F74: 21.61 | G74: 21.76 | H74: 21.30 | I74: 20.41 | J74: 19.91 | K74: 19.40 | L74: 18.59 | M74: 18.50 | N74: 17.83 | O74: 17.15 | P74: 16.34 | Q74: 13.96 | R74: 10.76 | S74: 9.73 | T74: 7.51 | U74: 5.27 | V74: 4.95 | W74: 3.97 | X74: 3.47 | Y74: 2.95 | Z74: 2.87 | AA74: 2.55 | AB74: 2.08 | AC74: 1.69 | AD74: 1.63 | AE74: 1.37 | AF74: 1.30 | AG74: 1.24 | AH74: 1.04 | AI74: 0.92 | AJ74: 0.87
A75: ="primary_archetype_"&TEXT(ROUND(Table213[[#This Row],[2016]],1),"0.0") -> primary_archetype_23.0 | B75: 23.00 | C75: 23.00 | D75: 23.00 | E75: 22.57 | F75: 21.51 | G75: 21.66 | H75: 21.21 | I75: 20.32 | J75: 19.83 | K75: 19.32 | L75: 18.51 | M75: 18.42 | N75: 17.76 | O75: 17.08 | P75: 16.27 | Q75: 13.90 | R75: 10.71 | S75: 9.70 | T75: 7.48 | U75: 5.25 | V75: 4.93 | W75: 3.95 | X75: 3.46 | Y75: 2.94 | Z75: 2.86 | AA75: 2.54 | AB75: 2.07 | AC75: 1.69 | AD75: 1.63 | AE75: 1.37 | AF75: 1.29 | AG75: 1.24 | AH75: 1.04 | AI75: 0.92 | AJ75: 0.87
A76: ="primary_archetype_"&TEXT(ROUND(Table213[[#This Row],[2016]],1),"0.0") -> primary_archetype_22.9 | B76: 22.90 | C76: 22.90 | D76: 22.90 | E76: 22.47 | F76: 21.42 | G76: 21.57 | H76: 21.11 | I76: 20.24 | J76: 19.74 | K76: 19.24 | L76: 18.44 | M76: 18.34 | N76: 17.68 | O76: 17.00 | P76: 16.20 | Q76: 13.84 | R76: =MROUND((($B76-$AH$2)*((R$2-$AH$2)/($B$2-$AH$2)))+$AH$2,0.01) -> 10.67 | S76: 9.66 | T76: 7.45 | U76: 5.24 | V76: 4.91 | W76: 3.94 | X76: 3.45 | Y76: 2.94 | Z76: 2.85 | AA76: 2.54 | AB76: 2.07 | AC76: 1.69 | AD76: 1.62 | AE76: 1.36 | AF76: 1.29 | AG76: 1.24 | AH76: 1.04 | AI76: 0.92 | AJ76: 0.87
A77: ="primary_archetype_"&TEXT(ROUND(Table213[[#This Row],[2016]],1),"0.0") -> primary_archetype_22.8 | B77: 22.80 | C77: =MROUND((($B77-$AH$2)*((C$2-$AH$2)/($B$2-$AH$2)))+$AH$2,0.01) -> 22.80 | D77: 22.80 | E77: 22.37 | F77: 21.33 | G77: 21.47 | H77: 21.02 | I77: 20.15 | J77: 19.66 | K77: 19.15 | L77: 18.36 | M77: 18.26 | N77: 17.61 | O77: 16.93 | P77: 16.13 | Q77: 13.79 | R77: 10.62 | S77: 9.62 | T77: 7.42 | U77: 5.22 | V77: 4.90 | W77: 3.93 | X77: 3.44 | Y77: 2.93 | Z77: 2.85 | AA77: 2.53 | AB77: 2.06 | AC77: 1.68 | AD77: 1.62 | AE77: 1.36 | AF77: 1.29 | AG77: 1.24 | AH77: 1.04 | AI77: 0.92 | AJ77: 0.87
A78: ="primary_archetype_"&TEXT(ROUND(Table213[[#This Row],[2016]],1),"0.0") -> primary_archetype_22.7 | B78: 22.70 | C78: 22.70 | D78: 22.70 | E78: 22.27 | F78: 21.23 | G78: 21.38 | H78: 20.93 | I78: 20.06 | J78: 19.57 | K78: 19.07 | L78: 18.28 | M78: 18.18 | N78: 17.53 | O78: 16.86 | P78: 16.06 | Q78: 13.73 | R78: 10.58 | S78: 9.58 | T78: 7.40 | U78: 5.20 | V78: 4.88 | W78: 3.91 | X78: 3.43 | Y78: 2.92 | Z78: 2.84 | AA78: 2.52 | AB78: 2.06 | AC78: 1.68 | AD78: 1.62 | AE78: 1.36 | AF78: 1.29 | AG78: 1.24 | AH78: 1.04 | AI78: 0.92 | AJ78: 0.87
A79: ="primary_archetype_"&TEXT(ROUND(Table213[[#This Row],[2016]],1),"0.0") -> primary_archetype_22.6 | B79: 22.60 | C79: 22.60 | D79: 22.60 | E79: 22.17 | F79: 21.14 | G79: 21.29 | H79: 20.84 | I79: 19.97 | J79: 19.49 | K79: 18.99 | L79: 18.20 | M79: 18.10 | N79: 17.45 | O79: 16.78 | P79: 15.99 | Q79: 13.67 | R79: 10.54 | S79: 9.54 | T79: 7.37 | U79: 5.18 | V79: 4.86 | W79: 3.90 | X79: 3.41 | Y79: 2.91 | Z79: 2.83 | AA79: 2.51 | AB79: 2.05 | AC79: 1.68 | AD79: 1.61 | AE79: 1.36 | AF79: 1.29 | AG79: 1.24 | AH79: 1.04 | AI79: 0.92 | AJ79: 0.87
A80: ="primary_archetype_"&TEXT(ROUND(Table213[[#This Row],[2016]],1),"0.0") -> primary_archetype_22.5 | B80: 22.50 | C80: 22.50 | D80: 22.50 | E80: 22.08 | F80: 21.05 | G80: 21.19 | H80: 20.75 | I80: 19.88 | J80: 19.40 | K80: 18.90 | L80: 18.12 | M80: 18.02 | N80: 17.38 | O80: 16.71 | P80: 15.92 | Q80: 13.61 | R80: 10.49 | S80: 9.50 | T80: 7.34 | U80: 5.16 | V80: 4.84 | W80: 3.89 | X80: 3.40 | Y80: 2.90 | Z80: 2.82 | AA80: 2.51 | AB80: 2.05 | AC80: 1.67 | AD80: 1.61 | AE80: 1.36 | AF80: 1.29 | AG80: 1.24 | AH80: 1.04 | AI80: 0.92 | AJ80: 0.87
A81: ="primary_archetype_"&TEXT(ROUND(Table213[[#This Row],[2016]],1),"0.0") -> primary_archetype_22.4 | B81: 22.40 | C81: 22.40 | D81: 22.40 | E81: 21.98 | F81: 20.96 | G81: 21.10 | H81: 20.65 | I81: 19.80 | J81: 19.31 | K81: 18.82 | L81: 18.04 | M81: 17.94 | N81: 17.30 | O81: 16.64 | P81: 15.85 | Q81: 13.55 | R81: 10.45 | S81: 9.46 | T81: 7.31 | U81: 5.14 | V81: 4.82 | W81: 3.87 | X81: 3.39 | Y81: 2.89 | Z81: 2.81 | AA81: 2.50 | AB81: 2.04 | AC81: 1.67 | AD81: 1.61 | AE81: 1.36 | AF81: 1.29 | AG81: 1.23 | AH81: 1.04 | AI81: 0.93 | AJ81: 0.87
A82: ="primary_archetype_"&TEXT(ROUND(Table213[[#This Row],[2016]],1),"0.0") -> primary_archetype_22.3 | B82: 22.30 | C82: 22.30 | D82: 22.30 | E82: 21.88 | F82: 20.86 | G82: 21.00 | H82: 20.56 | I82: 19.71 | J82: 19.23 | K82: 18.74 | L82: 17.96 | M82: 17.86 | N82: 17.23 | O82: 16.56 | P82: 15.78 | Q82: 13.49 | R82: 10.40 | S82: 9.42 | T82: 7.28 | U82: 5.12 | V82: 4.81 | W82: 3.86 | X82: 3.38 | Y82: 2.88 | Z82: 2.81 | AA82: 2.49 | AB82: 2.04 | AC82: 1.67 | AD82: 1.61 | AE82: 1.36 | AF82: 1.29 | AG82: 1.23 | AH82: 1.04 | AI82: =MROUND((($B82-$AH$2)*((AI$2-$AH$2)/($B$2-$AH$2)))+$AH$2,0.01) -> 0.93 | AJ82: 0.87
A83: ="primary_archetype_"&TEXT(ROUND(Table213[[#This Row],[2016]],1),"0.0") -> primary_archetype_22.2 | B83: 22.20 | C83: 22.20 | D83: 22.20 | E83: 21.78 | F83: 20.77 | G83: 20.91 | H83: 20.47 | I83: 19.62 | J83: 19.14 | K83: 18.65 | L83: 17.88 | M83: 17.78 | N83: 17.15 | O83: 16.49 | P83: 15.71 | Q83: 13.43 | R83: 10.36 | S83: 9.38 | T83: 7.25 | U83: 5.10 | V83: 4.79 | W83: 3.85 | X83: 3.37 | Y83: 2.87 | Z83: 2.80 | AA83: 2.49 | AB83: 2.04 | AC83: 1.67 | AD83: 1.60 | AE83: 1.35 | AF83: 1.28 | AG83: 1.23 | AH83: =MROUND((($B83-$AH$2)*((AH$2-$AH$2)/($B$2-$AH$2)))+$AH$2,0.01) -> 1.04 | AI83: 0.93 | AJ83: 0.87
A84: ="primary_archetype_"&TEXT(ROUND(Table213[[#This Row],[2016]],1),"0.0") -> primary_archetype_22.1 | B84: 22.10 | C84: 22.10 | D84: 22.10 | E84: 21.68 | F84: 20.68 | G84: 20.82 | H84: 20.38 | I84: 19.53 | J84: 19.06 | K84: 18.57 | L84: 17.80 | M84: 17.71 | N84: 17.07 | O84: 16.42 | P84: 15.64 | Q84: 13.38 | R84: 10.32 | S84: 9.34 | T84: 7.22 | U84: 5.08 | V84: 4.77 | W84: 3.83 | X84: 3.36 | Y84: 2.87 | Z84: 2.79 | AA84: 2.48 | AB84: 2.03 | AC84: 1.66 | AD84: 1.60 | AE84: 1.35 | AF84: 1.28 | AG84: 1.23 | AH84: 1.04 | AI84: 0.93 | AJ84: 0.87
A85: ="primary_archetype_"&TEXT(ROUND(Table213[[#This Row],[2016]],1),"0.0") -> primary_archetype_22.0 | B85: 22.00 | C85: 22.00 | D85: 22.00 | E85: 21.59 | F85: 20.58 | G85: 20.72 | H85: 20.29 | I85: 19.44 | J85: 18.97 | K85: 18.49 | L85: 17.72 | M85: 17.63 | N85: 17.00 | O85: 16.35 | P85: 15.58 | Q85: 13.32 | R85: 10.27 | S85: 9.30 | T85: 7.19 | U85: 5.06 | V85: 4.75 | W85: 3.82 | X85: 3.35 | Y85: 2.86 | Z85: 2.78 | AA85: 2.47 | AB85: 2.03 | AC85: 1.66 | AD85: 1.60 | AE85: 1.35 | AF85: 1.28 | AG85: 1.23 | AH85: 1.04 | AI85: 0.93 | AJ85: 0.88
A86: ="primary_archetype_"&TEXT(ROUND(Table213[[#This Row],[2016]],1),"0.0") -> primary_archetype_21.9 | B86: 21.90 | C86: 21.90 | D86: 21.90 | E86: 21.49 | F86: 20.49 | G86: 20.63 | H86: 20.20 | I86: 19.36 | J86: 18.89 | K86: 18.40 | L86: 17.64 | M86: 17.55 | N86: 16.92 | O86: 16.27 | P86: 15.51 | Q86: 13.26 | R86: 10.23 | S86: 9.26 | T86: 7.16 | U86: 5.04 | V86: 4.74 | W86: 3.81 | X86: 3.34 | Y86: 2.85 | Z86: 2.77 | AA86: 2.47 | AB86: 2.02 | AC86: 1.66 | AD86: 1.60 | AE86: 1.35 | AF86: 1.28 | AG86: 1.23 | AH86: 1.04 | AI86: 0.93 | AJ86: 0.88
A87: ="primary_archetype_"&TEXT(ROUND(Table213[[#This Row],[2016]],1),"0.0") -> primary_archetype_21.8 | B87: 21.80 | C87: 21.80 | D87: 21.80 | E87: 21.39 | F87: 20.40 | G87: 20.53 | H87: 20.10 | I87: 19.27 | J87: 18.80 | K87: 18.32 | L87: 17.56 | M87: 17.47 | N87: 16.85 | O87: 16.20 | P87: 15.44 | Q87: 13.20 | R87: 10.18 | S87: 9.22 | T87: 7.13 | U87: 5.02 | V87: 4.72 | W87: 3.80 | X87: 3.33 | Y87: 2.84 | Z87: 2.76 | AA87: 2.46 | AB87: 2.02 | AC87: 1.65 | AD87: 1.59 | AE87: 1.35 | AF87: 1.28 | AG87: 1.23 | AH87: 1.04 | AI87: 0.93 | AJ87: 0.88
A88: ="primary_archetype_"&TEXT(ROUND(Table213[[#This Row],[2016]],1),"0.0") -> primary_archetype_21.7 | B88: 21.70 | C88: 21.70 | D88: 21.70 | E88: 21.29 | F88: 20.30 | G88: 20.44 | H88: 20.01 | I88: 19.18 | J88: 18.72 | K88: 18.24 | L88: 17.48 | M88: 17.39 | N88: 16.77 | O88: 16.13 | P88: 15.37 | Q88: 13.14 | R88: 10.14 | S88: 9.18 | T88: 7.10 | U88: 5.00 | V88: 4.70 | W88: 3.78 | X88: 3.32 | Y88: 2.83 | Z88: 2.76 | AA88: 2.45 | AB88: 2.01 | AC88: 1.65 | AD88: 1.59 | AE88: 1.35 | AF88: 1.28 | AG88: 1.23 | AH88: 1.04 | AI88: 0.93 | AJ88: 0.88
A89: ="primary_archetype_"&TEXT(ROUND(Table213[[#This Row],[2016]],1),"0.0") -> primary_archetype_21.6 | B89: 21.60 | C89: 21.60 | D89: 21.60 | E89: 21.19 | F89: 20.21 | G89: 20.35 | H89: 19.92 | I89: 19.09 | J89: 18.63 | K89: 18.15 | L89: 17.40 | M89: 17.31 | N89: 16.69 | O89: 16.05 | P89: 15.30 | Q89: 13.08 | R89: 10.10 | S89: 9.14 | T89: 7.07 | U89: 4.99 | V89: 4.68 | W89: 3.77 | X89: 3.30 | Y89: 2.82 | Z89: 2.75 | AA89: 2.45 | AB89: 2.01 | AC89: 1.65 | AD89: 1.59 | AE89: 1.35 | AF89: 1.28 | AG89: 1.23 | AH89: 1.04 | AI89: 0.93 | AJ89: 0.88
A90: ="primary_archetype_"&TEXT(ROUND(Table213[[#This Row],[2016]],1),"0.0") -> primary_archetype_21.5 | B90: 21.50 | C90: 21.50 | D90: 21.50 | E90: 21.10 | F90: 20.12 | G90: 20.25 | H90: 19.83 | I90: 19.01 | J90: 18.54 | K90: 18.07 | L90: 17.32 | M90: 17.23 | N90: 16.62 | O90: 15.98 | P90: 15.23 | Q90: 13.02 | R90: 10.05 | S90: 9.10 | T90: 7.04 | U90: 4.97 | V90: 4.66 | W90: 3.76 | X90: 3.29 | Y90: 2.81 | Z90: 2.74 | AA90: 2.44 | AB90: 2.00 | AC90: 1.64 | AD90: 1.59 | AE90: 1.34 | AF90: 1.28 | AG90: 1.23 | AH90: 1.04 | AI90: 0.93 | AJ90: 0.88
A91: ="primary_archetype_"&TEXT(ROUND(Table213[[#This Row],[2016]],1),"0.0") -> primary_archetype_21.4 | B91: 21.40 | C91: 21.40 | D91: 21.40 | E91: 21.00 | F91: 20.02 | G91: 20.16 | H91: 19.74 | I91: 18.92 | J91: 18.46 | K91: 17.99 | L91: 17.24 | M91: 17.15 | N91: 16.54 | O91: 15.91 | P91: 15.16 | Q91: 12.97 | R91: 10.01 | S91: 9.06 | T91: 7.01 | U91: 4.95 | V91: 4.65 | W91: 3.74 | X91: 3.28 | Y91: 2.80 | Z91: 2.73 | AA91: 2.43 | AB91: 2.00 | AC91: 1.64 | AD91: 1.58 | AE91: 1.34 | AF91: 1.28 | AG91: 1.22 | AH91: 1.04 | AI91: 0.93 | AJ91: 0.88
A92: ="primary_archetype_"&TEXT(ROUND(Table213[[#This Row],[2016]],1),"0.0") -> primary_archetype_21.3 | B92: 21.30 | C92: 21.30 | D92: 21.30 | E92: 20.90 | F92: 19.93 | G92: 20.07 | H92: 19.64 | I92: 18.83 | J92: 18.37 | K92: 17.90 | L92: 17.16 | M92: 17.07 | N92: 16.46 | O92: 15.83 | P92: 15.09 | Q92: 12.91 | R92: =MROUND((($B92-$AH$2)*((R$2-$AH$2)/($B$2-$AH$2)))+$AH$2,0.01) -> 9.96 | S92: 9.02 | T92: 6.98 | U92: 4.93 | V92: 4.63 | W92: 3.73 | X92: 3.27 | Y92: 2.80 | Z92: 2.72 | AA92: 2.43 | AB92: 1.99 | AC92: 1.64 | AD92: 1.58 | AE92: 1.34 | AF92: 1.27 | AG92: 1.22 | AH92: 1.04 | AI92: 0.93 | AJ92: 0.88
A93: ="primary_archetype_"&TEXT(ROUND(Table213[[#This Row],[2016]],1),"0.0") -> primary_archetype_21.2 | B93: 21.20 | C93: =MROUND((($B93-$AH$2)*((C$2-$AH$2)/($B$2-$AH$2)))+$AH$2,0.01) -> 21.20 | D93: 21.20 | E93: 20.80 | F93: 19.84 | G93: 19.97 | H93: 19.55 | I93: 18.74 | J93: 18.29 | K93: 17.82 | L93: 17.08 | M93: 16.99 | N93: 16.39 | O93: 15.76 | P93: 15.02 | Q93: 12.85 | R93: 9.92 | S93: 8.99 | T93: 6.95 | U93: 4.91 | V93: 4.61 | W93: 3.72 | X93: 3.26 | Y93: 2.79 | Z93: 2.71 | AA93: 2.42 | AB93: 1.99 | AC93: 1.64 | AD93: 1.58 | AE93: 1.34 | AF93: 1.27 | AG93: 1.22 | AH93: 1.04 | AI93: 0.93 | AJ93: 0.88
A94: ="primary_archetype_"&TEXT(ROUND(Table213[[#This Row],[2016]],1),"0.0") -> primary_archetype_21.1 | B94: 21.10 | C94: 21.10 | D94: 21.10 | E94: 20.70 | F94: 19.74 | G94: 19.88 | H94: 19.46 | I94: 18.65 | J94: 18.20 | K94: 17.74 | L94: 17.00 | M94: 16.91 | N94: 16.31 | O94: 15.69 | P94: 14.95 | Q94: 12.79 | R94: 9.88 | S94: 8.95 | T94: 6.93 | U94: 4.89 | V94: 4.59 | W94: 3.70 | X94: 3.25 | Y94: 2.78 | Z94: 2.71 | AA94: 2.41 | AB94: 1.98 | AC94: 1.63 | AD94: 1.57 | AE94: 1.34 | AF94: 1.27 | AG94: 1.22 | AH94: 1.04 | AI94: 0.93 | AJ94: 0.88
A95: ="primary_archetype_"&TEXT(ROUND(Table213[[#This Row],[2016]],1),"0.0") -> primary_archetype_21.0 | B95: 21.00 | C95: 21.00 | D95: 21.00 | E95: 20.60 | F95: 19.65 | G95: 19.78 | H95: 19.37 | I95: 18.57 | J95: 18.12 | K95: 17.65 | L95: 16.92 | M95: 16.83 | N95: 16.24 | O95: 15.62 | P95: 14.88 | Q95: 12.73 | R95: 9.83 | S95: 8.91 | T95: 6.90 | U95: 4.87 | V95: 4.58 | W95: 3.69 | X95: 3.24 | Y95: 2.77 | Z95: 2.70 | AA95: 2.41 | AB95: 1.98 | AC95: 1.63 | AD95: 1.57 | AE95: 1.34 | AF95: 1.27 | AG95: 1.22 | AH95: 1.04 | AI95: 0.93 | AJ95: 0.88
A96: ="primary_archetype_"&TEXT(ROUND(Table213[[#This Row],[2016]],1),"0.0") -> primary_archetype_20.9 | B96: 20.90 | C96: 20.90 | D96: 20.90 | E96: 20.51 | F96: 19.56 | G96: 19.69 | H96: 19.28 | I96: 18.48 | J96: 18.03 | K96: 17.57 | L96: 16.84 | M96: 16.76 | N96: 16.16 | O96: 15.54 | P96: 14.81 | Q96: 12.67 | R96: 9.79 | S96: 8.87 | T96: 6.87 | U96: 4.85 | V96: 4.56 | W96: 3.68 | X96: 3.23 | Y96: 2.76 | Z96: 2.69 | AA96: 2.40 | AB96: 1.97 | AC96: 1.63 | AD96: 1.57 | AE96: 1.33 | AF96: 1.27 | AG96: 1.22 | AH96: 1.04 | AI96: 0.93 | AJ96: 0.88
A97: ="primary_archetype_"&TEXT(ROUND(Table213[[#This Row],[2016]],1),"0.0") -> primary_archetype_20.8 | B97: 20.80 | C97: 20.80 | D97: 20.80 | E97: 20.41 | F97: 19.46 | G97: 19.60 | H97: 19.19 | I97: 18.39 | J97: 17.95 | K97: 17.49 | L97: 16.76 | M97: 16.68 | N97: 16.08 | O97: 15.47 | P97: 14.74 | Q97: 12.61 | R97: 9.74 | S97: 8.83 | T97: 6.84 | U97: 4.83 | V97: 4.54 | W97: 3.66 | X97: 3.22 | Y97: 2.75 | Z97: 2.68 | AA97: 2.39 | AB97: 1.97 | AC97: 1.62 | AD97: 1.57 | AE97: 1.33 | AF97: 1.27 | AG97: 1.22 | AH97: 1.04 | AI97: 0.93 | AJ97: 0.88
A98: ="primary_archetype_"&TEXT(ROUND(Table213[[#This Row],[2016]],1),"0.0") -> primary_archetype_20.7 | B98: 20.70 | C98: 20.70 | D98: 20.70 | E98: 20.31 | F98: 19.37 | G98: 19.50 | H98: 19.09 | I98: 18.30 | J98: 17.86 | K98: 17.40 | L98: 16.68 | M98: 16.60 | N98: 16.01 | O98: 15.40 | P98: 14.67 | Q98: 12.56 | R98: 9.70 | S98: 8.79 | T98: 6.81 | U98: 4.81 | V98: 4.52 | W98: 3.65 | X98: 3.21 | Y98: 2.74 | Z98: 2.67 | AA98: 2.38 | AB98: 1.96 | AC98: 1.62 | AD98: 1.56 | AE98: 1.33 | AF98: 1.27 | AG98: 1.22 | AH98: 1.04 | AI98: 0.93 | AJ98: 0.89
A99: ="primary_archetype_"&TEXT(ROUND(Table213[[#This Row],[2016]],1),"0.0") -> primary_archetype_20.6 | B99: 20.60 | C99: 20.60 | D99: 20.60 | E99: 20.21 | F99: 19.28 | G99: 19.41 | H99: 19.00 | I99: 18.22 | J99: 17.77 | K99: 17.32 | L99: 16.60 | M99: 16.52 | N99: 15.93 | O99: 15.32 | P99: 14.60 | Q99: 12.50 | R99: 9.66 | S99: 8.75 | T99: 6.78 | U99: 4.79 | V99: 4.51 | W99: 3.64 | X99: 3.19 | Y99: 2.74 | Z99: 2.66 | AA99: 2.38 | AB99: 1.96 | AC99: 1.62 | AD99: 1.56 | AE99: 1.33 | AF99: 1.27 | AG99: 1.22 | AH99: 1.04 | AI99: 0.93 | AJ99: 0.89
A100: ="primary_archetype_"&TEXT(ROUND(Table213[[#This Row],[2016]],1),"0.0") -> primary_archetype_20.5 | B100: 20.50 | C100: 20.50 | D100: 20.50 | E100: 20.11 | F100: 19.18 | G100: 19.31 | H100: 18.91 | I100: 18.13 | J100: 17.69 | K100: 17.24 | L100: 16.53 | M100: 16.44 | N100: 15.86 | O100: 15.25 | P100: 14.53 | Q100: 12.44 | R100: 9.61 | S100: 8.71 | T100: 6.75 | U100: 4.77 | V100: 4.49 | W100: 3.62 | X100: 3.18 | Y100: 2.73 | Z100: 2.66 | AA100: 2.37 | AB100: 1.96 | AC100: 1.61 | AD100: 1.56 | AE100: 1.33 | AF100: 1.26 | AG100: 1.22 | AH100: 1.04 | AI100: 0.94 | AJ100: 0.89
A101: ="primary_archetype_"&TEXT(ROUND(Table213[[#This Row],[2016]],1),"0.0") -> primary_archetype_20.4 | B101: 20.40 | C101: 20.40 | D101: 20.40 | E101: 20.02 | F101: 19.09 | G101: 19.22 | H101: 18.82 | I101: 18.04 | J101: 17.60 | K101: 17.15 | L101: 16.45 | M101: 16.36 | N101: 15.78 | O101: 15.18 | P101: 14.47 | Q101: 12.38 | R101: 9.57 | S101: 8.67 | T101: 6.72 | U101: 4.76 | V101: 4.47 | W101: 3.61 | X101: 3.17 | Y101: 2.72 | Z101: 2.65 | AA101: 2.36 | AB101: 1.95 | AC101: 1.61 | AD101: 1.56 | AE101: 1.33 | AF101: 1.26 | AG101: 1.22 | AH101: 1.04 | AI101: 0.94 | AJ101: 0.89
A102: ="primary_archetype_"&TEXT(ROUND(Table213[[#This Row],[2016]],1),"0.0") -> primary_archetype_20.3 | B102: 20.30 | C102: 20.30 | D102: 20.30 | E102: 19.92 | F102: 19.00 | G102: 19.13 | H102: 18.73 | I102: 17.95 | J102: 17.52 | K102: 17.07 | L102: 16.37 | M102: 16.28 | N102: 15.70 | O102: 15.10 | P102: 14.40 | Q102: 12.32 | R102: 9.52 | S102: 8.63 | T102: 6.69 | U102: 4.74 | V102: 4.45 | W102: 3.60 | X102: 3.16 | Y102: 2.71 | Z102: 2.64 | AA102: 2.36 | AB102: 1.95 | AC102: 1.61 | AD102: 1.55 | AE102: 1.33 | AF102: 1.26 | AG102: 1.21 | AH102: 1.04 | AI102: 0.94 | AJ102: 0.89
A103: ="primary_archetype_"&TEXT(ROUND(Table213[[#This Row],[2016]],1),"0.0") -> primary_archetype_20.2 | B103: 20.20 | C103: 20.20 | D103: 20.20 | E103: 19.82 | F103: 18.90 | G103: 19.03 | H103: 18.63 | I103: 17.86 | J103: 17.43 | K103: 16.99 | L103: 16.29 | M103: 16.20 | N103: 15.63 | O103: 15.03 | P103: 14.33 | Q103: 12.26 | R103: 9.48 | S103: 8.59 | T103: 6.66 | U103: 4.72 | V103: 4.43 | W103: 3.58 | X103: 3.15 | Y103: 2.70 | Z103: 2.63 | AA103: 2.35 | AB103: 1.94 | AC103: 1.61 | AD103: 1.55 | AE103: 1.32 | AF103: 1.26 | AG103: 1.21 | AH103: 1.04 | AI103: 0.94 | AJ103: 0.89
A104: ="primary_archetype_"&TEXT(ROUND(Table213[[#This Row],[2016]],1),"0.0") -> primary_archetype_20.1 | B104: 20.10 | C104: 20.10 | D104: 20.10 | E104: 19.72 | F104: 18.81 | G104: 18.94 | H104: 18.54 | I104: 17.78 | J104: 17.35 | K104: 16.90 | L104: 16.21 | M104: 16.12 | N104: 15.55 | O104: 14.96 | P104: 14.26 | Q104: 12.20 | R104: 9.44 | S104: 8.55 | T104: 6.63 | U104: 4.70 | V104: 4.42 | W104: 3.57 | X104: 3.14 | Y104: 2.69 | Z104: 2.62 | AA104: 2.34 | AB104: 1.94 | AC104: 1.60 | AD104: 1.55 | AE104: 1.32 | AF104: 1.26 | AG104: 1.21 | AH104: 1.04 | AI104: 0.94 | AJ104: 0.89
A105: ="primary_archetype_"&TEXT(ROUND(Table213[[#This Row],[2016]],1),"0.0") -> primary_archetype_20.0 | B105: 20.00 | C105: 20.00 | D105: 20.00 | E105: 19.62 | F105: 18.72 | G105: 18.84 | H105: 18.45 | I105: 17.69 | J105: 17.26 | K105: 16.82 | L105: 16.13 | M105: 16.04 | N105: 15.47 | O105: 14.89 | P105: 14.19 | Q105: 12.15 | R105: 9.39 | S105: 8.51 | T105: 6.60 | U105: 4.68 | V105: 4.40 | W105: 3.56 | X105: 3.13 | Y105: 2.68 | Z105: 2.61 | AA105: 2.34 | AB105: 1.93 | AC105: 1.60 | AD105: 1.54 | AE105: 1.32 | AF105: 1.26 | AG105: 1.21 | AH105: 1.04 | AI105: 0.94 | AJ105: 0.89
A106: ="primary_archetype_"&TEXT(ROUND(Table213[[#This Row],[2016]],1),"0.0") -> primary_archetype_19.9 | B106: 19.90 | C106: 19.90 | D106: 19.90 | E106: 19.53 | F106: 18.62 | G106: 18.75 | H106: 18.36 | I106: 17.60 | J106: 17.18 | K106: 16.74 | L106: 16.05 | M106: 15.96 | N106: 15.40 | O106: 14.81 | P106: 14.12 | Q106: 12.09 | R106: 9.35 | S106: 8.47 | T106: 6.57 | U106: 4.66 | V106: 4.38 | W106: 3.54 | X106: 3.12 | Y106: 2.67 | Z106: 2.61 | AA106: 2.33 | AB106: 1.93 | AC106: 1.60 | AD106: 1.54 | AE106: 1.32 | AF106: 1.26 | AG106: 1.21 | AH106: 1.04 | AI106: 0.94 | AJ106: 0.89
A107: ="primary_archetype_"&TEXT(ROUND(Table213[[#This Row],[2016]],1),"0.0") -> primary_archetype_19.8 | B107: 19.80 | C107: 19.80 | D107: 19.80 | E107: 19.43 | F107: 18.53 | G107: 18.66 | H107: 18.27 | I107: 17.51 | J107: 17.09 | K107: 16.65 | L107: 15.97 | M107: 15.88 | N107: 15.32 | O107: 14.74 | P107: 14.05 | Q107: 12.03 | R107: 9.30 | S107: 8.43 | T107: 6.54 | U107: 4.64 | V107: 4.36 | W107: 3.53 | X107: 3.11 | Y107: 2.67 | Z107: 2.60 | AA107: 2.32 | AB107: 1.92 | AC107: 1.59 | AD107: 1.54 | AE107: 1.32 | AF107: 1.26 | AG107: 1.21 | AH107: 1.04 | AI107: 0.94 | AJ107: 0.89
A108: ="primary_archetype_"&TEXT(ROUND(Table213[[#This Row],[2016]],1),"0.0") -> primary_archetype_19.7 | B108: 19.70 | C108: 19.70 | D108: 19.70 | E108: 19.33 | F108: 18.44 | G108: 18.56 | H108: 18.17 | I108: 17.43 | J108: 17.00 | K108: 16.57 | L108: 15.89 | M108: 15.81 | N108: 15.25 | O108: 14.67 | P108: 13.98 | Q108: 11.97 | R108: =MROUND((($B108-$AH$2)*((R$2-$AH$2)/($B$2-$AH$2)))+$AH$2,0.01) -> 9.26 | S108: 8.39 | T108: 6.51 | U108: 4.62 | V108: 4.35 | W108: 3.52 | X108: 3.10 | Y108: 2.66 | Z108: 2.59 | AA108: 2.32 | AB108: 1.92 | AC108: 1.59 | AD108: 1.54 | AE108: 1.32 | AF108: 1.26 | AG108: 1.21 | AH108: 1.04 | AI108: 0.94 | AJ108: 0.89
A109: ="primary_archetype_"&TEXT(ROUND(Table213[[#This Row],[2016]],1),"0.0") -> primary_archetype_19.6 | B109: 19.60 | C109: =MROUND((($B109-$AH$2)*((C$2-$AH$2)/($B$2-$AH$2)))+$AH$2,0.01) -> 19.60 | D109: 19.60 | E109: 19.23 | F109: 18.34 | G109: 18.47 | H109: 18.08 | I109: 17.34 | J109: 16.92 | K109: 16.49 | L109: 15.81 | M109: 15.73 | N109: 15.17 | O109: 14.59 | P109: 13.91 | Q109: 11.91 | R109: 9.21 | S109: 8.35 | T109: 6.49 | U109: 4.60 | V109: 4.33 | W109: 3.50 | X109: 3.08 | Y109: 2.65 | Z109: 2.58 | AA109: 2.31 | AB109: 1.91 | AC109: 1.59 | AD109: 1.53 | AE109: 1.32 | AF109: 1.25 | AG109: 1.21 | AH109: 1.04 | AI109: 0.94 | AJ109: 0.89
A110: ="primary_archetype_"&TEXT(ROUND(Table213[[#This Row],[2016]],1),"0.0") -> primary_archetype_19.5 | B110: 19.50 | C110: 19.50 | D110: 19.50 | E110: 19.13 | F110: 18.25 | G110: 18.37 | H110: 17.99 | I110: 17.25 | J110: 16.83 | K110: 16.41 | L110: 15.73 | M110: 15.65 | N110: 15.09 | O110: 14.52 | P110: 13.84 | Q110: 11.85 | R110: 9.17 | S110: 8.32 | T110: 6.46 | U110: 4.58 | V110: 4.31 | W110: 3.49 | X110: 3.07 | Y110: 2.64 | Z110: 2.57 | AA110: 2.30 | AB110: 1.91 | AC110: 1.58 | AD110: 1.53 | AE110: 1.31 | AF110: 1.25 | AG110: 1.21 | AH110: 1.04 | AI110: 0.94 | AJ110: 0.89
A111: ="primary_archetype_"&TEXT(ROUND(Table213[[#This Row],[2016]],1),"0.0") -> primary_archetype_19.4 | B111: 19.40 | C111: 19.40 | D111: 19.40 | E111: 19.04 | F111: 18.16 | G111: 18.28 | H111: 17.90 | I111: 17.16 | J111: 16.75 | K111: 16.32 | L111: 15.65 | M111: 15.57 | N111: 15.02 | O111: 14.45 | P111: 13.77 | Q111: 11.79 | R111: 9.13 | S111: 8.28 | T111: 6.43 | U111: 4.56 | V111: 4.29 | W111: 3.48 | X111: 3.06 | Y111: 2.63 | Z111: 2.56 | AA111: 2.30 | AB111: 1.90 | AC111: 1.58 | AD111: 1.53 | AE111: 1.31 | AF111: 1.25 | AG111: 1.21 | AH111: 1.04 | AI111: 0.94 | AJ111: 0.90
A112: ="primary_archetype_"&TEXT(ROUND(Table213[[#This Row],[2016]],1),"0.0") -> primary_archetype_19.3 | B112: 19.30 | C112: 19.30 | D112: 19.30 | E112: 18.94 | F112: 18.06 | G112: 18.19 | H112: 17.81 | I112: 17.07 | J112: 16.66 | K112: 16.24 | L112: 15.57 | M112: 15.49 | N112: 14.94 | O112: 14.37 | P112: 13.70 | Q112: 11.74 | R112: 9.08 | S112: 8.24 | T112: 6.40 | U112: 4.54 | V112: 4.27 | W112: 3.46 | X112: 3.05 | Y112: 2.62 | Z112: 2.56 | AA112: 2.29 | AB112: 1.90 | AC112: 1.58 | AD112: 1.53 | AE112: 1.31 | AF112: 1.25 | AG112: 1.21 | AH112: 1.04 | AI112: 0.94 | AJ112: 0.90
A113: ="primary_archetype_"&TEXT(ROUND(Table213[[#This Row],[2016]],1),"0.0") -> primary_archetype_19.2 | B113: 19.20 | C113: 19.20 | D113: 19.20 | E113: 18.84 | F113: 17.97 | G113: 18.09 | H113: 17.72 | I113: 16.99 | J113: 16.58 | K113: 16.16 | L113: 15.49 | M113: 15.41 | N113: 14.87 | O113: 14.30 | P113: 13.63 | Q113: 11.68 | R113: 9.04 | S113: 8.20 | T113: 6.37 | U113: 4.52 | V113: 4.26 | W113: 3.45 | X113: 3.04 | Y113: 2.61 | Z113: 2.55 | AA113: 2.28 | AB113: 1.89 | AC113: 1.58 | AD113: 1.52 | AE113: 1.31 | AF113: 1.25 | AG113: 1.20 | AH113: 1.04 | AI113: 0.94 | AJ113: 0.90
A114: ="primary_archetype_"&TEXT(ROUND(Table213[[#This Row],[2016]],1),"0.0") -> primary_archetype_19.1 | B114: 19.10 | C114: 19.10 | D114: 19.10 | E114: 18.74 | F114: 17.88 | G114: 18.00 | H114: 17.62 | I114: 16.90 | J114: 16.49 | K114: 16.07 | L114: 15.41 | M114: 15.33 | N114: 14.79 | O114: 14.23 | P114: 13.56 | Q114: 11.62 | R114: 8.99 | S114: 8.16 | T114: 6.34 | U114: 4.51 | V114: 4.24 | W114: 3.44 | X114: 3.03 | Y114: 2.61 | Z114: 2.54 | AA114: 2.27 | AB114: 1.89 | AC114: 1.57 | AD114: 1.52 | AE114: 1.31 | AF114: 1.25 | AG114: 1.20 | AH114: 1.04 | AI114: 0.94 | AJ114: 0.90
A115: ="primary_archetype_"&TEXT(ROUND(Table213[[#This Row],[2016]],1),"0.0") -> primary_archetype_19.0 | B115: 19.00 | C115: 19.00 | D115: 19.00 | E115: 18.64 | F115: 17.79 | G115: 17.91 | H115: 17.53 | I115: 16.81 | J115: 16.41 | K115: 15.99 | L115: 15.33 | M115: 15.25 | N115: 14.71 | O115: 14.15 | P115: 13.49 | Q115: 11.56 | R115: 8.95 | S115: 8.12 | T115: 6.31 | U115: 4.49 | V115: 4.22 | W115: 3.42 | X115: 3.02 | Y115: 2.60 | Z115: 2.53 | AA115: 2.27 | AB115: 1.88 | AC115: 1.57 | AD115: 1.52 | AE115: 1.31 | AF115: 1.25 | AG115: 1.20 | AH115: 1.04 | AI115: 0.94 | AJ115: 0.90
A116: ="primary_archetype_"&TEXT(ROUND(Table213[[#This Row],[2016]],1),"0.0") -> primary_archetype_18.9 | B116: 18.90 | C116: 18.90 | D116: 18.90 | E116: 18.55 | F116: 17.69 | G116: 17.81 | H116: 17.44 | I116: 16.72 | J116: 16.32 | K116: 15.91 | L116: 15.25 | M116: 15.17 | N116: 14.64 | O116: 14.08 | P116: 13.43 | Q116: 11.50 | R116: 8.91 | S116: 8.08 | T116: 6.28 | U116: 4.47 | V116: 4.20 | W116: 3.41 | X116: 3.01 | Y116: 2.59 | Z116: 2.52 | AA116: 2.26 | AB116: 1.88 | AC116: 1.57 | AD116: 1.52 | AE116: 1.30 | AF116: 1.25 | AG116: 1.20 | AH116: 1.04 | AI116: 0.94 | AJ116: 0.90
A117: ="primary_archetype_"&TEXT(ROUND(Table213[[#This Row],[2016]],1),"0.0") -> primary_archetype_18.8 | B117: 18.80 | C117: 18.80 | D117: 18.80 | E117: 18.45 | F117: 17.60 | G117: 17.72 | H117: 17.35 | I117: 16.63 | J117: 16.23 | K117: 15.82 | L117: 15.17 | M117: 15.09 | N117: 14.56 | O117: 14.01 | P117: 13.36 | Q117: 11.44 | R117: 8.86 | S117: 8.04 | T117: 6.25 | U117: 4.45 | V117: 4.19 | W117: 3.40 | X117: 3.00 | Y117: 2.58 | Z117: 2.51 | AA117: 2.25 | AB117: 1.87 | AC117: 1.56 | AD117: 1.51 | AE117: 1.30 | AF117: 1.24 | AG117: 1.20 | AH117: 1.04 | AI117: 0.94 | AJ117: 0.90
A118: ="primary_archetype_"&TEXT(ROUND(Table213[[#This Row],[2016]],1),"0.0") -> primary_archetype_18.7 | B118: 18.70 | C118: 18.70 | D118: 18.70 | E118: 18.35 | F118: 17.51 | G118: 17.62 | H118: 17.26 | I118: 16.55 | J118: 16.15 | K118: 15.74 | L118: 15.09 | M118: 15.01 | N118: 14.48 | O118: 13.94 | P118: 13.29 | Q118: 11.38 | R118: 8.82 | S118: 8.00 | T118: 6.22 | U118: 4.43 | V118: 4.17 | W118: 3.38 | X118: 2.98 | Y118: 2.57 | Z118: 2.51 | AA118: 2.25 | AB118: 1.87 | AC118: 1.56 | AD118: 1.51 | AE118: 1.30 | AF118: 1.24 | AG118: 1.20 | AH118: 1.04 | AI118: 0.94 | AJ118: 0.90
A119: ="primary_archetype_"&TEXT(ROUND(Table213[[#This Row],[2016]],1),"0.0") -> primary_archetype_18.6 | B119: 18.60 | C119: 18.60 | D119: 18.60 | E119: 18.25 | F119: 17.41 | G119: 17.53 | H119: 17.16 | I119: 16.46 | J119: 16.06 | K119: 15.66 | L119: 15.01 | M119: 14.94 | N119: 14.41 | O119: 13.86 | P119: 13.22 | Q119: 11.33 | R119: 8.77 | S119: 7.96 | T119: 6.19 | U119: 4.41 | V119: 4.15 | W119: 3.37 | X119: 2.97 | Y119: 2.56 | Z119: 2.50 | AA119: 2.24 | AB119: 1.87 | AC119: 1.56 | AD119: 1.51 | AE119: 1.30 | AF119: 1.24 | AG119: 1.20 | AH119: 1.04 | AI119: 0.95 | AJ119: 0.90
A120: ="primary_archetype_"&TEXT(ROUND(Table213[[#This Row],[2016]],1),"0.0") -> primary_archetype_18.5 | B120: 18.50 | C120: 18.50 | D120: 18.50 | E120: 18.15 | F120: 17.32 | G120: 17.44 | H120: 17.07 | I120: 16.37 | J120: 15.98 | K120: 15.57 | L120: 14.93 | M120: 14.86 | N120: 14.33 | O120: 13.79 | P120: 13.15 | Q120: 11.27 | R120: 8.73 | S120: 7.92 | T120: 6.16 | U120: 4.39 | V120: 4.13 | W120: 3.36 | X120: 2.96 | Y120: 2.55 | Z120: 2.49 | AA120: 2.23 | AB120: 1.86 | AC120: 1.56 | AD120: 1.50 | AE120: 1.30 | AF120: 1.24 | AG120: 1.20 | AH120: 1.04 | AI120: 0.95 | AJ120: 0.90
A121: ="primary_archetype_"&TEXT(ROUND(Table213[[#This Row],[2016]],1),"0.0") -> primary_archetype_18.4 | B121: 18.40 | C121: 18.40 | D121: 18.40 | E121: 18.06 | F121: 17.23 | G121: 17.34 | H121: 16.98 | I121: 16.28 | J121: 15.89 | K121: 15.49 | L121: 14.85 | M121: 14.78 | N121: 14.26 | O121: 13.72 | P121: 13.08 | Q121: 11.21 | R121: 8.69 | S121: 7.88 | T121: 6.13 | U121: 4.37 | V121: 4.12 | W121: 3.34 | X121: 2.95 | Y121: 2.54 | Z121: 2.48 | AA121: 2.23 | AB121: 1.86 | AC121: 1.55 | AD121: 1.50 | AE121: 1.30 | AF121: 1.24 | AG121: 1.20 | AH121: 1.04 | AI121: 0.95 | AJ121: 0.90
A122: ="primary_archetype_"&TEXT(ROUND(Table213[[#This Row],[2016]],1),"0.0") -> primary_archetype_18.3 | B122: 18.30 | C122: 18.30 | D122: 18.30 | E122: 17.96 | F122: 17.13 | G122: 17.25 | H122: 16.89 | I122: 16.20 | J122: 15.81 | K122: 15.41 | L122: 14.77 | M122: 14.70 | N122: 14.18 | O122: 13.64 | P122: 13.01 | Q122: 11.15 | R122: 8.64 | S122: 7.84 | T122: 6.10 | U122: 4.35 | V122: 4.10 | W122: 3.33 | X122: 2.94 | Y122: 2.54 | Z122: 2.47 | AA122: 2.22 | AB122: 1.85 | AC122: 1.55 | AD122: 1.50 | AE122: 1.30 | AF122: 1.24 | AG122: 1.20 | AH122: 1.04 | AI122: 0.95 | AJ122: 0.90
A123: ="primary_archetype_"&TEXT(ROUND(Table213[[#This Row],[2016]],1),"0.0") -> primary_archetype_18.2 | B123: 18.20 | C123: 18.20 | D123: 18.20 | E123: 17.86 | F123: 17.04 | G123: 17.15 | H123: 16.80 | I123: 16.11 | J123: 15.72 | K123: 15.32 | L123: 14.70 | M123: 14.62 | N123: 14.10 | O123: 13.57 | P123: 12.94 | Q123: 11.09 | R123: 8.60 | S123: 7.80 | T123: 6.07 | U123: 4.33 | V123: 4.08 | W123: 3.32 | X123: 2.93 | Y123: 2.53 | Z123: 2.46 | AA123: 2.21 | AB123: 1.85 | AC123: 1.55 | AD123: 1.50 | AE123: 1.29 | AF123: 1.24 | AG123: 1.20 | AH123: 1.04 | AI123: 0.95 | AJ123: 0.90
A124: ="primary_archetype_"&TEXT(ROUND(Table213[[#This Row],[2016]],1),"0.0") -> primary_archetype_18.1 | B124: 18.10 | C124: 18.10 | D124: 18.10 | E124: 17.76 | F124: 16.95 | G124: 17.06 | H124: 16.71 | I124: 16.02 | J124: 15.64 | K124: 15.24 | L124: 14.62 | M124: 14.54 | N124: 14.03 | O124: 13.50 | P124: 12.87 | Q124: 11.03 | R124: =MROUND((($B124-$AH$2)*((R$2-$AH$2)/($B$2-$AH$2)))+$AH$2,0.01) -> 8.55 | S124: 7.76 | T124: 6.05 | U124: 4.31 | V124: 4.06 | W124: 3.30 | X124: 2.92 | Y124: 2.52 | Z124: 2.46 | AA124: 2.21 | AB124: 1.84 | AC124: 1.54 | AD124: 1.49 | AE124: 1.29 | AF124: 1.24 | AG124: 1.19 | AH124: 1.04 | AI124: 0.95 | AJ124: 0.91
A125: ="primary_archetype_"&TEXT(ROUND(Table213[[#This Row],[2016]],1),"0.0") -> primary_archetype_18.0 | B125: 18.00 | C125: =MROUND((($B125-$AH$2)*((C$2-$AH$2)/($B$2-$AH$2)))+$AH$2,0.01) -> 18.00 | D125: 18.00 | E125: 17.66 | F125: 16.85 | G125: 16.97 | H125: 16.61 | I125: 15.93 | J125: 15.55 | K125: 15.16 | L125: 14.54 | M125: 14.46 | N125: 13.95 | O125: 13.42 | P125: 12.80 | Q125: 10.97 | R125: 8.51 | S125: 7.72 | T125: 6.02 | U125: 4.29 | V125: 4.04 | W125: 3.29 | X125: 2.91 | Y125: 2.51 | Z125: 2.45 | AA125: 2.20 | AB125: 1.84 | AC125: 1.54 | AD125: 1.49 | AE125: 1.29 | AF125: 1.24 | AG125: 1.19 | AH125: 1.04 | AI125: 0.95 | AJ125: 0.91
A126: ="primary_archetype_"&TEXT(ROUND(Table213[[#This Row],[2016]],1),"0.0") -> primary_archetype_17.9 | B126: 17.90 | C126: 17.90 | D126: 17.90 | E126: 17.57 | F126: 16.76 | G126: 16.87 | H126: 16.52 | I126: 15.84 | J126: 15.46 | K126: 15.07 | L126: 14.46 | M126: 14.38 | N126: 13.88 | O126: 13.35 | P126: 12.73 | Q126: 10.92 | R126: 8.47 | S126: 7.68 | T126: 5.99 | U126: 4.27 | V126: 4.03 | W126: 3.28 | X126: 2.90 | Y126: 2.50 | Z126: 2.44 | AA126: 2.19 | AB126: 1.83 | AC126: 1.54 | AD126: 1.49 | AE126: 1.29 | AF126: 1.23 | AG126: 1.19 | AH126: 1.04 | AI126: 0.95 | AJ126: 0.91
A127: ="primary_archetype_"&TEXT(ROUND(Table213[[#This Row],[2016]],1),"0.0") -> primary_archetype_17.8 | B127: 17.80 | C127: 17.80 | D127: 17.80 | E127: 17.47 | F127: 16.67 | G127: 16.78 | H127: 16.43 | I127: 15.76 | J127: 15.38 | K127: 14.99 | L127: 14.38 | M127: 14.30 | N127: 13.80 | O127: 13.28 | P127: 12.66 | Q127: 10.86 | R127: 8.42 | S127: 7.65 | T127: 5.96 | U127: 4.26 | V127: 4.01 | W127: 3.26 | X127: 2.89 | Y127: 2.49 | Z127: 2.43 | AA127: 2.19 | AB127: 1.83 | AC127: 1.53 | AD127: 1.49 | AE127: 1.29 | AF127: 1.23 | AG127: 1.19 | AH127: 1.04 | AI127: 0.95 | AJ127: 0.91
A128: ="primary_archetype_"&TEXT(ROUND(Table213[[#This Row],[2016]],1),"0.0") -> primary_archetype_17.7 | B128: 17.70 | C128: 17.70 | D128: 17.70 | E128: 17.37 | F128: 16.57 | G128: 16.68 | H128: 16.34 | I128: 15.67 | J128: 15.29 | K128: 14.91 | L128: 14.30 | M128: 14.22 | N128: 13.72 | O128: 13.21 | P128: 12.59 | Q128: 10.80 | R128: 8.38 | S128: 7.61 | T128: 5.93 | U128: 4.24 | V128: 3.99 | W128: 3.25 | X128: 2.87 | Y128: 2.48 | Z128: 2.42 | AA128: 2.18 | AB128: 1.82 | AC128: 1.53 | AD128: 1.48 | AE128: 1.29 | AF128: 1.23 | AG128: 1.19 | AH128: 1.04 | AI128: 0.95 | AJ128: 0.91
A129: ="primary_archetype_"&TEXT(ROUND(Table213[[#This Row],[2016]],1),"0.0") -> primary_archetype_17.6 | B129: 17.60 | C129: 17.60 | D129: 17.60 | E129: 17.27 | F129: 16.48 | G129: 16.59 | H129: 16.25 | I129: 15.58 | J129: 15.21 | K129: 14.82 | L129: 14.22 | M129: 14.14 | N129: 13.65 | O129: 13.13 | P129: 12.52 | Q129: 10.74 | R129: 8.33 | S129: 7.57 | T129: 5.90 | U129: 4.22 | V129: 3.97 | W129: 3.24 | X129: 2.86 | Y129: 2.47 | Z129: 2.41 | AA129: 2.17 | AB129: 1.82 | AC129: 1.53 | AD129: 1.48 | AE129: 1.29 | AF129: 1.23 | AG129: 1.19 | AH129: 1.04 | AI129: 0.95 | AJ129: 0.91
A130: ="primary_archetype_"&TEXT(ROUND(Table213[[#This Row],[2016]],1),"0.0") -> primary_archetype_17.5 | B130: 17.50 | C130: 17.50 | D130: 17.50 | E130: 17.17 | F130: 16.39 | G130: 16.50 | H130: 16.15 | I130: 15.49 | J130: 15.12 | K130: 14.74 | L130: 14.14 | M130: 14.06 | N130: 13.57 | O130: 13.06 | P130: 12.45 | Q130: 10.68 | R130: 8.29 | S130: 7.53 | T130: 5.87 | U130: 4.20 | V130: 3.96 | W130: 3.22 | X130: 2.85 | Y130: 2.47 | Z130: 2.41 | AA130: 2.17 | AB130: 1.81 | AC130: 1.53 | AD130: 1.48 | AE130: 1.28 | AF130: 1.23 | AG130: 1.19 | AH130: 1.04 | AI130: 0.95 | AJ130: 0.91
A131: ="primary_archetype_"&TEXT(ROUND(Table213[[#This Row],[2016]],1),"0.0") -> primary_archetype_17.4 | B131: 17.40 | C131: 17.40 | D131: 17.40 | E131: 17.08 | F131: 16.29 | G131: 16.40 | H131: 16.06 | I131: 15.41 | J131: 15.04 | K131: 14.66 | L131: 14.06 | M131: 13.99 | N131: 13.50 | O131: 12.99 | P131: 12.38 | Q131: 10.62 | R131: 8.25 | S131: 7.49 | T131: 5.84 | U131: 4.18 | V131: 3.94 | W131: 3.21 | X131: 2.84 | Y131: 2.46 | Z131: 2.40 | AA131: 2.16 | AB131: 1.81 | AC131: 1.52 | AD131: 1.48 | AE131: 1.28 | AF131: 1.23 | AG131: 1.19 | AH131: 1.04 | AI131: 0.95 | AJ131: 0.91
A132: ="primary_archetype_"&TEXT(ROUND(Table213[[#This Row],[2016]],1),"0.0") -> primary_archetype_17.3 | B132: 17.30 | C132: 17.30 | D132: 17.30 | E132: 16.98 | F132: 16.20 | G132: 16.31 | H132: 15.97 | I132: 15.32 | J132: 14.95 | K132: 14.57 | L132: 13.98 | M132: 13.91 | N132: 13.42 | O132: 12.91 | P132: 12.32 | Q132: 10.56 | R132: 8.20 | S132: 7.45 | T132: 5.81 | U132: 4.16 | V132: 3.92 | W132: 3.20 | X132: 2.83 | Y132: 2.45 | Z132: 2.39 | AA132: 2.15 | AB132: 1.80 | AC132: 1.52 | AD132: 1.47 | AE132: 1.28 | AF132: 1.23 | AG132: 1.19 | AH132: 1.04 | AI132: 0.95 | AJ132: 0.91
A133: ="primary_archetype_"&TEXT(ROUND(Table213[[#This Row],[2016]],1),"0.0") -> primary_archetype_17.2 | B133: 17.20 | C133: 17.20 | D133: 17.20 | E133: 16.88 | F133: 16.11 | G133: 16.21 | H133: 15.88 | I133: 15.23 | J133: 14.87 | K133: 14.49 | L133: 13.90 | M133: 13.83 | N133: 13.34 | O133: 12.84 | P133: 12.25 | Q133: 10.51 | R133: 8.16 | S133: 7.41 | T133: 5.78 | U133: 4.14 | V133: 3.90 | W133: 3.18 | X133: 2.82 | Y133: 2.44 | Z133: 2.38 | AA133: 2.14 | AB133: 1.80 | AC133: 1.52 | AD133: 1.47 | AE133: 1.28 | AF133: 1.23 | AG133: 1.19 | AH133: 1.04 | AI133: 0.95 | AJ133: 0.91
A134: ="primary_archetype_"&TEXT(ROUND(Table213[[#This Row],[2016]],1),"0.0") -> primary_archetype_17.1 | B134: 17.10 | C134: 17.10 | D134: 17.10 | E134: 16.78 | F134: 16.01 | G134: 16.12 | H134: 15.79 | I134: 15.14 | J134: 14.78 | K134: 14.41 | L134: 13.82 | M134: 13.75 | N134: 13.27 | O134: 12.77 | P134: 12.18 | Q134: 10.45 | R134: 8.11 | S134: 7.37 | T134: 5.75 | U134: 4.12 | V134: 3.88 | W134: 3.17 | X134: 2.81 | Y134: 2.43 | Z134: 2.37 | AA134: 2.14 | AB134: 1.79 | AC134: 1.51 | AD134: 1.47 | AE134: 1.28 | AF134: 1.22 | AG134: 1.19 | AH134: 1.04 | AI134: 0.95 | AJ134: 0.91
A135: ="primary_archetype_"&TEXT(ROUND(Table213[[#This Row],[2016]],1),"0.0") -> primary_archetype_17.0 | B135: =MROUND(B134-0.1,0.1) -> 17.00 | C135: 17.00 | D135: 17.00 | E135: 16.68 | F135: 15.92 | G135: 16.03 | H135: 15.70 | I135: 15.05 | J135: 14.69 | K135: 14.32 | L135: 13.74 | M135: 13.67 | N135: 13.19 | O135: 12.69 | P135: 12.11 | Q135: 10.39 | R135: 8.07 | S135: 7.33 | T135: 5.72 | U135: 4.10 | V135: 3.87 | W135: 3.16 | X135: 2.80 | Y135: 2.42 | Z135: 2.36 | AA135: 2.13 | AB135: 1.79 | AC135: 1.51 | AD135: 1.46 | AE135: 1.28 | AF135: 1.22 | AG135: 1.18 | AH135: 1.04 | AI135: 0.95 | AJ135: 0.91
A136: ="primary_archetype_"&TEXT(ROUND(Table213[[#This Row],[2016]],1),"0.0") -> primary_archetype_16.9 | B136: 16.90 | C136: 16.90 | D136: 16.90 | E136: 16.59 | F136: 15.83 | G136: 15.93 | H136: 15.60 | I136: 14.97 | J136: 14.61 | K136: 14.24 | L136: 13.66 | M136: 13.59 | N136: 13.11 | O136: 12.62 | P136: 12.04 | Q136: 10.33 | R136: 8.03 | S136: 7.29 | T136: 5.69 | U136: 4.08 | V136: 3.85 | W136: 3.14 | X136: 2.79 | Y136: 2.41 | Z136: 2.36 | AA136: 2.12 | AB136: 1.79 | AC136: 1.51 | AD136: 1.46 | AE136: 1.27 | AF136: 1.22 | AG136: 1.18 | AH136: 1.04 | AI136: 0.95 | AJ136: 0.91
A137: ="primary_archetype_"&TEXT(ROUND(Table213[[#This Row],[2016]],1),"0.0") -> primary_archetype_16.8 | B137: 16.80 | C137: 16.80 | D137: 16.80 | E137: 16.49 | F137: 15.73 | G137: 15.84 | H137: 15.51 | I137: 14.88 | J137: 14.52 | K137: 14.16 | L137: 13.58 | M137: 13.51 | N137: 13.04 | O137: 12.55 | P137: 11.97 | Q137: 10.27 | R137: 7.98 | S137: 7.25 | T137: 5.66 | U137: 4.06 | V137: 3.83 | W137: 3.13 | X137: 2.78 | Y137: 2.41 | Z137: 2.35 | AA137: 2.12 | AB137: 1.78 | AC137: 1.50 | AD137: 1.46 | AE137: 1.27 | AF137: 1.22 | AG137: 1.18 | AH137: 1.04 | AI137: 0.95 | AJ137: 0.92
A138: ="primary_archetype_"&TEXT(ROUND(Table213[[#This Row],[2016]],1),"0.0") -> primary_archetype_16.7 | B138: 16.70 | C138: 16.70 | D138: 16.70 | E138: 16.39 | F138: 15.64 | G138: 15.75 | H138: 15.42 | I138: 14.79 | J138: 14.44 | K138: 14.07 | L138: 13.50 | M138: 13.43 | N138: 12.96 | O138: 12.48 | P138: 11.90 | Q138: 10.21 | R138: 7.94 | S138: 7.21 | T138: 5.63 | U138: 4.04 | V138: 3.81 | W138: 3.12 | X138: 2.76 | Y138: 2.40 | Z138: 2.34 | AA138: 2.11 | AB138: 1.78 | AC138: 1.50 | AD138: 1.46 | AE138: 1.27 | AF138: 1.22 | AG138: 1.18 | AH138: 1.04 | AI138: 0.95 | AJ138: 0.92
A139: ="primary_archetype_"&TEXT(ROUND(Table213[[#This Row],[2016]],1),"0.0") -> primary_archetype_16.6 | B139: 16.60 | C139: 16.60 | D139: 16.60 | E139: 16.29 | F139: 15.55 | G139: 15.65 | H139: 15.33 | I139: 14.70 | J139: 14.35 | K139: 13.99 | L139: 13.42 | M139: 13.35 | N139: 12.89 | O139: 12.40 | P139: 11.83 | Q139: 10.15 | R139: 7.89 | S139: 7.17 | T139: 5.60 | U139: 4.03 | V139: 3.80 | W139: 3.10 | X139: 2.75 | Y139: 2.39 | Z139: 2.33 | AA139: 2.10 | AB139: 1.77 | AC139: 1.50 | AD139: 1.45 | AE139: 1.27 | AF139: 1.22 | AG139: 1.18 | AH139: 1.04 | AI139: 0.96 | AJ139: 0.92
A140: ="primary_archetype_"&TEXT(ROUND(Table213[[#This Row],[2016]],1),"0.0") -> primary_archetype_16.5 | B140: 16.50 | C140: 16.50 | D140: 16.50 | E140: 16.19 | F140: 15.45 | G140: 15.56 | H140: 15.24 | I140: 14.62 | J140: 14.27 | K140: 13.91 | L140: 13.34 | M140: 13.27 | N140: 12.81 | O140: 12.33 | P140: 11.76 | Q140: 10.10 | R140: =MROUND((($B140-$AH$2)*((R$2-$AH$2)/($B$2-$AH$2)))+$AH$2,0.01) -> 7.85 | S140: 7.13 | T140: 5.58 | U140: 4.01 | V140: 3.78 | W140: 3.09 | X140: 2.74 | Y140: 2.38 | Z140: 2.32 | AA140: 2.10 | AB140: 1.77 | AC140: 1.50 | AD140: 1.45 | AE140: 1.27 | AF140: 1.22 | AG140: 1.18 | AH140: 1.04 | AI140: 0.96 | AJ140: 0.92
A141: ="primary_archetype_"&TEXT(ROUND(Table213[[#This Row],[2016]],1),"0.0") -> primary_archetype_16.4 | B141: 16.40 | C141: =MROUND((($B141-$AH$2)*((C$2-$AH$2)/($B$2-$AH$2)))+$AH$2,0.01) -> 16.40 | D141: 16.40 | E141: 16.10 | F141: 15.36 | G141: 15.46 | H141: 15.14 | I141: 14.53 | J141: 14.18 | K141: 13.82 | L141: 13.26 | M141: 13.19 | N141: 12.73 | O141: 12.26 | P141: 11.69 | Q141: 10.04 | R141: 7.81 | S141: 7.09 | T141: 5.55 | U141: 3.99 | V141: 3.76 | W141: 3.08 | X141: 2.73 | Y141: 2.37 | Z141: 2.31 | AA141: 2.09 | AB141: 1.76 | AC141: 1.49 | AD141: 1.45 | AE141: 1.27 | AF141: 1.22 | AG141: 1.18 | AH141: 1.04 | AI141: 0.96 | AJ141: 0.92
A142: ="primary_archetype_"&TEXT(ROUND(Table213[[#This Row],[2016]],1),"0.0") -> primary_archetype_16.3 | B142: 16.30 | C142: 16.30 | D142: 16.30 | E142: 16.00 | F142: 15.27 | G142: 15.37 | H142: 15.05 | I142: 14.44 | J142: 14.10 | K142: 13.74 | L142: 13.18 | M142: 13.12 | N142: 12.66 | O142: 12.18 | P142: 11.62 | Q142: 9.98 | R142: 7.76 | S142: 7.05 | T142: 5.52 | U142: 3.97 | V142: 3.74 | W142: 3.06 | X142: 2.72 | Y142: 2.36 | Z142: 2.31 | AA142: 2.08 | AB142: 1.76 | AC142: 1.49 | AD142: 1.45 | AE142: 1.27 | AF142: 1.22 | AG142: 1.18 | AH142: 1.04 | AI142: 0.96 | AJ142: 0.92
A143: ="primary_archetype_"&TEXT(ROUND(Table213[[#This Row],[2016]],1),"0.0") -> primary_archetype_16.2 | B143: 16.20 | C143: 16.20 | D143: 16.20 | E143: 15.90 | F143: 15.17 | G143: 15.28 | H143: 14.96 | I143: 14.35 | J143: 14.01 | K143: 13.66 | L143: 13.10 | M143: 13.04 | N143: 12.58 | O143: 12.11 | P143: 11.55 | Q143: 9.92 | R143: 7.72 | S143: 7.01 | T143: 5.49 | U143: 3.95 | V143: 3.73 | W143: 3.05 | X143: 2.71 | Y143: 2.35 | Z143: 2.30 | AA143: 2.08 | AB143: 1.75 | AC143: 1.49 | AD143: 1.44 | AE143: 1.26 | AF143: 1.21 | AG143: 1.18 | AH143: 1.04 | AI143: 0.96 | AJ143: 0.92
A144: ="primary_archetype_"&TEXT(ROUND(Table213[[#This Row],[2016]],1),"0.0") -> primary_archetype_16.1 | B144: 16.10 | C144: 16.10 | D144: 16.10 | E144: 15.80 | F144: 15.08 | G144: 15.18 | H144: 14.87 | I144: 14.26 | J144: 13.92 | K144: 13.58 | L144: 13.02 | M144: 12.96 | N144: 12.51 | O144: 12.04 | P144: 11.48 | Q144: 9.86 | R144: 7.67 | S144: 6.98 | T144: 5.46 | U144: 3.93 | V144: 3.71 | W144: 3.04 | X144: 2.70 | Y144: 2.34 | Z144: 2.29 | AA144: 2.07 | AB144: 1.75 | AC144: 1.48 | AD144: 1.44 | AE144: 1.26 | AF144: 1.21 | AG144: 1.18 | AH144: 1.04 | AI144: 0.96 | AJ144: 0.92
A145: ="primary_archetype_"&TEXT(ROUND(Table213[[#This Row],[2016]],1),"0.0") -> primary_archetype_16.0 | B145: 16.00 | C145: 16.00 | D145: 16.00 | E145: 15.70 | F145: 14.99 | G145: 15.09 | H145: 14.78 | I145: 14.18 | J145: 13.84 | K145: 13.49 | L145: 12.94 | M145: 12.88 | N145: 12.43 | O145: 11.96 | P145: 11.41 | Q145: 9.80 | R145: 7.63 | S145: 6.94 | T145: 5.43 | U145: 3.91 | V145: 3.69 | W145: 3.02 | X145: 2.69 | Y145: 2.34 | Z145: 2.28 | AA145: 2.06 | AB145: 1.74 | AC145: 1.48 | AD145: 1.44 | AE145: 1.26 | AF145: 1.21 | AG145: 1.18 | AH145: 1.04 | AI145: 0.96 | AJ145: 0.92
A146: ="primary_archetype_"&TEXT(ROUND(Table213[[#This Row],[2016]],1),"0.0") -> primary_archetype_15.9 | B146: 15.90 | C146: 15.90 | D146: 15.90 | E146: 15.61 | F146: 14.89 | G146: 14.99 | H146: 14.69 | I146: 14.09 | J146: 13.75 | K146: 13.41 | L146: 12.86 | M146: 12.80 | N146: 12.35 | O146: 11.89 | P146: 11.34 | Q146: 9.74 | R146: 7.58 | S146: 6.90 | T146: 5.40 | U146: 3.89 | V146: 3.67 | W146: 3.01 | X146: 2.68 | Y146: 2.33 | Z146: 2.27 | AA146: 2.06 | AB146: 1.74 | AC146: 1.48 | AD146: 1.44 | AE146: 1.26 | AF146: 1.21 | AG146: 1.17 | AH146: 1.04 | AI146: 0.96 | AJ146: 0.92
A147: ="primary_archetype_"&TEXT(ROUND(Table213[[#This Row],[2016]],1),"0.0") -> primary_archetype_15.8 | B147: 15.80 | C147: 15.80 | D147: 15.80 | E147: 15.51 | F147: 14.80 | G147: 14.90 | H147: 14.59 | I147: 14.00 | J147: 13.67 | K147: 13.33 | L147: 12.79 | M147: 12.72 | N147: 12.28 | O147: 11.82 | P147: 11.28 | Q147: 9.69 | R147: 7.54 | S147: 6.86 | T147: 5.37 | U147: 3.87 | V147: 3.65 | W147: 3.00 | X147: 2.66 | Y147: 2.32 | Z147: 2.26 | AA147: 2.05 | AB147: 1.73 | AC147: 1.48 | AD147: 1.43 | AE147: 1.26 | AF147: 1.21 | AG147: 1.17 | AH147: =MROUND((($B147-$AH$2)*((AH$2-$AH$2)/($B$2-$AH$2)))+$AH$2,0.01) -> 1.04 | AI147: 0.96 | AJ147: 0.92
A148: ="primary_archetype_"&TEXT(ROUND(Table213[[#This Row],[2016]],1),"0.0") -> primary_archetype_15.7 | B148: 15.70 | C148: 15.70 | D148: 15.70 | E148: 15.41 | F148: 14.71 | G148: 14.81 | H148: 14.50 | I148: 13.91 | J148: 13.58 | K148: 13.24 | L148: 12.71 | M148: 12.64 | N148: 12.20 | O148: 11.74 | P148: 11.21 | Q148: 9.63 | R148: 7.50 | S148: 6.82 | T148: 5.34 | U148: 3.85 | V148: 3.64 | W148: 2.98 | X148: 2.65 | Y148: 2.31 | Z148: 2.26 | AA148: 2.04 | AB148: 1.73 | AC148: 1.47 | AD148: 1.43 | AE148: 1.26 | AF148: 1.21 | AG148: 1.17 | AH148: 1.04 | AI148: 0.96 | AJ148: 0.92
A149: ="primary_archetype_"&TEXT(ROUND(Table213[[#This Row],[2016]],1),"0.0") -> primary_archetype_15.6 | B149: 15.60 | C149: 15.60 | D149: 15.60 | E149: 15.31 | F149: 14.62 | G149: 14.71 | H149: 14.41 | I149: 13.82 | J149: 13.50 | K149: 13.16 | L149: 12.63 | M149: 12.56 | N149: 12.12 | O149: 11.67 | P149: 11.14 | Q149: 9.57 | R149: 7.45 | S149: 6.78 | T149: 5.31 | U149: 3.83 | V149: 3.62 | W149: 2.97 | X149: 2.64 | Y149: 2.30 | Z149: 2.25 | AA149: 2.03 | AB149: 1.72 | AC149: 1.47 | AD149: 1.43 | AE149: 1.26 | AF149: 1.21 | AG149: 1.17 | AH149: 1.04 | AI149: 0.96 | AJ149: 0.92
A150: ="primary_archetype_"&TEXT(ROUND(Table213[[#This Row],[2016]],1),"0.0") -> primary_archetype_15.5 | B150: 15.50 | C150: 15.50 | D150: 15.50 | E150: 15.21 | F150: 14.52 | G150: 14.62 | H150: 14.32 | I150: 13.74 | J150: 13.41 | K150: 13.08 | L150: 12.55 | M150: 12.48 | N150: 12.05 | O150: 11.60 | P150: 11.07 | Q150: 9.51 | R150: 7.41 | S150: 6.74 | T150: 5.28 | U150: 3.81 | V150: 3.60 | W150: 2.96 | X150: 2.63 | Y150: 2.29 | Z150: 2.24 | AA150: 2.03 | AB150: 1.72 | AC150: 1.47 | AD150: 1.42 | AE150: 1.25 | AF150: 1.21 | AG150: 1.17 | AH150: 1.04 | AI150: 0.96 | AJ150: 0.93
A151: ="primary_archetype_"&TEXT(ROUND(Table213[[#This Row],[2016]],1),"0.0") -> primary_archetype_15.4 | B151: 15.40 | C151: 15.40 | D151: 15.40 | E151: 15.12 | F151: 14.43 | G151: 14.52 | H151: 14.23 | I151: 13.65 | J151: 13.33 | K151: 12.99 | L151: 12.47 | M151: 12.40 | N151: 11.97 | O151: 11.53 | P151: 11.00 | Q151: 9.45 | R151: 7.36 | S151: 6.70 | T151: 5.25 | U151: 3.79 | V151: 3.58 | W151: 2.94 | X151: 2.62 | Y151: 2.28 | Z151: 2.23 | AA151: 2.02 | AB151: 1.71 | AC151: 1.46 | AD151: 1.42 | AE151: 1.25 | AF151: 1.20 | AG151: 1.17 | AH151: 1.04 | AI151: 0.96 | AJ151: 0.93
A152: ="primary_archetype_"&TEXT(ROUND(Table213[[#This Row],[2016]],1),"0.0") -> primary_archetype_15.3 | B152: 15.30 | C152: 15.30 | D152: 15.30 | E152: 15.02 | F152: 14.34 | G152: 14.43 | H152: 14.13 | I152: 13.56 | J152: 13.24 | K152: 12.91 | L152: 12.39 | M152: 12.32 | N152: 11.90 | O152: 11.45 | P152: 10.93 | Q152: 9.39 | R152: 7.32 | S152: 6.66 | T152: 5.22 | U152: 3.78 | V152: 3.57 | W152: 2.93 | X152: 2.61 | Y152: 2.28 | Z152: 2.22 | AA152: 2.01 | AB152: 1.71 | AC152: 1.46 | AD152: 1.42 | AE152: 1.25 | AF152: 1.20 | AG152: 1.17 | AH152: 1.04 | AI152: 0.96 | AJ152: 0.93
A153: ="primary_archetype_"&TEXT(ROUND(Table213[[#This Row],[2016]],1),"0.0") -> primary_archetype_15.2 | B153: 15.20 | C153: 15.20 | D153: 15.20 | E153: 14.92 | F153: 14.24 | G153: 14.34 | H153: 14.04 | I153: 13.47 | J153: 13.15 | K153: 12.83 | L153: 12.31 | M153: 12.24 | N153: 11.82 | O153: 11.38 | P153: 10.86 | Q153: 9.33 | R153: 7.28 | S153: 6.62 | T153: 5.19 | U153: 3.76 | V153: 3.55 | W153: 2.92 | X153: 2.60 | Y153: 2.27 | Z153: 2.21 | AA153: 2.01 | AB153: 1.70 | AC153: 1.46 | AD153: 1.42 | AE153: 1.25 | AF153: 1.20 | AG153: 1.17 | AH153: 1.04 | AI153: 0.96 | AJ153: 0.93
A154: ="primary_archetype_"&TEXT(ROUND(Table213[[#This Row],[2016]],1),"0.0") -> primary_archetype_15.1 | B154: 15.10 | C154: 15.10 | D154: 15.10 | E154: 14.82 | F154: 14.15 | G154: 14.24 | H154: 13.95 | I154: 13.39 | J154: 13.07 | K154: 12.74 | L154: 12.23 | M154: 12.17 | N154: 11.74 | O154: 11.31 | P154: 10.79 | Q154: 9.28 | R154: 7.23 | S154: 6.58 | T154: 5.16 | U154: 3.74 | V154: 3.53 | W154: 2.90 | X154: 2.59 | Y154: 2.26 | Z154: 2.21 | AA154: 2.00 | AB154: 1.70 | AC154: 1.45 | AD154: 1.41 | AE154: 1.25 | AF154: 1.20 | AG154: 1.17 | AH154: 1.04 | AI154: 0.96 | AJ154: 0.93
A155: ="primary_archetype_"&TEXT(ROUND(Table213[[#This Row],[2016]],1),"0.0") -> primary_archetype_15.0 | B155: 15.00 | C155: 15.00 | D155: 15.00 | E155: 14.72 | F155: 14.06 | G155: 14.15 | H155: 13.86 | I155: 13.30 | J155: 12.98 | K155: 12.66 | L155: 12.15 | M155: 12.09 | N155: 11.67 | O155: 11.23 | P155: 10.72 | Q155: 9.22 | R155: 7.19 | S155: 6.54 | T155: 5.14 | U155: 3.72 | V155: 3.51 | W155: 2.89 | X155: 2.58 | Y155: 2.25 | Z155: 2.20 | AA155: 1.99 | AB155: 1.70 | AC155: 1.45 | AD155: 1.41 | AE155: 1.25 | AF155: 1.20 | AG155: 1.17 | AH155: 1.04 | AI155: 0.96 | AJ155: 0.93
A156: ="primary_archetype_"&TEXT(ROUND(Table213[[#This Row],[2016]],1),"0.0") -> primary_archetype_14.9 | B156: 14.90 | C156: 14.90 | D156: 14.90 | E156: 14.63 | F156: 13.96 | G156: 14.06 | H156: 13.77 | I156: 13.21 | J156: 12.90 | K156: 12.58 | L156: 12.07 | M156: 12.01 | N156: 11.59 | O156: 11.16 | P156: 10.65 | Q156: 9.16 | R156: =MROUND((($B156-$AH$2)*((R$2-$AH$2)/($B$2-$AH$2)))+$AH$2,0.01) -> 7.14 | S156: 6.50 | T156: 5.11 | U156: 3.70 | V156: 3.49 | W156: 2.88 | X156: 2.57 | Y156: 2.24 | Z156: 2.19 | AA156: 1.99 | AB156: 1.69 | AC156: 1.45 | AD156: 1.41 | AE156: 1.24 | AF156: 1.20 | AG156: 1.16 | AH156: 1.04 | AI156: 0.96 | AJ156: 0.93
A157: ="primary_archetype_"&TEXT(ROUND(Table213[[#This Row],[2016]],1),"0.0") -> primary_archetype_14.8 | B157: 14.80 | C157: =MROUND((($B157-$AH$2)*((C$2-$AH$2)/($B$2-$AH$2)))+$AH$2,0.01) -> 14.80 | D157: 14.80 | E157: 14.53 | F157: 13.87 | G157: 13.96 | H157: 13.68 | I157: 13.12 | J157: 12.81 | K157: 12.49 | L157: 11.99 | M157: 11.93 | N157: 11.52 | O157: 11.09 | P157: 10.58 | Q157: 9.10 | R157: 7.10 | S157: 6.46 | T157: 5.08 | U157: 3.68 | V157: 3.48 | W157: 2.87 | X157: 2.55 | Y157: 2.23 | Z157: 2.18 | AA157: 1.98 | AB157: 1.69 | AC157: 1.45 | AD157: 1.41 | AE157: 1.24 | AF157: 1.20 | AG157: 1.16 | AH157: 1.04 | AI157: 0.96 | AJ157: 0.93
A158: ="primary_archetype_"&TEXT(ROUND(Table213[[#This Row],[2016]],1),"0.0") -> primary_archetype_14.7 | B158: 14.70 | C158: 14.70 | D158: 14.70 | E158: 14.43 | F158: 13.78 | G158: 13.87 | H158: 13.58 | I158: 13.03 | J158: 12.73 | K158: 12.41 | L158: 11.91 | M158: 11.85 | N158: 11.44 | O158: 11.01 | P158: 10.51 | Q158: 9.04 | R158: 7.06 | S158: 6.42 | T158: 5.05 | U158: 3.66 | V158: 3.46 | W158: 2.85 | X158: 2.54 | Y158: 2.22 | Z158: 2.17 | AA158: 1.97 | AB158: 1.68 | AC158: 1.44 | AD158: 1.40 | AE158: 1.24 | AF158: 1.20 | AG158: 1.16 | AH158: 1.04 | AI158: 0.97 | AJ158: 0.93
A159: ="primary_archetype_"&TEXT(ROUND(Table213[[#This Row],[2016]],1),"0.0") -> primary_archetype_14.6 | B159: 14.60 | C159: 14.60 | D159: 14.60 | E159: 14.33 | F159: 13.68 | G159: 13.77 | H159: 13.49 | I159: 12.95 | J159: 12.64 | K159: 12.33 | L159: 11.83 | M159: 11.77 | N159: 11.36 | O159: 10.94 | P159: 10.44 | Q159: 8.98 | R159: 7.01 | S159: 6.38 | T159: 5.02 | U159: 3.64 | V159: 3.44 | W159: 2.84 | X159: 2.53 | Y159: 2.21 | Z159: 2.16 | AA159: 1.97 | AB159: 1.68 | AC159: 1.44 | AD159: 1.40 | AE159: 1.24 | AF159: 1.20 | AG159: 1.16 | AH159: 1.04 | AI159: 0.97 | AJ159: 0.93
A160: ="primary_archetype_"&TEXT(ROUND(Table213[[#This Row],[2016]],1),"0.0") -> primary_archetype_14.5 | B160: 14.50 | C160: 14.50 | D160: 14.50 | E160: 14.23 | F160: 13.59 | G160: 13.68 | H160: 13.40 | I160: 12.86 | J160: 12.56 | K160: 12.24 | L160: 11.75 | M160: 11.69 | N160: 11.29 | O160: 10.87 | P160: 10.37 | Q160: 8.92 | R160: 6.97 | S160: 6.34 | T160: 4.99 | U160: 3.62 | V160: 3.42 | W160: 2.83 | X160: 2.52 | Y160: 2.21 | Z160: 2.16 | AA160: 1.96 | AB160: 1.67 | AC160: 1.44 | AD160: 1.40 | AE160: 1.24 | AF160: 1.19 | AG160: 1.16 | AH160: 1.04 | AI160: 0.97 | AJ160: 0.93
A161: ="primary_archetype_"&TEXT(ROUND(Table213[[#This Row],[2016]],1),"0.0") -> primary_archetype_14.4 | B161: 14.40 | C161: 14.40 | D161: 14.40 | E161: 14.14 | F161: 13.50 | G161: 13.59 | H161: 13.31 | I161: 12.77 | J161: 12.47 | K161: 12.16 | L161: 11.67 | M161: 11.61 | N161: 11.21 | O161: 10.80 | P161: 10.30 | Q161: 8.87 | R161: 6.92 | S161: 6.30 | T161: 4.96 | U161: 3.60 | V161: 3.41 | W161: 2.81 | X161: 2.51 | Y161: 2.20 | Z161: 2.15 | AA161: 1.95 | AB161: 1.67 | AC161: 1.43 | AD161: 1.39 | AE161: 1.24 | AF161: 1.19 | AG161: 1.16 | AH161: 1.04 | AI161: 0.97 | AJ161: 0.93
A162: ="primary_archetype_"&TEXT(ROUND(Table213[[#This Row],[2016]],1),"0.0") -> primary_archetype_14.3 | B162: 14.30 | C162: 14.30 | D162: 14.30 | E162: 14.04 | F162: 13.40 | G162: 13.49 | H162: 13.22 | I162: 12.68 | J162: 12.38 | K162: 12.08 | L162: 11.59 | M162: 11.53 | N162: 11.13 | O162: 10.72 | P162: 10.24 | Q162: 8.81 | R162: 6.88 | S162: 6.27 | T162: 4.93 | U162: 3.58 | V162: 3.39 | W162: 2.80 | X162: 2.50 | Y162: 2.19 | Z162: 2.14 | AA162: 1.95 | AB162: 1.66 | AC162: 1.43 | AD162: 1.39 | AE162: 1.24 | AF162: 1.19 | AG162: 1.16 | AH162: 1.04 | AI162: 0.97 | AJ162: 0.93
A163: ="primary_archetype_"&TEXT(ROUND(Table213[[#This Row],[2016]],1),"0.0") -> primary_archetype_14.2 | B163: 14.20 | C163: 14.20 | D163: 14.20 | E163: 13.94 | F163: 13.31 | G163: 13.40 | H163: 13.12 | I163: 12.60 | J163: 12.30 | K163: 11.99 | L163: 11.51 | M163: 11.45 | N163: 11.06 | O163: 10.65 | P163: 10.17 | Q163: 8.75 | R163: 6.84 | S163: 6.23 | T163: 4.90 | U163: 3.56 | V163: 3.37 | W163: 2.79 | X163: 2.49 | Y163: 2.18 | Z163: 2.13 | AA163: 1.94 | AB163: 1.66 | AC163: 1.43 | AD163: 1.39 | AE163: 1.23 | AF163: 1.19 | AG163: 1.16 | AH163: 1.04 | AI163: 0.97 | AJ163: 0.94
A164: ="primary_archetype_"&TEXT(ROUND(Table213[[#This Row],[2016]],1),"0.0") -> primary_archetype_14.1 | B164: 14.10 | C164: 14.10 | D164: 14.10 | E164: 13.84 | F164: 13.22 | G164: 13.30 | H164: 13.03 | I164: 12.51 | J164: 12.21 | K164: 11.91 | L164: 11.43 | M164: 11.37 | N164: 10.98 | O164: 10.58 | P164: 10.10 | Q164: 8.69 | R164: 6.79 | S164: 6.19 | T164: 4.87 | U164: 3.55 | V164: 3.35 | W164: 2.77 | X164: 2.48 | Y164: 2.17 | Z164: 2.12 | AA164: 1.93 | AB164: 1.65 | AC164: 1.42 | AD164: 1.39 | AE164: 1.23 | AF164: 1.19 | AG164: 1.16 | AH164: 1.04 | AI164: 0.97 | AJ164: 0.94
A165: ="primary_archetype_"&TEXT(ROUND(Table213[[#This Row],[2016]],1),"0.0") -> primary_archetype_14.0 | B165: 14.00 | C165: 14.00 | D165: 14.00 | E165: 13.74 | F165: 13.12 | G165: 13.21 | H165: 12.94 | I165: 12.42 | J165: 12.13 | K165: 11.83 | L165: 11.35 | M165: 11.30 | N165: 10.91 | O165: 10.50 | P165: 10.03 | Q165: 8.63 | R165: 6.75 | S165: 6.15 | T165: 4.84 | U165: 3.53 | V165: 3.34 | W165: 2.76 | X165: 2.47 | Y165: 2.16 | Z165: 2.11 | AA165: 1.93 | AB165: 1.65 | AC165: 1.42 | AD165: 1.38 | AE165: 1.23 | AF165: 1.19 | AG165: 1.16 | AH165: 1.04 | AI165: 0.97 | AJ165: 0.94
A166: ="primary_archetype_"&TEXT(ROUND(Table213[[#This Row],[2016]],1),"0.0") -> primary_archetype_13.9 | B166: 13.90 | C166: 13.90 | D166: 13.90 | E166: 13.65 | F166: 13.03 | G166: 13.12 | H166: 12.85 | I166: 12.33 | J166: 12.04 | K166: 11.74 | L166: 11.27 | M166: 11.22 | N166: 10.83 | O166: 10.43 | P166: 9.96 | Q166: 8.57 | R166: 6.70 | S166: 6.11 | T166: 4.81 | U166: 3.51 | V166: 3.32 | W166: 2.75 | X166: 2.46 | Y166: 2.15 | Z166: 2.11 | AA166: 1.92 | AB166: 1.64 | AC166: 1.42 | AD166: 1.38 | AE166: 1.23 | AF166: 1.19 | AG166: 1.16 | AH166: 1.04 | AI166: 0.97 | AJ166: 0.94
A167: ="primary_archetype_"&TEXT(ROUND(Table213[[#This Row],[2016]],1),"0.0") -> primary_archetype_13.8 | B167: 13.80 | C167: 13.80 | D167: 13.80 | E167: 13.55 | F167: 12.94 | G167: 13.02 | H167: 12.76 | I167: 12.24 | J167: 11.96 | K167: 11.66 | L167: 11.19 | M167: 11.14 | N167: 10.75 | O167: 10.36 | P167: 9.89 | Q167: 8.51 | R167: 6.66 | S167: 6.07 | T167: 4.78 | U167: 3.49 | V167: 3.30 | W167: 2.73 | X167: 2.44 | Y167: 2.14 | Z167: 2.10 | AA167: 1.91 | AB167: 1.64 | AC167: 1.42 | AD167: 1.38 | AE167: 1.23 | AF167: 1.19 | AG167: 1.15 | AH167: 1.04 | AI167: 0.97 | AJ167: 0.94
A168: ="primary_archetype_"&TEXT(ROUND(Table213[[#This Row],[2016]],1),"0.0") -> primary_archetype_13.7 | B168: 13.70 | C168: 13.70 | D168: 13.70 | E168: 13.45 | F168: 12.84 | G168: 12.93 | H168: 12.67 | I168: 12.16 | J168: 11.87 | K168: 11.58 | L168: 11.11 | M168: 11.06 | N168: 10.68 | O168: 10.28 | P168: 9.82 | Q168: 8.46 | R168: 6.62 | S168: 6.03 | T168: 4.75 | U168: 3.47 | V168: 3.28 | W168: 2.72 | X168: 2.43 | Y168: 2.14 | Z168: 2.09 | AA168: 1.90 | AB168: 1.63 | AC168: 1.41 | AD168: 1.38 | AE168: 1.23 | AF168: 1.19 | AG168: 1.15 | AH168: 1.04 | AI168: 0.97 | AJ168: 0.94
A169: ="primary_archetype_"&TEXT(ROUND(Table213[[#This Row],[2016]],1),"0.0") -> primary_archetype_13.6 | B169: 13.60 | C169: 13.60 | D169: 13.60 | E169: 13.35 | F169: 12.75 | G169: 12.83 | H169: 12.57 | I169: 12.07 | J169: 11.79 | K169: 11.49 | L169: 11.03 | M169: 10.98 | N169: 10.60 | O169: 10.21 | P169: 9.75 | Q169: 8.40 | R169: 6.57 | S169: 5.99 | T169: 4.72 | U169: 3.45 | V169: 3.26 | W169: 2.71 | X169: 2.42 | Y169: 2.13 | Z169: 2.08 | AA169: 1.90 | AB169: 1.63 | AC169: 1.41 | AD169: 1.37 | AE169: 1.23 | AF169: 1.18 | AG169: 1.15 | AH169: 1.04 | AI169: 0.97 | AJ169: 0.94
A170: ="primary_archetype_"&TEXT(ROUND(Table213[[#This Row],[2016]],1),"0.0") -> primary_archetype_13.5 | B170: 13.50 | C170: 13.50 | D170: 13.50 | E170: 13.25 | F170: 12.66 | G170: 12.74 | H170: 12.48 | I170: 11.98 | J170: 11.70 | K170: 11.41 | L170: 10.95 | M170: 10.90 | N170: 10.53 | O170: 10.14 | P170: 9.68 | Q170: 8.34 | R170: 6.53 | S170: 5.95 | T170: 4.69 | U170: 3.43 | V170: 3.25 | W170: 2.69 | X170: 2.41 | Y170: 2.12 | Z170: 2.07 | AA170: 1.89 | AB170: 1.62 | AC170: 1.41 | AD170: 1.37 | AE170: 1.22 | AF170: 1.18 | AG170: 1.15 | AH170: 1.04 | AI170: 0.97 | AJ170: 0.94
A171: ="primary_archetype_"&TEXT(ROUND(Table213[[#This Row],[2016]],1),"0.0") -> primary_archetype_13.4 | B171: 13.40 | C171: 13.40 | D171: 13.40 | E171: 13.16 | F171: 12.56 | G171: 12.65 | H171: 12.39 | I171: 11.89 | J171: 11.61 | K171: 11.33 | L171: 10.88 | M171: 10.82 | N171: 10.45 | O171: 10.07 | P171: 9.61 | Q171: 8.28 | R171: 6.48 | S171: 5.91 | T171: 4.67 | U171: 3.41 | V171: 3.23 | W171: 2.68 | X171: 2.40 | Y171: 2.11 | Z171: 2.06 | AA171: 1.88 | AB171: 1.62 | AC171: 1.40 | AD171: 1.37 | AE171: 1.22 | AF171: 1.18 | AG171: 1.15 | AH171: 1.04 | AI171: 0.97 | AJ171: 0.94
A172: ="primary_archetype_"&TEXT(ROUND(Table213[[#This Row],[2016]],1),"0.0") -> primary_archetype_13.3 | B172: 13.30 | C172: 13.30 | D172: 13.30 | E172: 13.06 | F172: 12.47 | G172: 12.55 | H172: 12.30 | I172: 11.81 | J172: 11.53 | K172: 11.24 | L172: 10.80 | M172: 10.74 | N172: 10.37 | O172: 9.99 | P172: 9.54 | Q172: 8.22 | R172: =MROUND((($B172-$AH$2)*((R$2-$AH$2)/($B$2-$AH$2)))+$AH$2,0.01) -> 6.44 | S172: 5.87 | T172: 4.64 | U172: 3.39 | V172: 3.21 | W172: 2.67 | X172: 2.39 | Y172: 2.10 | Z172: 2.06 | AA172: 1.88 | AB172: 1.62 | AC172: 1.40 | AD172: 1.37 | AE172: 1.22 | AF172: 1.18 | AG172: 1.15 | AH172: 1.04 | AI172: 0.97 | AJ172: 0.94
A173: ="primary_archetype_"&TEXT(ROUND(Table213[[#This Row],[2016]],1),"0.0") -> primary_archetype_13.2 | B173: 13.20 | C173: =MROUND((($B173-$AH$2)*((C$2-$AH$2)/($B$2-$AH$2)))+$AH$2,0.01) -> 13.20 | D173: 13.20 | E173: 12.96 | F173: 12.38 | G173: 12.46 | H173: 12.21 | I173: 11.72 | J173: 11.44 | K173: 11.16 | L173: 10.72 | M173: 10.66 | N173: 10.30 | O173: 9.92 | P173: 9.47 | Q173: 8.16 | R173: 6.40 | S173: 5.83 | T173: 4.61 | U173: 3.37 | V173: 3.19 | W173: 2.65 | X173: 2.38 | Y173: 2.09 | Z173: 2.05 | AA173: 1.87 | AB173: 1.61 | AC173: 1.40 | AD173: 1.36 | AE173: 1.22 | AF173: 1.18 | AG173: 1.15 | AH173: 1.04 | AI173: 0.97 | AJ173: 0.94
A174: ="primary_archetype_"&TEXT(ROUND(Table213[[#This Row],[2016]],1),"0.0") -> primary_archetype_13.1 | B174: 13.10 | C174: 13.10 | D174: 13.10 | E174: 12.86 | F174: 12.28 | G174: 12.36 | H174: 12.11 | I174: 11.63 | J174: 11.36 | K174: 11.08 | L174: 10.64 | M174: 10.58 | N174: 10.22 | O174: 9.85 | P174: 9.40 | Q174: 8.10 | R174: 6.35 | S174: 5.79 | T174: 4.58 | U174: 3.35 | V174: 3.18 | W174: 2.64 | X174: 2.37 | Y174: 2.08 | Z174: 2.04 | AA174: 1.86 | AB174: 1.61 | AC174: 1.39 | AD174: 1.36 | AE174: 1.22 | AF174: 1.18 | AG174: 1.15 | AH174: 1.04 | AI174: 0.97 | AJ174: 0.94
A175: ="primary_archetype_"&TEXT(ROUND(Table213[[#This Row],[2016]],1),"0.0") -> primary_archetype_13.0 | B175: 13.00 | C175: 13.00 | D175: 13.00 | E175: 12.76 | F175: 12.19 | G175: 12.27 | H175: 12.02 | I175: 11.54 | J175: 11.27 | K175: 10.99 | L175: 10.56 | M175: 10.50 | N175: 10.15 | O175: 9.77 | P175: 9.33 | Q175: 8.05 | R175: 6.31 | S175: 5.75 | T175: 4.55 | U175: 3.33 | V175: 3.16 | W175: 2.63 | X175: 2.36 | Y175: 2.08 | Z175: 2.03 | AA175: 1.86 | AB175: 1.60 | AC175: 1.39 | AD175: 1.36 | AE175: 1.22 | AF175: 1.18 | AG175: 1.15 | AH175: 1.04 | AI175: 0.97 | AJ175: 0.94
A176: ="primary_archetype_"&TEXT(ROUND(Table213[[#This Row],[2016]],1),"0.0") -> primary_archetype_12.9 | B176: 12.90 | C176: 12.90 | D176: 12.90 | E176: 12.67 | F176: 12.10 | G176: 12.18 | H176: 11.93 | I176: 11.45 | J176: 11.19 | K176: 10.91 | L176: 10.48 | M176: 10.42 | N176: 10.07 | O176: 9.70 | P176: 9.26 | Q176: 7.99 | R176: 6.26 | S176: 5.71 | T176: 4.52 | U176: 3.31 | V176: 3.14 | W176: 2.61 | X176: 2.35 | Y176: 2.07 | Z176: 2.02 | AA176: 1.85 | AB176: 1.60 | AC176: 1.39 | AD176: 1.35 | AE176: 1.21 | AF176: 1.18 | AG176: 1.15 | AH176: 1.04 | AI176: 0.97 | AJ176: 0.95
A177: ="primary_archetype_"&TEXT(ROUND(Table213[[#This Row],[2016]],1),"0.0") -> primary_archetype_12.8 | B177: 12.80 | C177: 12.80 | D177: 12.80 | E177: 12.57 | F177: 12.00 | G177: 12.08 | H177: 11.84 | I177: 11.37 | J177: 11.10 | K177: 10.83 | L177: 10.40 | M177: 10.35 | N177: 9.99 | O177: 9.63 | P177: 9.19 | Q177: 7.93 | R177: 6.22 | S177: 5.67 | T177: 4.49 | U177: 3.30 | V177: 3.12 | W177: 2.60 | X177: 2.33 | Y177: 2.06 | Z177: 2.02 | AA177: 1.84 | AB177: 1.59 | AC177: 1.39 | AD177: 1.35 | AE177: 1.21 | AF177: 1.17 | AG177: 1.15 | AH177: 1.04 | AI177: 0.98 | AJ177: 0.95
A178: ="primary_archetype_"&TEXT(ROUND(Table213[[#This Row],[2016]],1),"0.0") -> primary_archetype_12.7 | B178: 12.70 | C178: 12.70 | D178: 12.70 | E178: 12.47 | F178: 11.91 | G178: 11.99 | H178: 11.75 | I178: 11.28 | J178: 11.02 | K178: 10.74 | L178: 10.32 | M178: 10.27 | N178: 9.92 | O178: 9.55 | P178: 9.13 | Q178: 7.87 | R178: 6.17 | S178: 5.63 | T178: 4.46 | U178: 3.28 | V178: 3.10 | W178: 2.59 | X178: 2.32 | Y178: 2.05 | Z178: 2.01 | AA178: 1.84 | AB178: 1.59 | AC178: 1.38 | AD178: 1.35 | AE178: 1.21 | AF178: 1.17 | AG178: 1.14 | AH178: 1.04 | AI178: 0.98 | AJ178: 0.95
A179: ="primary_archetype_"&TEXT(ROUND(Table213[[#This Row],[2016]],1),"0.0") -> primary_archetype_12.6 | B179: 12.60 | C179: 12.60 | D179: 12.60 | E179: 12.37 | F179: 11.82 | G179: 11.90 | H179: 11.66 | I179: 11.19 | J179: 10.93 | K179: 10.66 | L179: 10.24 | M179: 10.19 | N179: 9.84 | O179: 9.48 | P179: 9.06 | Q179: 7.81 | R179: 6.13 | S179: 5.60 | T179: 4.43 | U179: 3.26 | V179: 3.09 | W179: 2.57 | X179: 2.31 | Y179: 2.04 | Z179: 2.00 | AA179: 1.83 | AB179: 1.58 | AC179: 1.38 | AD179: 1.35 | AE179: 1.21 | AF179: 1.17 | AG179: 1.14 | AH179: 1.04 | AI179: 0.98 | AJ179: 0.95
A180: ="primary_archetype_"&TEXT(ROUND(Table213[[#This Row],[2016]],1),"0.0") -> primary_archetype_12.5 | B180: 12.50 | C180: 12.50 | D180: 12.50 | E180: 12.27 | F180: 11.72 | G180: 11.80 | H180: 11.56 | I180: 11.10 | J180: 10.84 | K180: 10.58 | L180: 10.16 | M180: 10.11 | N180: 9.76 | O180: 9.41 | P180: 8.99 | Q180: 7.75 | R180: 6.09 | S180: 5.56 | T180: 4.40 | U180: 3.24 | V180: 3.07 | W180: 2.56 | X180: 2.30 | Y180: 2.03 | Z180: 1.99 | AA180: 1.82 | AB180: 1.58 | AC180: 1.38 | AD180: 1.34 | AE180: 1.21 | AF180: 1.17 | AG180: 1.14 | AH180: 1.04 | AI180: 0.98 | AJ180: 0.95
A181: ="primary_archetype_"&TEXT(ROUND(Table213[[#This Row],[2016]],1),"0.0") -> primary_archetype_12.4 | B181: 12.40 | C181: 12.40 | D181: 12.40 | E181: 12.18 | F181: 11.63 | G181: 11.71 | H181: 11.47 | I181: 11.01 | J181: 10.76 | K181: 10.50 | L181: 10.08 | M181: 10.03 | N181: 9.69 | O181: 9.33 | P181: 8.92 | Q181: 7.69 | R181: 6.04 | S181: 5.52 | T181: 4.37 | U181: 3.22 | V181: 3.05 | W181: 2.55 | X181: 2.29 | Y181: 2.02 | Z181: 1.98 | AA181: 1.82 | AB181: 1.57 | AC181: 1.37 | AD181: 1.34 | AE181: 1.21 | AF181: 1.17 | AG181: 1.14 | AH181: 1.04 | AI181: 0.98 | AJ181: 0.95
A182: ="primary_archetype_"&TEXT(ROUND(Table213[[#This Row],[2016]],1),"0.0") -> primary_archetype_12.3 | B182: 12.30 | C182: 12.30 | D182: 12.30 | E182: 12.08 | F182: 11.54 | G182: 11.61 | H182: 11.38 | I182: 10.93 | J182: 10.67 | K182: 10.41 | L182: 10.00 | M182: 9.95 | N182: 9.61 | O182: 9.26 | P182: 8.85 | Q182: 7.64 | R182: 6.00 | S182: 5.48 | T182: 4.34 | U182: 3.20 | V182: 3.03 | W182: 2.53 | X182: 2.28 | Y182: 2.01 | Z182: 1.97 | AA182: 1.81 | AB182: 1.57 | AC182: 1.37 | AD182: 1.34 | AE182: 1.21 | AF182: 1.17 | AG182: 1.14 | AH182: 1.04 | AI182: 0.98 | AJ182: 0.95
A183: ="primary_archetype_"&TEXT(ROUND(Table213[[#This Row],[2016]],1),"0.0") -> primary_archetype_12.2 | B183: 12.20 | C183: 12.20 | D183: 12.20 | E183: 11.98 | F183: 11.44 | G183: 11.52 | H183: 11.29 | I183: 10.84 | J183: 10.59 | K183: 10.33 | L183: 9.92 | M183: 9.87 | N183: 9.54 | O183: 9.19 | P183: 8.78 | Q183: 7.58 | R183: 5.95 | S183: 5.44 | T183: 4.31 | U183: 3.18 | V183: 3.02 | W183: 2.52 | X183: 2.27 | Y183: 2.01 | Z183: 1.97 | AA183: 1.80 | AB183: 1.56 | AC183: 1.37 | AD183: 1.34 | AE183: 1.20 | AF183: 1.17 | AG183: 1.14 | AH183: 1.04 | AI183: 0.98 | AJ183: 0.95
A184: ="primary_archetype_"&TEXT(ROUND(Table213[[#This Row],[2016]],1),"0.0") -> primary_archetype_12.1 | B184: 12.10 | C184: 12.10 | D184: 12.10 | E184: 11.88 | F184: 11.35 | G184: 11.43 | H184: 11.20 | I184: 10.75 | J184: 10.50 | K184: 10.25 | L184: 9.84 | M184: 9.79 | N184: 9.46 | O184: 9.12 | P184: 8.71 | Q184: 7.52 | R184: 5.91 | S184: 5.40 | T184: 4.28 | U184: 3.16 | V184: 3.00 | W184: 2.51 | X184: 2.26 | Y184: 2.00 | Z184: 1.96 | AA184: 1.79 | AB184: 1.56 | AC184: 1.37 | AD184: 1.33 | AE184: 1.20 | AF184: 1.17 | AG184: 1.14 | AH184: 1.04 | AI184: 0.98 | AJ184: 0.95
A185: ="primary_archetype_"&TEXT(ROUND(Table213[[#This Row],[2016]],1),"0.0") -> primary_archetype_12.0 | B185: 12.00 | C185: 12.00 | D185: 12.00 | E185: 11.78 | F185: 11.26 | G185: 11.33 | H185: 11.10 | I185: 10.66 | J185: 10.42 | K185: 10.16 | L185: 9.76 | M185: 9.71 | N185: 9.38 | O185: 9.04 | P185: 8.64 | Q185: 7.46 | R185: 5.87 | S185: 5.36 | T185: 4.25 | U185: 3.14 | V185: 2.98 | W185: 2.49 | X185: 2.25 | Y185: 1.99 | Z185: 1.95 | AA185: 1.79 | AB185: 1.55 | AC185: 1.36 | AD185: 1.33 | AE185: 1.20 | AF185: 1.17 | AG185: 1.14 | AH185: 1.04 | AI185: 0.98 | AJ185: 0.95
A186: ="primary_archetype_"&TEXT(ROUND(Table213[[#This Row],[2016]],1),"0.0") -> primary_archetype_11.9 | B186: 11.90 | C186: 11.90 | D186: 11.90 | E186: 11.69 | F186: 11.17 | G186: 11.24 | H186: 11.01 | I186: 10.58 | J186: 10.33 | K186: 10.08 | L186: 9.68 | M186: 9.63 | N186: 9.31 | O186: 8.97 | P186: 8.57 | Q186: 7.40 | R186: 5.82 | S186: 5.32 | T186: 4.23 | U186: 3.12 | V186: 2.96 | W186: 2.48 | X186: 2.23 | Y186: 1.98 | Z186: 1.94 | AA186: 1.78 | AB186: 1.55 | AC186: 1.36 | AD186: 1.33 | AE186: 1.20 | AF186: 1.16 | AG186: 1.14 | AH186: 1.04 | AI186: 0.98 | AJ186: 0.95
A187: ="primary_archetype_"&TEXT(ROUND(Table213[[#This Row],[2016]],1),"0.0") -> primary_archetype_11.8 | B187: 11.80 | C187: 11.80 | D187: 11.80 | E187: 11.59 | F187: 11.07 | G187: 11.14 | H187: 10.92 | I187: 10.49 | J187: 10.25 | K187: 10.00 | L187: 9.60 | M187: 9.55 | N187: 9.23 | O187: 8.90 | P187: 8.50 | Q187: 7.34 | R187: 5.78 | S187: 5.28 | T187: 4.20 | U187: 3.10 | V187: 2.95 | W187: 2.47 | X187: 2.22 | Y187: 1.97 | Z187: 1.93 | AA187: 1.77 | AB187: 1.54 | AC187: 1.36 | AD187: 1.33 | AE187: 1.20 | AF187: 1.16 | AG187: 1.14 | AH187: 1.04 | AI187: 0.98 | AJ187: 0.95
A188: ="primary_archetype_"&TEXT(ROUND(Table213[[#This Row],[2016]],1),"0.0") -> primary_archetype_11.7 | B188: 11.70 | C188: 11.70 | D188: 11.70 | E188: 11.49 | F188: 10.98 | G188: 11.05 | H188: 10.83 | I188: 10.40 | J188: 10.16 | K188: 9.91 | L188: 9.52 | M188: 9.48 | N188: 9.16 | O188: 8.82 | P188: 8.43 | Q188: 7.28 | R188: =MROUND((($B188-$AH$2)*((R$2-$AH$2)/($B$2-$AH$2)))+$AH$2,0.01) -> 5.73 | S188: 5.24 | T188: 4.17 | U188: 3.08 | V188: 2.93 | W188: 2.45 | X188: 2.21 | Y188: 1.96 | Z188: 1.92 | AA188: 1.77 | AB188: 1.54 | AC188: 1.35 | AD188: 1.32 | AE188: 1.20 | AF188: 1.16 | AG188: 1.14 | AH188: 1.04 | AI188: 0.98 | AJ188: 0.95
A189: ="primary_archetype_"&TEXT(ROUND(Table213[[#This Row],[2016]],1),"0.0") -> primary_archetype_11.6 | B189: 11.60 | C189: =MROUND((($B189-$AH$2)*((C$2-$AH$2)/($B$2-$AH$2)))+$AH$2,0.01) -> 11.60 | D189: 11.60 | E189: 11.39 | F189: 10.89 | G189: 10.96 | H189: 10.74 | I189: 10.31 | J189: 10.07 | K189: 9.83 | L189: 9.44 | M189: 9.40 | N189: 9.08 | O189: 8.75 | P189: 8.36 | Q189: 7.22 | R189: 5.69 | S189: 5.20 | T189: 4.14 | U189: 3.07 | V189: 2.91 | W189: 2.44 | X189: 2.20 | Y189: 1.95 | Z189: 1.92 | AA189: 1.76 | AB189: 1.54 | AC189: 1.35 | AD189: 1.32 | AE189: 1.20 | AF189: 1.16 | AG189: 1.13 | AH189: 1.04 | AI189: 0.98 | AJ189: 0.96
A190: ="primary_archetype_"&TEXT(ROUND(Table213[[#This Row],[2016]],1),"0.0") -> primary_archetype_11.5 | B190: 11.50 | C190: 11.50 | D190: 11.50 | E190: 11.29 | F190: 10.79 | G190: 10.86 | H190: 10.65 | I190: 10.22 | J190: 9.99 | K190: 9.75 | L190: 9.36 | M190: 9.32 | N190: 9.00 | O190: 8.68 | P190: 8.29 | Q190: 7.17 | R190: 5.65 | S190: 5.16 | T190: 4.11 | U190: 3.05 | V190: 2.89 | W190: 2.43 | X190: 2.19 | Y190: 1.95 | Z190: 1.91 | AA190: 1.75 | AB190: 1.53 | AC190: 1.35 | AD190: 1.32 | AE190: 1.19 | AF190: 1.16 | AG190: 1.13 | AH190: 1.04 | AI190: 0.98 | AJ190: 0.96
A191: ="primary_archetype_"&TEXT(ROUND(Table213[[#This Row],[2016]],1),"0.0") -> primary_archetype_11.4 | B191: 11.40 | C191: 11.40 | D191: 11.40 | E191: 11.19 | F191: 10.70 | G191: 10.77 | H191: 10.55 | I191: 10.14 | J191: 9.90 | K191: 9.66 | L191: 9.28 | M191: 9.24 | N191: 8.93 | O191: 8.60 | P191: 8.22 | Q191: 7.11 | R191: 5.60 | S191: 5.12 | T191: 4.08 | U191: 3.03 | V191: 2.87 | W191: 2.41 | X191: 2.18 | Y191: 1.94 | Z191: 1.90 | AA191: 1.75 | AB191: 1.53 | AC191: 1.34 | AD191: 1.31 | AE191: 1.19 | AF191: 1.16 | AG191: 1.13 | AH191: 1.04 | AI191: 0.98 | AJ191: 0.96
A192: ="primary_archetype_"&TEXT(ROUND(Table213[[#This Row],[2016]],1),"0.0") -> primary_archetype_11.3 | B192: 11.30 | C192: 11.30 | D192: 11.30 | E192: 11.10 | F192: 10.61 | G192: 10.67 | H192: 10.46 | I192: 10.05 | J192: 9.82 | K192: 9.58 | L192: 9.20 | M192: 9.16 | N192: 8.85 | O192: 8.53 | P192: 8.15 | Q192: 7.05 | R192: 5.56 | S192: 5.08 | T192: 4.05 | U192: 3.01 | V192: 2.86 | W192: 2.40 | X192: 2.17 | Y192: 1.93 | Z192: 1.89 | AA192: 1.74 | AB192: 1.52 | AC192: 1.34 | AD192: 1.31 | AE192: 1.19 | AF192: 1.16 | AG192: 1.13 | AH192: 1.04 | AI192: 0.98 | AJ192: 0.96
A193: ="primary_archetype_"&TEXT(ROUND(Table213[[#This Row],[2016]],1),"0.0") -> primary_archetype_11.2 | B193: 11.20 | C193: 11.20 | D193: 11.20 | E193: 11.00 | F193: 10.51 | G193: 10.58 | H193: 10.37 | I193: 9.96 | J193: 9.73 | K193: 9.50 | L193: 9.12 | M193: 9.08 | N193: 8.77 | O193: 8.46 | P193: 8.09 | Q193: 6.99 | R193: 5.51 | S193: 5.04 | T193: 4.02 | U193: 2.99 | V193: 2.84 | W193: 2.39 | X193: 2.16 | Y193: 1.92 | Z193: 1.88 | AA193: 1.73 | AB193: 1.52 | AC193: 1.34 | AD193: 1.31 | AE193: 1.19 | AF193: 1.16 | AG193: 1.13 | AH193: 1.04 | AI193: 0.98 | AJ193: 0.96
A194: ="primary_archetype_"&TEXT(ROUND(Table213[[#This Row],[2016]],1),"0.0") -> primary_archetype_11.1 | B194: 11.10 | C194: 11.10 | D194: 11.10 | E194: 10.90 | F194: 10.42 | G194: 10.49 | H194: 10.28 | I194: 9.87 | J194: 9.65 | K194: 9.41 | L194: 9.04 | M194: 9.00 | N194: 8.70 | O194: 8.39 | P194: 8.02 | Q194: 6.93 | R194: 5.47 | S194: 5.00 | T194: 3.99 | U194: 2.97 | V194: 2.82 | W194: 2.37 | X194: 2.15 | Y194: 1.91 | Z194: 1.87 | AA194: 1.73 | AB194: 1.51 | AC194: 1.34 | AD194: 1.31 | AE194: 1.19 | AF194: 1.15 | AG194: 1.13 | AH194: 1.04 | AI194: 0.98 | AJ194: 0.96
A195: ="primary_archetype_"&TEXT(ROUND(Table213[[#This Row],[2016]],1),"0.0") -> primary_archetype_11.0 | B195: 11.00 | C195: 11.00 | D195: 11.00 | E195: 10.80 | F195: 10.33 | G195: 10.39 | H195: 10.19 | I195: 9.79 | J195: 9.56 | K195: 9.33 | L195: 8.97 | M195: 8.92 | N195: 8.62 | O195: 8.31 | P195: 7.95 | Q195: 6.87 | R195: 5.43 | S195: 4.96 | T195: 3.96 | U195: 2.95 | V195: 2.80 | W195: 2.36 | X195: 2.14 | Y195: 1.90 | Z195: 1.87 | AA195: 1.72 | AB195: 1.51 | AC195: 1.33 | AD195: 1.30 | AE195: 1.19 | AF195: 1.15 | AG195: 1.13 | AH195: 1.04 | AI195: 0.98 | AJ195: 0.96
A196: ="primary_archetype_"&TEXT(ROUND(Table213[[#This Row],[2016]],1),"0.0") -> primary_archetype_10.9 | B196: 10.90 | C196: 10.90 | D196: 10.90 | E196: 10.70 | F196: 10.23 | G196: 10.30 | H196: 10.09 | I196: 9.70 | J196: 9.48 | K196: 9.25 | L196: 8.89 | M196: 8.84 | N196: 8.55 | O196: 8.24 | P196: 7.88 | Q196: 6.81 | R196: 5.38 | S196: 4.93 | T196: 3.93 | U196: 2.93 | V196: 2.79 | W196: 2.35 | X196: 2.12 | Y196: 1.89 | Z196: 1.86 | AA196: 1.71 | AB196: 1.50 | AC196: 1.33 | AD196: 1.30 | AE196: 1.18 | AF196: 1.15 | AG196: 1.13 | AH196: 1.04 | AI196: 0.99 | AJ196: 0.96
A197: ="primary_archetype_"&TEXT(ROUND(Table213[[#This Row],[2016]],1),"0.0") -> primary_archetype_10.8 | B197: 10.80 | C197: 10.80 | D197: 10.80 | E197: 10.61 | F197: 10.14 | G197: 10.20 | H197: 10.00 | I197: 9.61 | J197: 9.39 | K197: 9.16 | L197: 8.81 | M197: 8.76 | N197: 8.47 | O197: 8.17 | P197: 7.81 | Q197: 6.76 | R197: 5.34 | S197: 4.89 | T197: 3.90 | U197: 2.91 | V197: 2.77 | W197: 2.33 | X197: 2.11 | Y197: 1.88 | Z197: 1.85 | AA197: 1.71 | AB197: 1.50 | AC197: 1.33 | AD197: 1.30 | AE197: 1.18 | AF197: 1.15 | AG197: 1.13 | AH197: 1.04 | AI197: 0.99 | AJ197: 0.96
A198: ="primary_archetype_"&TEXT(ROUND(Table213[[#This Row],[2016]],1),"0.0") -> primary_archetype_10.7 | B198: 10.70 | C198: 10.70 | D198: 10.70 | E198: 10.51 | F198: 10.05 | G198: 10.11 | H198: 9.91 | I198: 9.52 | J198: 9.30 | K198: 9.08 | L198: 8.73 | M198: 8.68 | N198: 8.39 | O198: 8.09 | P198: 7.74 | Q198: 6.70 | R198: 5.29 | S198: 4.85 | T198: 3.87 | U198: 2.89 | V198: 2.75 | W198: 2.32 | X198: 2.10 | Y198: 1.88 | Z198: 1.84 | AA198: 1.70 | AB198: 1.49 | AC198: 1.32 | AD198: 1.30 | AE198: 1.18 | AF198: 1.15 | AG198: 1.13 | AH198: 1.04 | AI198: 0.99 | AJ198: 0.96
A199: ="primary_archetype_"&TEXT(ROUND(Table213[[#This Row],[2016]],1),"0.0") -> primary_archetype_10.6 | B199: 10.60 | C199: 10.60 | D199: 10.60 | E199: 10.41 | F199: 9.95 | G199: 10.02 | H199: 9.82 | I199: 9.43 | J199: 9.22 | K199: 9.00 | L199: 8.65 | M199: 8.60 | N199: 8.32 | O199: 8.02 | P199: 7.67 | Q199: 6.64 | R199: 5.25 | S199: 4.81 | T199: 3.84 | U199: 2.87 | V199: 2.73 | W199: 2.31 | X199: 2.09 | Y199: 1.87 | Z199: 1.83 | AA199: 1.69 | AB199: 1.49 | AC199: 1.32 | AD199: 1.29 | AE199: 1.18 | AF199: 1.15 | AG199: 1.13 | AH199: 1.04 | AI199: 0.99 | AJ199: 0.96
A200: ="primary_archetype_"&TEXT(ROUND(Table213[[#This Row],[2016]],1),"0.0") -> primary_archetype_10.5 | B200: =MROUND(B199-0.1,0.1) -> 10.50 | C200: 10.50 | D200: 10.50 | E200: 10.31 | F200: 9.86 | G200: 9.92 | H200: 9.73 | I200: 9.35 | J200: 9.13 | K200: 8.91 | L200: 8.57 | M200: 8.53 | N200: 8.24 | O200: 7.95 | P200: 7.60 | Q200: 6.58 | R200: 5.21 | S200: 4.77 | T200: 3.81 | U200: 2.85 | V200: 2.71 | W200: 2.29 | X200: 2.08 | Y200: 1.86 | Z200: 1.82 | AA200: 1.69 | AB200: 1.48 | AC200: 1.32 | AD200: 1.29 | AE200: 1.18 | AF200: 1.15 | AG200: 1.12 | AH200: 1.04 | AI200: 0.99 | AJ200: 0.96
A201: ="primary_archetype_"&TEXT(ROUND(Table213[[#This Row],[2016]],1),"0.0") -> primary_archetype_10.4 | B201: 10.40 | C201: 10.40 | D201: 10.40 | E201: 10.21 | F201: 9.77 | G201: 9.83 | H201: 9.63 | I201: 9.26 | J201: 9.05 | K201: 8.83 | L201: 8.49 | M201: 8.45 | N201: 8.17 | O201: 7.87 | P201: 7.53 | Q201: 6.52 | R201: 5.16 | S201: 4.73 | T201: 3.78 | U201: 2.83 | V201: 2.70 | W201: 2.28 | X201: 2.07 | Y201: 1.85 | Z201: 1.82 | AA201: 1.68 | AB201: 1.48 | AC201: 1.31 | AD201: 1.29 | AE201: 1.18 | AF201: 1.15 | AG201: 1.12 | AH201: 1.04 | AI201: 0.99 | AJ201: 0.96
... 95 more rows

Sheet Casthouse Proc'ment Data Table (hidden)
A1: Sectoral Benchmark | B1: 2016 | C1: 2017 | D1: 2018 | E1: 2019 | F1: 2020 | G1: 2021 | H1: 2022 | I1: 2023 | J1: 2024 | K1: 2025 | L1: 2026 | M1: 2027 | N1: 2028 | O1: 2029 | P1: 2030 | Q1: 2031 | R1: 2032 | S1: 2033 | T1: 2034 | U1: 2035 | V1: 2036 | W1: 2037 | X1: 2038 | Y1: 2039 | Z1: 2040 | AA1: 2041 | AB1: 2042 | AC1: 2043 | AD1: 2044 | AE1: 2045 | AF1: 2046 | AG1: 2047 | AH1: 2048 | AI1: 2049 | AJ1: 2050
A2: Casthouse Procurement Sectoral | B2: ='Sectoral Slopes'!C20 -> 8.02 | C2: ='Sectoral Slopes'!D20 -> 8.02 | D2: ='Sectoral Slopes'!E20 -> 8.02 | E2: ='Sectoral Slopes'!F20 -> 7.83 | F2: ='Sectoral Slopes'!G20 -> 7.36 | G2: ='Sectoral Slopes'!H20 -> 7.43 | H2: ='Sectoral Slopes'!I20 -> 7.23 | I2: ='Sectoral Slopes'!J20 -> 6.83 | J2: ='Sectoral Slopes'!K20 -> 6.62 | K2: ='Sectoral Slopes'!L20 -> 6.39 | L2: ='Sectoral Slopes'!M20 -> 6.03 | M2: ='Sectoral Slopes'!N20 -> 5.99 | N2: ='Sectoral Slopes'!O20 -> 5.70 | O2: ='Sectoral Slopes'!P20 -> 5.40 | P2: ='Sectoral Slopes'!Q20 -> 5.04 | Q2: ='Sectoral Slopes'!R20 -> 4.35 | R2: ='Sectoral Slopes'!S20 -> 3.41 | S2: ='Sectoral Slopes'!T20 -> 3.11 | T2: ='Sectoral Slopes'!U20 -> 2.46 | U2: ='Sectoral Slopes'!V20 -> 1.81 | V2: ='Sectoral Slopes'!W20 -> 1.69 | W2: ='Sectoral Slopes'!X20 -> 1.32 | X2: ='Sectoral Slopes'!Y20 -> 1.14 | Y2: ='Sectoral Slopes'!Z20 -> 0.94 | Z2: ='Sectoral Slopes'!AA20 -> 0.91 | AA2: ='Sectoral Slopes'!AB20 -> 0.82 | AB2: ='Sectoral Slopes'!AC20 -> 0.70 | AC2: ='Sectoral Slopes'!AD20 -> 0.59 | AD2: ='Sectoral Slopes'!AE20 -> 0.57 | AE2: ='Sectoral Slopes'!AF20 -> 0.50 | AF2: ='Sectoral Slopes'!AG20 -> 0.46 | AG2: ='Sectoral Slopes'!AH20 -> 0.43 | AH2: ='Sectoral Slopes'!AI20 -> 0.30 | AI2: ='Sectoral Slopes'!AJ20 -> 0.23 | AJ2: ='Sectoral Slopes'!AK20 -> 0.20
A4: Electricity SDAs (0.1 t CO2e/t Al increments) | B4: 2016 | C4: 2017 | D4: 2018 | E4: 2019 | F4: 2020 | G4: 2021 | H4: 2022 | I4: 2023 | J4: 2024 | K4: 2025 | L4: 2026 | M4: 2027 | N4: 2028 | O4: 2029 | P4: 2030 | Q4: 2031 | R4: 2032 | S4: 2033 | T4: 2034 | U4: 2035 | V4: 2036 | W4: 2037 | X4: 2038 | Y4: 2039 | Z4: 2040 | AA4: 2041 | AB4: 2042 | AC4: 2043 | AD4: 2044 | AE4: 2045 | AF4: 2046 | AG4: 2047 | AH4: 2048 | AI4: 2049 | AJ4: 2050
A5: ="casthouse_procurement_archetype_"&TEXT(ROUND(Table21319[[#This Row],[2016]],1),"0.0") -> casthouse_procurement_archetype_30.0 | B5: 30.00 | C5: =MROUND((($B5-$AJ$2)*((C$2-$AJ$2)/($B$2-$AJ$2)))+$AJ$2,0.01) -> 30.00 | D5: =MROUND((($B5-$AJ$2)*((D$2-$AJ$2)/($B$2-$AJ$2)))+$AJ$2,0.01) -> 30.00 | E5: 29.27 | F5: 27.49 | G5: 27.74 | H5: 26.97 | I5: 25.49 | J5: 24.65 | K5: 23.79 | L5: 22.44 | M5: 22.27 | N5: 21.16 | O5: 20.01 | P5: 18.65 | Q5: 16.00 | R5: 12.43 | S5: 11.30 | T5: 8.82 | U5: 6.33 | V5: 5.87 | W5: 4.47 | X5: 3.77 | Y5: 3.03 | Z5: 2.92 | AA5: 2.58 | AB5: 2.09 | AC5: 1.69 | AD5: 1.63 | AE5: 1.36 | AF5: 1.19 | AG5: 1.06 | AH5: 0.59 | AI5: 0.33 | AJ5: 0.20
A6: ="casthouse_procurement_archetype_"&TEXT(ROUND(Table21319[[#This Row],[2016]],1),"0.0") -> casthouse_procurement_archetype_29.9 | B6: =MROUND(B5-0.1,0.1) -> 29.90 | C6: =MROUND((($B6-$AJ$2)*((C$2-$AJ$2)/($B$2-$AJ$2)))+$AJ$2,0.01) -> 29.90 | D6: 29.90 | E6: 29.17 | F6: 27.40 | G6: 27.65 | H6: 26.88 | I6: 25.40 | J6: 24.57 | K6: 23.71 | L6: 22.36 | M6: 22.20 | N6: 21.09 | O6: 19.94 | P6: 18.59 | Q6: 15.95 | R6: 12.39 | S6: 11.26 | T6: 8.79 | U6: 6.31 | V6: 5.85 | W6: 4.46 | X6: 3.75 | Y6: 3.02 | Z6: 2.91 | AA6: 2.57 | AB6: 2.09 | AC6: 1.69 | AD6: 1.62 | AE6: 1.35 | AF6: 1.18 | AG6: 1.06 | AH6: 0.59 | AI6: 0.33 | AJ6: 0.20
A7: ="casthouse_procurement_archetype_"&TEXT(ROUND(Table21319[[#This Row],[2016]],1),"0.0") -> casthouse_procurement_archetype_29.8 | B7: =MROUND(B6-0.1,0.1) -> 29.80 | C7: 29.80 | D7: 29.80 | E7: 29.07 | F7: 27.31 | G7: 27.56 | H7: 26.79 | I7: 25.32 | J7: 24.49 | K7: 23.63 | L7: 22.29 | M7: 22.12 | N7: 21.02 | O7: 19.88 | P7: 18.52 | Q7: 15.90 | R7: 12.35 | S7: 11.22 | T7: 8.76 | U7: 6.29 | V7: 5.83 | W7: 4.44 | X7: 3.74 | Y7: 3.01 | Z7: 2.90 | AA7: 2.56 | AB7: 2.08 | AC7: 1.68 | AD7: 1.62 | AE7: 1.35 | AF7: 1.18 | AG7: 1.06 | AH7: 0.59 | AI7: 0.33 | AJ7: 0.20
A8: ="casthouse_procurement_archetype_"&TEXT(ROUND(Table21319[[#This Row],[2016]],1),"0.0") -> casthouse_procurement_archetype_29.7 | B8: 29.70 | C8: 29.70 | D8: 29.70 | E8: 28.97 | F8: 27.22 | G8: 27.47 | H8: 26.70 | I8: 25.23 | J8: 24.40 | K8: 23.55 | L8: 22.21 | M8: 22.05 | N8: 20.95 | O8: 19.81 | P8: 18.46 | Q8: 15.84 | R8: 12.31 | S8: 11.18 | T8: 8.73 | U8: 6.27 | V8: 5.81 | W8: 4.43 | X8: 3.73 | Y8: 3.00 | Z8: 2.89 | AA8: 2.56 | AB8: 2.07 | AC8: 1.68 | AD8: 1.61 | AE8: 1.34 | AF8: 1.18 | AG8: 1.05 | AH8: 0.59 | AI8: 0.33 | AJ8: 0.20
A9: ="casthouse_procurement_archetype_"&TEXT(ROUND(Table21319[[#This Row],[2016]],1),"0.0") -> casthouse_procurement_archetype_29.6 | B9: 29.60 | C9: 29.60 | D9: 29.60 | E9: 28.88 | F9: 27.13 | G9: 27.37 | H9: 26.61 | I9: 25.15 | J9: 24.32 | K9: 23.48 | L9: 22.14 | M9: 21.98 | N9: 20.88 | O9: 19.74 | P9: 18.40 | Q9: 15.79 | R9: 12.27 | S9: 11.15 | T9: 8.71 | U9: 6.25 | V9: 5.79 | W9: 4.42 | X9: 3.72 | Y9: 2.99 | Z9: 2.88 | AA9: 2.55 | AB9: 2.07 | AC9: 1.67 | AD9: 1.61 | AE9: 1.34 | AF9: 1.17 | AG9: 1.05 | AH9: 0.59 | AI9: 0.33 | AJ9: 0.20
A10: ="casthouse_procurement_archetype_"&TEXT(ROUND(Table21319[[#This Row],[2016]],1),"0.0") -> casthouse_procurement_archetype_29.5 | B10: 29.50 | C10: 29.50 | D10: 29.50 | E10: 28.78 | F10: 27.04 | G10: 27.28 | H10: 26.52 | I10: 25.06 | J10: 24.24 | K10: 23.40 | L10: 22.06 | M10: 21.90 | N10: 20.81 | O10: 19.68 | P10: 18.34 | Q10: 15.74 | R10: 12.23 | S10: 11.11 | T10: 8.68 | U10: 6.22 | V10: 5.77 | W10: 4.40 | X10: 3.71 | Y10: 2.98 | Z10: 2.87 | AA10: 2.54 | AB10: 2.06 | AC10: 1.67 | AD10: 1.60 | AE10: 1.34 | AF10: 1.17 | AG10: 1.05 | AH10: 0.59 | AI10: 0.32 | AJ10: 0.20
A11: ="casthouse_procurement_archetype_"&TEXT(ROUND(Table21319[[#This Row],[2016]],1),"0.0") -> casthouse_procurement_archetype_29.4 | B11: 29.40 | C11: 29.40 | D11: 29.40 | E11: 28.68 | F11: 26.95 | G11: 27.19 | H11: 26.43 | I11: 24.98 | J11: 24.16 | K11: 23.32 | L11: 21.99 | M11: 21.83 | N11: 20.74 | O11: 19.61 | P11: 18.28 | Q11: 15.68 | R11: 12.19 | S11: 11.07 | T11: 8.65 | U11: 6.20 | V11: 5.75 | W11: 4.39 | X11: 3.69 | Y11: 2.97 | Z11: 2.86 | AA11: 2.53 | AB11: 2.05 | AC11: 1.66 | AD11: 1.60 | AE11: 1.33 | AF11: 1.17 | AG11: 1.05 | AH11: 0.58 | AI11: 0.32 | AJ11: 0.20
A12: ="casthouse_procurement_archetype_"&TEXT(ROUND(Table21319[[#This Row],[2016]],1),"0.0") -> casthouse_procurement_archetype_29.3 | B12: 29.30 | C12: 29.30 | D12: 29.30 | E12: 28.58 | F12: 26.85 | G12: 27.10 | H12: 26.34 | I12: 24.89 | J12: 24.08 | K12: 23.24 | L12: 21.91 | M12: 21.75 | N12: 20.67 | O12: 19.54 | P12: 18.22 | Q12: 15.63 | R12: 12.15 | S12: 11.03 | T12: 8.62 | U12: 6.18 | V12: 5.73 | W12: 4.37 | X12: 3.68 | Y12: 2.96 | Z12: 2.85 | AA12: 2.52 | AB12: =MROUND((($B12-$AJ$2)*((AB$2-$AJ$2)/($B$2-$AJ$2)))+$AJ$2,0.01) -> 2.05 | AC12: 1.66 | AD12: 1.59 | AE12: 1.33 | AF12: 1.16 | AG12: 1.04 | AH12: 0.58 | AI12: 0.32 | AJ12: 0.20
A13: ="casthouse_procurement_archetype_"&TEXT(ROUND(Table21319[[#This Row],[2016]],1),"0.0") -> casthouse_procurement_archetype_29.2 | B13: 29.20 | C13: 29.20 | D13: 29.20 | E13: 28.49 | F13: 26.76 | G13: 27.00 | H13: 26.25 | I13: 24.81 | J13: 23.99 | K13: 23.16 | L13: 21.84 | M13: 21.68 | N13: 20.60 | O13: 19.48 | P13: 18.15 | Q13: 15.58 | R13: 12.11 | S13: =MROUND((($B13-$AJ$2)*((S$2-$AJ$2)/($B$2-$AJ$2)))+$AJ$2,0.01) -> 11.00 | T13: 8.59 | U13: 6.16 | V13: 5.71 | W13: 4.36 | X13: 3.67 | Y13: 2.95 | Z13: 2.84 | AA13: 2.52 | AB13: 2.04 | AC13: 1.65 | AD13: 1.59 | AE13: 1.32 | AF13: 1.16 | AG13: 1.04 | AH13: 0.58 | AI13: 0.32 | AJ13: 0.20
A14: ="casthouse_procurement_archetype_"&TEXT(ROUND(Table21319[[#This Row],[2016]],1),"0.0") -> casthouse_procurement_archetype_29.1 | B14: 29.10 | C14: 29.10 | D14: 29.10 | E14: 28.39 | F14: 26.67 | G14: 26.91 | H14: 26.16 | I14: 24.72 | J14: 23.91 | K14: 23.08 | L14: 21.76 | M14: 21.61 | N14: 20.53 | O14: 19.41 | P14: 18.09 | Q14: 15.53 | R14: 12.06 | S14: 10.96 | T14: 8.56 | U14: 6.14 | V14: 5.69 | W14: 4.34 | X14: 3.66 | Y14: 2.94 | Z14: 2.83 | AA14: 2.51 | AB14: 2.03 | AC14: 1.65 | AD14: 1.58 | AE14: 1.32 | AF14: 1.16 | AG14: 1.04 | AH14: 0.58 | AI14: 0.32 | AJ14: 0.20
A15: ="casthouse_procurement_archetype_"&TEXT(ROUND(Table21319[[#This Row],[2016]],1),"0.0") -> casthouse_procurement_archetype_29.0 | B15: 29.00 | C15: 29.00 | D15: 29.00 | E15: 28.29 | F15: 26.58 | G15: 26.82 | H15: 26.08 | I15: 24.64 | J15: 23.83 | K15: 23.00 | L15: 21.69 | M15: 21.53 | N15: 20.46 | O15: 19.35 | P15: 18.03 | Q15: 15.47 | R15: 12.02 | S15: 10.92 | T15: 8.53 | U15: 6.12 | V15: 5.68 | W15: 4.33 | X15: 3.65 | Y15: 2.94 | Z15: 2.82 | AA15: 2.50 | AB15: 2.03 | AC15: 1.64 | AD15: 1.58 | AE15: 1.32 | AF15: 1.15 | AG15: 1.03 | AH15: 0.58 | AI15: 0.32 | AJ15: 0.20
A16: ="casthouse_procurement_archetype_"&TEXT(ROUND(Table21319[[#This Row],[2016]],1),"0.0") -> casthouse_procurement_archetype_28.9 | B16: 28.90 | C16: 28.90 | D16: 28.90 | E16: 28.19 | F16: 26.49 | G16: 26.73 | H16: 25.99 | I16: 24.55 | J16: 23.75 | K16: 22.92 | L16: 21.62 | M16: 21.46 | N16: 20.39 | O16: 19.28 | P16: 17.97 | Q16: 15.42 | R16: 11.98 | S16: 10.89 | T16: 8.50 | U16: 6.10 | V16: 5.66 | W16: 4.32 | X16: 3.63 | Y16: 2.93 | Z16: 2.82 | AA16: 2.49 | AB16: 2.02 | AC16: 1.64 | AD16: 1.57 | AE16: 1.31 | AF16: 1.15 | AG16: 1.03 | AH16: 0.58 | AI16: 0.32 | AJ16: 0.20
A17: ="casthouse_procurement_archetype_"&TEXT(ROUND(Table21319[[#This Row],[2016]],1),"0.0") -> casthouse_procurement_archetype_28.8 | B17: 28.80 | C17: 28.80 | D17: 28.80 | E17: 28.10 | F17: 26.40 | G17: 26.63 | H17: 25.90 | I17: 24.47 | J17: 23.67 | K17: 22.84 | L17: 21.54 | M17: 21.38 | N17: 20.32 | O17: 19.21 | P17: 17.91 | Q17: 15.37 | R17: 11.94 | S17: 10.85 | T17: 8.47 | U17: 6.08 | V17: 5.64 | W17: 4.30 | X17: 3.62 | Y17: 2.92 | Z17: 2.81 | AA17: 2.48 | AB17: 2.02 | AC17: 1.63 | AD17: 1.57 | AE17: 1.31 | AF17: 1.15 | AG17: 1.03 | AH17: 0.58 | AI17: 0.32 | AJ17: 0.20
